Workbook

Sheet Cover
C2: Powercor
C3: Revised regulatory proposal 2026-31
C5: Mount Cottrell feeder 9
C6: Model number: | D6: 3.3.08
C8: 2025-12-01
A40: =_xlfn.SHEETS() -> 15
A41: 2025-05-12

Sheet Summary
A1: =bus -> Powercor
A2: =proj -> Mount Cottrell feeder 9
A3: SUMMARY
A5: RESULTS
G7: PV of costs | H7: PV of benefits | I7: NPV
C8: Option | G8: =output_dollars -> 2026-06-30 | H8: =output_dollars -> 2026-06-30 | I8: =output_dollars -> 2026-06-30
C9: =options -> Option 1 (base case) | D9: =INDEX(Assumptions!$E$14:$E$18, MATCH(C9, Assumptions!$C$14:$C$18,0)) -> No change to existing practices | G9: =IF(Data!$C9, "", INDEX(Consol!$F$15:$F$82, MATCH($C9&G$7, Consol!$D$15:$D$82,0))/mill_conv) -> 0 | H9: =IF(Data!$C9, "", INDEX(Consol!$F$15:$F$82, MATCH($C9&H$7, Consol!$D$15:$D$82,0))/mill_conv) -> 0 | I9: =IF(Data!$C9, "", INDEX(Consol!$F$15:$F$82, MATCH($C9&I$7, Consol!$D$15:$D$82,0))/mill_conv) -> 0
C10: Option 2 | D10: =INDEX(Assumptions!$E$14:$E$18, MATCH(C10, Assumptions!$C$14:$C$18,0)) -> Mount Cottrell feeder 9, construct a new feeder from MTC | G10: =IF(Data!$C10, "", INDEX(Consol!$F$15:$F$82, MATCH($C10&G$7, Consol!$D$15:$D$82,0))/mill_conv) -> -1.041225852 | H10: =IF(Data!$C10, "", INDEX(Consol!$F$15:$F$82, MATCH($C10&H$7, Consol!$D$15:$D$82,0))/mill_conv) -> 2714.892383 | I10: =IF(Data!$C10, "", INDEX(Consol!$F$15:$F$82, MATCH($C10&I$7, Consol!$D$15:$D$82,0))/mill_conv) -> 2713.851157
C11: Option 3 | D11: =INDEX(Assumptions!$E$14:$E$18, MATCH(C11, Assumptions!$C$14:$C$18,0)) -> 0 | G11: =IF(Data!$C11, "", INDEX(Consol!$F$15:$F$82, MATCH($C11&G$7, Consol!$D$15:$D$82,0))/mill_conv) ->  | H11: =IF(Data!$C11, "", INDEX(Consol!$F$15:$F$82, MATCH($C11&H$7, Consol!$D$15:$D$82,0))/mill_conv) ->  | I11: =IF(Data!$C11, "", INDEX(Consol!$F$15:$F$82, MATCH($C11&I$7, Consol!$D$15:$D$82,0))/mill_conv) -> 
C12: Option 4 | D12: =INDEX(Assumptions!$E$14:$E$18, MATCH(C12, Assumptions!$C$14:$C$18,0)) -> 0 | G12: =IF(Data!$C12, "", INDEX(Consol!$F$15:$F$82, MATCH($C12&G$7, Consol!$D$15:$D$82,0))/mill_conv) ->  | H12: =IF(Data!$C12, "", INDEX(Consol!$F$15:$F$82, MATCH($C12&H$7, Consol!$D$15:$D$82,0))/mill_conv) ->  | I12: =IF(Data!$C12, "", INDEX(Consol!$F$15:$F$82, MATCH($C12&I$7, Consol!$D$15:$D$82,0))/mill_conv) -> 
C13: Option 5 | D13: =INDEX(Assumptions!$E$14:$E$18, MATCH(C13, Assumptions!$C$14:$C$18,0)) -> 0 | G13: =IF(Data!$C13, "", INDEX(Consol!$F$15:$F$82, MATCH($C13&G$7, Consol!$D$15:$D$82,0))/mill_conv) ->  | H13: =IF(Data!$C13, "", INDEX(Consol!$F$15:$F$82, MATCH($C13&H$7, Consol!$D$15:$D$82,0))/mill_conv) ->  | I13: =IF(Data!$C13, "", INDEX(Consol!$F$15:$F$82, MATCH($C13&I$7, Consol!$D$15:$D$82,0))/mill_conv) -> 
G16: NPV
C17: Preferred option: | G17: =output_dollars -> 2026-06-30
C18: =INDEX($C$9:$C$13,MATCH(G18, $I$9:$I$13,0)) -> Option 2 | D18: =INDEX($D$9:$D$13,MATCH(G18, $I$9:$I$13,0)) -> Mount Cottrell feeder 9, construct a new feeder from MTC | G18: =_xlfn.MAXIFS(I9:I13, IF(compliance, Data!$F$9:$F$13, Data!$C$9:$C$13),FALSE) -> 2713.851157
A23: PREFERRED OPTION
C25: Preferred Option
C26: =C18 -> Option 2
C29: Expenditure forecast | D29: =output_dollars -> 2026-06-30 | F29: =Assumptions!K89 -> 2026-27 | G29: =Assumptions!L89 -> 2027-28 | H29: =Assumptions!M89 -> 2028-29 | I29: =Assumptions!N89 -> 2029-30 | J29: =Assumptions!O89 -> 2030-31 | L29: Total
C30: Capital expenditure | F30: =-INDEX(Consol!$I$15:$Q$82,MATCH($C$26&$C30,Consol!$D$15:$D$82,0), MATCH(F$29, Consol!$I$9:$Q$9,0))/mill_conv -> 1.81229833 | G30: =-INDEX(Consol!$I$15:$Q$82,MATCH($C$26&$C30,Consol!$D$15:$D$82,0), MATCH(G$29, Consol!$I$9:$Q$9,0))/mill_conv -> 0 | H30: =-INDEX(Consol!$I$15:$Q$82,MATCH($C$26&$C30,Consol!$D$15:$D$82,0), MATCH(H$29, Consol!$I$9:$Q$9,0))/mill_conv -> 0 | I30: =-INDEX(Consol!$I$15:$Q$82,MATCH($C$26&$C30,Consol!$D$15:$D$82,0), MATCH(I$29, Consol!$I$9:$Q$9,0))/mill_conv -> 0 | J30: =-INDEX(Consol!$I$15:$Q$82,MATCH($C$26&$C30,Consol!$D$15:$D$82,0), MATCH(J$29, Consol!$I$9:$Q$9,0))/mill_conv -> 0 | L30: =SUM(F30:J30) -> 1.81229833
C31: Operating expenditure | F31: =-INDEX(Consol!$I$15:$Q$82,MATCH($C$26&$C31,Consol!$D$15:$D$82,0), MATCH(F$29, Consol!$I$9:$Q$9,0))/mill_conv -> 0 | G31: =-INDEX(Consol!$I$15:$Q$82,MATCH($C$26&$C31,Consol!$D$15:$D$82,0), MATCH(G$29, Consol!$I$9:$Q$9,0))/mill_conv -> 0 | H31: =-INDEX(Consol!$I$15:$Q$82,MATCH($C$26&$C31,Consol!$D$15:$D$82,0), MATCH(H$29, Consol!$I$9:$Q$9,0))/mill_conv -> 0 | I31: =-INDEX(Consol!$I$15:$Q$82,MATCH($C$26&$C31,Consol!$D$15:$D$82,0), MATCH(I$29, Consol!$I$9:$Q$9,0))/mill_conv -> 0 | J31: =-INDEX(Consol!$I$15:$Q$82,MATCH($C$26&$C31,Consol!$D$15:$D$82,0), MATCH(J$29, Consol!$I$9:$Q$9,0))/mill_conv -> 0 | L31: =SUM(F31:J31) -> 0
A35: CHART
C37: Capex and risk ($M, 2026) | F37: Value of expected unserved energy ($M, 2026)
A63: SENSITIVITIES
C66: Sensitivity | D66: =output_dollars -> 2026-06-30 | F66: =Sensitivity_calcs!C89 -> Option 1 (base case) | G66: =Sensitivity_calcs!D89 -> Option 2 | H66: =Sensitivity_calcs!E89 -> Option 3 | I66: =Sensitivity_calcs!F89 -> Option 4 | J66: =Sensitivity_calcs!G89 -> Option 5 | L66: Preferred option
C67: =Sensitivity_calcs!B90 -> None | F67: =Sensitivity_calcs!C90 -> 0 | G67: =Sensitivity_calcs!D90 -> 2713.851157 | H67: =Sensitivity_calcs!E90 ->  | I67: =Sensitivity_calcs!F90 ->  | J67: =Sensitivity_calcs!G90 ->  | L67: =Sensitivity_calcs!K90 -> Option 2
C68: =Sensitivity_calcs!B91 -> Capex 10% higher | F68: =Sensitivity_calcs!C91 -> 0 | G68: =Sensitivity_calcs!D91 -> 2713.747035 | H68: =Sensitivity_calcs!E91 ->  | I68: =Sensitivity_calcs!F91 ->  | J68: =Sensitivity_calcs!G91 ->  | L68: =Sensitivity_calcs!K91 -> Option 2
C69: =Sensitivity_calcs!B92 -> Capex 10% lower | F69: =Sensitivity_calcs!C92 -> 0 | G69: =Sensitivity_calcs!D92 -> 2713.95528 | H69: =Sensitivity_calcs!E92 ->  | I69: =Sensitivity_calcs!F92 ->  | J69: =Sensitivity_calcs!G92 ->  | L69: =Sensitivity_calcs!K92 -> Option 2
C70: =Sensitivity_calcs!B93 -> Total benefits 10% higher | F70: =Sensitivity_calcs!C93 -> 0 | G70: =Sensitivity_calcs!D93 -> 2985.340396 | H70: =Sensitivity_calcs!E93 ->  | I70: =Sensitivity_calcs!F93 ->  | J70: =Sensitivity_calcs!G93 ->  | L70: =Sensitivity_calcs!K93 -> Option 2
C71: =Sensitivity_calcs!B94 -> Total benefits 10% lower | F71: =Sensitivity_calcs!C94 -> 0 | G71: =Sensitivity_calcs!D94 -> 2442.361919 | H71: =Sensitivity_calcs!E94 ->  | I71: =Sensitivity_calcs!F94 ->  | J71: =Sensitivity_calcs!G94 ->  | L71: =Sensitivity_calcs!K94 -> Option 2
C72: =Sensitivity_calcs!B95 -> Capex 10% higher & Total benefits 10% lower | F72: =Sensitivity_calcs!C95 -> 0 | G72: =Sensitivity_calcs!D95 -> 2442.257796 | H72: =Sensitivity_calcs!E95 ->  | I72: =Sensitivity_calcs!F95 ->  | J72: =Sensitivity_calcs!G95 ->  | L72: =Sensitivity_calcs!K95 -> Option 2
C73: =Sensitivity_calcs!B96 -> 0 | F73: =Sensitivity_calcs!C96 ->  | G73: =Sensitivity_calcs!D96 ->  | H73: =Sensitivity_calcs!E96 ->  | I73: =Sensitivity_calcs!F96 ->  | J73: =Sensitivity_calcs!G96 ->  | L73: =Sensitivity_calcs!K96 -> 
C74: =Sensitivity_calcs!B97 -> 0 | F74: =Sensitivity_calcs!C97 ->  | G74: =Sensitivity_calcs!D97 ->  | H74: =Sensitivity_calcs!E97 ->  | I74: =Sensitivity_calcs!F97 ->  | J74: =Sensitivity_calcs!G97 ->  | K74: =IF(C74=0,0, INDEX($F$66:$J$66, MATCH(MAX($F74:$I74),$F74:$I74,0))) -> 0 | L74: =Sensitivity_calcs!K97 -> 
D75: =Sensitivity_calcs!B98 -> 0 | F75: =Sensitivity_calcs!C98 ->  | G75: =Sensitivity_calcs!D98 ->  | H75: =Sensitivity_calcs!E98 ->  | I75: =Sensitivity_calcs!F98 ->  | J75: =Sensitivity_calcs!G98 ->  | L75: =Sensitivity_calcs!K98 -> 
D76: =Sensitivity_calcs!B99 -> 0

Sheet Assumptions
A1: =bus -> Powercor
A2: =proj -> Mount Cottrell feeder 9
A4: Project
C6: Business: | E6: Powercor
C8: Descripton: | E8: Mount Cottrell feeder 9
C10: Date of cost inputs: | E10: December | G10: 2023
C13: Option | E13: Description
C14: =options -> Option 1 (base case) | E14: No change to existing practices
C15: Option 2 | E15: Mount Cottrell feeder 9, construct a new feeder from MTC
C16: Option 3
C17: Option 4
C18: Option 5
C20: Compliance project | E20: No
C22: Expenditure starts | E22: 2026-27 | F22: [start]
A25: Timing & WACC
C27: Input dollars | G27: =EOMONTH(DATE(Assumptions!$G$10,INDEX(Data!$K$107:$K$108, MATCH(Assumptions!$E$10, Data!$J$107:$J$108,0)), 1),0) -> 2023-12-31 | H27: [input_dollars]
C28: Pre-tax real WACC | G28: 0.035 | H28: [real_disc]
C29: VCR date | G29: 2024-12-31 | H29: [vcr_date]
C31: Analysis period (years) | G31: 20 | H31: [years]\
C33: Output dollars | G33: 2026-06-30 | H33: [output_dollars]
C34: Other benefits date | G34: 2023-12-31 | H34: [custval_date]
C35: Value of CO2 reductions input date | G35: 2023-06-30
A39: VCR
C41: Enter ZSS code >> | D41: eg. AR | E41: Melton | G41: MLN | H41: 46602 | I41: 2024 VCR ($/MWh)
A45: Risks
B48: SAFETY
C50: Value of statistical life | G50: 5400000 | H50: 2023-06-30
C52: Value of injury | G52: 0 | H52: =input_dollars -> 2023-12-31
C54: =Data!A83 -> Disproportionate factors applied to various bushfire and other risk valuations
C55: =Data!B85 -> Harm to property from network | G55: =Data!F85 -> 1
C56: =Data!B86 -> Harm to property from bushfire | G56: =Data!F86 -> 1
C57: =Data!B87 -> Harm to environment | G57: =Data!F87 -> 1
C58: =Data!B88 -> Safety - Public trespass | G58: =Data!F88 -> 1
C59: =Data!B89 -> Safety - Single fatality or serious injury ^ | G59: =Data!F89 -> 3
C60: =Data!B90 -> Safety from bushfire in HBRA | G60: =Data!F90 -> 3
C61: =Data!B91 -> Safety - Multiple fatality or serious injury ^ | G61: =Data!F91 -> 6
C62: =Data!B92 -> Safety from bushfire (REFCL declared areas) | G62: =Data!F92 -> 6
C63: =Data!B93 -> Safety from bushfire (electric line construction areas) | G63: =Data!F93 -> 10
C66: ^ Public or employee
C69: Incident type | G69: Value | H69: Probability | I69: DF selected | J69: Description/comment
C70: Safety (fatality) | G70: =G50*INDEX(hy_escalation, MATCH(input_dollars,hy_dates,0))/INDEX(hy_escalation, MATCH(H50,hy_dates,0)) -> 5607473.52 | H70: 0 | I70: 0 | J70: 0
C71: Safety (injury) | G71: =G52*INDEX(hy_escalation, MATCH(input_dollars,hy_dates,0))/INDEX(hy_escalation, MATCH(H52,hy_dates,0)) -> 0 | H71: 0 | I71: 0 | J71: 0
B77: UNPLANNED REPLACEMENT/REPAIR
C78: Major failure (replace) | G78: 0 | H78: =input_dollars -> 2023-12-31
C79: Minor failure (repair) | G79: 0 | H79: =input_dollars -> 2023-12-31
C81: Premium for failure | G81: 0.2
A87: Other benefits
B89: ENVIRONMENTAL | K89: 2026-27 | L89: 2027-28 | M89: 2028-29 | N89: 2029-30 | O89: 2030-31 | P89: 2031-32
C90: Value of CO2 reductions | H90: =G35 -> 2023-06-30 | I90: $/kWh | K90: 0.0247304868 | L90: 0.02234074009 | M90: 0.02019632912 | N90: 0.01806294208 | O90: 0.01591339762 | P90: 0.01371506943
B93: CUSTOMER VALUE | G93: Value
C94: =Data!B60 -> Reliability in worst-served areas | G94: =INDEX(Data!$D$60:$D$67,,MATCH(bus,Data!$D$59:$D$59,0)) -> 151432.8174 | H94: =custval_date -> 2023-12-31 | I94: per MWh
C95: =Data!B61 -> Network resilience | G95: 24590 | H95: 2023-12-31 | I95: per MWh
C96: =Data!B62 -> Enabling solar exports | G96: 88.35771951 | H96: 2023-12-31 | I96: per MWh
C97: =Data!B63 -> Aesthetics | G97: 0 | H97: 2023-12-31 | I97: per customer
C98: =Data!B64 -> Customer value of time - residential | G98: 0.3518133654 | H98: 2023-12-31 | I98: per customer minute
C99: =Data!B65 -> Customer value of time - business | G99: 0.3518133654 | H99: 2023-12-31 | I99: per customer minute
C100: =Data!B66 -> Communication | G100: 0 | H100: 2023-12-31 | I100: per customer
C101: =Data!B67 -> Information accessibility | G101: 0 | H101: 2023-12-31 | I101: per customer
A106: Sensitivities
G110: Capex | H110: Total benefits
B111: 1 | C111: =IF(G111=0, "", G$110&" "&ABS($G111)*100&"%"&IF($G111>0, " higher", " lower"))&IF(AND(G111<>0, H111<>0), " & ", "")&IF(H111=0, "", H$110&" "&ABS($H111)*100&"%"&IF($H111>0, " higher", " lower")) -> Capex 10% higher | G111: 0.1 | H111: 0
B112: 2 | C112: =IF(G112=0, "", G$110&" "&ABS($G112)*100&"%"&IF($G112>0, " higher", " lower"))&IF(AND(G112<>0, H112<>0), " & ", "")&IF(H112=0, "", H$110&" "&ABS($H112)*100&"%"&IF($H112>0, " higher", " lower")) -> Capex 10% lower | G112: -0.1 | H112: 0
B113: 3 | C113: =IF(G113=0, "", G$110&" "&ABS($G113)*100&"%"&IF($G113>0, " higher", " lower"))&IF(AND(G113<>0, H113<>0), " & ", "")&IF(H113=0, "", H$110&" "&ABS($H113)*100&"%"&IF($H113>0, " higher", " lower")) -> Total benefits 10% higher | G113: 0 | H113: 0.1
B114: 4 | C114: =IF(G114=0, "", G$110&" "&ABS($G114)*100&"%"&IF($G114>0, " higher", " lower"))&IF(AND(G114<>0, H114<>0), " & ", "")&IF(H114=0, "", H$110&" "&ABS($H114)*100&"%"&IF($H114>0, " higher", " lower")) -> Total benefits 10% lower | G114: 0 | H114: -0.1
B115: 5 | C115: =IF(G115=0, "", G$110&" "&ABS($G115)*100&"%"&IF($G115>0, " higher", " lower"))&IF(AND(G115<>0, H115<>0), " & ", "")&IF(H115=0, "", H$110&" "&ABS($H115)*100&"%"&IF($H115>0, " higher", " lower")) -> Capex 10% higher & Total benefits 10% lower | G115: 0.1 | H115: -0.1

Sheet Option1 (base case)
A1: =bus -> Powercor
A2: =proj -> Mount Cottrell feeder 9
A3: OPTION 1 (base case)
A6: Count | H6: 0 | I6: =H6+1 -> 1 | J6: 2 | K6: 3 | L6: 4 | M6: 5 | N6: 6 | O6: 7 | P6: 8 | Q6: 9 | R6: 10 | S6: 11 | T6: 12 | U6: 13 | V6: 14 | W6: 15 | X6: 16 | Y6: 17 | Z6: 18 | AA6: 19 | AB6: 20 | AC6: 21 | AD6: 22 | AE6: 23 | AF6: 24 | AG6: 25
A7: Value of CO2 reductions | G7: $/MWh | I7: =IF(ISBLANK(Assumptions!K90), H7,Assumptions!K90*thous_conv) -> 24.7304868 | J7: =IF(ISBLANK(Assumptions!L90), I7,Assumptions!L90*thous_conv) -> 22.34074009 | K7: =IF(ISBLANK(Assumptions!M90), J7,Assumptions!M90*thous_conv) -> 20.19632912 | L7: =IF(ISBLANK(Assumptions!N90), K7,Assumptions!N90*thous_conv) -> 18.06294208 | M7: =IF(ISBLANK(Assumptions!O90), L7,Assumptions!O90*thous_conv) -> 15.91339762 | N7: =IF(ISBLANK(Assumptions!P90), M7,Assumptions!P90*thous_conv) -> 13.71506943 | O7: =IF(ISBLANK(Assumptions!Q90), N7,Assumptions!Q90*thous_conv) -> 13.71506943 | P7: =IF(ISBLANK(Assumptions!R90), O7,Assumptions!R90*thous_conv) -> 13.71506943 | Q7: =IF(ISBLANK(Assumptions!S90), P7,Assumptions!S90*thous_conv) -> 13.71506943 | R7: =IF(ISBLANK(Assumptions!T90), Q7,Assumptions!T90*thous_conv) -> 13.71506943 | S7: =IF(ISBLANK(Assumptions!U90), R7,Assumptions!U90*thous_conv) -> 13.71506943 | T7: =IF(ISBLANK(Assumptions!V90), S7,Assumptions!V90*thous_conv) -> 13.71506943 | U7: =IF(ISBLANK(Assumptions!W90), T7,Assumptions!W90*thous_conv) -> 13.71506943 | V7: =IF(ISBLANK(Assumptions!X90), U7,Assumptions!X90*thous_conv) -> 13.71506943 | W7: =IF(ISBLANK(Assumptions!Y90), V7,Assumptions!Y90*thous_conv) -> 13.71506943 | X7: =IF(ISBLANK(Assumptions!Z90), W7,Assumptions!Z90*thous_conv) -> 13.71506943 | Y7: =IF(ISBLANK(Assumptions!AA90), X7,Assumptions!AA90*thous_conv) -> 13.71506943 | Z7: =IF(ISBLANK(Assumptions!AB90), Y7,Assumptions!AB90*thous_conv) -> 13.71506943 | AA7: =IF(ISBLANK(Assumptions!AC90), Z7,Assumptions!AC90*thous_conv) -> 13.71506943 | AB7: =IF(ISBLANK(Assumptions!AD90), AA7,Assumptions!AD90*thous_conv) -> 13.71506943 | AC7: =IF(ISBLANK(Assumptions!AE90), AB7,Assumptions!AE90*thous_conv) -> 13.71506943 | AD7: =IF(ISBLANK(Assumptions!AF90), AC7,Assumptions!AF90*thous_conv) -> 13.71506943 | AE7: =IF(ISBLANK(Assumptions!AG90), AD7,Assumptions!AG90*thous_conv) -> 13.71506943 | AF7: =IF(ISBLANK(Assumptions!AH90), AE7,Assumptions!AH90*thous_conv) -> 13.71506943 | AG7: =IF(ISBLANK(Assumptions!AI90), AF7,Assumptions!AI90*thous_conv) -> 13.71506943
G9: Units | H9: =DATE(LEFT(I9,4), 6,30) -> 2026-06-30 | I9: =start -> 2026-27 | J9: =LEFT(I9,4)+1&"-"&RIGHT(I9,2)+1 -> 2027-28 | K9: 2028-29 | L9: 2029-30 | M9: 2030-31 | N9: 2031-32 | O9: 2032-33 | P9: 2033-34 | Q9: 2034-35 | R9: 2035-36 | S9: 2036-37 | T9: 2037-38 | U9: 2038-39 | V9: 2039-40 | W9: 2040-41 | X9: 2041-42 | Y9: 2042-43 | Z9: 2043-44 | AA9: 2044-45 | AB9: 2045-46 | AC9: 2046-47 | AD9: 2047-48 | AE9: 2048-49 | AF9: 2049-50 | AG9: 2050-51
A11: INVESTMENT & OPERATING COST
C13: Capex | E13: Asset life (yrs)
C14: < Enter description > | E14: 0 | G14: =input_dollars -> 2023-12-31 | I14: 0 | J14: 0 | K14: 0 | L14: 0 | M14: 0 | N14: 0 | O14: 0 | P14: 0 | Q14: 0 | R14: 0 | S14: 0 | T14: 0 | U14: 0 | V14: 0 | W14: 0 | X14: 0 | Y14: 0 | Z14: 0 | AA14: 0 | AB14: 0 | AC14: 0 | AD14: 0 | AE14: 0 | AF14: 0 | AG14: 0
C15: < Enter description > | E15: 0 | G15: =input_dollars -> 2023-12-31 | I15: 0 | J15: 0 | K15: 0 | L15: 0 | M15: 0 | N15: 0 | O15: 0 | P15: 0 | Q15: 0 | R15: 0 | S15: 0 | T15: 0 | U15: 0 | V15: 0 | W15: 0 | X15: 0 | Y15: 0 | Z15: 0 | AA15: 0 | AB15: 0 | AC15: 0 | AD15: 0 | AE15: 0 | AF15: 0 | AG15: 0
C16: < Enter description > | E16: 0 | G16: =input_dollars -> 2023-12-31 | I16: 0 | J16: 0 | K16: 0 | L16: 0 | M16: 0 | N16: 0 | O16: 0 | P16: 0 | Q16: 0 | R16: 0 | S16: 0 | T16: 0 | U16: 0 | V16: 0 | W16: 0 | X16: 0 | Y16: 0 | Z16: 0 | AA16: 0 | AB16: 0 | AC16: 0 | AD16: 0 | AE16: 0 | AF16: 0 | AG16: 0
C17: Capital expenditure | G17: =input_dollars -> 2023-12-31 | I17: =SUM(I14:I16) -> 0 | J17: 0 | K17: 0 | L17: 0 | M17: 0 | N17: 0 | O17: 0 | P17: 0 | Q17: 0 | R17: 0 | S17: 0 | T17: 0 | U17: 0 | V17: 0 | W17: 0 | X17: 0 | Y17: 0 | Z17: 0 | AA17: 0 | AB17: 0 | AC17: =SUM(AC14:AC16) -> 0 | AD17: =SUM(AD14:AD16) -> 0 | AE17: =SUM(AE14:AE16) -> 0 | AF17: =SUM(AF14:AF16) -> 0 | AG17: =SUM(AG14:AG16) -> 0
C19: Operating expenditure | G19: =input_dollars -> 2023-12-31 | I19: 0 | J19: 0 | K19: 0 | L19: 0 | M19: 0 | N19: 0 | O19: 0 | P19: 0 | Q19: 0 | R19: 0 | S19: 0 | T19: 0 | U19: 0 | V19: 0 | W19: 0 | X19: 0 | Y19: 0 | Z19: 0 | AA19: 0 | AB19: 0 | AC19: 0 | AD19: 0 | AE19: 0 | AF19: 0 | AG19: 0
A22: RISK ASSUMPTIONS
C24: PoF (major) | I24: 0 | J24: 0 | K24: 0 | L24: 0 | M24: 0 | N24: 0 | O24: 0 | P24: 0 | Q24: 0 | R24: 0 | S24: 0 | T24: 0 | U24: 0 | V24: 0 | W24: 0 | X24: 0 | Y24: 0 | Z24: 0 | AA24: 0 | AB24: 0 | AC24: 0 | AD24: 0 | AE24: 0 | AF24: 0 | AG24: 0
C25: PoF (reparable) | I25: 0 | J25: 0 | K25: 0 | L25: 0 | M25: 0 | N25: 0 | O25: 0 | P25: 0 | Q25: 0 | R25: 0 | S25: 0 | T25: 0 | U25: 0 | V25: 0 | W25: 0 | X25: 0 | Y25: 0 | Z25: 0 | AA25: 0 | AB25: 0 | AC25: 0 | AD25: 0 | AE25: 0 | AF25: 0 | AG25: 0
C28: Energy at risk 10% PoE | E28: 0.3 | G28: MWh | I28: =SUM('EaR MLN021'!I$10,'EaR MLN031'!I$10) -> 299.5002811 | J28: =SUM('EaR MLN021'!J$10,'EaR MLN031'!J$10) -> 634.1107945 | K28: =SUM('EaR MLN021'!K$10,'EaR MLN031'!K$10) -> 1231.348751 | L28: =SUM('EaR MLN021'!L$10,'EaR MLN031'!L$10) -> 2019.357024 | M28: =SUM('EaR MLN021'!M$10,'EaR MLN031'!M$10) -> 3125.493231 | N28: =SUM('EaR MLN021'!N$10,'EaR MLN031'!N$10) -> 4733.423141 | O28: =SUM('EaR MLN021'!O$10,'EaR MLN031'!O$10) -> 6774.615065 | P28: =SUM('EaR MLN021'!P$10,'EaR MLN031'!P$10) -> 8841.679035 | Q28: =SUM('EaR MLN021'!Q$10,'EaR MLN031'!Q$10) -> 10824.86138 | R28: =SUM('EaR MLN021'!R$10,'EaR MLN031'!R$10) -> 10824.86138 | S28: =SUM('EaR MLN021'!S$10,'EaR MLN031'!S$10) -> 10824.86138 | T28: =SUM('EaR MLN021'!T$10,'EaR MLN031'!T$10) -> 10824.86138 | U28: =SUM('EaR MLN021'!U$10,'EaR MLN031'!U$10) -> 10824.86138 | V28: =SUM('EaR MLN021'!V$10,'EaR MLN031'!V$10) -> 10824.86138 | W28: =SUM('EaR MLN021'!W$10,'EaR MLN031'!W$10) -> 10824.86138 | X28: =SUM('EaR MLN021'!X$10,'EaR MLN031'!X$10) -> 10824.86138 | Y28: =SUM('EaR MLN021'!Y$10,'EaR MLN031'!Y$10) -> 10824.86138 | Z28: =SUM('EaR MLN021'!Z$10,'EaR MLN031'!Z$10) -> 10824.86138 | AA28: =SUM('EaR MLN021'!AA$10,'EaR MLN031'!AA$10) -> 10824.86138 | AB28: =SUM('EaR MLN021'!AB$10,'EaR MLN031'!AB$10) -> 10824.86138 | AC28: =SUM('EaR MLN021'!AC$10,'EaR MLN031'!AC$10) -> 10824.86138 | AD28: =SUM('EaR MLN021'!AD$10,'EaR MLN031'!AD$10) -> 10824.86138 | AE28: =SUM('EaR MLN021'!AE$10,'EaR MLN031'!AE$10) -> 10824.86138 | AF28: =SUM('EaR MLN021'!AF$10,'EaR MLN031'!AF$10) -> 10824.86138 | AG28: =AF28 -> 10824.86138
C29: Energy at risk 50% PoE | E29: 0.7 | G29: MWh | I29: =SUM('EaR MLN021'!I$9,'EaR MLN031'!I$9) -> 73.52177885 | J29: =SUM('EaR MLN021'!J$9,'EaR MLN031'!J$9) -> 134.5783451 | K29: =SUM('EaR MLN021'!K$9,'EaR MLN031'!K$9) -> 270.0481961 | L29: =SUM('EaR MLN021'!L$9,'EaR MLN031'!L$9) -> 496.4075984 | M29: =SUM('EaR MLN021'!M$9,'EaR MLN031'!M$9) -> 886.0257446 | N29: =SUM('EaR MLN021'!N$9,'EaR MLN031'!N$9) -> 1556.901542 | O29: =SUM('EaR MLN021'!O$9,'EaR MLN031'!O$9) -> 2533.229607 | P29: =SUM('EaR MLN021'!P$9,'EaR MLN031'!P$9) -> 3613.572815 | Q29: =SUM('EaR MLN021'!Q$9,'EaR MLN031'!Q$9) -> 4707.988588 | R29: =SUM('EaR MLN021'!R$9,'EaR MLN031'!R$9) -> 4707.988588 | S29: =SUM('EaR MLN021'!S$9,'EaR MLN031'!S$9) -> 4707.988588 | T29: =SUM('EaR MLN021'!T$9,'EaR MLN031'!T$9) -> 4707.988588 | U29: =SUM('EaR MLN021'!U$9,'EaR MLN031'!U$9) -> 4707.988588 | V29: =SUM('EaR MLN021'!V$9,'EaR MLN031'!V$9) -> 4707.988588 | W29: =SUM('EaR MLN021'!W$9,'EaR MLN031'!W$9) -> 4707.988588 | X29: =SUM('EaR MLN021'!X$9,'EaR MLN031'!X$9) -> 4707.988588 | Y29: =SUM('EaR MLN021'!Y$9,'EaR MLN031'!Y$9) -> 4707.988588 | Z29: =SUM('EaR MLN021'!Z$9,'EaR MLN031'!Z$9) -> 4707.988588 | AA29: =SUM('EaR MLN021'!AA$9,'EaR MLN031'!AA$9) -> 4707.988588 | AB29: =SUM('EaR MLN021'!AB$9,'EaR MLN031'!AB$9) -> 4707.988588 | AC29: =SUM('EaR MLN021'!AC$9,'EaR MLN031'!AC$9) -> 4707.988588 | AD29: =SUM('EaR MLN021'!AD$9,'EaR MLN031'!AD$9) -> 4707.988588 | AE29: =SUM('EaR MLN021'!AE$9,'EaR MLN031'!AE$9) -> 4707.988588 | AF29: =SUM('EaR MLN021'!AF$9,'EaR MLN031'!AF$9) -> 4707.988588 | AG29: =AF29 -> 4707.988588
C31: Energy at risk (weighted) | G31: MWh | I31: =SUMPRODUCT(I$28:I$29, $E$28:$E$29) -> 141.3153295 | J31: =SUMPRODUCT(J$28:J$29, $E$28:$E$29) -> 284.4380799 | K31: 558.4383627 | L31: 953.2924259 | M31: 1557.86599 | N31: 2509.858021 | O31: 3805.645244 | P31: 5182.004681 | Q31: 6543.050426 | R31: 6543.050426 | S31: 6543.050426 | T31: 6543.050426 | U31: 6543.050426 | V31: 6543.050426 | W31: 6543.050426 | X31: 6543.050426 | Y31: 6543.050426 | Z31: 6543.050426 | AA31: 6543.050426 | AB31: 6543.050426 | AC31: 6543.050426 | AD31: 6543.050426 | AE31: 6543.050426 | AF31: 6543.050426 | AG31: 6543.050426
C32: Energy at risk value | D32: $/MWh | E32: =Assumptions!H41*vcr_esc -> 43995.26048 | F32: =IF(AND(SUM(I31:AG31)<>0, E32=0), "!", "") ->  | G32: =input_dollars -> 2023-12-31 | I32: =I31*$E$32 -> 6217204.733 | J32: =J31*$E$32 -> 12513927.42 | K32: 24568641.23 | L32: 41940348.6 | M32: 68538720.05 | N32: 110421857.4 | O32: 167430353.8 | P32: 227983645.8 | Q32: 287863207.8 | R32: 287863207.8 | S32: 287863207.8 | T32: 287863207.8 | U32: 287863207.8 | V32: 287863207.8 | W32: 287863207.8 | X32: 287863207.8 | Y32: 287863207.8 | Z32: 287863207.8 | AA32: 287863207.8 | AB32: 287863207.8 | AC32: 287863207.8 | AD32: 287863207.8 | AE32: 287863207.8 | AF32: 287863207.8 | AG32: 287863207.8
C34: Safety consequence | D34: (after DF) | G34: =input_dollars -> 2023-12-31 | I34: 0 | J34: 0 | K34: 0 | L34: 0 | M34: 0 | N34: 0 | O34: 0 | P34: 0 | Q34: 0 | R34: 0 | S34: 0 | T34: 0 | U34: 0 | V34: 0 | W34: 0 | X34: 0 | Y34: 0 | Z34: 0 | AA34: 0 | AB34: 0 | AC34: 0 | AD34: 0 | AE34: 0 | AF34: 0 | AG34: 0
C35: Unplanned replacements | G35: =input_dollars -> 2023-12-31 | I35: 0 | J35: 0 | K35: 0 | L35: 0 | M35: 0 | N35: 0 | O35: 0 | P35: 0 | Q35: 0 | R35: 0 | S35: 0 | T35: 0 | U35: 0 | V35: 0 | W35: 0 | X35: 0 | Y35: 0 | Z35: 0 | AA35: 0 | AB35: 0 | AC35: 0 | AD35: 0 | AE35: 0 | AF35: 0 | AG35: 0
C36: Environmental consequence | D36: (after DF) | G36: =input_dollars -> 2023-12-31 | I36: 0 | J36: 0 | K36: 0 | L36: 0 | M36: 0 | N36: 0 | O36: 0 | P36: 0 | Q36: 0 | R36: 0 | S36: 0 | T36: 0 | U36: 0 | V36: 0 | W36: 0 | X36: 0 | Y36: 0 | Z36: 0 | AA36: 0 | AB36: 0 | AC36: 0 | AD36: 0 | AE36: 0 | AF36: 0 | AG36: 0
C37: < Other risk - enter description > | G37: =input_dollars -> 2023-12-31 | I37: 0 | J37: 0 | K37: 0 | L37: 0 | M37: 0 | N37: 0 | O37: 0 | P37: 0 | Q37: 0 | R37: 0 | S37: 0 | T37: 0 | U37: 0 | V37: 0 | W37: 0 | X37: 0 | Y37: 0 | Z37: 0 | AA37: 0 | AB37: 0 | AC37: 0 | AD37: 0 | AE37: 0 | AF37: 0 | AG37: 0
C38: < Other risk - enter description > | G38: =input_dollars -> 2023-12-31 | I38: 0 | J38: 0 | K38: 0 | L38: 0 | M38: 0 | N38: 0 | O38: 0 | P38: 0 | Q38: 0 | R38: 0 | S38: 0 | T38: 0 | U38: 0 | V38: 0 | W38: 0 | X38: 0 | Y38: 0 | Z38: 0 | AA38: 0 | AB38: 0 | AC38: 0 | AD38: 0 | AE38: 0 | AF38: 0 | AG38: 0
C40: Total risk cost | I40: =SUM(I32:I38) -> 6217204.733 | J40: =SUM(J32:J38) -> 12513927.42 | K40: 24568641.23 | L40: 41940348.6 | M40: 68538720.05 | N40: 110421857.4 | O40: 167430353.8 | P40: 227983645.8 | Q40: 287863207.8 | R40: 287863207.8 | S40: 287863207.8 | T40: 287863207.8 | U40: 287863207.8 | V40: 287863207.8 | W40: 287863207.8 | X40: 287863207.8 | Y40: 287863207.8 | Z40: 287863207.8 | AA40: 287863207.8 | AB40: 287863207.8 | AC40: =SUM(AC32:AC38) -> 287863207.8 | AD40: =SUM(AD32:AD38) -> 287863207.8 | AE40: =SUM(AE32:AE38) -> 287863207.8 | AF40: =SUM(AF32:AF38) -> 287863207.8 | AG40: =SUM(AG32:AG38) -> 287863207.8
A42: OTHER BENEFITS
C45: Reduction in CO2 emissions | G45: MWh | I45: 0 | J45: 0 | K45: 0 | L45: 0 | M45: 0 | N45: 0 | O45: 0 | P45: 0 | Q45: 0 | R45: 0 | S45: 0 | T45: 0 | U45: 0 | V45: 0 | W45: 0 | X45: 0 | Y45: 0 | Z45: 0 | AA45: 0 | AB45: 0 | AC45: 0 | AD45: 0 | AE45: 0 | AF45: 0 | AG45: 0
C46: Value of reduction in CO2 emissions | G46: $ | I46: =I45*I7 -> 0 | J46: 0 | K46: 0 | L46: 0 | M46: 0 | N46: 0 | O46: 0 | P46: 0 | Q46: 0 | R46: 0 | S46: 0 | T46: 0 | U46: 0 | V46: 0 | W46: 0 | X46: 0 | Y46: 0 | Z46: 0 | AA46: 0 | AB46: 0 | AC46: 0 | AD46: 0 | AE46: 0 | AF46: 0 | AG46: 0
C49: Reliability in worst-served areas | D49: $/MWh | E49: =Assumptions!G94 -> 151432.8174 | G49: MWh | I49: 0 | J49: 0 | K49: 0 | L49: 0 | M49: 0 | N49: 0 | O49: 0 | P49: 0 | Q49: 0 | R49: 0 | S49: 0 | T49: 0 | U49: 0 | V49: 0 | W49: 0 | X49: 0 | Y49: 0 | Z49: 0 | AA49: 0 | AB49: 0 | AC49: 0 | AD49: 0 | AE49: 0 | AF49: 0 | AG49: 0
C50: Network resilience | D50: $/MWh | E50: =Assumptions!G95 -> 24590 | G50: MWh | I50: 0 | J50: 0 | K50: 0 | L50: 0 | M50: 0 | N50: 0 | O50: 0 | P50: 0 | Q50: 0 | R50: 0 | S50: 0 | T50: 0 | U50: 0 | V50: 0 | W50: 0 | X50: 0 | Y50: 0 | Z50: 0 | AA50: 0 | AB50: 0 | AC50: 0 | AD50: 0 | AE50: 0 | AF50: 0 | AG50: 0
C51: Enabling solar exports | D51: $/MWh | E51: =Assumptions!G96 -> 88.35771951 | G51: MWh | I51: 0 | J51: 0 | K51: 0 | L51: 0 | M51: 0 | N51: 0 | O51: 0 | P51: 0 | Q51: 0 | R51: 0 | S51: 0 | T51: 0 | U51: 0 | V51: 0 | W51: 0 | X51: 0 | Y51: 0 | Z51: 0 | AA51: 0 | AB51: 0 | AC51: 0 | AD51: 0 | AE51: 0 | AF51: 0 | AG51: 0
C52: Aesthetics | D52: $/customer | E52: =Assumptions!G97 -> 0 | G52: customers | I52: 0 | J52: 0 | K52: 0 | L52: 0 | M52: 0 | N52: 0 | O52: 0 | P52: 0 | Q52: 0 | R52: 0 | S52: 0 | T52: 0 | U52: 0 | V52: 0 | W52: 0 | X52: 0 | Y52: 0 | Z52: 0 | AA52: 0 | AB52: 0 | AC52: 0 | AD52: 0 | AE52: 0 | AF52: 0 | AG52: 0
C53: Customer value of time (res) | D53: $/customer min | E53: =Assumptions!G98 -> 0.3518133654 | G53: mins | I53: 0 | J53: 0 | K53: 0 | L53: 0 | M53: 0 | N53: 0 | O53: 0 | P53: 0 | Q53: 0 | R53: 0 | S53: 0 | T53: 0 | U53: 0 | V53: 0 | W53: 0 | X53: 0 | Y53: 0 | Z53: 0 | AA53: 0 | AB53: 0 | AC53: 0 | AD53: 0 | AE53: 0 | AF53: 0 | AG53: 0
C54: Customer value of time (bus) | D54: $/customer min | E54: =Assumptions!G99 -> 0.3518133654 | G54: mins | I54: 0 | J54: 0 | K54: 0 | L54: 0 | M54: 0 | N54: 0 | O54: 0 | P54: 0 | Q54: 0 | R54: 0 | S54: 0 | T54: 0 | U54: 0 | V54: 0 | W54: 0 | X54: 0 | Y54: 0 | Z54: 0 | AA54: 0 | AB54: 0 | AC54: 0 | AD54: 0 | AE54: 0 | AF54: 0 | AG54: 0
C55: Communication | D55: $/customer | E55: =Assumptions!G100 -> 0 | G55: customers | I55: 0 | J55: 0 | K55: 0 | L55: 0 | M55: 0 | N55: 0 | O55: 0 | P55: 0 | Q55: 0 | R55: 0 | S55: 0 | T55: 0 | U55: 0 | V55: 0 | W55: 0 | X55: 0 | Y55: 0 | Z55: 0 | AA55: 0 | AB55: 0 | AC55: 0 | AD55: 0 | AE55: 0 | AF55: 0 | AG55: 0
C56: Information accessibility | D56: $/customer | E56: =Assumptions!G101 -> 0 | G56: customers | I56: 0 | J56: 0 | K56: 0 | L56: 0 | M56: 0 | N56: 0 | O56: 0 | P56: 0 | Q56: 0 | R56: 0 | S56: 0 | T56: 0 | U56: 0 | V56: 0 | W56: 0 | X56: 0 | Y56: 0 | Z56: 0 | AA56: 0 | AB56: 0 | AC56: 0 | AD56: 0 | AE56: 0 | AF56: 0 | AG56: 0
C58: Other benefits 1 | G58: =input_dollars -> 2023-12-31 | I58: 0 | J58: 0 | K58: 0 | L58: 0 | M58: 0 | N58: 0 | O58: 0 | P58: 0 | Q58: 0 | R58: 0 | S58: 0 | T58: 0 | U58: 0 | V58: 0 | W58: 0 | X58: 0 | Y58: 0 | Z58: 0 | AA58: 0 | AB58: 0 | AC58: 0 | AD58: 0 | AE58: 0 | AF58: 0 | AG58: 0
C59: Other benefits 2 | G59: =input_dollars -> 2023-12-31 | I59: 0 | J59: 0 | K59: 0 | L59: 0 | M59: 0 | N59: 0 | O59: 0 | P59: 0 | Q59: 0 | R59: 0 | S59: 0 | T59: 0 | U59: 0 | V59: 0 | W59: 0 | X59: 0 | Y59: 0 | Z59: 0 | AA59: 0 | AB59: 0 | AC59: 0 | AD59: 0 | AE59: 0 | AF59: 0 | AG59: 0
C61: Total other benefits | G61: =input_dollars -> 2023-12-31 | I61: =SUMPRODUCT((I$49:I$56)*($E$49:$E$56))+SUM(I58:I59)+I46 -> 0 | J61: =SUMPRODUCT((J$49:J$56)*($E$49:$E$56))+SUM(J58:J59)+J46 -> 0 | K61: =SUMPRODUCT((K$49:K$56)*($E$49:$E$56))+SUM(K58:K59)+K46 -> 0 | L61: =SUMPRODUCT((L$49:L$56)*($E$49:$E$56))+SUM(L58:L59)+L46 -> 0 | M61: =SUMPRODUCT((M$49:M$56)*($E$49:$E$56))+SUM(M58:M59)+M46 -> 0 | N61: =SUMPRODUCT((N$49:N$56)*($E$49:$E$56))+SUM(N58:N59)+N46 -> 0 | O61: =SUMPRODUCT((O$49:O$56)*($E$49:$E$56))+SUM(O58:O59)+O46 -> 0 | P61: =SUMPRODUCT((P$49:P$56)*($E$49:$E$56))+SUM(P58:P59)+P46 -> 0 | Q61: =SUMPRODUCT((Q$49:Q$56)*($E$49:$E$56))+SUM(Q58:Q59)+Q46 -> 0 | R61: =SUMPRODUCT((R$49:R$56)*($E$49:$E$56))+SUM(R58:R59)+R46 -> 0 | S61: =SUMPRODUCT((S$49:S$56)*($E$49:$E$56))+SUM(S58:S59)+S46 -> 0 | T61: =SUMPRODUCT((T$49:T$56)*($E$49:$E$56))+SUM(T58:T59)+T46 -> 0 | U61: =SUMPRODUCT((U$49:U$56)*($E$49:$E$56))+SUM(U58:U59)+U46 -> 0 | V61: =SUMPRODUCT((V$49:V$56)*($E$49:$E$56))+SUM(V58:V59)+V46 -> 0 | W61: =SUMPRODUCT((W$49:W$56)*($E$49:$E$56))+SUM(W58:W59)+W46 -> 0 | X61: =SUMPRODUCT((X$49:X$56)*($E$49:$E$56))+SUM(X58:X59)+X46 -> 0 | Y61: =SUMPRODUCT((Y$49:Y$56)*($E$49:$E$56))+SUM(Y58:Y59)+Y46 -> 0 | Z61: =SUMPRODUCT((Z$49:Z$56)*($E$49:$E$56))+SUM(Z58:Z59)+Z46 -> 0 | AA61: =SUMPRODUCT((AA$49:AA$56)*($E$49:$E$56))+SUM(AA58:AA59)+AA46 -> 0 | AB61: =SUMPRODUCT((AB$49:AB$56)*($E$49:$E$56))+SUM(AB58:AB59)+AB46 -> 0 | AC61: =SUMPRODUCT((AC$49:AC$56)*($E$49:$E$56))+SUM(AC58:AC59)+AC46 -> 0 | AD61: =SUMPRODUCT((AD$49:AD$56)*($E$49:$E$56))+SUM(AD58:AD59)+AD46 -> 0 | AE61: =SUMPRODUCT((AE$49:AE$56)*($E$49:$E$56))+SUM(AE58:AE59)+AE46 -> 0 | AF61: =SUMPRODUCT((AF$49:AF$56)*($E$49:$E$56))+SUM(AF58:AF59)+AF46 -> 0 | AG61: =SUMPRODUCT((AG$49:AG$56)*($E$49:$E$56))+SUM(AG58:AG59)+AG46 -> 0
A64: SUMMARY
C68: Risks mitigated vs base case | G68: =input_dollars -> 2023-12-31
C70: Capital expenditure
C71: =C14 -> < Enter description > | G71: =input_dollars -> 2023-12-31 | I71: =-I14 -> 0 | J71: 0 | K71: 0 | L71: 0 | M71: 0 | N71: 0 | O71: 0 | P71: 0 | Q71: 0 | R71: 0 | S71: 0 | T71: 0 | U71: 0 | V71: 0 | W71: 0 | X71: 0 | Y71: 0 | Z71: 0 | AA71: 0 | AB71: 0 | AC71: 0 | AD71: 0 | AE71: 0 | AF71: 0 | AG71: 0
C72: =C15 -> < Enter description > | G72: =input_dollars -> 2023-12-31 | I72: =-I15 -> 0 | J72: 0 | K72: 0 | L72: 0 | M72: 0 | N72: 0 | O72: 0 | P72: 0 | Q72: 0 | R72: 0 | S72: 0 | T72: 0 | U72: 0 | V72: 0 | W72: 0 | X72: 0 | Y72: 0 | Z72: 0 | AA72: 0 | AB72: 0 | AC72: 0 | AD72: 0 | AE72: 0 | AF72: 0 | AG72: 0
C73: =C16 -> < Enter description > | G73: =input_dollars -> 2023-12-31 | I73: =-I16 -> 0 | J73: 0 | K73: 0 | L73: 0 | M73: 0 | N73: 0 | O73: 0 | P73: 0 | Q73: 0 | R73: 0 | S73: 0 | T73: 0 | U73: 0 | V73: 0 | W73: 0 | X73: 0 | Y73: 0 | Z73: 0 | AA73: 0 | AB73: 0 | AC73: 0 | AD73: 0 | AE73: 0 | AF73: 0 | AG73: 0
C75: Cumulative capex
C76: =C14 -> < Enter description > | G76: =input_dollars -> 2023-12-31 | I76: =SUMPRODUCT(($I71:I71))-SUMPRODUCT(($I71:I71)*($I$6:I$6<=(I$6-$E14))) -> 0 | J76: =SUMPRODUCT(($I71:J71))-SUMPRODUCT(($I71:J71)*($I$6:J$6<=(J$6-$E14))) -> 0 | K76: =SUMPRODUCT(($I71:K71))-SUMPRODUCT(($I71:K71)*($I$6:K$6<=(K$6-$E14))) -> 0 | L76: =SUMPRODUCT(($I71:L71))-SUMPRODUCT(($I71:L71)*($I$6:L$6<=(L$6-$E14))) -> 0 | M76: =SUMPRODUCT(($I71:M71))-SUMPRODUCT(($I71:M71)*($I$6:M$6<=(M$6-$E14))) -> 0 | N76: =SUMPRODUCT(($I71:N71))-SUMPRODUCT(($I71:N71)*($I$6:N$6<=(N$6-$E14))) -> 0 | O76: =SUMPRODUCT(($I71:O71))-SUMPRODUCT(($I71:O71)*($I$6:O$6<=(O$6-$E14))) -> 0 | P76: =SUMPRODUCT(($I71:P71))-SUMPRODUCT(($I71:P71)*($I$6:P$6<=(P$6-$E14))) -> 0 | Q76: =SUMPRODUCT(($I71:Q71))-SUMPRODUCT(($I71:Q71)*($I$6:Q$6<=(Q$6-$E14))) -> 0 | R76: =SUMPRODUCT(($I71:R71))-SUMPRODUCT(($I71:R71)*($I$6:R$6<=(R$6-$E14))) -> 0 | S76: =SUMPRODUCT(($I71:S71))-SUMPRODUCT(($I71:S71)*($I$6:S$6<=(S$6-$E14))) -> 0 | T76: =SUMPRODUCT(($I71:T71))-SUMPRODUCT(($I71:T71)*($I$6:T$6<=(T$6-$E14))) -> 0 | U76: =SUMPRODUCT(($I71:U71))-SUMPRODUCT(($I71:U71)*($I$6:U$6<=(U$6-$E14))) -> 0 | V76: =SUMPRODUCT(($I71:V71))-SUMPRODUCT(($I71:V71)*($I$6:V$6<=(V$6-$E14))) -> 0 | W76: =SUMPRODUCT(($I71:W71))-SUMPRODUCT(($I71:W71)*($I$6:W$6<=(W$6-$E14))) -> 0 | X76: =SUMPRODUCT(($I71:X71))-SUMPRODUCT(($I71:X71)*($I$6:X$6<=(X$6-$E14))) -> 0 | Y76: =SUMPRODUCT(($I71:Y71))-SUMPRODUCT(($I71:Y71)*($I$6:Y$6<=(Y$6-$E14))) -> 0 | Z76: =SUMPRODUCT(($I71:Z71))-SUMPRODUCT(($I71:Z71)*($I$6:Z$6<=(Z$6-$E14))) -> 0 | AA76: =SUMPRODUCT(($I71:AA71))-SUMPRODUCT(($I71:AA71)*($I$6:AA$6<=(AA$6-$E14))) -> 0 | AB76: =SUMPRODUCT(($I71:AB71))-SUMPRODUCT(($I71:AB71)*($I$6:AB$6<=(AB$6-$E14))) -> 0 | AC76: =SUMPRODUCT(($I71:AC71))-SUMPRODUCT(($I71:AC71)*($I$6:AC$6<=(AC$6-$E14))) -> 0 | AD76: =SUMPRODUCT(($I71:AD71))-SUMPRODUCT(($I71:AD71)*($I$6:AD$6<=(AD$6-$E14))) -> 0 | AE76: =SUMPRODUCT(($I71:AE71))-SUMPRODUCT(($I71:AE71)*($I$6:AE$6<=(AE$6-$E14))) -> 0 | AF76: =SUMPRODUCT(($I71:AF71))-SUMPRODUCT(($I71:AF71)*($I$6:AF$6<=(AF$6-$E14))) -> 0 | AG76: =SUMPRODUCT(($I71:AG71))-SUMPRODUCT(($I71:AG71)*($I$6:AG$6<=(AG$6-$E14))) -> 0
C77: =C15 -> < Enter description > | G77: =input_dollars -> 2023-12-31 | I77: =SUMPRODUCT(($I72:I72))-SUMPRODUCT(($I72:I72)*($I$6:I$6<=(I$6-$E15))) -> 0 | J77: =SUMPRODUCT(($I72:J72))-SUMPRODUCT(($I72:J72)*($I$6:J$6<=(J$6-$E15))) -> 0 | K77: =SUMPRODUCT(($I72:K72))-SUMPRODUCT(($I72:K72)*($I$6:K$6<=(K$6-$E15))) -> 0 | L77: =SUMPRODUCT(($I72:L72))-SUMPRODUCT(($I72:L72)*($I$6:L$6<=(L$6-$E15))) -> 0 | M77: =SUMPRODUCT(($I72:M72))-SUMPRODUCT(($I72:M72)*($I$6:M$6<=(M$6-$E15))) -> 0 | N77: =SUMPRODUCT(($I72:N72))-SUMPRODUCT(($I72:N72)*($I$6:N$6<=(N$6-$E15))) -> 0 | O77: =SUMPRODUCT(($I72:O72))-SUMPRODUCT(($I72:O72)*($I$6:O$6<=(O$6-$E15))) -> 0 | P77: =SUMPRODUCT(($I72:P72))-SUMPRODUCT(($I72:P72)*($I$6:P$6<=(P$6-$E15))) -> 0 | Q77: =SUMPRODUCT(($I72:Q72))-SUMPRODUCT(($I72:Q72)*($I$6:Q$6<=(Q$6-$E15))) -> 0 | R77: =SUMPRODUCT(($I72:R72))-SUMPRODUCT(($I72:R72)*($I$6:R$6<=(R$6-$E15))) -> 0 | S77: =SUMPRODUCT(($I72:S72))-SUMPRODUCT(($I72:S72)*($I$6:S$6<=(S$6-$E15))) -> 0 | T77: =SUMPRODUCT(($I72:T72))-SUMPRODUCT(($I72:T72)*($I$6:T$6<=(T$6-$E15))) -> 0 | U77: =SUMPRODUCT(($I72:U72))-SUMPRODUCT(($I72:U72)*($I$6:U$6<=(U$6-$E15))) -> 0 | V77: =SUMPRODUCT(($I72:V72))-SUMPRODUCT(($I72:V72)*($I$6:V$6<=(V$6-$E15))) -> 0 | W77: =SUMPRODUCT(($I72:W72))-SUMPRODUCT(($I72:W72)*($I$6:W$6<=(W$6-$E15))) -> 0 | X77: =SUMPRODUCT(($I72:X72))-SUMPRODUCT(($I72:X72)*($I$6:X$6<=(X$6-$E15))) -> 0 | Y77: =SUMPRODUCT(($I72:Y72))-SUMPRODUCT(($I72:Y72)*($I$6:Y$6<=(Y$6-$E15))) -> 0 | Z77: =SUMPRODUCT(($I72:Z72))-SUMPRODUCT(($I72:Z72)*($I$6:Z$6<=(Z$6-$E15))) -> 0 | AA77: =SUMPRODUCT(($I72:AA72))-SUMPRODUCT(($I72:AA72)*($I$6:AA$6<=(AA$6-$E15))) -> 0 | AB77: =SUMPRODUCT(($I72:AB72))-SUMPRODUCT(($I72:AB72)*($I$6:AB$6<=(AB$6-$E15))) -> 0 | AC77: =SUMPRODUCT(($I72:AC72))-SUMPRODUCT(($I72:AC72)*($I$6:AC$6<=(AC$6-$E15))) -> 0 | AD77: =SUMPRODUCT(($I72:AD72))-SUMPRODUCT(($I72:AD72)*($I$6:AD$6<=(AD$6-$E15))) -> 0 | AE77: =SUMPRODUCT(($I72:AE72))-SUMPRODUCT(($I72:AE72)*($I$6:AE$6<=(AE$6-$E15))) -> 0 | AF77: =SUMPRODUCT(($I72:AF72))-SUMPRODUCT(($I72:AF72)*($I$6:AF$6<=(AF$6-$E15))) -> 0 | AG77: =SUMPRODUCT(($I72:AG72))-SUMPRODUCT(($I72:AG72)*($I$6:AG$6<=(AG$6-$E15))) -> 0
C78: =C16 -> < Enter description > | G78: =input_dollars -> 2023-12-31 | I78: =SUMPRODUCT(($I73:I73))-SUMPRODUCT(($I73:I73)*($I$6:I$6<=(I$6-$E16))) -> 0 | J78: =SUMPRODUCT(($I73:J73))-SUMPRODUCT(($I73:J73)*($I$6:J$6<=(J$6-$E16))) -> 0 | K78: =SUMPRODUCT(($I73:K73))-SUMPRODUCT(($I73:K73)*($I$6:K$6<=(K$6-$E16))) -> 0 | L78: =SUMPRODUCT(($I73:L73))-SUMPRODUCT(($I73:L73)*($I$6:L$6<=(L$6-$E16))) -> 0 | M78: =SUMPRODUCT(($I73:M73))-SUMPRODUCT(($I73:M73)*($I$6:M$6<=(M$6-$E16))) -> 0 | N78: =SUMPRODUCT(($I73:N73))-SUMPRODUCT(($I73:N73)*($I$6:N$6<=(N$6-$E16))) -> 0 | O78: =SUMPRODUCT(($I73:O73))-SUMPRODUCT(($I73:O73)*($I$6:O$6<=(O$6-$E16))) -> 0 | P78: =SUMPRODUCT(($I73:P73))-SUMPRODUCT(($I73:P73)*($I$6:P$6<=(P$6-$E16))) -> 0 | Q78: =SUMPRODUCT(($I73:Q73))-SUMPRODUCT(($I73:Q73)*($I$6:Q$6<=(Q$6-$E16))) -> 0 | R78: =SUMPRODUCT(($I73:R73))-SUMPRODUCT(($I73:R73)*($I$6:R$6<=(R$6-$E16))) -> 0 | S78: =SUMPRODUCT(($I73:S73))-SUMPRODUCT(($I73:S73)*($I$6:S$6<=(S$6-$E16))) -> 0 | T78: =SUMPRODUCT(($I73:T73))-SUMPRODUCT(($I73:T73)*($I$6:T$6<=(T$6-$E16))) -> 0 | U78: =SUMPRODUCT(($I73:U73))-SUMPRODUCT(($I73:U73)*($I$6:U$6<=(U$6-$E16))) -> 0 | V78: =SUMPRODUCT(($I73:V73))-SUMPRODUCT(($I73:V73)*($I$6:V$6<=(V$6-$E16))) -> 0 | W78: =SUMPRODUCT(($I73:W73))-SUMPRODUCT(($I73:W73)*($I$6:W$6<=(W$6-$E16))) -> 0 | X78: =SUMPRODUCT(($I73:X73))-SUMPRODUCT(($I73:X73)*($I$6:X$6<=(X$6-$E16))) -> 0 | Y78: =SUMPRODUCT(($I73:Y73))-SUMPRODUCT(($I73:Y73)*($I$6:Y$6<=(Y$6-$E16))) -> 0 | Z78: =SUMPRODUCT(($I73:Z73))-SUMPRODUCT(($I73:Z73)*($I$6:Z$6<=(Z$6-$E16))) -> 0 | AA78: =SUMPRODUCT(($I73:AA73))-SUMPRODUCT(($I73:AA73)*($I$6:AA$6<=(AA$6-$E16))) -> 0 | AB78: =SUMPRODUCT(($I73:AB73))-SUMPRODUCT(($I73:AB73)*($I$6:AB$6<=(AB$6-$E16))) -> 0 | AC78: =SUMPRODUCT(($I73:AC73))-SUMPRODUCT(($I73:AC73)*($I$6:AC$6<=(AC$6-$E16))) -> 0 | AD78: =SUMPRODUCT(($I73:AD73))-SUMPRODUCT(($I73:AD73)*($I$6:AD$6<=(AD$6-$E16))) -> 0 | AE78: =SUMPRODUCT(($I73:AE73))-SUMPRODUCT(($I73:AE73)*($I$6:AE$6<=(AE$6-$E16))) -> 0 | AF78: =SUMPRODUCT(($I73:AF73))-SUMPRODUCT(($I73:AF73)*($I$6:AF$6<=(AF$6-$E16))) -> 0 | AG78: =SUMPRODUCT(($I73:AG73))-SUMPRODUCT(($I73:AG73)*($I$6:AG$6<=(AG$6-$E16))) -> 0
C80: Annualised capex
C81: =$C$80&" - "&C14 -> Annualised capex - < Enter description > | G81: =input_dollars -> 2023-12-31 | I81: =IF($E14=0,0,-PMT(real_disc, $E14,H76,)) -> 0 | J81: 0 | K81: 0 | L81: 0 | M81: 0 | N81: 0 | O81: 0 | P81: 0 | Q81: 0 | R81: 0 | S81: 0 | T81: 0 | U81: 0 | V81: 0 | W81: 0 | X81: 0 | Y81: 0 | Z81: 0 | AA81: 0 | AB81: 0 | AC81: 0 | AD81: 0 | AE81: 0 | AF81: 0 | AG81: 0
C82: =$C$80&" - "&C15 -> Annualised capex - < Enter description > | G82: =input_dollars -> 2023-12-31 | I82: =IF($E15=0,0,-PMT(real_disc, $E15,H77,)) -> 0 | J82: 0 | K82: 0 | L82: 0 | M82: 0 | N82: 0 | O82: 0 | P82: 0 | Q82: 0 | R82: 0 | S82: 0 | T82: 0 | U82: 0 | V82: 0 | W82: 0 | X82: 0 | Y82: 0 | Z82: 0 | AA82: 0 | AB82: 0 | AC82: 0 | AD82: 0 | AE82: 0 | AF82: 0 | AG82: 0
C83: =$C$80&" - "&C16 -> Annualised capex - < Enter description > | G83: =input_dollars -> 2023-12-31 | I83: =IF($E16=0,0,-PMT(real_disc, $E16,H78,)) -> 0 | J83: 0 | K83: 0 | L83: 0 | M83: 0 | N83: 0 | O83: 0 | P83: 0 | Q83: 0 | R83: 0 | S83: 0 | T83: 0 | U83: 0 | V83: 0 | W83: 0 | X83: 0 | Y83: 0 | Z83: 0 | AA83: 0 | AB83: 0 | AC83: 0 | AD83: 0 | AE83: 0 | AF83: 0 | AG83: 0
C84: Total annualised capex | G84: =input_dollars -> 2023-12-31 | I84: =SUM(I81:I83) -> 0 | J84: =SUM(J81:J83) -> 0 | K84: 0 | L84: 0 | M84: 0 | N84: 0 | O84: 0 | P84: 0 | Q84: 0 | R84: 0 | S84: 0 | T84: 0 | U84: 0 | V84: 0 | W84: 0 | X84: 0 | Y84: 0 | Z84: 0 | AA84: 0 | AB84: 0 | AC84: =SUM(AC81:AC83) -> 0 | AD84: =SUM(AD81:AD83) -> 0 | AE84: =SUM(AE81:AE83) -> 0 | AF84: =SUM(AF81:AF83) -> 0 | AG84: =SUM(AG81:AG83) -> 0
C86: Annualised capex | G86: =input_dollars -> 2023-12-31 | I86: =I84 -> 0 | J86: =J84 -> 0 | K86: 0 | L86: 0 | M86: 0 | N86: 0 | O86: 0 | P86: 0 | Q86: 0 | R86: 0 | S86: 0 | T86: 0 | U86: 0 | V86: 0 | W86: 0 | X86: 0 | Y86: 0 | Z86: 0 | AA86: 0 | AB86: 0 | AC86: =AC84 -> 0 | AD86: =AD84 -> 0 | AE86: =AE84 -> 0 | AF86: =AF84 -> 0 | AG86: =AG84 -> 0
C87: Operating expenditure | G87: 2023-12-31 | I87: =-I19 -> 0 | J87: 0 | K87: 0 | L87: 0 | M87: 0 | N87: 0 | O87: 0 | P87: 0 | Q87: 0 | R87: 0 | S87: 0 | T87: 0 | U87: 0 | V87: 0 | W87: 0 | X87: 0 | Y87: 0 | Z87: 0 | AA87: 0 | AB87: 0 | AC87: 0 | AD87: 0 | AE87: 0 | AF87: 0 | AG87: 0
C88: Risk mitigated | G88: 2023-12-31 | I88: =I68 -> 0 | J88: =J68 -> 0 | K88: 0 | L88: 0 | M88: 0 | N88: 0 | O88: 0 | P88: 0 | Q88: 0 | R88: 0 | S88: 0 | T88: 0 | U88: 0 | V88: 0 | W88: 0 | X88: 0 | Y88: 0 | Z88: 0 | AA88: 0 | AB88: 0 | AC88: =AC68 -> 0 | AD88: =AD68 -> 0 | AE88: =AE68 -> 0 | AF88: =AF68 -> 0 | AG88: =AG68 -> 0
C89: Other benefits value | G89: 2023-12-31 | I89: =I61 -> 0 | J89: 0 | K89: 0 | L89: 0 | M89: 0 | N89: 0 | O89: 0 | P89: 0 | Q89: 0 | R89: 0 | S89: 0 | T89: 0 | U89: 0 | V89: 0 | W89: 0 | X89: 0 | Y89: 0 | Z89: 0 | AA89: 0 | AB89: 0 | AC89: 0 | AD89: 0 | AE89: 0 | AF89: 0 | AG89: 0
C91: Net benefits | G91: 2023-12-31 | I91: =SUM(I86:I90) -> 0 | J91: 0 | K91: 0 | L91: 0 | M91: 0 | N91: 0 | O91: 0 | P91: 0 | Q91: 0 | R91: 0 | S91: 0 | T91: 0 | U91: 0 | V91: 0 | W91: 0 | X91: 0 | Y91: 0 | Z91: 0 | AA91: 0 | AB91: 0 | AC91: =SUM(AC86:AC90) -> 0 | AD91: =SUM(AD86:AD90) -> 0 | AE91: =SUM(AE86:AE90) -> 0 | AF91: =SUM(AF86:AF90) -> 0 | AG91: =SUM(AG86:AG90) -> 0
A106: SENSITIVITIES
A110: NPV | C110: Net benefits | G110: =PROPER($A$3)&A110 -> Option 1 (Base Case)NPV | I110: =I91 -> 0 | J110: =J91 -> 0 | K110: 0 | L110: 0 | M110: 0 | N110: 0 | O110: 0 | P110: 0 | Q110: 0 | R110: 0 | S110: 0 | T110: 0 | U110: 0 | V110: 0 | W110: 0 | X110: 0 | Y110: 0 | Z110: 0 | AA110: 0 | AB110: 0 | AC110: 0 | AD110: 0 | AE110: 0 | AF110: 0 | AG110: 0
C111: Total annualised capex | I111: =I86 -> 0 | J111: =J86 -> 0 | K111: 0 | L111: 0 | M111: 0 | N111: 0 | O111: 0 | P111: 0 | Q111: 0 | R111: 0 | S111: 0 | T111: 0 | U111: 0 | V111: 0 | W111: 0 | X111: 0 | Y111: 0 | Z111: 0 | AA111: 0 | AB111: 0 | AC111: 0 | AD111: 0 | AE111: 0 | AF111: 0 | AG111: 0
C112: Total benefits | I112: =SUM(I88:I89) -> 0 | J112: =SUM(J88:J89) -> 0 | K112: 0 | L112: 0 | M112: 0 | N112: 0 | O112: 0 | P112: 0 | Q112: 0 | R112: 0 | S112: 0 | T112: 0 | U112: 0 | V112: 0 | W112: 0 | X112: 0 | Y112: 0 | Z112: 0 | AA112: 0 | AB112: 0 | AC112: 0 | AD112: 0 | AE112: 0 | AF112: 0 | AG112: 0
D113: =Assumptions!G110 -> Capex | E113: =Assumptions!H110 -> Total benefits
A114: ="sens"&Assumptions!B111 -> sens1 | C114: =Assumptions!C111 -> Capex 10% higher | D114: =Assumptions!G111 -> 0.1 | E114: =Assumptions!H111 -> 0 | G114: =PROPER($A$3)&A114 -> Option 1 (Base Case)sens1 | I114: =I$110+IF($C114<>0,SUMPRODUCT((I$111:I$112)*TRANSPOSE(($D114:$E114))),0) -> 0 | J114: =J$110+IF($C114<>0,SUMPRODUCT((J$111:J$112)*TRANSPOSE(($D114:$E114))),0) -> 0 | K114: =K$110+IF($C114<>0,SUMPRODUCT((K$111:K$112)*TRANSPOSE(($D114:$E114))),0) -> 0 | L114: =L$110+IF($C114<>0,SUMPRODUCT((L$111:L$112)*TRANSPOSE(($D114:$E114))),0) -> 0 | M114: =M$110+IF($C114<>0,SUMPRODUCT((M$111:M$112)*TRANSPOSE(($D114:$E114))),0) -> 0 | N114: =N$110+IF($C114<>0,SUMPRODUCT((N$111:N$112)*TRANSPOSE(($D114:$E114))),0) -> 0 | O114: =O$110+IF($C114<>0,SUMPRODUCT((O$111:O$112)*TRANSPOSE(($D114:$E114))),0) -> 0 | P114: =P$110+IF($C114<>0,SUMPRODUCT((P$111:P$112)*TRANSPOSE(($D114:$E114))),0) -> 0 | Q114: =Q$110+IF($C114<>0,SUMPRODUCT((Q$111:Q$112)*TRANSPOSE(($D114:$E114))),0) -> 0 | R114: =R$110+IF($C114<>0,SUMPRODUCT((R$111:R$112)*TRANSPOSE(($D114:$E114))),0) -> 0 | S114: =S$110+IF($C114<>0,SUMPRODUCT((S$111:S$112)*TRANSPOSE(($D114:$E114))),0) -> 0 | T114: =T$110+IF($C114<>0,SUMPRODUCT((T$111:T$112)*TRANSPOSE(($D114:$E114))),0) -> 0 | U114: =U$110+IF($C114<>0,SUMPRODUCT((U$111:U$112)*TRANSPOSE(($D114:$E114))),0) -> 0 | V114: =V$110+IF($C114<>0,SUMPRODUCT((V$111:V$112)*TRANSPOSE(($D114:$E114))),0) -> 0 | W114: =W$110+IF($C114<>0,SUMPRODUCT((W$111:W$112)*TRANSPOSE(($D114:$E114))),0) -> 0 | X114: =X$110+IF($C114<>0,SUMPRODUCT((X$111:X$112)*TRANSPOSE(($D114:$E114))),0) -> 0 | Y114: =Y$110+IF($C114<>0,SUMPRODUCT((Y$111:Y$112)*TRANSPOSE(($D114:$E114))),0) -> 0 | Z114: =Z$110+IF($C114<>0,SUMPRODUCT((Z$111:Z$112)*TRANSPOSE(($D114:$E114))),0) -> 0 | AA114: =AA$110+IF($C114<>0,SUMPRODUCT((AA$111:AA$112)*TRANSPOSE(($D114:$E114))),0) -> 0 | AB114: =AB$110+IF($C114<>0,SUMPRODUCT((AB$111:AB$112)*TRANSPOSE(($D114:$E114))),0) -> 0 | AC114: =AC$110+IF($C114<>0,SUMPRODUCT((AC$111:AC$112)*TRANSPOSE(($D114:$E114))),0) -> 0 | AD114: =AD$110+IF($C114<>0,SUMPRODUCT((AD$111:AD$112)*TRANSPOSE(($D114:$E114))),0) -> 0 | AE114: =AE$110+IF($C114<>0,SUMPRODUCT((AE$111:AE$112)*TRANSPOSE(($D114:$E114))),0) -> 0 | AF114: =AF$110+IF($C114<>0,SUMPRODUCT((AF$111:AF$112)*TRANSPOSE(($D114:$E114))),0) -> 0 | AG114: =AG$110+IF($C114<>0,SUMPRODUCT((AG$111:AG$112)*TRANSPOSE(($D114:$E114))),0) -> 0
A115: ="sens"&Assumptions!B112 -> sens2 | C115: =Assumptions!C112 -> Capex 10% lower | D115: =Assumptions!G112 -> -0.1 | E115: =Assumptions!H112 -> 0 | G115: =PROPER($A$3)&A115 -> Option 1 (Base Case)sens2 | I115: =I$110+IF($C115<>0,SUMPRODUCT((I$111:I$112)*TRANSPOSE(($D115:$E115))),0) -> 0 | J115: =J$110+IF($C115<>0,SUMPRODUCT((J$111:J$112)*TRANSPOSE(($D115:$E115))),0) -> 0 | K115: =K$110+IF($C115<>0,SUMPRODUCT((K$111:K$112)*TRANSPOSE(($D115:$E115))),0) -> 0 | L115: =L$110+IF($C115<>0,SUMPRODUCT((L$111:L$112)*TRANSPOSE(($D115:$E115))),0) -> 0 | M115: =M$110+IF($C115<>0,SUMPRODUCT((M$111:M$112)*TRANSPOSE(($D115:$E115))),0) -> 0 | N115: =N$110+IF($C115<>0,SUMPRODUCT((N$111:N$112)*TRANSPOSE(($D115:$E115))),0) -> 0 | O115: =O$110+IF($C115<>0,SUMPRODUCT((O$111:O$112)*TRANSPOSE(($D115:$E115))),0) -> 0 | P115: =P$110+IF($C115<>0,SUMPRODUCT((P$111:P$112)*TRANSPOSE(($D115:$E115))),0) -> 0 | Q115: =Q$110+IF($C115<>0,SUMPRODUCT((Q$111:Q$112)*TRANSPOSE(($D115:$E115))),0) -> 0 | R115: =R$110+IF($C115<>0,SUMPRODUCT((R$111:R$112)*TRANSPOSE(($D115:$E115))),0) -> 0 | S115: =S$110+IF($C115<>0,SUMPRODUCT((S$111:S$112)*TRANSPOSE(($D115:$E115))),0) -> 0 | T115: =T$110+IF($C115<>0,SUMPRODUCT((T$111:T$112)*TRANSPOSE(($D115:$E115))),0) -> 0 | U115: =U$110+IF($C115<>0,SUMPRODUCT((U$111:U$112)*TRANSPOSE(($D115:$E115))),0) -> 0 | V115: =V$110+IF($C115<>0,SUMPRODUCT((V$111:V$112)*TRANSPOSE(($D115:$E115))),0) -> 0 | W115: =W$110+IF($C115<>0,SUMPRODUCT((W$111:W$112)*TRANSPOSE(($D115:$E115))),0) -> 0 | X115: =X$110+IF($C115<>0,SUMPRODUCT((X$111:X$112)*TRANSPOSE(($D115:$E115))),0) -> 0 | Y115: =Y$110+IF($C115<>0,SUMPRODUCT((Y$111:Y$112)*TRANSPOSE(($D115:$E115))),0) -> 0 | Z115: =Z$110+IF($C115<>0,SUMPRODUCT((Z$111:Z$112)*TRANSPOSE(($D115:$E115))),0) -> 0 | AA115: =AA$110+IF($C115<>0,SUMPRODUCT((AA$111:AA$112)*TRANSPOSE(($D115:$E115))),0) -> 0 | AB115: =AB$110+IF($C115<>0,SUMPRODUCT((AB$111:AB$112)*TRANSPOSE(($D115:$E115))),0) -> 0 | AC115: =AC$110+IF($C115<>0,SUMPRODUCT((AC$111:AC$112)*TRANSPOSE(($D115:$E115))),0) -> 0 | AD115: =AD$110+IF($C115<>0,SUMPRODUCT((AD$111:AD$112)*TRANSPOSE(($D115:$E115))),0) -> 0 | AE115: =AE$110+IF($C115<>0,SUMPRODUCT((AE$111:AE$112)*TRANSPOSE(($D115:$E115))),0) -> 0 | AF115: =AF$110+IF($C115<>0,SUMPRODUCT((AF$111:AF$112)*TRANSPOSE(($D115:$E115))),0) -> 0 | AG115: =AG$110+IF($C115<>0,SUMPRODUCT((AG$111:AG$112)*TRANSPOSE(($D115:$E115))),0) -> 0
A116: ="sens"&Assumptions!B113 -> sens3 | C116: =Assumptions!C113 -> Total benefits 10% higher | D116: =Assumptions!G113 -> 0 | E116: =Assumptions!H113 -> 0.1 | G116: Option 1 (Base Case)sens3 | I116: =I$110+IF($C116<>0,SUMPRODUCT((I$111:I$112)*TRANSPOSE(($D116:$E116))),0) -> 0 | J116: =J$110+IF($C116<>0,SUMPRODUCT((J$111:J$112)*TRANSPOSE(($D116:$E116))),0) -> 0 | K116: =K$110+IF($C116<>0,SUMPRODUCT((K$111:K$112)*TRANSPOSE(($D116:$E116))),0) -> 0 | L116: =L$110+IF($C116<>0,SUMPRODUCT((L$111:L$112)*TRANSPOSE(($D116:$E116))),0) -> 0 | M116: =M$110+IF($C116<>0,SUMPRODUCT((M$111:M$112)*TRANSPOSE(($D116:$E116))),0) -> 0 | N116: =N$110+IF($C116<>0,SUMPRODUCT((N$111:N$112)*TRANSPOSE(($D116:$E116))),0) -> 0 | O116: =O$110+IF($C116<>0,SUMPRODUCT((O$111:O$112)*TRANSPOSE(($D116:$E116))),0) -> 0 | P116: =P$110+IF($C116<>0,SUMPRODUCT((P$111:P$112)*TRANSPOSE(($D116:$E116))),0) -> 0 | Q116: =Q$110+IF($C116<>0,SUMPRODUCT((Q$111:Q$112)*TRANSPOSE(($D116:$E116))),0) -> 0 | R116: =R$110+IF($C116<>0,SUMPRODUCT((R$111:R$112)*TRANSPOSE(($D116:$E116))),0) -> 0 | S116: =S$110+IF($C116<>0,SUMPRODUCT((S$111:S$112)*TRANSPOSE(($D116:$E116))),0) -> 0 | T116: =T$110+IF($C116<>0,SUMPRODUCT((T$111:T$112)*TRANSPOSE(($D116:$E116))),0) -> 0 | U116: =U$110+IF($C116<>0,SUMPRODUCT((U$111:U$112)*TRANSPOSE(($D116:$E116))),0) -> 0 | V116: =V$110+IF($C116<>0,SUMPRODUCT((V$111:V$112)*TRANSPOSE(($D116:$E116))),0) -> 0 | W116: =W$110+IF($C116<>0,SUMPRODUCT((W$111:W$112)*TRANSPOSE(($D116:$E116))),0) -> 0 | X116: =X$110+IF($C116<>0,SUMPRODUCT((X$111:X$112)*TRANSPOSE(($D116:$E116))),0) -> 0 | Y116: =Y$110+IF($C116<>0,SUMPRODUCT((Y$111:Y$112)*TRANSPOSE(($D116:$E116))),0) -> 0 | Z116: =Z$110+IF($C116<>0,SUMPRODUCT((Z$111:Z$112)*TRANSPOSE(($D116:$E116))),0) -> 0 | AA116: =AA$110+IF($C116<>0,SUMPRODUCT((AA$111:AA$112)*TRANSPOSE(($D116:$E116))),0) -> 0 | AB116: =AB$110+IF($C116<>0,SUMPRODUCT((AB$111:AB$112)*TRANSPOSE(($D116:$E116))),0) -> 0 | AC116: =AC$110+IF($C116<>0,SUMPRODUCT((AC$111:AC$112)*TRANSPOSE(($D116:$E116))),0) -> 0 | AD116: =AD$110+IF($C116<>0,SUMPRODUCT((AD$111:AD$112)*TRANSPOSE(($D116:$E116))),0) -> 0 | AE116: =AE$110+IF($C116<>0,SUMPRODUCT((AE$111:AE$112)*TRANSPOSE(($D116:$E116))),0) -> 0 | AF116: =AF$110+IF($C116<>0,SUMPRODUCT((AF$111:AF$112)*TRANSPOSE(($D116:$E116))),0) -> 0 | AG116: =AG$110+IF($C116<>0,SUMPRODUCT((AG$111:AG$112)*TRANSPOSE(($D116:$E116))),0) -> 0
A117: ="sens"&Assumptions!B114 -> sens4 | C117: =Assumptions!C114 -> Total benefits 10% lower | D117: =Assumptions!G114 -> 0 | E117: =Assumptions!H114 -> -0.1 | G117: Option 1 (Base Case)sens4 | I117: =I$110+IF($C117<>0,SUMPRODUCT((I$111:I$112)*TRANSPOSE(($D117:$E117))),0) -> 0 | J117: =J$110+IF($C117<>0,SUMPRODUCT((J$111:J$112)*TRANSPOSE(($D117:$E117))),0) -> 0 | K117: =K$110+IF($C117<>0,SUMPRODUCT((K$111:K$112)*TRANSPOSE(($D117:$E117))),0) -> 0 | L117: =L$110+IF($C117<>0,SUMPRODUCT((L$111:L$112)*TRANSPOSE(($D117:$E117))),0) -> 0 | M117: =M$110+IF($C117<>0,SUMPRODUCT((M$111:M$112)*TRANSPOSE(($D117:$E117))),0) -> 0 | N117: =N$110+IF($C117<>0,SUMPRODUCT((N$111:N$112)*TRANSPOSE(($D117:$E117))),0) -> 0 | O117: =O$110+IF($C117<>0,SUMPRODUCT((O$111:O$112)*TRANSPOSE(($D117:$E117))),0) -> 0 | P117: =P$110+IF($C117<>0,SUMPRODUCT((P$111:P$112)*TRANSPOSE(($D117:$E117))),0) -> 0 | Q117: =Q$110+IF($C117<>0,SUMPRODUCT((Q$111:Q$112)*TRANSPOSE(($D117:$E117))),0) -> 0 | R117: =R$110+IF($C117<>0,SUMPRODUCT((R$111:R$112)*TRANSPOSE(($D117:$E117))),0) -> 0 | S117: =S$110+IF($C117<>0,SUMPRODUCT((S$111:S$112)*TRANSPOSE(($D117:$E117))),0) -> 0 | T117: =T$110+IF($C117<>0,SUMPRODUCT((T$111:T$112)*TRANSPOSE(($D117:$E117))),0) -> 0 | U117: =U$110+IF($C117<>0,SUMPRODUCT((U$111:U$112)*TRANSPOSE(($D117:$E117))),0) -> 0 | V117: =V$110+IF($C117<>0,SUMPRODUCT((V$111:V$112)*TRANSPOSE(($D117:$E117))),0) -> 0 | W117: =W$110+IF($C117<>0,SUMPRODUCT((W$111:W$112)*TRANSPOSE(($D117:$E117))),0) -> 0 | X117: =X$110+IF($C117<>0,SUMPRODUCT((X$111:X$112)*TRANSPOSE(($D117:$E117))),0) -> 0 | Y117: =Y$110+IF($C117<>0,SUMPRODUCT((Y$111:Y$112)*TRANSPOSE(($D117:$E117))),0) -> 0 | Z117: =Z$110+IF($C117<>0,SUMPRODUCT((Z$111:Z$112)*TRANSPOSE(($D117:$E117))),0) -> 0 | AA117: =AA$110+IF($C117<>0,SUMPRODUCT((AA$111:AA$112)*TRANSPOSE(($D117:$E117))),0) -> 0 | AB117: =AB$110+IF($C117<>0,SUMPRODUCT((AB$111:AB$112)*TRANSPOSE(($D117:$E117))),0) -> 0 | AC117: =AC$110+IF($C117<>0,SUMPRODUCT((AC$111:AC$112)*TRANSPOSE(($D117:$E117))),0) -> 0 | AD117: =AD$110+IF($C117<>0,SUMPRODUCT((AD$111:AD$112)*TRANSPOSE(($D117:$E117))),0) -> 0 | AE117: =AE$110+IF($C117<>0,SUMPRODUCT((AE$111:AE$112)*TRANSPOSE(($D117:$E117))),0) -> 0 | AF117: =AF$110+IF($C117<>0,SUMPRODUCT((AF$111:AF$112)*TRANSPOSE(($D117:$E117))),0) -> 0 | AG117: =AG$110+IF($C117<>0,SUMPRODUCT((AG$111:AG$112)*TRANSPOSE(($D117:$E117))),0) -> 0
A118: ="sens"&Assumptions!B115 -> sens5 | C118: =Assumptions!C115 -> Capex 10% higher & Total benefits 10% lower | D118: =Assumptions!G115 -> 0.1 | E118: =Assumptions!H115 -> -0.1 | G118: Option 1 (Base Case)sens5 | I118: =I$110+IF($C118<>0,SUMPRODUCT((I$111:I$112)*TRANSPOSE(($D118:$E118))),0) -> 0 | J118: =J$110+IF($C118<>0,SUMPRODUCT((J$111:J$112)*TRANSPOSE(($D118:$E118))),0) -> 0 | K118: =K$110+IF($C118<>0,SUMPRODUCT((K$111:K$112)*TRANSPOSE(($D118:$E118))),0) -> 0 | L118: =L$110+IF($C118<>0,SUMPRODUCT((L$111:L$112)*TRANSPOSE(($D118:$E118))),0) -> 0 | M118: =M$110+IF($C118<>0,SUMPRODUCT((M$111:M$112)*TRANSPOSE(($D118:$E118))),0) -> 0 | N118: =N$110+IF($C118<>0,SUMPRODUCT((N$111:N$112)*TRANSPOSE(($D118:$E118))),0) -> 0 | O118: =O$110+IF($C118<>0,SUMPRODUCT((O$111:O$112)*TRANSPOSE(($D118:$E118))),0) -> 0 | P118: =P$110+IF($C118<>0,SUMPRODUCT((P$111:P$112)*TRANSPOSE(($D118:$E118))),0) -> 0 | Q118: =Q$110+IF($C118<>0,SUMPRODUCT((Q$111:Q$112)*TRANSPOSE(($D118:$E118))),0) -> 0 | R118: =R$110+IF($C118<>0,SUMPRODUCT((R$111:R$112)*TRANSPOSE(($D118:$E118))),0) -> 0 | S118: =S$110+IF($C118<>0,SUMPRODUCT((S$111:S$112)*TRANSPOSE(($D118:$E118))),0) -> 0 | T118: =T$110+IF($C118<>0,SUMPRODUCT((T$111:T$112)*TRANSPOSE(($D118:$E118))),0) -> 0 | U118: =U$110+IF($C118<>0,SUMPRODUCT((U$111:U$112)*TRANSPOSE(($D118:$E118))),0) -> 0 | V118: =V$110+IF($C118<>0,SUMPRODUCT((V$111:V$112)*TRANSPOSE(($D118:$E118))),0) -> 0 | W118: =W$110+IF($C118<>0,SUMPRODUCT((W$111:W$112)*TRANSPOSE(($D118:$E118))),0) -> 0 | X118: =X$110+IF($C118<>0,SUMPRODUCT((X$111:X$112)*TRANSPOSE(($D118:$E118))),0) -> 0 | Y118: =Y$110+IF($C118<>0,SUMPRODUCT((Y$111:Y$112)*TRANSPOSE(($D118:$E118))),0) -> 0 | Z118: =Z$110+IF($C118<>0,SUMPRODUCT((Z$111:Z$112)*TRANSPOSE(($D118:$E118))),0) -> 0 | AA118: =AA$110+IF($C118<>0,SUMPRODUCT((AA$111:AA$112)*TRANSPOSE(($D118:$E118))),0) -> 0 | AB118: =AB$110+IF($C118<>0,SUMPRODUCT((AB$111:AB$112)*TRANSPOSE(($D118:$E118))),0) -> 0 | AC118: =AC$110+IF($C118<>0,SUMPRODUCT((AC$111:AC$112)*TRANSPOSE(($D118:$E118))),0) -> 0 | AD118: =AD$110+IF($C118<>0,SUMPRODUCT((AD$111:AD$112)*TRANSPOSE(($D118:$E118))),0) -> 0 | AE118: =AE$110+IF($C118<>0,SUMPRODUCT((AE$111:AE$112)*TRANSPOSE(($D118:$E118))),0) -> 0 | AF118: =AF$110+IF($C118<>0,SUMPRODUCT((AF$111:AF$112)*TRANSPOSE(($D118:$E118))),0) -> 0 | AG118: =AG$110+IF($C118<>0,SUMPRODUCT((AG$111:AG$112)*TRANSPOSE(($D118:$E118))),0) -> 0
A119: ="sens"&Assumptions!B116 -> sens | C119: =Assumptions!C116 -> 0 | D119: =Assumptions!G116 -> 0 | E119: =Assumptions!H116 -> 0 | G119: Option 1 (Base Case)sens | I119: =I$110+IF($C119<>0,SUMPRODUCT((I$111:I$112)*TRANSPOSE(($D119:$E119))),0) -> 0 | J119: =J$110+IF($C119<>0,SUMPRODUCT((J$111:J$112)*TRANSPOSE(($D119:$E119))),0) -> 0 | K119: =K$110+IF($C119<>0,SUMPRODUCT((K$111:K$112)*TRANSPOSE(($D119:$E119))),0) -> 0 | L119: =L$110+IF($C119<>0,SUMPRODUCT((L$111:L$112)*TRANSPOSE(($D119:$E119))),0) -> 0 | M119: =M$110+IF($C119<>0,SUMPRODUCT((M$111:M$112)*TRANSPOSE(($D119:$E119))),0) -> 0 | N119: =N$110+IF($C119<>0,SUMPRODUCT((N$111:N$112)*TRANSPOSE(($D119:$E119))),0) -> 0 | O119: =O$110+IF($C119<>0,SUMPRODUCT((O$111:O$112)*TRANSPOSE(($D119:$E119))),0) -> 0 | P119: =P$110+IF($C119<>0,SUMPRODUCT((P$111:P$112)*TRANSPOSE(($D119:$E119))),0) -> 0 | Q119: =Q$110+IF($C119<>0,SUMPRODUCT((Q$111:Q$112)*TRANSPOSE(($D119:$E119))),0) -> 0 | R119: =R$110+IF($C119<>0,SUMPRODUCT((R$111:R$112)*TRANSPOSE(($D119:$E119))),0) -> 0 | S119: =S$110+IF($C119<>0,SUMPRODUCT((S$111:S$112)*TRANSPOSE(($D119:$E119))),0) -> 0 | T119: =T$110+IF($C119<>0,SUMPRODUCT((T$111:T$112)*TRANSPOSE(($D119:$E119))),0) -> 0 | U119: =U$110+IF($C119<>0,SUMPRODUCT((U$111:U$112)*TRANSPOSE(($D119:$E119))),0) -> 0 | V119: =V$110+IF($C119<>0,SUMPRODUCT((V$111:V$112)*TRANSPOSE(($D119:$E119))),0) -> 0 | W119: =W$110+IF($C119<>0,SUMPRODUCT((W$111:W$112)*TRANSPOSE(($D119:$E119))),0) -> 0 | X119: =X$110+IF($C119<>0,SUMPRODUCT((X$111:X$112)*TRANSPOSE(($D119:$E119))),0) -> 0 | Y119: =Y$110+IF($C119<>0,SUMPRODUCT((Y$111:Y$112)*TRANSPOSE(($D119:$E119))),0) -> 0 | Z119: =Z$110+IF($C119<>0,SUMPRODUCT((Z$111:Z$112)*TRANSPOSE(($D119:$E119))),0) -> 0 | AA119: =AA$110+IF($C119<>0,SUMPRODUCT((AA$111:AA$112)*TRANSPOSE(($D119:$E119))),0) -> 0 | AB119: =AB$110+IF($C119<>0,SUMPRODUCT((AB$111:AB$112)*TRANSPOSE(($D119:$E119))),0) -> 0 | AC119: =AC$110+IF($C119<>0,SUMPRODUCT((AC$111:AC$112)*TRANSPOSE(($D119:$E119))),0) -> 0 | AD119: =AD$110+IF($C119<>0,SUMPRODUCT((AD$111:AD$112)*TRANSPOSE(($D119:$E119))),0) -> 0 | AE119: =AE$110+IF($C119<>0,SUMPRODUCT((AE$111:AE$112)*TRANSPOSE(($D119:$E119))),0) -> 0 | AF119: =AF$110+IF($C119<>0,SUMPRODUCT((AF$111:AF$112)*TRANSPOSE(($D119:$E119))),0) -> 0 | AG119: =AG$110+IF($C119<>0,SUMPRODUCT((AG$111:AG$112)*TRANSPOSE(($D119:$E119))),0) -> 0
A120: ="sens"&Assumptions!B117 -> sens | C120: =Assumptions!C117 -> 0 | D120: =Assumptions!G117 -> 0 | E120: =Assumptions!H117 -> 0 | G120: Option 1 (Base Case)sens | I120: =I$110+IF($C120<>0,SUMPRODUCT((I$111:I$112)*TRANSPOSE(($D120:$E120))),0) -> 0 | J120: =J$110+IF($C120<>0,SUMPRODUCT((J$111:J$112)*TRANSPOSE(($D120:$E120))),0) -> 0 | K120: =K$110+IF($C120<>0,SUMPRODUCT((K$111:K$112)*TRANSPOSE(($D120:$E120))),0) -> 0 | L120: =L$110+IF($C120<>0,SUMPRODUCT((L$111:L$112)*TRANSPOSE(($D120:$E120))),0) -> 0 | M120: =M$110+IF($C120<>0,SUMPRODUCT((M$111:M$112)*TRANSPOSE(($D120:$E120))),0) -> 0 | N120: =N$110+IF($C120<>0,SUMPRODUCT((N$111:N$112)*TRANSPOSE(($D120:$E120))),0) -> 0 | O120: =O$110+IF($C120<>0,SUMPRODUCT((O$111:O$112)*TRANSPOSE(($D120:$E120))),0) -> 0 | P120: =P$110+IF($C120<>0,SUMPRODUCT((P$111:P$112)*TRANSPOSE(($D120:$E120))),0) -> 0 | Q120: =Q$110+IF($C120<>0,SUMPRODUCT((Q$111:Q$112)*TRANSPOSE(($D120:$E120))),0) -> 0 | R120: =R$110+IF($C120<>0,SUMPRODUCT((R$111:R$112)*TRANSPOSE(($D120:$E120))),0) -> 0 | S120: =S$110+IF($C120<>0,SUMPRODUCT((S$111:S$112)*TRANSPOSE(($D120:$E120))),0) -> 0 | T120: =T$110+IF($C120<>0,SUMPRODUCT((T$111:T$112)*TRANSPOSE(($D120:$E120))),0) -> 0 | U120: =U$110+IF($C120<>0,SUMPRODUCT((U$111:U$112)*TRANSPOSE(($D120:$E120))),0) -> 0 | V120: =V$110+IF($C120<>0,SUMPRODUCT((V$111:V$112)*TRANSPOSE(($D120:$E120))),0) -> 0 | W120: =W$110+IF($C120<>0,SUMPRODUCT((W$111:W$112)*TRANSPOSE(($D120:$E120))),0) -> 0 | X120: =X$110+IF($C120<>0,SUMPRODUCT((X$111:X$112)*TRANSPOSE(($D120:$E120))),0) -> 0 | Y120: =Y$110+IF($C120<>0,SUMPRODUCT((Y$111:Y$112)*TRANSPOSE(($D120:$E120))),0) -> 0 | Z120: =Z$110+IF($C120<>0,SUMPRODUCT((Z$111:Z$112)*TRANSPOSE(($D120:$E120))),0) -> 0 | AA120: =AA$110+IF($C120<>0,SUMPRODUCT((AA$111:AA$112)*TRANSPOSE(($D120:$E120))),0) -> 0 | AB120: =AB$110+IF($C120<>0,SUMPRODUCT((AB$111:AB$112)*TRANSPOSE(($D120:$E120))),0) -> 0 | AC120: =AC$110+IF($C120<>0,SUMPRODUCT((AC$111:AC$112)*TRANSPOSE(($D120:$E120))),0) -> 0 | AD120: =AD$110+IF($C120<>0,SUMPRODUCT((AD$111:AD$112)*TRANSPOSE(($D120:$E120))),0) -> 0 | AE120: =AE$110+IF($C120<>0,SUMPRODUCT((AE$111:AE$112)*TRANSPOSE(($D120:$E120))),0) -> 0 | AF120: =AF$110+IF($C120<>0,SUMPRODUCT((AF$111:AF$112)*TRANSPOSE(($D120:$E120))),0) -> 0 | AG120: =AG$110+IF($C120<>0,SUMPRODUCT((AG$111:AG$112)*TRANSPOSE(($D120:$E120))),0) -> 0
A121: ="sens"&Assumptions!B118 -> sens | C121: =Assumptions!C118 -> 0 | D121: =Assumptions!G118 -> 0 | E121: =Assumptions!H118 -> 0 | G121: Option 1 (Base Case)sens | I121: =I$110+IF($C121<>0,SUMPRODUCT((I$111:I$112)*TRANSPOSE(($D121:$E121))),0) -> 0 | J121: =J$110+IF($C121<>0,SUMPRODUCT((J$111:J$112)*TRANSPOSE(($D121:$E121))),0) -> 0 | K121: =K$110+IF($C121<>0,SUMPRODUCT((K$111:K$112)*TRANSPOSE(($D121:$E121))),0) -> 0 | L121: =L$110+IF($C121<>0,SUMPRODUCT((L$111:L$112)*TRANSPOSE(($D121:$E121))),0) -> 0 | M121: =M$110+IF($C121<>0,SUMPRODUCT((M$111:M$112)*TRANSPOSE(($D121:$E121))),0) -> 0 | N121: =N$110+IF($C121<>0,SUMPRODUCT((N$111:N$112)*TRANSPOSE(($D121:$E121))),0) -> 0 | O121: =O$110+IF($C121<>0,SUMPRODUCT((O$111:O$112)*TRANSPOSE(($D121:$E121))),0) -> 0 | P121: =P$110+IF($C121<>0,SUMPRODUCT((P$111:P$112)*TRANSPOSE(($D121:$E121))),0) -> 0 | Q121: =Q$110+IF($C121<>0,SUMPRODUCT((Q$111:Q$112)*TRANSPOSE(($D121:$E121))),0) -> 0 | R121: =R$110+IF($C121<>0,SUMPRODUCT((R$111:R$112)*TRANSPOSE(($D121:$E121))),0) -> 0 | S121: =S$110+IF($C121<>0,SUMPRODUCT((S$111:S$112)*TRANSPOSE(($D121:$E121))),0) -> 0 | T121: =T$110+IF($C121<>0,SUMPRODUCT((T$111:T$112)*TRANSPOSE(($D121:$E121))),0) -> 0 | U121: =U$110+IF($C121<>0,SUMPRODUCT((U$111:U$112)*TRANSPOSE(($D121:$E121))),0) -> 0 | V121: =V$110+IF($C121<>0,SUMPRODUCT((V$111:V$112)*TRANSPOSE(($D121:$E121))),0) -> 0 | W121: =W$110+IF($C121<>0,SUMPRODUCT((W$111:W$112)*TRANSPOSE(($D121:$E121))),0) -> 0 | X121: =X$110+IF($C121<>0,SUMPRODUCT((X$111:X$112)*TRANSPOSE(($D121:$E121))),0) -> 0 | Y121: =Y$110+IF($C121<>0,SUMPRODUCT((Y$111:Y$112)*TRANSPOSE(($D121:$E121))),0) -> 0 | Z121: =Z$110+IF($C121<>0,SUMPRODUCT((Z$111:Z$112)*TRANSPOSE(($D121:$E121))),0) -> 0 | AA121: =AA$110+IF($C121<>0,SUMPRODUCT((AA$111:AA$112)*TRANSPOSE(($D121:$E121))),0) -> 0 | AB121: =AB$110+IF($C121<>0,SUMPRODUCT((AB$111:AB$112)*TRANSPOSE(($D121:$E121))),0) -> 0 | AC121: =AC$110+IF($C121<>0,SUMPRODUCT((AC$111:AC$112)*TRANSPOSE(($D121:$E121))),0) -> 0 | AD121: =AD$110+IF($C121<>0,SUMPRODUCT((AD$111:AD$112)*TRANSPOSE(($D121:$E121))),0) -> 0 | AE121: =AE$110+IF($C121<>0,SUMPRODUCT((AE$111:AE$112)*TRANSPOSE(($D121:$E121))),0) -> 0 | AF121: =AF$110+IF($C121<>0,SUMPRODUCT((AF$111:AF$112)*TRANSPOSE(($D121:$E121))),0) -> 0 | AG121: =AG$110+IF($C121<>0,SUMPRODUCT((AG$111:AG$112)*TRANSPOSE(($D121:$E121))),0) -> 0

Sheet Option2
A1: =bus -> Powercor
A2: =proj -> Mount Cottrell feeder 9
A3: OPTION 2 | C3: =INDEX(Assumptions!$E$14:$E$18, MATCH(A3,_xlfn.ANCHORARRAY( Assumptions!$C$14),0)) -> Mount Cottrell feeder 9, construct a new feeder from MTC
A4: =(INDEX(Data!$D$9:$D$13, MATCH(A3, options,0))) -> 
A6: ='Option1 (base case)'!A6 -> Count | I6: ='Option1 (base case)'!I6 -> 1 | J6: ='Option1 (base case)'!J6 -> 2 | K6: ='Option1 (base case)'!K6 -> 3 | L6: ='Option1 (base case)'!L6 -> 4 | M6: ='Option1 (base case)'!M6 -> 5 | N6: ='Option1 (base case)'!N6 -> 6 | O6: ='Option1 (base case)'!O6 -> 7 | P6: ='Option1 (base case)'!P6 -> 8 | Q6: ='Option1 (base case)'!Q6 -> 9 | R6: ='Option1 (base case)'!R6 -> 10 | S6: ='Option1 (base case)'!S6 -> 11 | T6: ='Option1 (base case)'!T6 -> 12 | U6: ='Option1 (base case)'!U6 -> 13 | V6: ='Option1 (base case)'!V6 -> 14 | W6: ='Option1 (base case)'!W6 -> 15 | X6: ='Option1 (base case)'!X6 -> 16 | Y6: ='Option1 (base case)'!Y6 -> 17 | Z6: ='Option1 (base case)'!Z6 -> 18 | AA6: ='Option1 (base case)'!AA6 -> 19 | AB6: ='Option1 (base case)'!AB6 -> 20 | AC6: ='Option1 (base case)'!AC6 -> 21 | AD6: ='Option1 (base case)'!AD6 -> 22 | AE6: ='Option1 (base case)'!AE6 -> 23 | AF6: ='Option1 (base case)'!AF6 -> 24 | AG6: ='Option1 (base case)'!AG6 -> 25
A7: ='Option1 (base case)'!A7 -> Value of CO2 reductions | G7: $/MWh | I7: ='Option1 (base case)'!I7 -> 24.7304868 | J7: ='Option1 (base case)'!J7 -> 22.34074009 | K7: ='Option1 (base case)'!K7 -> 20.19632912 | L7: ='Option1 (base case)'!L7 -> 18.06294208 | M7: ='Option1 (base case)'!M7 -> 15.91339762 | N7: ='Option1 (base case)'!N7 -> 13.71506943 | O7: ='Option1 (base case)'!O7 -> 13.71506943 | P7: ='Option1 (base case)'!P7 -> 13.71506943 | Q7: ='Option1 (base case)'!Q7 -> 13.71506943 | R7: ='Option1 (base case)'!R7 -> 13.71506943 | S7: ='Option1 (base case)'!S7 -> 13.71506943 | T7: ='Option1 (base case)'!T7 -> 13.71506943 | U7: ='Option1 (base case)'!U7 -> 13.71506943 | V7: ='Option1 (base case)'!V7 -> 13.71506943 | W7: ='Option1 (base case)'!W7 -> 13.71506943 | X7: ='Option1 (base case)'!X7 -> 13.71506943 | Y7: ='Option1 (base case)'!Y7 -> 13.71506943 | Z7: ='Option1 (base case)'!Z7 -> 13.71506943 | AA7: ='Option1 (base case)'!AA7 -> 13.71506943 | AB7: ='Option1 (base case)'!AB7 -> 13.71506943 | AC7: ='Option1 (base case)'!AC7 -> 13.71506943 | AD7: ='Option1 (base case)'!AD7 -> 13.71506943 | AE7: ='Option1 (base case)'!AE7 -> 13.71506943 | AF7: ='Option1 (base case)'!AF7 -> 13.71506943 | AG7: ='Option1 (base case)'!AG7 -> 13.71506943
I8: =_xlfn.NUMBERVALUE(LEFT(I$9,4))+1 -> 2027 | J8: =_xlfn.NUMBERVALUE(LEFT(J$9,4))+1 -> 2028 | K8: 2029 | L8: 2030 | M8: 2031 | N8: 2032 | O8: 2033 | P8: 2034 | Q8: 2035 | R8: 2036 | S8: 2037 | T8: 2038 | U8: 2039 | V8: 2040 | W8: 2041 | X8: 2042 | Y8: 2043 | Z8: 2044 | AA8: 2045 | AB8: 2046 | AC8: 2047 | AD8: 2048 | AE8: 2049 | AF8: 2050 | AG8: 2051
G9: Units | I9: ='Option1 (base case)'!I9 -> 2026-27 | J9: ='Option1 (base case)'!J9 -> 2027-28 | K9: ='Option1 (base case)'!K9 -> 2028-29 | L9: ='Option1 (base case)'!L9 -> 2029-30 | M9: ='Option1 (base case)'!M9 -> 2030-31 | N9: ='Option1 (base case)'!N9 -> 2031-32 | O9: ='Option1 (base case)'!O9 -> 2032-33 | P9: ='Option1 (base case)'!P9 -> 2033-34 | Q9: ='Option1 (base case)'!Q9 -> 2034-35 | R9: ='Option1 (base case)'!R9 -> 2035-36 | S9: ='Option1 (base case)'!S9 -> 2036-37 | T9: ='Option1 (base case)'!T9 -> 2037-38 | U9: ='Option1 (base case)'!U9 -> 2038-39 | V9: ='Option1 (base case)'!V9 -> 2039-40 | W9: ='Option1 (base case)'!W9 -> 2040-41 | X9: ='Option1 (base case)'!X9 -> 2041-42 | Y9: ='Option1 (base case)'!Y9 -> 2042-43 | Z9: ='Option1 (base case)'!Z9 -> 2043-44 | AA9: ='Option1 (base case)'!AA9 -> 2044-45 | AB9: ='Option1 (base case)'!AB9 -> 2045-46 | AC9: ='Option1 (base case)'!AC9 -> 2046-47 | AD9: ='Option1 (base case)'!AD9 -> 2047-48 | AE9: ='Option1 (base case)'!AE9 -> 2048-49 | AF9: ='Option1 (base case)'!AF9 -> 2049-50 | AG9: ='Option1 (base case)'!AG9 -> 2050-51
A11: INVESTMENT & OPERATING COST
C13: Capex | E13: Asset life (yrs)
C14: =Assumptions!E15 -> Mount Cottrell feeder 9, construct a new feeder from MTC | E14: 50 | G14: =input_dollars -> 2023-12-31 | I14: =Workings_costs!G17 -> 1637574.96 | J14: 0 | K14: 0 | L14: 0 | M14: 0 | N14: 0 | O14: 0 | P14: 0 | Q14: 0 | R14: 0 | S14: 0 | T14: 0 | U14: 0 | V14: 0 | W14: 0 | X14: 0 | Y14: 0 | Z14: 0 | AA14: 0 | AB14: 0 | AC14: 0 | AD14: 0 | AE14: 0 | AF14: 0 | AG14: 0
E15: 0 | G15: =input_dollars -> 2023-12-31 | I15: 0 | J15: 0 | K15: 0 | L15: 0 | M15: 0 | N15: 0 | O15: 0 | P15: 0 | Q15: 0 | R15: 0 | S15: 0 | T15: 0 | U15: 0 | V15: 0 | W15: 0 | X15: 0 | Y15: 0 | Z15: 0 | AA15: 0 | AB15: 0 | AC15: 0 | AD15: 0 | AE15: 0 | AF15: 0 | AG15: 0
E16: 0 | G16: =input_dollars -> 2023-12-31 | I16: 0 | J16: 0 | K16: 0 | L16: 0 | M16: 0 | N16: 0 | O16: 0 | P16: 0 | Q16: 0 | R16: 0 | S16: 0 | T16: 0 | U16: 0 | V16: 0 | W16: 0 | X16: 0 | Y16: 0 | Z16: 0 | AA16: 0 | AB16: 0 | AC16: 0 | AD16: 0 | AE16: 0 | AF16: 0 | AG16: 0
C17: Capital expenditure | G17: =input_dollars -> 2023-12-31 | I17: =SUM(I14:I16) -> 1637574.96 | J17: 0 | K17: 0 | L17: 0 | M17: 0 | N17: 0 | O17: 0 | P17: 0 | Q17: 0 | R17: =SUM(R14:R16) -> 0 | S17: 0 | T17: 0 | U17: 0 | V17: 0 | W17: 0 | X17: 0 | Y17: 0 | Z17: 0 | AA17: 0 | AB17: 0 | AC17: 0 | AD17: 0 | AE17: 0 | AF17: 0 | AG17: 0
C19: Operating expenditure | G19: =input_dollars -> 2023-12-31 | I19: 0 | J19: 0 | K19: 0 | L19: 0 | M19: 0 | N19: 0 | O19: 0 | P19: 0 | Q19: 0 | R19: 0 | S19: 0 | T19: 0 | U19: 0 | V19: 0 | W19: 0 | X19: 0 | Y19: 0 | Z19: 0 | AA19: 0 | AB19: 0 | AC19: 0 | AD19: 0 | AE19: 0 | AF19: 0 | AG19: 0
A22: RISK ASSUMPTIONS
C24: PoF (major) | I24: 0 | J24: 0 | K24: 0 | L24: 0 | M24: 0 | N24: 0 | O24: 0 | P24: 0 | Q24: 0 | R24: 0 | S24: 0 | T24: 0 | U24: 0 | V24: 0 | W24: 0 | X24: 0 | Y24: 0 | Z24: 0 | AA24: 0 | AB24: 0 | AC24: 0 | AD24: 0 | AE24: 0 | AF24: 0 | AG24: 0
C25: PoF (reparable) | I25: 0 | J25: 0 | K25: 0 | L25: 0 | M25: 0 | N25: 0 | O25: 0 | P25: 0 | Q25: 0 | R25: 0 | S25: 0 | T25: 0 | U25: 0 | V25: 0 | W25: 0 | X25: 0 | Y25: 0 | Z25: 0 | AA25: 0 | AB25: 0 | AC25: 0 | AD25: 0 | AE25: 0 | AF25: 0 | AG25: 0
C27: Const end date | E27: 2027
C28: Energy at risk 10% PoE | E28: 0.3 | G28: MWh | I28: =_xlfn.IFS(I$8<=$E$27,'Option1 (base case)'!I$28,I$8>$E$27,SUM('EaR MLN021'!I$15,'EaR MLN031'!I$15)) -> 299.5002811 | J28: =_xlfn.IFS(J$8<=$E$27,'Option1 (base case)'!J$28,J$8>$E$27,SUM('EaR MLN021'!J$15,'EaR MLN031'!J$15)) -> 0.3590369568 | K28: =_xlfn.IFS(K$8<=$E$27,'Option1 (base case)'!K$28,K$8>$E$27,SUM('EaR MLN021'!K$15,'EaR MLN031'!K$15)) -> 4.139329067 | L28: =_xlfn.IFS(L$8<=$E$27,'Option1 (base case)'!L$28,L$8>$E$27,SUM('EaR MLN021'!L$15,'EaR MLN031'!L$15)) -> 17.11275291 | M28: =_xlfn.IFS(M$8<=$E$27,'Option1 (base case)'!M$28,M$8>$E$27,SUM('EaR MLN021'!M$15,'EaR MLN031'!M$15)) -> 49.31780108 | N28: =_xlfn.IFS(N$8<=$E$27,'Option1 (base case)'!N$28,N$8>$E$27,SUM('EaR MLN021'!N$15,'EaR MLN031'!N$15)) -> 142.3012417 | O28: =_xlfn.IFS(O$8<=$E$27,'Option1 (base case)'!O$28,O$8>$E$27,SUM('EaR MLN021'!O$15,'EaR MLN031'!O$15)) -> 410.9536035 | P28: =_xlfn.IFS(P$8<=$E$27,'Option1 (base case)'!P$28,P$8>$E$27,SUM('EaR MLN021'!P$15,'EaR MLN031'!P$15)) -> 866.285157 | Q28: =_xlfn.IFS(Q$8<=$E$27,'Option1 (base case)'!Q$28,Q$8>$E$27,SUM('EaR MLN021'!Q$15,'EaR MLN031'!Q$15)) -> 1459.789041 | R28: =_xlfn.IFS(R$8<=$E$27,'Option1 (base case)'!R$28,R$8>$E$27,SUM('EaR MLN021'!R$15,'EaR MLN031'!R$15)) -> 1459.789041 | S28: =_xlfn.IFS(S$8<=$E$27,'Option1 (base case)'!S$28,S$8>$E$27,SUM('EaR MLN021'!S$15,'EaR MLN031'!S$15)) -> 1459.789041 | T28: =_xlfn.IFS(T$8<=$E$27,'Option1 (base case)'!T$28,T$8>$E$27,SUM('EaR MLN021'!T$15,'EaR MLN031'!T$15)) -> 1459.789041 | U28: =_xlfn.IFS(U$8<=$E$27,'Option1 (base case)'!U$28,U$8>$E$27,SUM('EaR MLN021'!U$15,'EaR MLN031'!U$15)) -> 1459.789041 | V28: =_xlfn.IFS(V$8<=$E$27,'Option1 (base case)'!V$28,V$8>$E$27,SUM('EaR MLN021'!V$15,'EaR MLN031'!V$15)) -> 1459.789041 | W28: =_xlfn.IFS(W$8<=$E$27,'Option1 (base case)'!W$28,W$8>$E$27,SUM('EaR MLN021'!W$15,'EaR MLN031'!W$15)) -> 1459.789041 | X28: =_xlfn.IFS(X$8<=$E$27,'Option1 (base case)'!X$28,X$8>$E$27,SUM('EaR MLN021'!X$15,'EaR MLN031'!X$15)) -> 1459.789041 | Y28: =_xlfn.IFS(Y$8<=$E$27,'Option1 (base case)'!Y$28,Y$8>$E$27,SUM('EaR MLN021'!Y$15,'EaR MLN031'!Y$15)) -> 1459.789041 | Z28: =_xlfn.IFS(Z$8<=$E$27,'Option1 (base case)'!Z$28,Z$8>$E$27,SUM('EaR MLN021'!Z$15,'EaR MLN031'!Z$15)) -> 1459.789041 | AA28: =_xlfn.IFS(AA$8<=$E$27,'Option1 (base case)'!AA$28,AA$8>$E$27,SUM('EaR MLN021'!AA$15,'EaR MLN031'!AA$15)) -> 1459.789041 | AB28: =_xlfn.IFS(AB$8<=$E$27,'Option1 (base case)'!AB$28,AB$8>$E$27,SUM('EaR MLN021'!AB$15,'EaR MLN031'!AB$15)) -> 1459.789041 | AC28: =_xlfn.IFS(AC$8<=$E$27,'Option1 (base case)'!AC$28,AC$8>$E$27,SUM('EaR MLN021'!AC$15,'EaR MLN031'!AC$15)) -> 1459.789041 | AD28: =_xlfn.IFS(AD$8<=$E$27,'Option1 (base case)'!AD$28,AD$8>$E$27,SUM('EaR MLN021'!AD$15,'EaR MLN031'!AD$15)) -> 1459.789041 | AE28: =_xlfn.IFS(AE$8<=$E$27,'Option1 (base case)'!AE$28,AE$8>$E$27,SUM('EaR MLN021'!AE$15,'EaR MLN031'!AE$15)) -> 1459.789041 | AF28: =_xlfn.IFS(AF$8<=$E$27,'Option1 (base case)'!AF$28,AF$8>$E$27,SUM('EaR MLN021'!AF$15,'EaR MLN031'!AF$15)) -> 1459.789041 | AG28: =AF28 -> 1459.789041
C29: Energy at risk 50% PoE | E29: 0.7 | G29: MWh | I29: =_xlfn.IFS(I$8<=$E$27,'Option1 (base case)'!I$29,I$8>$E$27,SUM('EaR MLN021'!I$14,'EaR MLN031'!I$14)) -> 73.52177885 | J29: =_xlfn.IFS(J$8<=$E$27,'Option1 (base case)'!J$29,J$8>$E$27,SUM('EaR MLN021'!J$14,'EaR MLN031'!J$14)) -> 0 | K29: =_xlfn.IFS(K$8<=$E$27,'Option1 (base case)'!K$29,K$8>$E$27,SUM('EaR MLN021'!K$14,'EaR MLN031'!K$14)) -> 0.0203411999 | L29: =_xlfn.IFS(L$8<=$E$27,'Option1 (base case)'!L$29,L$8>$E$27,SUM('EaR MLN021'!L$14,'EaR MLN031'!L$14)) -> 0.9664252527 | M29: =_xlfn.IFS(M$8<=$E$27,'Option1 (base case)'!M$29,M$8>$E$27,SUM('EaR MLN021'!M$14,'EaR MLN031'!M$14)) -> 6.266262932 | N29: =_xlfn.IFS(N$8<=$E$27,'Option1 (base case)'!N$29,N$8>$E$27,SUM('EaR MLN021'!N$14,'EaR MLN031'!N$14)) -> 24.82376613 | O29: =_xlfn.IFS(O$8<=$E$27,'Option1 (base case)'!O$29,O$8>$E$27,SUM('EaR MLN021'!O$14,'EaR MLN031'!O$14)) -> 68.82974522 | P29: =_xlfn.IFS(P$8<=$E$27,'Option1 (base case)'!P$29,P$8>$E$27,SUM('EaR MLN021'!P$14,'EaR MLN031'!P$14)) -> 144.0463588 | Q29: =_xlfn.IFS(Q$8<=$E$27,'Option1 (base case)'!Q$29,Q$8>$E$27,SUM('EaR MLN021'!Q$14,'EaR MLN031'!Q$14)) -> 271.2521415 | R29: =_xlfn.IFS(R$8<=$E$27,'Option1 (base case)'!R$29,R$8>$E$27,SUM('EaR MLN021'!R$14,'EaR MLN031'!R$14)) -> 271.2521415 | S29: =_xlfn.IFS(S$8<=$E$27,'Option1 (base case)'!S$29,S$8>$E$27,SUM('EaR MLN021'!S$14,'EaR MLN031'!S$14)) -> 271.2521415 | T29: =_xlfn.IFS(T$8<=$E$27,'Option1 (base case)'!T$29,T$8>$E$27,SUM('EaR MLN021'!T$14,'EaR MLN031'!T$14)) -> 271.2521415 | U29: =_xlfn.IFS(U$8<=$E$27,'Option1 (base case)'!U$29,U$8>$E$27,SUM('EaR MLN021'!U$14,'EaR MLN031'!U$14)) -> 271.2521415 | V29: =_xlfn.IFS(V$8<=$E$27,'Option1 (base case)'!V$29,V$8>$E$27,SUM('EaR MLN021'!V$14,'EaR MLN031'!V$14)) -> 271.2521415 | W29: =_xlfn.IFS(W$8<=$E$27,'Option1 (base case)'!W$29,W$8>$E$27,SUM('EaR MLN021'!W$14,'EaR MLN031'!W$14)) -> 271.2521415 | X29: =_xlfn.IFS(X$8<=$E$27,'Option1 (base case)'!X$29,X$8>$E$27,SUM('EaR MLN021'!X$14,'EaR MLN031'!X$14)) -> 271.2521415 | Y29: =_xlfn.IFS(Y$8<=$E$27,'Option1 (base case)'!Y$29,Y$8>$E$27,SUM('EaR MLN021'!Y$14,'EaR MLN031'!Y$14)) -> 271.2521415 | Z29: =_xlfn.IFS(Z$8<=$E$27,'Option1 (base case)'!Z$29,Z$8>$E$27,SUM('EaR MLN021'!Z$14,'EaR MLN031'!Z$14)) -> 271.2521415 | AA29: =_xlfn.IFS(AA$8<=$E$27,'Option1 (base case)'!AA$29,AA$8>$E$27,SUM('EaR MLN021'!AA$14,'EaR MLN031'!AA$14)) -> 271.2521415 | AB29: =_xlfn.IFS(AB$8<=$E$27,'Option1 (base case)'!AB$29,AB$8>$E$27,SUM('EaR MLN021'!AB$14,'EaR MLN031'!AB$14)) -> 271.2521415 | AC29: =_xlfn.IFS(AC$8<=$E$27,'Option1 (base case)'!AC$29,AC$8>$E$27,SUM('EaR MLN021'!AC$14,'EaR MLN031'!AC$14)) -> 271.2521415 | AD29: =_xlfn.IFS(AD$8<=$E$27,'Option1 (base case)'!AD$29,AD$8>$E$27,SUM('EaR MLN021'!AD$14,'EaR MLN031'!AD$14)) -> 271.2521415 | AE29: =_xlfn.IFS(AE$8<=$E$27,'Option1 (base case)'!AE$29,AE$8>$E$27,SUM('EaR MLN021'!AE$14,'EaR MLN031'!AE$14)) -> 271.2521415 | AF29: =_xlfn.IFS(AF$8<=$E$27,'Option1 (base case)'!AF$29,AF$8>$E$27,SUM('EaR MLN021'!AF$14,'EaR MLN031'!AF$14)) -> 271.2521415 | AG29: =AF29 -> 271.2521415
C31: Energy at risk (weighted) | G31: MWh | I31: =SUMPRODUCT(I$28:I$29, $E$28:$E$29) -> 141.3153295 | J31: =SUMPRODUCT(J$28:J$29, $E$28:$E$29) -> 0.107711087 | K31: 1.25603756 | L31: 5.810323551 | M31: 19.18172438 | N31: 60.06700879 | O31: 171.4669027 | P31: 360.7179983 | Q31: 627.8132115 | R31: 627.8132115 | S31: 627.8132115 | T31: 627.8132115 | U31: 627.8132115 | V31: 627.8132115 | W31: 627.8132115 | X31: 627.8132115 | Y31: 627.8132115 | Z31: 627.8132115 | AA31: 627.8132115 | AB31: 627.8132115 | AC31: 627.8132115 | AD31: 627.8132115 | AE31: 627.8132115 | AF31: 627.8132115 | AG31: 627.8132115
C32: Energy at risk value | D32: $/MWh | E32: =Assumptions!H41*vcr_esc -> 43995.26048 | F32: =IF(AND(SUM(I31:AG31)<>0, E32=0), "!", "") ->  | G32: =input_dollars -> 2023-12-31 | I32: =I31*$E$32 -> 6217204.733 | J32: =J31*$E$32 -> 4738.777331 | K32: 55259.69962 | L32: 255626.6981 | M32: 843904.9604 | N32: 2642663.698 | O32: 7543731.048 | P32: 15869882.29 | Q32: 27620805.77 | R32: 27620805.77 | S32: 27620805.77 | T32: 27620805.77 | U32: 27620805.77 | V32: 27620805.77 | W32: 27620805.77 | X32: 27620805.77 | Y32: 27620805.77 | Z32: 27620805.77 | AA32: 27620805.77 | AB32: 27620805.77 | AC32: 27620805.77 | AD32: 27620805.77 | AE32: 27620805.77 | AF32: 27620805.77 | AG32: 27620805.77
C34: Safety consequence | D34: (after DF) | G34: =input_dollars -> 2023-12-31 | I34: 0 | J34: 0 | K34: 0 | L34: 0 | M34: 0 | N34: 0 | O34: 0 | P34: 0 | Q34: 0 | R34: 0 | S34: 0 | T34: 0 | U34: 0 | V34: 0 | W34: 0 | X34: 0 | Y34: 0 | Z34: 0 | AA34: 0 | AB34: 0 | AC34: 0 | AD34: 0 | AE34: 0 | AF34: 0 | AG34: 0
C35: Unplanned replacements | G35: =input_dollars -> 2023-12-31 | I35: 0 | J35: 0 | K35: 0 | L35: 0 | M35: 0 | N35: 0 | O35: 0 | P35: 0 | Q35: 0 | R35: 0 | S35: 0 | T35: 0 | U35: 0 | V35: 0 | W35: 0 | X35: 0 | Y35: 0 | Z35: 0 | AA35: 0 | AB35: 0 | AC35: 0 | AD35: 0 | AE35: 0 | AF35: 0 | AG35: 0
C36: Environmental consequence | D36: (after DF) | G36: =input_dollars -> 2023-12-31 | I36: 0 | J36: 0 | K36: 0 | L36: 0 | M36: 0 | N36: 0 | O36: 0 | P36: 0 | Q36: 0 | R36: 0 | S36: 0 | T36: 0 | U36: 0 | V36: 0 | W36: 0 | X36: 0 | Y36: 0 | Z36: 0 | AA36: 0 | AB36: 0 | AC36: 0 | AD36: 0 | AE36: 0 | AF36: 0 | AG36: 0
C37: < Other risk - enter description > | G37: =input_dollars -> 2023-12-31 | I37: 0 | J37: 0 | K37: 0 | L37: 0 | M37: 0 | N37: 0 | O37: 0 | P37: 0 | Q37: 0 | R37: 0 | S37: 0 | T37: 0 | U37: 0 | V37: 0 | W37: 0 | X37: 0 | Y37: 0 | Z37: 0 | AA37: 0 | AB37: 0 | AC37: 0 | AD37: 0 | AE37: 0 | AF37: 0 | AG37: 0
C38: < Other risk - enter description > | G38: =input_dollars -> 2023-12-31 | I38: 0 | J38: 0 | K38: 0 | L38: 0 | M38: 0 | N38: 0 | O38: 0 | P38: 0 | Q38: 0 | R38: 0 | S38: 0 | T38: 0 | U38: 0 | V38: 0 | W38: 0 | X38: 0 | Y38: 0 | Z38: 0 | AA38: 0 | AB38: 0 | AC38: 0 | AD38: 0 | AE38: 0 | AF38: 0 | AG38: 0
C40: Total risk cost | I40: =SUM(I32:I38) -> 6217204.733 | J40: =SUM(J32:J38) -> 4738.777331 | K40: 55259.69962 | L40: 255626.6981 | M40: 843904.9604 | N40: 2642663.698 | O40: 7543731.048 | P40: 15869882.29 | Q40: 27620805.77 | R40: 27620805.77 | S40: 27620805.77 | T40: 27620805.77 | U40: 27620805.77 | V40: 27620805.77 | W40: 27620805.77 | X40: 27620805.77 | Y40: 27620805.77 | Z40: 27620805.77 | AA40: 27620805.77 | AB40: 27620805.77 | AC40: 27620805.77 | AD40: 27620805.77 | AE40: 27620805.77 | AF40: 27620805.77 | AG40: 27620805.77
A42: OTHER BENEFITS
C45: Reduction in CO2 emissions | G45: MWh | I45: 0 | J45: 0 | K45: 0 | L45: 0 | M45: 0 | N45: 0 | O45: 0 | P45: 0 | Q45: 0 | R45: 0 | S45: 0 | T45: 0 | U45: 0 | V45: 0 | W45: 0 | X45: 0 | Y45: 0 | Z45: 0 | AA45: 0 | AB45: 0 | AC45: 0 | AD45: 0 | AE45: 0 | AF45: 0 | AG45: 0
C46: Value of reduction in CO2 emissions | G46: $ | I46: =I45*I7 -> 0 | J46: 0 | K46: 0 | L46: 0 | M46: 0 | N46: 0 | O46: 0 | P46: 0 | Q46: 0 | R46: 0 | S46: 0 | T46: 0 | U46: 0 | V46: 0 | W46: 0 | X46: 0 | Y46: 0 | Z46: 0 | AA46: 0 | AB46: 0 | AC46: 0 | AD46: 0 | AE46: 0 | AF46: 0 | AG46: 0
C49: Reliability in worst-served areas | D49: $/MWh | E49: =Assumptions!G94 -> 151432.8174 | G49: MWh | I49: 0 | J49: 0 | K49: 0 | L49: 0 | M49: 0 | N49: 0 | O49: 0 | P49: 0 | Q49: 0 | R49: 0 | S49: 0 | T49: 0 | U49: 0 | V49: 0 | W49: 0 | X49: 0 | Y49: 0 | Z49: 0 | AA49: 0 | AB49: 0 | AC49: 0 | AD49: 0 | AE49: 0 | AF49: 0 | AG49: 0
C50: Network resilience | D50: $/MWh | E50: =Assumptions!G95 -> 24590 | G50: MWh | I50: 0 | J50: 0 | K50: 0 | L50: 0 | M50: 0 | N50: 0 | O50: 0 | P50: 0 | Q50: 0 | R50: 0 | S50: 0 | T50: 0 | U50: 0 | V50: 0 | W50: 0 | X50: 0 | Y50: 0 | Z50: 0 | AA50: 0 | AB50: 0 | AC50: 0 | AD50: 0 | AE50: 0 | AF50: 0 | AG50: 0
C51: Enabling solar exports | D51: $/MWh | E51: =Assumptions!G96 -> 88.35771951 | G51: MWh | I51: 0 | J51: 0 | K51: 0 | L51: 0 | M51: 0 | N51: 0 | O51: 0 | P51: 0 | Q51: 0 | R51: 0 | S51: 0 | T51: 0 | U51: 0 | V51: 0 | W51: 0 | X51: 0 | Y51: 0 | Z51: 0 | AA51: 0 | AB51: 0 | AC51: 0 | AD51: 0 | AE51: 0 | AF51: 0 | AG51: 0
C52: Aesthetics | D52: $/customer | E52: =Assumptions!G97 -> 0 | G52: customers | I52: 0 | J52: 0 | K52: 0 | L52: 0 | M52: 0 | N52: 0 | O52: 0 | P52: 0 | Q52: 0 | R52: 0 | S52: 0 | T52: 0 | U52: 0 | V52: 0 | W52: 0 | X52: 0 | Y52: 0 | Z52: 0 | AA52: 0 | AB52: 0 | AC52: 0 | AD52: 0 | AE52: 0 | AF52: 0 | AG52: 0
C53: Customer value of time - residential | D53: $/customer min | E53: =Assumptions!G98 -> 0.3518133654 | G53: mins | I53: 0 | J53: 0 | K53: 0 | L53: 0 | M53: 0 | N53: 0 | O53: 0 | P53: 0 | Q53: 0 | R53: 0 | S53: 0 | T53: 0 | U53: 0 | V53: 0 | W53: 0 | X53: 0 | Y53: 0 | Z53: 0 | AA53: 0 | AB53: 0 | AC53: 0 | AD53: 0 | AE53: 0 | AF53: 0 | AG53: 0
C54: Customer value of time - business | D54: $/customer min | E54: =Assumptions!G99 -> 0.3518133654 | G54: mins | I54: 0 | J54: 0 | K54: 0 | L54: 0 | M54: 0 | N54: 0 | O54: 0 | P54: 0 | Q54: 0 | R54: 0 | S54: 0 | T54: 0 | U54: 0 | V54: 0 | W54: 0 | X54: 0 | Y54: 0 | Z54: 0 | AA54: 0 | AB54: 0 | AC54: 0 | AD54: 0 | AE54: 0 | AF54: 0 | AG54: 0
C55: Communication | D55: $/customer | E55: =Assumptions!G100 -> 0 | G55: customers | I55: 0 | J55: 0 | K55: 0 | L55: 0 | M55: 0 | N55: 0 | O55: 0 | P55: 0 | Q55: 0 | R55: 0 | S55: 0 | T55: 0 | U55: 0 | V55: 0 | W55: 0 | X55: 0 | Y55: 0 | Z55: 0 | AA55: 0 | AB55: 0 | AC55: 0 | AD55: 0 | AE55: 0 | AF55: 0 | AG55: 0
C56: Information accessibility | D56: $/customer | E56: =Assumptions!G101 -> 0 | G56: customers | I56: 0 | J56: 0 | K56: 0 | L56: 0 | M56: 0 | N56: 0 | O56: 0 | P56: 0 | Q56: 0 | R56: 0 | S56: 0 | T56: 0 | U56: 0 | V56: 0 | W56: 0 | X56: 0 | Y56: 0 | Z56: 0 | AA56: 0 | AB56: 0 | AC56: 0 | AD56: 0 | AE56: 0 | AF56: 0 | AG56: 0
C58: Other benefits 1 | G58: =input_dollars -> 2023-12-31 | I58: 0 | J58: 0 | K58: 0 | L58: 0 | M58: 0 | N58: 0 | O58: 0 | P58: 0 | Q58: 0 | R58: 0 | S58: 0 | T58: 0 | U58: 0 | V58: 0 | W58: 0 | X58: 0 | Y58: 0 | Z58: 0 | AA58: 0 | AB58: 0 | AC58: 0 | AD58: 0 | AE58: 0 | AF58: 0 | AG58: 0
C59: Other benefits 2 | G59: =input_dollars -> 2023-12-31 | I59: 0 | J59: 0 | K59: 0 | L59: 0 | M59: 0 | N59: 0 | O59: 0 | P59: 0 | Q59: 0 | R59: 0 | S59: 0 | T59: 0 | U59: 0 | V59: 0 | W59: 0 | X59: 0 | Y59: 0 | Z59: 0 | AA59: 0 | AB59: 0 | AC59: 0 | AD59: 0 | AE59: 0 | AF59: 0 | AG59: 0
C61: Total other benefits | G61: =input_dollars -> 2023-12-31 | I61: =SUMPRODUCT((I$49:I$56)*($E$49:$E$56))+SUM(I58:I59)+I46 -> 0 | J61: =SUMPRODUCT((J$49:J$56)*($E$49:$E$56))+SUM(J58:J59)+J46 -> 0 | K61: =SUMPRODUCT((K$49:K$56)*($E$49:$E$56))+SUM(K58:K59)+K46 -> 0 | L61: =SUMPRODUCT((L$49:L$56)*($E$49:$E$56))+SUM(L58:L59)+L46 -> 0 | M61: =SUMPRODUCT((M$49:M$56)*($E$49:$E$56))+SUM(M58:M59)+M46 -> 0 | N61: =SUMPRODUCT((N$49:N$56)*($E$49:$E$56))+SUM(N58:N59)+N46 -> 0 | O61: =SUMPRODUCT((O$49:O$56)*($E$49:$E$56))+SUM(O58:O59)+O46 -> 0 | P61: =SUMPRODUCT((P$49:P$56)*($E$49:$E$56))+SUM(P58:P59)+P46 -> 0 | Q61: =SUMPRODUCT((Q$49:Q$56)*($E$49:$E$56))+SUM(Q58:Q59)+Q46 -> 0 | R61: =SUMPRODUCT((R$49:R$56)*($E$49:$E$56))+SUM(R58:R59)+R46 -> 0 | S61: =SUMPRODUCT((S$49:S$56)*($E$49:$E$56))+SUM(S58:S59)+S46 -> 0 | T61: =SUMPRODUCT((T$49:T$56)*($E$49:$E$56))+SUM(T58:T59)+T46 -> 0 | U61: =SUMPRODUCT((U$49:U$56)*($E$49:$E$56))+SUM(U58:U59)+U46 -> 0 | V61: =SUMPRODUCT((V$49:V$56)*($E$49:$E$56))+SUM(V58:V59)+V46 -> 0 | W61: =SUMPRODUCT((W$49:W$56)*($E$49:$E$56))+SUM(W58:W59)+W46 -> 0 | X61: =SUMPRODUCT((X$49:X$56)*($E$49:$E$56))+SUM(X58:X59)+X46 -> 0 | Y61: =SUMPRODUCT((Y$49:Y$56)*($E$49:$E$56))+SUM(Y58:Y59)+Y46 -> 0 | Z61: =SUMPRODUCT((Z$49:Z$56)*($E$49:$E$56))+SUM(Z58:Z59)+Z46 -> 0 | AA61: =SUMPRODUCT((AA$49:AA$56)*($E$49:$E$56))+SUM(AA58:AA59)+AA46 -> 0 | AB61: =SUMPRODUCT((AB$49:AB$56)*($E$49:$E$56))+SUM(AB58:AB59)+AB46 -> 0 | AC61: =SUMPRODUCT((AC$49:AC$56)*($E$49:$E$56))+SUM(AC58:AC59)+AC46 -> 0 | AD61: =SUMPRODUCT((AD$49:AD$56)*($E$49:$E$56))+SUM(AD58:AD59)+AD46 -> 0 | AE61: =SUMPRODUCT((AE$49:AE$56)*($E$49:$E$56))+SUM(AE58:AE59)+AE46 -> 0 | AF61: =SUMPRODUCT((AF$49:AF$56)*($E$49:$E$56))+SUM(AF58:AF59)+AF46 -> 0 | AG61: =SUMPRODUCT((AG$49:AG$56)*($E$49:$E$56))+SUM(AG58:AG59)+AG46 -> 0
A64: SUMMARY
C68: ='Option1 (base case)'!C68 -> Risks mitigated vs base case | G68: =input_dollars -> 2023-12-31 | I68: =(1-INDEX(Data!$C$9:$C$13, MATCH($A$3, options,0)))*('Option1 (base case)'!I40-I40) -> 0 | J68: =(1-INDEX(Data!$C$9:$C$13, MATCH($A$3, options,0)))*('Option1 (base case)'!J40-J40) -> 12509188.64 | K68: =(1-INDEX(Data!$C$9:$C$13, MATCH($A$3, options,0)))*('Option1 (base case)'!K40-K40) -> 24513381.53 | L68: =(1-INDEX(Data!$C$9:$C$13, MATCH($A$3, options,0)))*('Option1 (base case)'!L40-L40) -> 41684721.9 | M68: =(1-INDEX(Data!$C$9:$C$13, MATCH($A$3, options,0)))*('Option1 (base case)'!M40-M40) -> 67694815.09 | N68: =(1-INDEX(Data!$C$9:$C$13, MATCH($A$3, options,0)))*('Option1 (base case)'!N40-N40) -> 107779193.7 | O68: =(1-INDEX(Data!$C$9:$C$13, MATCH($A$3, options,0)))*('Option1 (base case)'!O40-O40) -> 159886622.8 | P68: =(1-INDEX(Data!$C$9:$C$13, MATCH($A$3, options,0)))*('Option1 (base case)'!P40-P40) -> 212113763.5 | Q68: =(1-INDEX(Data!$C$9:$C$13, MATCH($A$3, options,0)))*('Option1 (base case)'!Q40-Q40) -> 260242402.1 | R68: =(1-INDEX(Data!$C$9:$C$13, MATCH($A$3, options,0)))*('Option1 (base case)'!R40-R40) -> 260242402.1 | S68: =(1-INDEX(Data!$C$9:$C$13, MATCH($A$3, options,0)))*('Option1 (base case)'!S40-S40) -> 260242402.1 | T68: =(1-INDEX(Data!$C$9:$C$13, MATCH($A$3, options,0)))*('Option1 (base case)'!T40-T40) -> 260242402.1 | U68: =(1-INDEX(Data!$C$9:$C$13, MATCH($A$3, options,0)))*('Option1 (base case)'!U40-U40) -> 260242402.1 | V68: =(1-INDEX(Data!$C$9:$C$13, MATCH($A$3, options,0)))*('Option1 (base case)'!V40-V40) -> 260242402.1 | W68: =(1-INDEX(Data!$C$9:$C$13, MATCH($A$3, options,0)))*('Option1 (base case)'!W40-W40) -> 260242402.1 | X68: =(1-INDEX(Data!$C$9:$C$13, MATCH($A$3, options,0)))*('Option1 (base case)'!X40-X40) -> 260242402.1 | Y68: =(1-INDEX(Data!$C$9:$C$13, MATCH($A$3, options,0)))*('Option1 (base case)'!Y40-Y40) -> 260242402.1 | Z68: =(1-INDEX(Data!$C$9:$C$13, MATCH($A$3, options,0)))*('Option1 (base case)'!Z40-Z40) -> 260242402.1 | AA68: =(1-INDEX(Data!$C$9:$C$13, MATCH($A$3, options,0)))*('Option1 (base case)'!AA40-AA40) -> 260242402.1 | AB68: =(1-INDEX(Data!$C$9:$C$13, MATCH($A$3, options,0)))*('Option1 (base case)'!AB40-AB40) -> 260242402.1 | AC68: =(1-INDEX(Data!$C$9:$C$13, MATCH($A$3, options,0)))*('Option1 (base case)'!AC40-AC40) -> 260242402.1 | AD68: =(1-INDEX(Data!$C$9:$C$13, MATCH($A$3, options,0)))*('Option1 (base case)'!AD40-AD40) -> 260242402.1 | AE68: =(1-INDEX(Data!$C$9:$C$13, MATCH($A$3, options,0)))*('Option1 (base case)'!AE40-AE40) -> 260242402.1 | AF68: =(1-INDEX(Data!$C$9:$C$13, MATCH($A$3, options,0)))*('Option1 (base case)'!AF40-AF40) -> 260242402.1 | AG68: =(1-INDEX(Data!$C$9:$C$13, MATCH($A$3, options,0)))*('Option1 (base case)'!AG40-AG40) -> 260242402.1
C70: Capital expenditure
C71: =C14 -> Mount Cottrell feeder 9, construct a new feeder from MTC | G71: =input_dollars -> 2023-12-31 | I71: =-I14 -> -1637574.96 | J71: 0 | K71: 0 | L71: 0 | M71: 0 | N71: 0 | O71: 0 | P71: 0 | Q71: 0 | R71: 0 | S71: 0 | T71: 0 | U71: 0 | V71: 0 | W71: 0 | X71: 0 | Y71: 0 | Z71: 0 | AA71: 0 | AB71: 0 | AC71: 0 | AD71: 0 | AE71: 0 | AF71: 0 | AG71: 0
C72: =C15 -> 0 | G72: =input_dollars -> 2023-12-31 | I72: =-I15 -> 0 | J72: 0 | K72: 0 | L72: 0 | M72: 0 | N72: 0 | O72: 0 | P72: 0 | Q72: 0 | R72: 0 | S72: 0 | T72: 0 | U72: 0 | V72: 0 | W72: 0 | X72: 0 | Y72: 0 | Z72: 0 | AA72: 0 | AB72: 0 | AC72: 0 | AD72: 0 | AE72: 0 | AF72: 0 | AG72: 0
C73: =C16 -> 0 | G73: =input_dollars -> 2023-12-31 | I73: =-I16 -> 0 | J73: 0 | K73: 0 | L73: 0 | M73: 0 | N73: 0 | O73: 0 | P73: 0 | Q73: 0 | R73: 0 | S73: 0 | T73: 0 | U73: 0 | V73: 0 | W73: 0 | X73: 0 | Y73: 0 | Z73: 0 | AA73: 0 | AB73: 0 | AC73: 0 | AD73: 0 | AE73: 0 | AF73: 0 | AG73: 0
C75: Cumulative capex
C76: =C14 -> Mount Cottrell feeder 9, construct a new feeder from MTC | G76: =input_dollars -> 2023-12-31 | I76: =SUMPRODUCT(($I71:I71))-SUMPRODUCT(($I71:I71)*($I$6:I$6<=(I$6-$E14))) -> -1637574.96 | J76: =SUMPRODUCT(($I71:J71))-SUMPRODUCT(($I71:J71)*($I$6:J$6<=(J$6-$E14))) -> -1637574.96 | K76: =SUMPRODUCT(($I71:K71))-SUMPRODUCT(($I71:K71)*($I$6:K$6<=(K$6-$E14))) -> -1637574.96 | L76: =SUMPRODUCT(($I71:L71))-SUMPRODUCT(($I71:L71)*($I$6:L$6<=(L$6-$E14))) -> -1637574.96 | M76: =SUMPRODUCT(($I71:M71))-SUMPRODUCT(($I71:M71)*($I$6:M$6<=(M$6-$E14))) -> -1637574.96 | N76: =SUMPRODUCT(($I71:N71))-SUMPRODUCT(($I71:N71)*($I$6:N$6<=(N$6-$E14))) -> -1637574.96 | O76: =SUMPRODUCT(($I71:O71))-SUMPRODUCT(($I71:O71)*($I$6:O$6<=(O$6-$E14))) -> -1637574.96 | P76: =SUMPRODUCT(($I71:P71))-SUMPRODUCT(($I71:P71)*($I$6:P$6<=(P$6-$E14))) -> -1637574.96 | Q76: =SUMPRODUCT(($I71:Q71))-SUMPRODUCT(($I71:Q71)*($I$6:Q$6<=(Q$6-$E14))) -> -1637574.96 | R76: =SUMPRODUCT(($I71:R71))-SUMPRODUCT(($I71:R71)*($I$6:R$6<=(R$6-$E14))) -> -1637574.96 | S76: =SUMPRODUCT(($I71:S71))-SUMPRODUCT(($I71:S71)*($I$6:S$6<=(S$6-$E14))) -> -1637574.96 | T76: =SUMPRODUCT(($I71:T71))-SUMPRODUCT(($I71:T71)*($I$6:T$6<=(T$6-$E14))) -> -1637574.96 | U76: =SUMPRODUCT(($I71:U71))-SUMPRODUCT(($I71:U71)*($I$6:U$6<=(U$6-$E14))) -> -1637574.96 | V76: =SUMPRODUCT(($I71:V71))-SUMPRODUCT(($I71:V71)*($I$6:V$6<=(V$6-$E14))) -> -1637574.96 | W76: =SUMPRODUCT(($I71:W71))-SUMPRODUCT(($I71:W71)*($I$6:W$6<=(W$6-$E14))) -> -1637574.96 | X76: =SUMPRODUCT(($I71:X71))-SUMPRODUCT(($I71:X71)*($I$6:X$6<=(X$6-$E14))) -> -1637574.96 | Y76: =SUMPRODUCT(($I71:Y71))-SUMPRODUCT(($I71:Y71)*($I$6:Y$6<=(Y$6-$E14))) -> -1637574.96 | Z76: =SUMPRODUCT(($I71:Z71))-SUMPRODUCT(($I71:Z71)*($I$6:Z$6<=(Z$6-$E14))) -> -1637574.96 | AA76: =SUMPRODUCT(($I71:AA71))-SUMPRODUCT(($I71:AA71)*($I$6:AA$6<=(AA$6-$E14))) -> -1637574.96 | AB76: =SUMPRODUCT(($I71:AB71))-SUMPRODUCT(($I71:AB71)*($I$6:AB$6<=(AB$6-$E14))) -> -1637574.96 | AC76: =SUMPRODUCT(($I71:AC71))-SUMPRODUCT(($I71:AC71)*($I$6:AC$6<=(AC$6-$E14))) -> -1637574.96 | AD76: =SUMPRODUCT(($I71:AD71))-SUMPRODUCT(($I71:AD71)*($I$6:AD$6<=(AD$6-$E14))) -> -1637574.96 | AE76: =SUMPRODUCT(($I71:AE71))-SUMPRODUCT(($I71:AE71)*($I$6:AE$6<=(AE$6-$E14))) -> -1637574.96 | AF76: =SUMPRODUCT(($I71:AF71))-SUMPRODUCT(($I71:AF71)*($I$6:AF$6<=(AF$6-$E14))) -> -1637574.96 | AG76: =SUMPRODUCT(($I71:AG71))-SUMPRODUCT(($I71:AG71)*($I$6:AG$6<=(AG$6-$E14))) -> -1637574.96
C77: =C15 -> 0 | G77: =input_dollars -> 2023-12-31 | I77: =SUMPRODUCT(($I72:I72))-SUMPRODUCT(($I72:I72)*($I$6:I$6<=(I$6-$E15))) -> 0 | J77: =SUMPRODUCT(($I72:J72))-SUMPRODUCT(($I72:J72)*($I$6:J$6<=(J$6-$E15))) -> 0 | K77: =SUMPRODUCT(($I72:K72))-SUMPRODUCT(($I72:K72)*($I$6:K$6<=(K$6-$E15))) -> 0 | L77: =SUMPRODUCT(($I72:L72))-SUMPRODUCT(($I72:L72)*($I$6:L$6<=(L$6-$E15))) -> 0 | M77: =SUMPRODUCT(($I72:M72))-SUMPRODUCT(($I72:M72)*($I$6:M$6<=(M$6-$E15))) -> 0 | N77: =SUMPRODUCT(($I72:N72))-SUMPRODUCT(($I72:N72)*($I$6:N$6<=(N$6-$E15))) -> 0 | O77: =SUMPRODUCT(($I72:O72))-SUMPRODUCT(($I72:O72)*($I$6:O$6<=(O$6-$E15))) -> 0 | P77: =SUMPRODUCT(($I72:P72))-SUMPRODUCT(($I72:P72)*($I$6:P$6<=(P$6-$E15))) -> 0 | Q77: =SUMPRODUCT(($I72:Q72))-SUMPRODUCT(($I72:Q72)*($I$6:Q$6<=(Q$6-$E15))) -> 0 | R77: =SUMPRODUCT(($I72:R72))-SUMPRODUCT(($I72:R72)*($I$6:R$6<=(R$6-$E15))) -> 0 | S77: =SUMPRODUCT(($I72:S72))-SUMPRODUCT(($I72:S72)*($I$6:S$6<=(S$6-$E15))) -> 0 | T77: =SUMPRODUCT(($I72:T72))-SUMPRODUCT(($I72:T72)*($I$6:T$6<=(T$6-$E15))) -> 0 | U77: =SUMPRODUCT(($I72:U72))-SUMPRODUCT(($I72:U72)*($I$6:U$6<=(U$6-$E15))) -> 0 | V77: =SUMPRODUCT(($I72:V72))-SUMPRODUCT(($I72:V72)*($I$6:V$6<=(V$6-$E15))) -> 0 | W77: =SUMPRODUCT(($I72:W72))-SUMPRODUCT(($I72:W72)*($I$6:W$6<=(W$6-$E15))) -> 0 | X77: =SUMPRODUCT(($I72:X72))-SUMPRODUCT(($I72:X72)*($I$6:X$6<=(X$6-$E15))) -> 0 | Y77: =SUMPRODUCT(($I72:Y72))-SUMPRODUCT(($I72:Y72)*($I$6:Y$6<=(Y$6-$E15))) -> 0 | Z77: =SUMPRODUCT(($I72:Z72))-SUMPRODUCT(($I72:Z72)*($I$6:Z$6<=(Z$6-$E15))) -> 0 | AA77: =SUMPRODUCT(($I72:AA72))-SUMPRODUCT(($I72:AA72)*($I$6:AA$6<=(AA$6-$E15))) -> 0 | AB77: =SUMPRODUCT(($I72:AB72))-SUMPRODUCT(($I72:AB72)*($I$6:AB$6<=(AB$6-$E15))) -> 0 | AC77: =SUMPRODUCT(($I72:AC72))-SUMPRODUCT(($I72:AC72)*($I$6:AC$6<=(AC$6-$E15))) -> 0 | AD77: =SUMPRODUCT(($I72:AD72))-SUMPRODUCT(($I72:AD72)*($I$6:AD$6<=(AD$6-$E15))) -> 0 | AE77: =SUMPRODUCT(($I72:AE72))-SUMPRODUCT(($I72:AE72)*($I$6:AE$6<=(AE$6-$E15))) -> 0 | AF77: =SUMPRODUCT(($I72:AF72))-SUMPRODUCT(($I72:AF72)*($I$6:AF$6<=(AF$6-$E15))) -> 0 | AG77: =SUMPRODUCT(($I72:AG72))-SUMPRODUCT(($I72:AG72)*($I$6:AG$6<=(AG$6-$E15))) -> 0
C78: =C16 -> 0 | G78: =input_dollars -> 2023-12-31 | I78: =SUMPRODUCT(($I73:I73))-SUMPRODUCT(($I73:I73)*($I$6:I$6<=(I$6-$E16))) -> 0 | J78: =SUMPRODUCT(($I73:J73))-SUMPRODUCT(($I73:J73)*($I$6:J$6<=(J$6-$E16))) -> 0 | K78: =SUMPRODUCT(($I73:K73))-SUMPRODUCT(($I73:K73)*($I$6:K$6<=(K$6-$E16))) -> 0 | L78: =SUMPRODUCT(($I73:L73))-SUMPRODUCT(($I73:L73)*($I$6:L$6<=(L$6-$E16))) -> 0 | M78: =SUMPRODUCT(($I73:M73))-SUMPRODUCT(($I73:M73)*($I$6:M$6<=(M$6-$E16))) -> 0 | N78: =SUMPRODUCT(($I73:N73))-SUMPRODUCT(($I73:N73)*($I$6:N$6<=(N$6-$E16))) -> 0 | O78: =SUMPRODUCT(($I73:O73))-SUMPRODUCT(($I73:O73)*($I$6:O$6<=(O$6-$E16))) -> 0 | P78: =SUMPRODUCT(($I73:P73))-SUMPRODUCT(($I73:P73)*($I$6:P$6<=(P$6-$E16))) -> 0 | Q78: =SUMPRODUCT(($I73:Q73))-SUMPRODUCT(($I73:Q73)*($I$6:Q$6<=(Q$6-$E16))) -> 0 | R78: =SUMPRODUCT(($I73:R73))-SUMPRODUCT(($I73:R73)*($I$6:R$6<=(R$6-$E16))) -> 0 | S78: =SUMPRODUCT(($I73:S73))-SUMPRODUCT(($I73:S73)*($I$6:S$6<=(S$6-$E16))) -> 0 | T78: =SUMPRODUCT(($I73:T73))-SUMPRODUCT(($I73:T73)*($I$6:T$6<=(T$6-$E16))) -> 0 | U78: =SUMPRODUCT(($I73:U73))-SUMPRODUCT(($I73:U73)*($I$6:U$6<=(U$6-$E16))) -> 0 | V78: =SUMPRODUCT(($I73:V73))-SUMPRODUCT(($I73:V73)*($I$6:V$6<=(V$6-$E16))) -> 0 | W78: =SUMPRODUCT(($I73:W73))-SUMPRODUCT(($I73:W73)*($I$6:W$6<=(W$6-$E16))) -> 0 | X78: =SUMPRODUCT(($I73:X73))-SUMPRODUCT(($I73:X73)*($I$6:X$6<=(X$6-$E16))) -> 0 | Y78: =SUMPRODUCT(($I73:Y73))-SUMPRODUCT(($I73:Y73)*($I$6:Y$6<=(Y$6-$E16))) -> 0 | Z78: =SUMPRODUCT(($I73:Z73))-SUMPRODUCT(($I73:Z73)*($I$6:Z$6<=(Z$6-$E16))) -> 0 | AA78: =SUMPRODUCT(($I73:AA73))-SUMPRODUCT(($I73:AA73)*($I$6:AA$6<=(AA$6-$E16))) -> 0 | AB78: =SUMPRODUCT(($I73:AB73))-SUMPRODUCT(($I73:AB73)*($I$6:AB$6<=(AB$6-$E16))) -> 0 | AC78: =SUMPRODUCT(($I73:AC73))-SUMPRODUCT(($I73:AC73)*($I$6:AC$6<=(AC$6-$E16))) -> 0 | AD78: =SUMPRODUCT(($I73:AD73))-SUMPRODUCT(($I73:AD73)*($I$6:AD$6<=(AD$6-$E16))) -> 0 | AE78: =SUMPRODUCT(($I73:AE73))-SUMPRODUCT(($I73:AE73)*($I$6:AE$6<=(AE$6-$E16))) -> 0 | AF78: =SUMPRODUCT(($I73:AF73))-SUMPRODUCT(($I73:AF73)*($I$6:AF$6<=(AF$6-$E16))) -> 0 | AG78: =SUMPRODUCT(($I73:AG73))-SUMPRODUCT(($I73:AG73)*($I$6:AG$6<=(AG$6-$E16))) -> 0
C80: Annualised capex
C81: =$C$80&" - "&C14 -> Annualised capex - Mount Cottrell feeder 9, construct a new feeder from MTC | G81: =input_dollars -> 2023-12-31 | I81: =IF($E14=0,0,-PMT(real_disc, $E14,H76,)) -> 0 | J81: -69815.89524 | K81: -69815.89524 | L81: -69815.89524 | M81: -69815.89524 | N81: -69815.89524 | O81: -69815.89524 | P81: -69815.89524 | Q81: -69815.89524 | R81: -69815.89524 | S81: -69815.89524 | T81: -69815.89524 | U81: -69815.89524 | V81: -69815.89524 | W81: -69815.89524 | X81: -69815.89524 | Y81: -69815.89524 | Z81: -69815.89524 | AA81: -69815.89524 | AB81: -69815.89524 | AC81: -69815.89524 | AD81: -69815.89524 | AE81: -69815.89524 | AF81: -69815.89524 | AG81: -69815.89524
C82: =$C$80&" - "&C15 -> Annualised capex - | G82: =input_dollars -> 2023-12-31 | I82: =IF($E15=0,0,-PMT(real_disc, $E15,H77,)) -> 0 | J82: 0 | K82: 0 | L82: 0 | M82: 0 | N82: 0 | O82: 0 | P82: 0 | Q82: 0 | R82: 0 | S82: 0 | T82: 0 | U82: 0 | V82: 0 | W82: 0 | X82: 0 | Y82: 0 | Z82: 0 | AA82: 0 | AB82: 0 | AC82: 0 | AD82: 0 | AE82: 0 | AF82: 0 | AG82: 0
C83: =$C$80&" - "&C16 -> Annualised capex - | G83: =input_dollars -> 2023-12-31 | I83: =IF($E16=0,0,-PMT(real_disc, $E16,H78,)) -> 0 | J83: 0 | K83: 0 | L83: 0 | M83: 0 | N83: 0 | O83: 0 | P83: 0 | Q83: 0 | R83: 0 | S83: 0 | T83: 0 | U83: 0 | V83: 0 | W83: 0 | X83: 0 | Y83: 0 | Z83: 0 | AA83: 0 | AB83: 0 | AC83: 0 | AD83: 0 | AE83: 0 | AF83: 0 | AG83: 0
C84: Total annualised capex | G84: =input_dollars -> 2023-12-31 | I84: =SUM(I81:I83) -> 0 | J84: =SUM(J81:J83) -> -69815.89524 | K84: -69815.89524 | L84: -69815.89524 | M84: -69815.89524 | N84: -69815.89524 | O84: -69815.89524 | P84: -69815.89524 | Q84: -69815.89524 | R84: -69815.89524 | S84: -69815.89524 | T84: -69815.89524 | U84: -69815.89524 | V84: -69815.89524 | W84: -69815.89524 | X84: -69815.89524 | Y84: -69815.89524 | Z84: -69815.89524 | AA84: -69815.89524 | AB84: -69815.89524 | AC84: =SUM(AC81:AC83) -> -69815.89524 | AD84: =SUM(AD81:AD83) -> -69815.89524 | AE84: =SUM(AE81:AE83) -> -69815.89524 | AF84: =SUM(AF81:AF83) -> -69815.89524 | AG84: =SUM(AG81:AG83) -> -69815.89524
C86: Annualised capex | G86: =input_dollars -> 2023-12-31 | I86: =I84 -> 0 | J86: =J84 -> -69815.89524 | K86: -69815.89524 | L86: -69815.89524 | M86: -69815.89524 | N86: -69815.89524 | O86: -69815.89524 | P86: -69815.89524 | Q86: -69815.89524 | R86: -69815.89524 | S86: -69815.89524 | T86: -69815.89524 | U86: -69815.89524 | V86: -69815.89524 | W86: -69815.89524 | X86: -69815.89524 | Y86: -69815.89524 | Z86: -69815.89524 | AA86: -69815.89524 | AB86: -69815.89524 | AC86: =AC84 -> -69815.89524 | AD86: =AD84 -> -69815.89524 | AE86: =AE84 -> -69815.89524 | AF86: =AF84 -> -69815.89524 | AG86: =AG84 -> -69815.89524
C87: Operating expenditure | G87: 2023-12-31 | I87: =-I19 -> 0 | J87: 0 | K87: 0 | L87: 0 | M87: 0 | N87: 0 | O87: 0 | P87: 0 | Q87: 0 | R87: 0 | S87: 0 | T87: 0 | U87: 0 | V87: 0 | W87: 0 | X87: 0 | Y87: 0 | Z87: 0 | AA87: 0 | AB87: 0 | AC87: 0 | AD87: 0 | AE87: 0 | AF87: 0 | AG87: 0
C88: Risk mitigated | G88: 2023-12-31 | I88: =I68 -> 0 | J88: =J68 -> 12509188.64 | K88: 24513381.53 | L88: 41684721.9 | M88: 67694815.09 | N88: 107779193.7 | O88: 159886622.8 | P88: 212113763.5 | Q88: 260242402.1 | R88: 260242402.1 | S88: 260242402.1 | T88: 260242402.1 | U88: 260242402.1 | V88: 260242402.1 | W88: 260242402.1 | X88: 260242402.1 | Y88: 260242402.1 | Z88: 260242402.1 | AA88: 260242402.1 | AB88: 260242402.1 | AC88: =AC68 -> 260242402.1 | AD88: =AD68 -> 260242402.1 | AE88: =AE68 -> 260242402.1 | AF88: =AF68 -> 260242402.1 | AG88: =AG68 -> 260242402.1
C89: Other benefits value | G89: 2023-12-31 | I89: =I61 -> 0 | J89: 0 | K89: 0 | L89: 0 | M89: 0 | N89: 0 | O89: 0 | P89: 0 | Q89: 0 | R89: 0 | S89: 0 | T89: 0 | U89: 0 | V89: 0 | W89: 0 | X89: 0 | Y89: 0 | Z89: 0 | AA89: 0 | AB89: 0 | AC89: 0 | AD89: 0 | AE89: 0 | AF89: 0 | AG89: 0
C91: Net benefits | G91: 2023-12-31 | I91: =SUM(I86:I90) -> 0 | J91: 12439372.74 | K91: 24443565.63 | L91: 41614906 | M91: 67624999.19 | N91: 107709377.8 | O91: 159816806.9 | P91: 212043947.6 | Q91: 260172586.2 | R91: 260172586.2 | S91: 260172586.2 | T91: 260172586.2 | U91: 260172586.2 | V91: 260172586.2 | W91: 260172586.2 | X91: 260172586.2 | Y91: 260172586.2 | Z91: 260172586.2 | AA91: 260172586.2 | AB91: 260172586.2 | AC91: =SUM(AC86:AC90) -> 260172586.2 | AD91: =SUM(AD86:AD90) -> 260172586.2 | AE91: =SUM(AE86:AE90) -> 260172586.2 | AF91: =SUM(AF86:AF90) -> 260172586.2 | AG91: =SUM(AG86:AG90) -> 260172586.2
C94: First capex year | G94: =IF(SUM($I17:$AG17)=0,0,(INDEX(I$6:AG$6,MATCH(TRUE,INDEX($I17:$AG17<>0,),0)))) -> 1
C96: First year | G96: =IF(_xlfn.MINIFS($G$94:$G$95, $G$94:$G$95, ">"&0)=0, $A$4, _xlfn.MINIFS($G$94:$G$95, $G$94:$G$95, ">"&0)) -> 1
A106: SENSITIVITIES
A110: NPV | C110: Net benefits | G110: =PROPER($A$3)&A110 -> Option 2NPV | I110: =I91 -> 0 | J110: =J91 -> 12439372.74 | K110: 24443565.63 | L110: 41614906 | M110: 67624999.19 | N110: 107709377.8 | O110: 159816806.9 | P110: 212043947.6 | Q110: 260172586.2 | R110: 260172586.2 | S110: 260172586.2 | T110: 260172586.2 | U110: 260172586.2 | V110: 260172586.2 | W110: 260172586.2 | X110: 260172586.2 | Y110: 260172586.2 | Z110: 260172586.2 | AA110: 260172586.2 | AB110: 260172586.2 | AC110: 260172586.2 | AD110: 260172586.2 | AE110: 260172586.2 | AF110: 260172586.2 | AG110: 260172586.2
C111: Total annualised capex | I111: =I86 -> 0 | J111: =J86 -> -69815.89524 | K111: -69815.89524 | L111: -69815.89524 | M111: -69815.89524 | N111: -69815.89524 | O111: -69815.89524 | P111: -69815.89524 | Q111: -69815.89524 | R111: -69815.89524 | S111: -69815.89524 | T111: -69815.89524 | U111: -69815.89524 | V111: -69815.89524 | W111: -69815.89524 | X111: -69815.89524 | Y111: -69815.89524 | Z111: -69815.89524 | AA111: -69815.89524 | AB111: -69815.89524 | AC111: -69815.89524 | AD111: -69815.89524 | AE111: -69815.89524 | AF111: -69815.89524 | AG111: -69815.89524
C112: Total benefits | I112: =SUM(I88:I89) -> 0 | J112: =SUM(J88:J89) -> 12509188.64 | K112: 24513381.53 | L112: 41684721.9 | M112: 67694815.09 | N112: 107779193.7 | O112: 159886622.8 | P112: 212113763.5 | Q112: 260242402.1 | R112: 260242402.1 | S112: 260242402.1 | T112: 260242402.1 | U112: 260242402.1 | V112: 260242402.1 | W112: 260242402.1 | X112: 260242402.1 | Y112: 260242402.1 | Z112: 260242402.1 | AA112: 260242402.1 | AB112: 260242402.1 | AC112: 260242402.1 | AD112: 260242402.1 | AE112: 260242402.1 | AF112: 260242402.1 | AG112: 260242402.1
D113: =Assumptions!G110 -> Capex | E113: =Assumptions!H110 -> Total benefits
A114: ="sens"&Assumptions!B111 -> sens1 | C114: =Assumptions!C111 -> Capex 10% higher | D114: =Assumptions!G111 -> 0.1 | E114: =Assumptions!H111 -> 0 | G114: =PROPER($A$3)&A114 -> Option 2sens1 | I114: =I$110+IF($C114<>0,SUMPRODUCT((I$111:I$112)*TRANSPOSE(($D114:$E114))),0) -> 0 | J114: =J$110+IF($C114<>0,SUMPRODUCT((J$111:J$112)*TRANSPOSE(($D114:$E114))),0) -> 12432391.16 | K114: =K$110+IF($C114<>0,SUMPRODUCT((K$111:K$112)*TRANSPOSE(($D114:$E114))),0) -> 24436584.04 | L114: =L$110+IF($C114<>0,SUMPRODUCT((L$111:L$112)*TRANSPOSE(($D114:$E114))),0) -> 41607924.41 | M114: =M$110+IF($C114<>0,SUMPRODUCT((M$111:M$112)*TRANSPOSE(($D114:$E114))),0) -> 67618017.6 | N114: =N$110+IF($C114<>0,SUMPRODUCT((N$111:N$112)*TRANSPOSE(($D114:$E114))),0) -> 107702396.2 | O114: =O$110+IF($C114<>0,SUMPRODUCT((O$111:O$112)*TRANSPOSE(($D114:$E114))),0) -> 159809825.3 | P114: =P$110+IF($C114<>0,SUMPRODUCT((P$111:P$112)*TRANSPOSE(($D114:$E114))),0) -> 212036966 | Q114: =Q$110+IF($C114<>0,SUMPRODUCT((Q$111:Q$112)*TRANSPOSE(($D114:$E114))),0) -> 260165604.6 | R114: =R$110+IF($C114<>0,SUMPRODUCT((R$111:R$112)*TRANSPOSE(($D114:$E114))),0) -> 260165604.6 | S114: =S$110+IF($C114<>0,SUMPRODUCT((S$111:S$112)*TRANSPOSE(($D114:$E114))),0) -> 260165604.6 | T114: =T$110+IF($C114<>0,SUMPRODUCT((T$111:T$112)*TRANSPOSE(($D114:$E114))),0) -> 260165604.6 | U114: =U$110+IF($C114<>0,SUMPRODUCT((U$111:U$112)*TRANSPOSE(($D114:$E114))),0) -> 260165604.6 | V114: =V$110+IF($C114<>0,SUMPRODUCT((V$111:V$112)*TRANSPOSE(($D114:$E114))),0) -> 260165604.6 | W114: =W$110+IF($C114<>0,SUMPRODUCT((W$111:W$112)*TRANSPOSE(($D114:$E114))),0) -> 260165604.6 | X114: =X$110+IF($C114<>0,SUMPRODUCT((X$111:X$112)*TRANSPOSE(($D114:$E114))),0) -> 260165604.6 | Y114: =Y$110+IF($C114<>0,SUMPRODUCT((Y$111:Y$112)*TRANSPOSE(($D114:$E114))),0) -> 260165604.6 | Z114: =Z$110+IF($C114<>0,SUMPRODUCT((Z$111:Z$112)*TRANSPOSE(($D114:$E114))),0) -> 260165604.6 | AA114: =AA$110+IF($C114<>0,SUMPRODUCT((AA$111:AA$112)*TRANSPOSE(($D114:$E114))),0) -> 260165604.6 | AB114: =AB$110+IF($C114<>0,SUMPRODUCT((AB$111:AB$112)*TRANSPOSE(($D114:$E114))),0) -> 260165604.6 | AC114: =AC$110+IF($C114<>0,SUMPRODUCT((AC$111:AC$112)*TRANSPOSE(($D114:$E114))),0) -> 260165604.6 | AD114: =AD$110+IF($C114<>0,SUMPRODUCT((AD$111:AD$112)*TRANSPOSE(($D114:$E114))),0) -> 260165604.6 | AE114: =AE$110+IF($C114<>0,SUMPRODUCT((AE$111:AE$112)*TRANSPOSE(($D114:$E114))),0) -> 260165604.6 | AF114: =AF$110+IF($C114<>0,SUMPRODUCT((AF$111:AF$112)*TRANSPOSE(($D114:$E114))),0) -> 260165604.6 | AG114: =AG$110+IF($C114<>0,SUMPRODUCT((AG$111:AG$112)*TRANSPOSE(($D114:$E114))),0) -> 260165604.6
A115: ="sens"&Assumptions!B112 -> sens2 | C115: =Assumptions!C112 -> Capex 10% lower | D115: =Assumptions!G112 -> -0.1 | E115: =Assumptions!H112 -> 0 | G115: =PROPER($A$3)&A115 -> Option 2sens2 | I115: =I$110+IF($C115<>0,SUMPRODUCT((I$111:I$112)*TRANSPOSE(($D115:$E115))),0) -> 0 | J115: =J$110+IF($C115<>0,SUMPRODUCT((J$111:J$112)*TRANSPOSE(($D115:$E115))),0) -> 12446354.33 | K115: =K$110+IF($C115<>0,SUMPRODUCT((K$111:K$112)*TRANSPOSE(($D115:$E115))),0) -> 24450547.22 | L115: =L$110+IF($C115<>0,SUMPRODUCT((L$111:L$112)*TRANSPOSE(($D115:$E115))),0) -> 41621887.59 | M115: =M$110+IF($C115<>0,SUMPRODUCT((M$111:M$112)*TRANSPOSE(($D115:$E115))),0) -> 67631980.78 | N115: =N$110+IF($C115<>0,SUMPRODUCT((N$111:N$112)*TRANSPOSE(($D115:$E115))),0) -> 107716359.4 | O115: =O$110+IF($C115<>0,SUMPRODUCT((O$111:O$112)*TRANSPOSE(($D115:$E115))),0) -> 159823788.5 | P115: =P$110+IF($C115<>0,SUMPRODUCT((P$111:P$112)*TRANSPOSE(($D115:$E115))),0) -> 212050929.2 | Q115: =Q$110+IF($C115<>0,SUMPRODUCT((Q$111:Q$112)*TRANSPOSE(($D115:$E115))),0) -> 260179567.8 | R115: =R$110+IF($C115<>0,SUMPRODUCT((R$111:R$112)*TRANSPOSE(($D115:$E115))),0) -> 260179567.8 | S115: =S$110+IF($C115<>0,SUMPRODUCT((S$111:S$112)*TRANSPOSE(($D115:$E115))),0) -> 260179567.8 | T115: =T$110+IF($C115<>0,SUMPRODUCT((T$111:T$112)*TRANSPOSE(($D115:$E115))),0) -> 260179567.8 | U115: =U$110+IF($C115<>0,SUMPRODUCT((U$111:U$112)*TRANSPOSE(($D115:$E115))),0) -> 260179567.8 | V115: =V$110+IF($C115<>0,SUMPRODUCT((V$111:V$112)*TRANSPOSE(($D115:$E115))),0) -> 260179567.8 | W115: =W$110+IF($C115<>0,SUMPRODUCT((W$111:W$112)*TRANSPOSE(($D115:$E115))),0) -> 260179567.8 | X115: =X$110+IF($C115<>0,SUMPRODUCT((X$111:X$112)*TRANSPOSE(($D115:$E115))),0) -> 260179567.8 | Y115: =Y$110+IF($C115<>0,SUMPRODUCT((Y$111:Y$112)*TRANSPOSE(($D115:$E115))),0) -> 260179567.8 | Z115: =Z$110+IF($C115<>0,SUMPRODUCT((Z$111:Z$112)*TRANSPOSE(($D115:$E115))),0) -> 260179567.8 | AA115: =AA$110+IF($C115<>0,SUMPRODUCT((AA$111:AA$112)*TRANSPOSE(($D115:$E115))),0) -> 260179567.8 | AB115: =AB$110+IF($C115<>0,SUMPRODUCT((AB$111:AB$112)*TRANSPOSE(($D115:$E115))),0) -> 260179567.8 | AC115: =AC$110+IF($C115<>0,SUMPRODUCT((AC$111:AC$112)*TRANSPOSE(($D115:$E115))),0) -> 260179567.8 | AD115: =AD$110+IF($C115<>0,SUMPRODUCT((AD$111:AD$112)*TRANSPOSE(($D115:$E115))),0) -> 260179567.8 | AE115: =AE$110+IF($C115<>0,SUMPRODUCT((AE$111:AE$112)*TRANSPOSE(($D115:$E115))),0) -> 260179567.8 | AF115: =AF$110+IF($C115<>0,SUMPRODUCT((AF$111:AF$112)*TRANSPOSE(($D115:$E115))),0) -> 260179567.8 | AG115: =AG$110+IF($C115<>0,SUMPRODUCT((AG$111:AG$112)*TRANSPOSE(($D115:$E115))),0) -> 260179567.8
A116: ="sens"&Assumptions!B113 -> sens3 | C116: =Assumptions!C113 -> Total benefits 10% higher | D116: =Assumptions!G113 -> 0 | E116: =Assumptions!H113 -> 0.1 | G116: Option 2sens3 | I116: =I$110+IF($C116<>0,SUMPRODUCT((I$111:I$112)*TRANSPOSE(($D116:$E116))),0) -> 0 | J116: =J$110+IF($C116<>0,SUMPRODUCT((J$111:J$112)*TRANSPOSE(($D116:$E116))),0) -> 13690291.61 | K116: =K$110+IF($C116<>0,SUMPRODUCT((K$111:K$112)*TRANSPOSE(($D116:$E116))),0) -> 26894903.79 | L116: =L$110+IF($C116<>0,SUMPRODUCT((L$111:L$112)*TRANSPOSE(($D116:$E116))),0) -> 45783378.19 | M116: =M$110+IF($C116<>0,SUMPRODUCT((M$111:M$112)*TRANSPOSE(($D116:$E116))),0) -> 74394480.7 | N116: =N$110+IF($C116<>0,SUMPRODUCT((N$111:N$112)*TRANSPOSE(($D116:$E116))),0) -> 118487297.2 | O116: =O$110+IF($C116<>0,SUMPRODUCT((O$111:O$112)*TRANSPOSE(($D116:$E116))),0) -> 175805469.2 | P116: =P$110+IF($C116<>0,SUMPRODUCT((P$111:P$112)*TRANSPOSE(($D116:$E116))),0) -> 233255323.9 | Q116: =Q$110+IF($C116<>0,SUMPRODUCT((Q$111:Q$112)*TRANSPOSE(($D116:$E116))),0) -> 286196826.4 | R116: =R$110+IF($C116<>0,SUMPRODUCT((R$111:R$112)*TRANSPOSE(($D116:$E116))),0) -> 286196826.4 | S116: =S$110+IF($C116<>0,SUMPRODUCT((S$111:S$112)*TRANSPOSE(($D116:$E116))),0) -> 286196826.4 | T116: =T$110+IF($C116<>0,SUMPRODUCT((T$111:T$112)*TRANSPOSE(($D116:$E116))),0) -> 286196826.4 | U116: =U$110+IF($C116<>0,SUMPRODUCT((U$111:U$112)*TRANSPOSE(($D116:$E116))),0) -> 286196826.4 | V116: =V$110+IF($C116<>0,SUMPRODUCT((V$111:V$112)*TRANSPOSE(($D116:$E116))),0) -> 286196826.4 | W116: =W$110+IF($C116<>0,SUMPRODUCT((W$111:W$112)*TRANSPOSE(($D116:$E116))),0) -> 286196826.4 | X116: =X$110+IF($C116<>0,SUMPRODUCT((X$111:X$112)*TRANSPOSE(($D116:$E116))),0) -> 286196826.4 | Y116: =Y$110+IF($C116<>0,SUMPRODUCT((Y$111:Y$112)*TRANSPOSE(($D116:$E116))),0) -> 286196826.4 | Z116: =Z$110+IF($C116<>0,SUMPRODUCT((Z$111:Z$112)*TRANSPOSE(($D116:$E116))),0) -> 286196826.4 | AA116: =AA$110+IF($C116<>0,SUMPRODUCT((AA$111:AA$112)*TRANSPOSE(($D116:$E116))),0) -> 286196826.4 | AB116: =AB$110+IF($C116<>0,SUMPRODUCT((AB$111:AB$112)*TRANSPOSE(($D116:$E116))),0) -> 286196826.4 | AC116: =AC$110+IF($C116<>0,SUMPRODUCT((AC$111:AC$112)*TRANSPOSE(($D116:$E116))),0) -> 286196826.4 | AD116: =AD$110+IF($C116<>0,SUMPRODUCT((AD$111:AD$112)*TRANSPOSE(($D116:$E116))),0) -> 286196826.4 | AE116: =AE$110+IF($C116<>0,SUMPRODUCT((AE$111:AE$112)*TRANSPOSE(($D116:$E116))),0) -> 286196826.4 | AF116: =AF$110+IF($C116<>0,SUMPRODUCT((AF$111:AF$112)*TRANSPOSE(($D116:$E116))),0) -> 286196826.4 | AG116: =AG$110+IF($C116<>0,SUMPRODUCT((AG$111:AG$112)*TRANSPOSE(($D116:$E116))),0) -> 286196826.4
A117: ="sens"&Assumptions!B114 -> sens4 | C117: =Assumptions!C114 -> Total benefits 10% lower | D117: =Assumptions!G114 -> 0 | E117: =Assumptions!H114 -> -0.1 | G117: Option 2sens4 | I117: =I$110+IF($C117<>0,SUMPRODUCT((I$111:I$112)*TRANSPOSE(($D117:$E117))),0) -> 0 | J117: =J$110+IF($C117<>0,SUMPRODUCT((J$111:J$112)*TRANSPOSE(($D117:$E117))),0) -> 11188453.88 | K117: =K$110+IF($C117<>0,SUMPRODUCT((K$111:K$112)*TRANSPOSE(($D117:$E117))),0) -> 21992227.48 | L117: =L$110+IF($C117<>0,SUMPRODUCT((L$111:L$112)*TRANSPOSE(($D117:$E117))),0) -> 37446433.81 | M117: =M$110+IF($C117<>0,SUMPRODUCT((M$111:M$112)*TRANSPOSE(($D117:$E117))),0) -> 60855517.68 | N117: =N$110+IF($C117<>0,SUMPRODUCT((N$111:N$112)*TRANSPOSE(($D117:$E117))),0) -> 96931458.46 | O117: =O$110+IF($C117<>0,SUMPRODUCT((O$111:O$112)*TRANSPOSE(($D117:$E117))),0) -> 143828144.6 | P117: =P$110+IF($C117<>0,SUMPRODUCT((P$111:P$112)*TRANSPOSE(($D117:$E117))),0) -> 190832571.2 | Q117: =Q$110+IF($C117<>0,SUMPRODUCT((Q$111:Q$112)*TRANSPOSE(($D117:$E117))),0) -> 234148346 | R117: =R$110+IF($C117<>0,SUMPRODUCT((R$111:R$112)*TRANSPOSE(($D117:$E117))),0) -> 234148346 | S117: =S$110+IF($C117<>0,SUMPRODUCT((S$111:S$112)*TRANSPOSE(($D117:$E117))),0) -> 234148346 | T117: =T$110+IF($C117<>0,SUMPRODUCT((T$111:T$112)*TRANSPOSE(($D117:$E117))),0) -> 234148346 | U117: =U$110+IF($C117<>0,SUMPRODUCT((U$111:U$112)*TRANSPOSE(($D117:$E117))),0) -> 234148346 | V117: =V$110+IF($C117<>0,SUMPRODUCT((V$111:V$112)*TRANSPOSE(($D117:$E117))),0) -> 234148346 | W117: =W$110+IF($C117<>0,SUMPRODUCT((W$111:W$112)*TRANSPOSE(($D117:$E117))),0) -> 234148346 | X117: =X$110+IF($C117<>0,SUMPRODUCT((X$111:X$112)*TRANSPOSE(($D117:$E117))),0) -> 234148346 | Y117: =Y$110+IF($C117<>0,SUMPRODUCT((Y$111:Y$112)*TRANSPOSE(($D117:$E117))),0) -> 234148346 | Z117: =Z$110+IF($C117<>0,SUMPRODUCT((Z$111:Z$112)*TRANSPOSE(($D117:$E117))),0) -> 234148346 | AA117: =AA$110+IF($C117<>0,SUMPRODUCT((AA$111:AA$112)*TRANSPOSE(($D117:$E117))),0) -> 234148346 | AB117: =AB$110+IF($C117<>0,SUMPRODUCT((AB$111:AB$112)*TRANSPOSE(($D117:$E117))),0) -> 234148346 | AC117: =AC$110+IF($C117<>0,SUMPRODUCT((AC$111:AC$112)*TRANSPOSE(($D117:$E117))),0) -> 234148346 | AD117: =AD$110+IF($C117<>0,SUMPRODUCT((AD$111:AD$112)*TRANSPOSE(($D117:$E117))),0) -> 234148346 | AE117: =AE$110+IF($C117<>0,SUMPRODUCT((AE$111:AE$112)*TRANSPOSE(($D117:$E117))),0) -> 234148346 | AF117: =AF$110+IF($C117<>0,SUMPRODUCT((AF$111:AF$112)*TRANSPOSE(($D117:$E117))),0) -> 234148346 | AG117: =AG$110+IF($C117<>0,SUMPRODUCT((AG$111:AG$112)*TRANSPOSE(($D117:$E117))),0) -> 234148346
A118: ="sens"&Assumptions!B115 -> sens5 | C118: =Assumptions!C115 -> Capex 10% higher & Total benefits 10% lower | D118: =Assumptions!G115 -> 0.1 | E118: =Assumptions!H115 -> -0.1 | G118: Option 2sens5 | I118: =I$110+IF($C118<>0,SUMPRODUCT((I$111:I$112)*TRANSPOSE(($D118:$E118))),0) -> 0 | J118: =J$110+IF($C118<>0,SUMPRODUCT((J$111:J$112)*TRANSPOSE(($D118:$E118))),0) -> 11181472.29 | K118: =K$110+IF($C118<>0,SUMPRODUCT((K$111:K$112)*TRANSPOSE(($D118:$E118))),0) -> 21985245.89 | L118: =L$110+IF($C118<>0,SUMPRODUCT((L$111:L$112)*TRANSPOSE(($D118:$E118))),0) -> 37439452.22 | M118: =M$110+IF($C118<>0,SUMPRODUCT((M$111:M$112)*TRANSPOSE(($D118:$E118))),0) -> 60848536.09 | N118: =N$110+IF($C118<>0,SUMPRODUCT((N$111:N$112)*TRANSPOSE(($D118:$E118))),0) -> 96924476.87 | O118: =O$110+IF($C118<>0,SUMPRODUCT((O$111:O$112)*TRANSPOSE(($D118:$E118))),0) -> 143821163 | P118: =P$110+IF($C118<>0,SUMPRODUCT((P$111:P$112)*TRANSPOSE(($D118:$E118))),0) -> 190825589.6 | Q118: =Q$110+IF($C118<>0,SUMPRODUCT((Q$111:Q$112)*TRANSPOSE(($D118:$E118))),0) -> 234141364.4 | R118: =R$110+IF($C118<>0,SUMPRODUCT((R$111:R$112)*TRANSPOSE(($D118:$E118))),0) -> 234141364.4 | S118: =S$110+IF($C118<>0,SUMPRODUCT((S$111:S$112)*TRANSPOSE(($D118:$E118))),0) -> 234141364.4 | T118: =T$110+IF($C118<>0,SUMPRODUCT((T$111:T$112)*TRANSPOSE(($D118:$E118))),0) -> 234141364.4 | U118: =U$110+IF($C118<>0,SUMPRODUCT((U$111:U$112)*TRANSPOSE(($D118:$E118))),0) -> 234141364.4 | V118: =V$110+IF($C118<>0,SUMPRODUCT((V$111:V$112)*TRANSPOSE(($D118:$E118))),0) -> 234141364.4 | W118: =W$110+IF($C118<>0,SUMPRODUCT((W$111:W$112)*TRANSPOSE(($D118:$E118))),0) -> 234141364.4 | X118: =X$110+IF($C118<>0,SUMPRODUCT((X$111:X$112)*TRANSPOSE(($D118:$E118))),0) -> 234141364.4 | Y118: =Y$110+IF($C118<>0,SUMPRODUCT((Y$111:Y$112)*TRANSPOSE(($D118:$E118))),0) -> 234141364.4 | Z118: =Z$110+IF($C118<>0,SUMPRODUCT((Z$111:Z$112)*TRANSPOSE(($D118:$E118))),0) -> 234141364.4 | AA118: =AA$110+IF($C118<>0,SUMPRODUCT((AA$111:AA$112)*TRANSPOSE(($D118:$E118))),0) -> 234141364.4 | AB118: =AB$110+IF($C118<>0,SUMPRODUCT((AB$111:AB$112)*TRANSPOSE(($D118:$E118))),0) -> 234141364.4 | AC118: =AC$110+IF($C118<>0,SUMPRODUCT((AC$111:AC$112)*TRANSPOSE(($D118:$E118))),0) -> 234141364.4 | AD118: =AD$110+IF($C118<>0,SUMPRODUCT((AD$111:AD$112)*TRANSPOSE(($D118:$E118))),0) -> 234141364.4 | AE118: =AE$110+IF($C118<>0,SUMPRODUCT((AE$111:AE$112)*TRANSPOSE(($D118:$E118))),0) -> 234141364.4 | AF118: =AF$110+IF($C118<>0,SUMPRODUCT((AF$111:AF$112)*TRANSPOSE(($D118:$E118))),0) -> 234141364.4 | AG118: =AG$110+IF($C118<>0,SUMPRODUCT((AG$111:AG$112)*TRANSPOSE(($D118:$E118))),0) -> 234141364.4
A119: ="sens"&Assumptions!B116 -> sens | C119: =Assumptions!C116 -> 0 | D119: =Assumptions!G116 -> 0 | E119: =Assumptions!H116 -> 0 | G119: Option 2sens | I119: =I$110+IF($C119<>0,SUMPRODUCT((I$111:I$112)*TRANSPOSE(($D119:$E119))),0) -> 0 | J119: =J$110+IF($C119<>0,SUMPRODUCT((J$111:J$112)*TRANSPOSE(($D119:$E119))),0) -> 12439372.74 | K119: =K$110+IF($C119<>0,SUMPRODUCT((K$111:K$112)*TRANSPOSE(($D119:$E119))),0) -> 24443565.63 | L119: =L$110+IF($C119<>0,SUMPRODUCT((L$111:L$112)*TRANSPOSE(($D119:$E119))),0) -> 41614906 | M119: =M$110+IF($C119<>0,SUMPRODUCT((M$111:M$112)*TRANSPOSE(($D119:$E119))),0) -> 67624999.19 | N119: =N$110+IF($C119<>0,SUMPRODUCT((N$111:N$112)*TRANSPOSE(($D119:$E119))),0) -> 107709377.8 | O119: =O$110+IF($C119<>0,SUMPRODUCT((O$111:O$112)*TRANSPOSE(($D119:$E119))),0) -> 159816806.9 | P119: =P$110+IF($C119<>0,SUMPRODUCT((P$111:P$112)*TRANSPOSE(($D119:$E119))),0) -> 212043947.6 | Q119: =Q$110+IF($C119<>0,SUMPRODUCT((Q$111:Q$112)*TRANSPOSE(($D119:$E119))),0) -> 260172586.2 | R119: =R$110+IF($C119<>0,SUMPRODUCT((R$111:R$112)*TRANSPOSE(($D119:$E119))),0) -> 260172586.2 | S119: =S$110+IF($C119<>0,SUMPRODUCT((S$111:S$112)*TRANSPOSE(($D119:$E119))),0) -> 260172586.2 | T119: =T$110+IF($C119<>0,SUMPRODUCT((T$111:T$112)*TRANSPOSE(($D119:$E119))),0) -> 260172586.2 | U119: =U$110+IF($C119<>0,SUMPRODUCT((U$111:U$112)*TRANSPOSE(($D119:$E119))),0) -> 260172586.2 | V119: =V$110+IF($C119<>0,SUMPRODUCT((V$111:V$112)*TRANSPOSE(($D119:$E119))),0) -> 260172586.2 | W119: =W$110+IF($C119<>0,SUMPRODUCT((W$111:W$112)*TRANSPOSE(($D119:$E119))),0) -> 260172586.2 | X119: =X$110+IF($C119<>0,SUMPRODUCT((X$111:X$112)*TRANSPOSE(($D119:$E119))),0) -> 260172586.2 | Y119: =Y$110+IF($C119<>0,SUMPRODUCT((Y$111:Y$112)*TRANSPOSE(($D119:$E119))),0) -> 260172586.2 | Z119: =Z$110+IF($C119<>0,SUMPRODUCT((Z$111:Z$112)*TRANSPOSE(($D119:$E119))),0) -> 260172586.2 | AA119: =AA$110+IF($C119<>0,SUMPRODUCT((AA$111:AA$112)*TRANSPOSE(($D119:$E119))),0) -> 260172586.2 | AB119: =AB$110+IF($C119<>0,SUMPRODUCT((AB$111:AB$112)*TRANSPOSE(($D119:$E119))),0) -> 260172586.2 | AC119: =AC$110+IF($C119<>0,SUMPRODUCT((AC$111:AC$112)*TRANSPOSE(($D119:$E119))),0) -> 260172586.2 | AD119: =AD$110+IF($C119<>0,SUMPRODUCT((AD$111:AD$112)*TRANSPOSE(($D119:$E119))),0) -> 260172586.2 | AE119: =AE$110+IF($C119<>0,SUMPRODUCT((AE$111:AE$112)*TRANSPOSE(($D119:$E119))),0) -> 260172586.2 | AF119: =AF$110+IF($C119<>0,SUMPRODUCT((AF$111:AF$112)*TRANSPOSE(($D119:$E119))),0) -> 260172586.2 | AG119: =AG$110+IF($C119<>0,SUMPRODUCT((AG$111:AG$112)*TRANSPOSE(($D119:$E119))),0) -> 260172586.2
A120: ="sens"&Assumptions!B117 -> sens | C120: =Assumptions!C117 -> 0 | D120: =Assumptions!G117 -> 0 | E120: =Assumptions!H117 -> 0 | G120: Option 2sens | I120: =I$110+IF($C120<>0,SUMPRODUCT((I$111:I$112)*TRANSPOSE(($D120:$E120))),0) -> 0 | J120: =J$110+IF($C120<>0,SUMPRODUCT((J$111:J$112)*TRANSPOSE(($D120:$E120))),0) -> 12439372.74 | K120: =K$110+IF($C120<>0,SUMPRODUCT((K$111:K$112)*TRANSPOSE(($D120:$E120))),0) -> 24443565.63 | L120: =L$110+IF($C120<>0,SUMPRODUCT((L$111:L$112)*TRANSPOSE(($D120:$E120))),0) -> 41614906 | M120: =M$110+IF($C120<>0,SUMPRODUCT((M$111:M$112)*TRANSPOSE(($D120:$E120))),0) -> 67624999.19 | N120: =N$110+IF($C120<>0,SUMPRODUCT((N$111:N$112)*TRANSPOSE(($D120:$E120))),0) -> 107709377.8 | O120: =O$110+IF($C120<>0,SUMPRODUCT((O$111:O$112)*TRANSPOSE(($D120:$E120))),0) -> 159816806.9 | P120: =P$110+IF($C120<>0,SUMPRODUCT((P$111:P$112)*TRANSPOSE(($D120:$E120))),0) -> 212043947.6 | Q120: =Q$110+IF($C120<>0,SUMPRODUCT((Q$111:Q$112)*TRANSPOSE(($D120:$E120))),0) -> 260172586.2 | R120: =R$110+IF($C120<>0,SUMPRODUCT((R$111:R$112)*TRANSPOSE(($D120:$E120))),0) -> 260172586.2 | S120: =S$110+IF($C120<>0,SUMPRODUCT((S$111:S$112)*TRANSPOSE(($D120:$E120))),0) -> 260172586.2 | T120: =T$110+IF($C120<>0,SUMPRODUCT((T$111:T$112)*TRANSPOSE(($D120:$E120))),0) -> 260172586.2 | U120: =U$110+IF($C120<>0,SUMPRODUCT((U$111:U$112)*TRANSPOSE(($D120:$E120))),0) -> 260172586.2 | V120: =V$110+IF($C120<>0,SUMPRODUCT((V$111:V$112)*TRANSPOSE(($D120:$E120))),0) -> 260172586.2 | W120: =W$110+IF($C120<>0,SUMPRODUCT((W$111:W$112)*TRANSPOSE(($D120:$E120))),0) -> 260172586.2 | X120: =X$110+IF($C120<>0,SUMPRODUCT((X$111:X$112)*TRANSPOSE(($D120:$E120))),0) -> 260172586.2 | Y120: =Y$110+IF($C120<>0,SUMPRODUCT((Y$111:Y$112)*TRANSPOSE(($D120:$E120))),0) -> 260172586.2 | Z120: =Z$110+IF($C120<>0,SUMPRODUCT((Z$111:Z$112)*TRANSPOSE(($D120:$E120))),0) -> 260172586.2 | AA120: =AA$110+IF($C120<>0,SUMPRODUCT((AA$111:AA$112)*TRANSPOSE(($D120:$E120))),0) -> 260172586.2 | AB120: =AB$110+IF($C120<>0,SUMPRODUCT((AB$111:AB$112)*TRANSPOSE(($D120:$E120))),0) -> 260172586.2 | AC120: =AC$110+IF($C120<>0,SUMPRODUCT((AC$111:AC$112)*TRANSPOSE(($D120:$E120))),0) -> 260172586.2 | AD120: =AD$110+IF($C120<>0,SUMPRODUCT((AD$111:AD$112)*TRANSPOSE(($D120:$E120))),0) -> 260172586.2 | AE120: =AE$110+IF($C120<>0,SUMPRODUCT((AE$111:AE$112)*TRANSPOSE(($D120:$E120))),0) -> 260172586.2 | AF120: =AF$110+IF($C120<>0,SUMPRODUCT((AF$111:AF$112)*TRANSPOSE(($D120:$E120))),0) -> 260172586.2 | AG120: =AG$110+IF($C120<>0,SUMPRODUCT((AG$111:AG$112)*TRANSPOSE(($D120:$E120))),0) -> 260172586.2
A121: ="sens"&Assumptions!B118 -> sens | C121: =Assumptions!C118 -> 0 | D121: =Assumptions!G118 -> 0 | E121: =Assumptions!H118 -> 0 | G121: Option 2sens | I121: =I$110+IF($C121<>0,SUMPRODUCT((I$111:I$112)*TRANSPOSE(($D121:$E121))),0) -> 0 | J121: =J$110+IF($C121<>0,SUMPRODUCT((J$111:J$112)*TRANSPOSE(($D121:$E121))),0) -> 12439372.74 | K121: =K$110+IF($C121<>0,SUMPRODUCT((K$111:K$112)*TRANSPOSE(($D121:$E121))),0) -> 24443565.63 | L121: =L$110+IF($C121<>0,SUMPRODUCT((L$111:L$112)*TRANSPOSE(($D121:$E121))),0) -> 41614906 | M121: =M$110+IF($C121<>0,SUMPRODUCT((M$111:M$112)*TRANSPOSE(($D121:$E121))),0) -> 67624999.19 | N121: =N$110+IF($C121<>0,SUMPRODUCT((N$111:N$112)*TRANSPOSE(($D121:$E121))),0) -> 107709377.8 | O121: =O$110+IF($C121<>0,SUMPRODUCT((O$111:O$112)*TRANSPOSE(($D121:$E121))),0) -> 159816806.9 | P121: =P$110+IF($C121<>0,SUMPRODUCT((P$111:P$112)*TRANSPOSE(($D121:$E121))),0) -> 212043947.6 | Q121: =Q$110+IF($C121<>0,SUMPRODUCT((Q$111:Q$112)*TRANSPOSE(($D121:$E121))),0) -> 260172586.2 | R121: =R$110+IF($C121<>0,SUMPRODUCT((R$111:R$112)*TRANSPOSE(($D121:$E121))),0) -> 260172586.2 | S121: =S$110+IF($C121<>0,SUMPRODUCT((S$111:S$112)*TRANSPOSE(($D121:$E121))),0) -> 260172586.2 | T121: =T$110+IF($C121<>0,SUMPRODUCT((T$111:T$112)*TRANSPOSE(($D121:$E121))),0) -> 260172586.2 | U121: =U$110+IF($C121<>0,SUMPRODUCT((U$111:U$112)*TRANSPOSE(($D121:$E121))),0) -> 260172586.2 | V121: =V$110+IF($C121<>0,SUMPRODUCT((V$111:V$112)*TRANSPOSE(($D121:$E121))),0) -> 260172586.2 | W121: =W$110+IF($C121<>0,SUMPRODUCT((W$111:W$112)*TRANSPOSE(($D121:$E121))),0) -> 260172586.2 | X121: =X$110+IF($C121<>0,SUMPRODUCT((X$111:X$112)*TRANSPOSE(($D121:$E121))),0) -> 260172586.2 | Y121: =Y$110+IF($C121<>0,SUMPRODUCT((Y$111:Y$112)*TRANSPOSE(($D121:$E121))),0) -> 260172586.2 | Z121: =Z$110+IF($C121<>0,SUMPRODUCT((Z$111:Z$112)*TRANSPOSE(($D121:$E121))),0) -> 260172586.2 | AA121: =AA$110+IF($C121<>0,SUMPRODUCT((AA$111:AA$112)*TRANSPOSE(($D121:$E121))),0) -> 260172586.2 | AB121: =AB$110+IF($C121<>0,SUMPRODUCT((AB$111:AB$112)*TRANSPOSE(($D121:$E121))),0) -> 260172586.2 | AC121: =AC$110+IF($C121<>0,SUMPRODUCT((AC$111:AC$112)*TRANSPOSE(($D121:$E121))),0) -> 260172586.2 | AD121: =AD$110+IF($C121<>0,SUMPRODUCT((AD$111:AD$112)*TRANSPOSE(($D121:$E121))),0) -> 260172586.2 | AE121: =AE$110+IF($C121<>0,SUMPRODUCT((AE$111:AE$112)*TRANSPOSE(($D121:$E121))),0) -> 260172586.2 | AF121: =AF$110+IF($C121<>0,SUMPRODUCT((AF$111:AF$112)*TRANSPOSE(($D121:$E121))),0) -> 260172586.2 | AG121: =AG$110+IF($C121<>0,SUMPRODUCT((AG$111:AG$112)*TRANSPOSE(($D121:$E121))),0) -> 260172586.2

Sheet Option3
A1: =bus -> Powercor
A2: =proj -> Mount Cottrell feeder 9
A3: OPTION 3 | C3: =INDEX(Assumptions!$E$14:$E$18, MATCH(A3,_xlfn.ANCHORARRAY( Assumptions!$C$14),0)) -> 0
A4: =(INDEX(Data!$D$9:$D$13, MATCH(A3, options,0))) -> Not used
A6: ='Option1 (base case)'!A6 -> Count | I6: ='Option1 (base case)'!I6 -> 1 | J6: ='Option1 (base case)'!J6 -> 2 | K6: ='Option1 (base case)'!K6 -> 3 | L6: ='Option1 (base case)'!L6 -> 4 | M6: ='Option1 (base case)'!M6 -> 5 | N6: ='Option1 (base case)'!N6 -> 6 | O6: ='Option1 (base case)'!O6 -> 7 | P6: ='Option1 (base case)'!P6 -> 8 | Q6: ='Option1 (base case)'!Q6 -> 9 | R6: ='Option1 (base case)'!R6 -> 10 | S6: ='Option1 (base case)'!S6 -> 11 | T6: ='Option1 (base case)'!T6 -> 12 | U6: ='Option1 (base case)'!U6 -> 13 | V6: ='Option1 (base case)'!V6 -> 14 | W6: ='Option1 (base case)'!W6 -> 15 | X6: ='Option1 (base case)'!X6 -> 16 | Y6: ='Option1 (base case)'!Y6 -> 17 | Z6: ='Option1 (base case)'!Z6 -> 18 | AA6: ='Option1 (base case)'!AA6 -> 19 | AB6: ='Option1 (base case)'!AB6 -> 20 | AC6: ='Option1 (base case)'!AC6 -> 21 | AD6: ='Option1 (base case)'!AD6 -> 22 | AE6: ='Option1 (base case)'!AE6 -> 23 | AF6: ='Option1 (base case)'!AF6 -> 24 | AG6: ='Option1 (base case)'!AG6 -> 25
A7: ='Option1 (base case)'!A7 -> Value of CO2 reductions | G7: $/MWh | I7: ='Option1 (base case)'!I7 -> 24.7304868 | J7: ='Option1 (base case)'!J7 -> 22.34074009 | K7: ='Option1 (base case)'!K7 -> 20.19632912 | L7: ='Option1 (base case)'!L7 -> 18.06294208 | M7: ='Option1 (base case)'!M7 -> 15.91339762 | N7: ='Option1 (base case)'!N7 -> 13.71506943 | O7: ='Option1 (base case)'!O7 -> 13.71506943 | P7: ='Option1 (base case)'!P7 -> 13.71506943 | Q7: ='Option1 (base case)'!Q7 -> 13.71506943 | R7: ='Option1 (base case)'!R7 -> 13.71506943 | S7: ='Option1 (base case)'!S7 -> 13.71506943 | T7: ='Option1 (base case)'!T7 -> 13.71506943 | U7: ='Option1 (base case)'!U7 -> 13.71506943 | V7: ='Option1 (base case)'!V7 -> 13.71506943 | W7: ='Option1 (base case)'!W7 -> 13.71506943 | X7: ='Option1 (base case)'!X7 -> 13.71506943 | Y7: ='Option1 (base case)'!Y7 -> 13.71506943 | Z7: ='Option1 (base case)'!Z7 -> 13.71506943 | AA7: ='Option1 (base case)'!AA7 -> 13.71506943 | AB7: ='Option1 (base case)'!AB7 -> 13.71506943 | AC7: ='Option1 (base case)'!AC7 -> 13.71506943 | AD7: ='Option1 (base case)'!AD7 -> 13.71506943 | AE7: ='Option1 (base case)'!AE7 -> 13.71506943 | AF7: ='Option1 (base case)'!AF7 -> 13.71506943 | AG7: ='Option1 (base case)'!AG7 -> 13.71506943
I8: =_xlfn.NUMBERVALUE(LEFT(I$9,4))+1 -> 2027 | J8: =_xlfn.NUMBERVALUE(LEFT(J$9,4))+1 -> 2028 | K8: 2029 | L8: 2030 | M8: 2031 | N8: 2032 | O8: 2033 | P8: 2034 | Q8: 2035 | R8: 2036 | S8: 2037 | T8: 2038 | U8: 2039 | V8: 2040 | W8: 2041 | X8: 2042 | Y8: 2043 | Z8: 2044 | AA8: 2045 | AB8: 2046 | AC8: 2047 | AD8: 2048 | AE8: 2049 | AF8: 2050 | AG8: 2051
G9: Units | I9: ='Option1 (base case)'!I9 -> 2026-27 | J9: ='Option1 (base case)'!J9 -> 2027-28 | K9: ='Option1 (base case)'!K9 -> 2028-29 | L9: ='Option1 (base case)'!L9 -> 2029-30 | M9: ='Option1 (base case)'!M9 -> 2030-31 | N9: ='Option1 (base case)'!N9 -> 2031-32 | O9: ='Option1 (base case)'!O9 -> 2032-33 | P9: ='Option1 (base case)'!P9 -> 2033-34 | Q9: ='Option1 (base case)'!Q9 -> 2034-35 | R9: ='Option1 (base case)'!R9 -> 2035-36 | S9: ='Option1 (base case)'!S9 -> 2036-37 | T9: ='Option1 (base case)'!T9 -> 2037-38 | U9: ='Option1 (base case)'!U9 -> 2038-39 | V9: ='Option1 (base case)'!V9 -> 2039-40 | W9: ='Option1 (base case)'!W9 -> 2040-41 | X9: ='Option1 (base case)'!X9 -> 2041-42 | Y9: ='Option1 (base case)'!Y9 -> 2042-43 | Z9: ='Option1 (base case)'!Z9 -> 2043-44 | AA9: ='Option1 (base case)'!AA9 -> 2044-45 | AB9: ='Option1 (base case)'!AB9 -> 2045-46 | AC9: ='Option1 (base case)'!AC9 -> 2046-47 | AD9: ='Option1 (base case)'!AD9 -> 2047-48 | AE9: ='Option1 (base case)'!AE9 -> 2048-49 | AF9: ='Option1 (base case)'!AF9 -> 2049-50 | AG9: ='Option1 (base case)'!AG9 -> 2050-51
A11: INVESTMENT & OPERATING COST
C13: Capex | E13: Asset life (yrs)
C14: < Enter description > | E14: 50 | G14: =input_dollars -> 2023-12-31 | I14: 0 | J14: 0 | K14: 0 | L14: 0 | M14: 0 | N14: 0 | O14: 0 | P14: 0 | Q14: 0 | R14: 0 | S14: 0 | T14: 0 | U14: 0 | V14: 0 | W14: 0 | X14: 0 | Y14: 0 | Z14: 0 | AA14: 0 | AB14: 0 | AC14: 0 | AD14: 0 | AE14: 0 | AF14: 0 | AG14: 0
C15: < Enter description > | E15: 0 | G15: =input_dollars -> 2023-12-31 | I15: 0 | J15: 0 | K15: 0 | L15: 0 | M15: 0 | N15: 0 | O15: 0 | P15: 0 | Q15: 0 | R15: 0 | S15: 0 | T15: 0 | U15: 0 | V15: 0 | W15: 0 | X15: 0 | Y15: 0 | Z15: 0 | AA15: 0 | AB15: 0 | AC15: 0 | AD15: 0 | AE15: 0 | AF15: 0 | AG15: 0
C16: < Enter description > | E16: 0 | G16: =input_dollars -> 2023-12-31 | I16: 0 | J16: 0 | K16: 0 | L16: 0 | M16: 0 | N16: 0 | O16: 0 | P16: 0 | Q16: 0 | R16: 0 | S16: 0 | T16: 0 | U16: 0 | V16: 0 | W16: 0 | X16: 0 | Y16: 0 | Z16: 0 | AA16: 0 | AB16: 0 | AC16: 0 | AD16: 0 | AE16: 0 | AF16: 0 | AG16: 0
C17: Capital expenditure | G17: =input_dollars -> 2023-12-31 | I17: =SUM(I14:I16) -> 0 | J17: 0 | K17: 0 | L17: 0 | M17: 0 | N17: 0 | O17: 0 | P17: 0 | Q17: 0 | R17: =SUM(R14:R16) -> 0 | S17: 0 | T17: 0 | U17: 0 | V17: 0 | W17: 0 | X17: 0 | Y17: 0 | Z17: 0 | AA17: 0 | AB17: 0 | AC17: =SUM(AC14:AC16) -> 0 | AD17: =SUM(AD14:AD16) -> 0 | AE17: =SUM(AE14:AE16) -> 0 | AF17: =SUM(AF14:AF16) -> 0 | AG17: =SUM(AG14:AG16) -> 0
C19: Operating expenditure | G19: =input_dollars -> 2023-12-31 | I19: 0 | J19: 0 | K19: 0 | L19: 0 | M19: 0 | N19: 0 | O19: 0 | P19: 0 | Q19: 0 | R19: 0 | S19: 0 | T19: 0 | U19: 0 | V19: 0 | W19: 0 | X19: 0 | Y19: 0 | Z19: 0 | AA19: 0 | AB19: 0 | AC19: 0 | AD19: 0 | AE19: 0 | AF19: 0 | AG19: 0
A22: RISK ASSUMPTIONS
C24: PoF (major) | I24: 0 | J24: 0 | K24: 0 | L24: 0 | M24: 0 | N24: 0 | O24: 0 | P24: 0 | Q24: 0 | R24: 0 | S24: 0 | T24: 0 | U24: 0 | V24: 0 | W24: 0 | X24: 0 | Y24: 0 | Z24: 0 | AA24: 0 | AB24: 0 | AC24: 0 | AD24: 0 | AE24: 0 | AF24: 0 | AG24: 0
C25: PoF (reparable) | I25: 0 | J25: 0 | K25: 0 | L25: 0 | M25: 0 | N25: 0 | O25: 0 | P25: 0 | Q25: 0 | R25: 0 | S25: 0 | T25: 0 | U25: 0 | V25: 0 | W25: 0 | X25: 0 | Y25: 0 | Z25: 0 | AA25: 0 | AB25: 0 | AC25: 0 | AD25: 0 | AE25: 0 | AF25: 0 | AG25: 0
C27: Const end date
C28: Energy at risk 10% PoE | E28: 0.3 | G28: MWh | I28: 0 | J28: 0 | K28: 0 | L28: 0 | M28: 0 | N28: 0 | O28: 0 | P28: 0 | Q28: 0 | R28: 0 | S28: 0 | T28: 0 | U28: 0 | V28: 0 | W28: 0 | X28: 0 | Y28: 0 | Z28: 0 | AA28: 0 | AB28: 0 | AC28: 0 | AD28: 0 | AE28: 0 | AF28: 0 | AG28: 0
C29: Energy at risk 50% PoE | E29: 0.7 | G29: MWh | I29: 0 | J29: 0 | K29: 0 | L29: 0 | M29: 0 | N29: 0 | O29: 0 | P29: 0 | Q29: 0 | R29: 0 | S29: 0 | T29: 0 | U29: 0 | V29: 0 | W29: 0 | X29: 0 | Y29: 0 | Z29: 0 | AA29: 0 | AB29: 0 | AC29: 0 | AD29: 0 | AE29: 0 | AF29: 0 | AG29: 0
C31: Energy at risk (weighted) | G31: MWh | I31: =SUMPRODUCT(I$28:I$29, $E$28:$E$29) -> 0 | J31: =SUMPRODUCT(J$28:J$29, $E$28:$E$29) -> 0 | K31: 0 | L31: 0 | M31: 0 | N31: 0 | O31: 0 | P31: 0 | Q31: 0 | R31: 0 | S31: 0 | T31: 0 | U31: 0 | V31: 0 | W31: 0 | X31: 0 | Y31: 0 | Z31: 0 | AA31: 0 | AB31: 0 | AC31: 0 | AD31: 0 | AE31: 0 | AF31: 0 | AG31: 0
C32: Energy at risk value | D32: $/MWh | E32: =Assumptions!H41*vcr_esc -> 43995.26048 | F32: =IF(AND(SUM(I31:AG31)<>0, E32=0), "!", "") ->  | G32: =input_dollars -> 2023-12-31 | I32: =I31*$E$32 -> 0 | J32: =J31*$E$32 -> 0 | K32: 0 | L32: 0 | M32: 0 | N32: 0 | O32: 0 | P32: 0 | Q32: 0 | R32: 0 | S32: 0 | T32: 0 | U32: 0 | V32: 0 | W32: 0 | X32: 0 | Y32: 0 | Z32: 0 | AA32: 0 | AB32: 0 | AC32: 0 | AD32: 0 | AE32: 0 | AF32: 0 | AG32: 0
C34: Safety consequence | D34: (after DF) | G34: =input_dollars -> 2023-12-31 | I34: 0 | J34: 0 | K34: 0 | L34: 0 | M34: 0 | N34: 0 | O34: 0 | P34: 0 | Q34: 0 | R34: 0 | S34: 0 | T34: 0 | U34: 0 | V34: 0 | W34: 0 | X34: 0 | Y34: 0 | Z34: 0 | AA34: 0 | AB34: 0 | AC34: 0 | AD34: 0 | AE34: 0 | AF34: 0 | AG34: 0
C35: Unplanned replacements | G35: =input_dollars -> 2023-12-31 | I35: 0 | J35: 0 | K35: 0 | L35: 0 | M35: 0 | N35: 0 | O35: 0 | P35: 0 | Q35: 0 | R35: 0 | S35: 0 | T35: 0 | U35: 0 | V35: 0 | W35: 0 | X35: 0 | Y35: 0 | Z35: 0 | AA35: 0 | AB35: 0 | AC35: 0 | AD35: 0 | AE35: 0 | AF35: 0 | AG35: 0
C36: Environmental consequence | D36: (after DF) | G36: =input_dollars -> 2023-12-31 | I36: 0 | J36: 0 | K36: 0 | L36: 0 | M36: 0 | N36: 0 | O36: 0 | P36: 0 | Q36: 0 | R36: 0 | S36: 0 | T36: 0 | U36: 0 | V36: 0 | W36: 0 | X36: 0 | Y36: 0 | Z36: 0 | AA36: 0 | AB36: 0 | AC36: 0 | AD36: 0 | AE36: 0 | AF36: 0 | AG36: 0
C37: < Other risk - enter description > | G37: =input_dollars -> 2023-12-31 | I37: 0 | J37: 0 | K37: 0 | L37: 0 | M37: 0 | N37: 0 | O37: 0 | P37: 0 | Q37: 0 | R37: 0 | S37: 0 | T37: 0 | U37: 0 | V37: 0 | W37: 0 | X37: 0 | Y37: 0 | Z37: 0 | AA37: 0 | AB37: 0 | AC37: 0 | AD37: 0 | AE37: 0 | AF37: 0 | AG37: 0
C38: < Other risk - enter description > | G38: =input_dollars -> 2023-12-31 | I38: 0 | J38: 0 | K38: 0 | L38: 0 | M38: 0 | N38: 0 | O38: 0 | P38: 0 | Q38: 0 | R38: 0 | S38: 0 | T38: 0 | U38: 0 | V38: 0 | W38: 0 | X38: 0 | Y38: 0 | Z38: 0 | AA38: 0 | AB38: 0 | AC38: 0 | AD38: 0 | AE38: 0 | AF38: 0 | AG38: 0
C40: Total risk cost | I40: =SUM(I32:I38) -> 0 | J40: =SUM(J32:J38) -> 0 | K40: 0 | L40: 0 | M40: 0 | N40: 0 | O40: 0 | P40: 0 | Q40: 0 | R40: 0 | S40: 0 | T40: 0 | U40: 0 | V40: 0 | W40: 0 | X40: 0 | Y40: 0 | Z40: 0 | AA40: 0 | AB40: 0 | AC40: =SUM(AC32:AC38) -> 0 | AD40: =SUM(AD32:AD38) -> 0 | AE40: =SUM(AE32:AE38) -> 0 | AF40: =SUM(AF32:AF38) -> 0 | AG40: =SUM(AG32:AG38) -> 0
A42: OTHER BENEFITS
C45: Reduction in CO2 emissions | G45: MWh | I45: 0 | J45: 0 | K45: 0 | L45: 0 | M45: 0 | N45: 0 | O45: 0 | P45: 0 | Q45: 0 | R45: 0 | S45: 0 | T45: 0 | U45: 0 | V45: 0 | W45: 0 | X45: 0 | Y45: 0 | Z45: 0 | AA45: 0 | AB45: 0 | AC45: 0 | AD45: 0 | AE45: 0 | AF45: 0 | AG45: 0
C46: Value of reduction in CO2 emissions | G46: $ | I46: =I45*I7 -> 0 | J46: 0 | K46: 0 | L46: 0 | M46: 0 | N46: 0 | O46: 0 | P46: 0 | Q46: 0 | R46: 0 | S46: 0 | T46: 0 | U46: 0 | V46: 0 | W46: 0 | X46: 0 | Y46: 0 | Z46: 0 | AA46: 0 | AB46: 0 | AC46: 0 | AD46: 0 | AE46: 0 | AF46: 0 | AG46: 0
C49: Reliability in worst-served areas | D49: $/MWh | E49: =Assumptions!G94 -> 151432.8174 | G49: MWh | I49: 0 | J49: 0 | K49: 0 | L49: 0 | M49: 0 | N49: 0 | O49: 0 | P49: 0 | Q49: 0 | R49: 0 | S49: 0 | T49: 0 | U49: 0 | V49: 0 | W49: 0 | X49: 0 | Y49: 0 | Z49: 0 | AA49: 0 | AB49: 0 | AC49: 0 | AD49: 0 | AE49: 0 | AF49: 0 | AG49: 0
C50: Network resilience | D50: $/MWh | E50: =Assumptions!G95 -> 24590 | G50: MWh | I50: 0 | J50: 0 | K50: 0 | L50: 0 | M50: 0 | N50: 0 | O50: 0 | P50: 0 | Q50: 0 | R50: 0 | S50: 0 | T50: 0 | U50: 0 | V50: 0 | W50: 0 | X50: 0 | Y50: 0 | Z50: 0 | AA50: 0 | AB50: 0 | AC50: 0 | AD50: 0 | AE50: 0 | AF50: 0 | AG50: 0
C51: Enabling solar exports | D51: $/MWh | E51: =Assumptions!G96 -> 88.35771951 | G51: MWh | I51: 0 | J51: 0 | K51: 0 | L51: 0 | M51: 0 | N51: 0 | O51: 0 | P51: 0 | Q51: 0 | R51: 0 | S51: 0 | T51: 0 | U51: 0 | V51: 0 | W51: 0 | X51: 0 | Y51: 0 | Z51: 0 | AA51: 0 | AB51: 0 | AC51: 0 | AD51: 0 | AE51: 0 | AF51: 0 | AG51: 0
C52: Aesthetics | D52: $/customer | E52: =Assumptions!G97 -> 0 | G52: customers | I52: 0 | J52: 0 | K52: 0 | L52: 0 | M52: 0 | N52: 0 | O52: 0 | P52: 0 | Q52: 0 | R52: 0 | S52: 0 | T52: 0 | U52: 0 | V52: 0 | W52: 0 | X52: 0 | Y52: 0 | Z52: 0 | AA52: 0 | AB52: 0 | AC52: 0 | AD52: 0 | AE52: 0 | AF52: 0 | AG52: 0
C53: Customer value of time (res) | D53: $/customer min | E53: =Assumptions!G98 -> 0.3518133654 | G53: mins | I53: 0 | J53: 0 | K53: 0 | L53: 0 | M53: 0 | N53: 0 | O53: 0 | P53: 0 | Q53: 0 | R53: 0 | S53: 0 | T53: 0 | U53: 0 | V53: 0 | W53: 0 | X53: 0 | Y53: 0 | Z53: 0 | AA53: 0 | AB53: 0 | AC53: 0 | AD53: 0 | AE53: 0 | AF53: 0 | AG53: 0
C54: Customer value of time (bus) | D54: $/customer min | E54: =Assumptions!G99 -> 0.3518133654 | G54: mins | I54: 0 | J54: 0 | K54: 0 | L54: 0 | M54: 0 | N54: 0 | O54: 0 | P54: 0 | Q54: 0 | R54: 0 | S54: 0 | T54: 0 | U54: 0 | V54: 0 | W54: 0 | X54: 0 | Y54: 0 | Z54: 0 | AA54: 0 | AB54: 0 | AC54: 0 | AD54: 0 | AE54: 0 | AF54: 0 | AG54: 0
C55: Communication | D55: $/customer | E55: =Assumptions!G100 -> 0 | G55: customers | I55: 0 | J55: 0 | K55: 0 | L55: 0 | M55: 0 | N55: 0 | O55: 0 | P55: 0 | Q55: 0 | R55: 0 | S55: 0 | T55: 0 | U55: 0 | V55: 0 | W55: 0 | X55: 0 | Y55: 0 | Z55: 0 | AA55: 0 | AB55: 0 | AC55: 0 | AD55: 0 | AE55: 0 | AF55: 0 | AG55: 0
C56: Information accessibility | D56: $/customer | E56: =Assumptions!G101 -> 0 | G56: customers | I56: 0 | J56: 0 | K56: 0 | L56: 0 | M56: 0 | N56: 0 | O56: 0 | P56: 0 | Q56: 0 | R56: 0 | S56: 0 | T56: 0 | U56: 0 | V56: 0 | W56: 0 | X56: 0 | Y56: 0 | Z56: 0 | AA56: 0 | AB56: 0 | AC56: 0 | AD56: 0 | AE56: 0 | AF56: 0 | AG56: 0
C58: Other benefits 1 | G58: =input_dollars -> 2023-12-31 | I58: 0 | J58: 0 | K58: 0 | L58: 0 | M58: 0 | N58: 0 | O58: 0 | P58: 0 | Q58: 0 | R58: 0 | S58: 0 | T58: 0 | U58: 0 | V58: 0 | W58: 0 | X58: 0 | Y58: 0 | Z58: 0 | AA58: 0 | AB58: 0 | AC58: 0 | AD58: 0 | AE58: 0 | AF58: 0 | AG58: 0
C59: Other benefits 2 | G59: =input_dollars -> 2023-12-31 | I59: 0 | J59: 0 | K59: 0 | L59: 0 | M59: 0 | N59: 0 | O59: 0 | P59: 0 | Q59: 0 | R59: 0 | S59: 0 | T59: 0 | U59: 0 | V59: 0 | W59: 0 | X59: 0 | Y59: 0 | Z59: 0 | AA59: 0 | AB59: 0 | AC59: 0 | AD59: 0 | AE59: 0 | AF59: 0 | AG59: 0
C61: Total other benefits | G61: =input_dollars -> 2023-12-31 | I61: =SUMPRODUCT((I$49:I$56)*($E$49:$E$56))+SUM(I58:I59)+I46 -> 0 | J61: =SUMPRODUCT((J$49:J$56)*($E$49:$E$56))+SUM(J58:J59)+J46 -> 0 | K61: =SUMPRODUCT((K$49:K$56)*($E$49:$E$56))+SUM(K58:K59)+K46 -> 0 | L61: =SUMPRODUCT((L$49:L$56)*($E$49:$E$56))+SUM(L58:L59)+L46 -> 0 | M61: =SUMPRODUCT((M$49:M$56)*($E$49:$E$56))+SUM(M58:M59)+M46 -> 0 | N61: =SUMPRODUCT((N$49:N$56)*($E$49:$E$56))+SUM(N58:N59)+N46 -> 0 | O61: =SUMPRODUCT((O$49:O$56)*($E$49:$E$56))+SUM(O58:O59)+O46 -> 0 | P61: =SUMPRODUCT((P$49:P$56)*($E$49:$E$56))+SUM(P58:P59)+P46 -> 0 | Q61: =SUMPRODUCT((Q$49:Q$56)*($E$49:$E$56))+SUM(Q58:Q59)+Q46 -> 0 | R61: =SUMPRODUCT((R$49:R$56)*($E$49:$E$56))+SUM(R58:R59)+R46 -> 0 | S61: =SUMPRODUCT((S$49:S$56)*($E$49:$E$56))+SUM(S58:S59)+S46 -> 0 | T61: =SUMPRODUCT((T$49:T$56)*($E$49:$E$56))+SUM(T58:T59)+T46 -> 0 | U61: =SUMPRODUCT((U$49:U$56)*($E$49:$E$56))+SUM(U58:U59)+U46 -> 0 | V61: =SUMPRODUCT((V$49:V$56)*($E$49:$E$56))+SUM(V58:V59)+V46 -> 0 | W61: =SUMPRODUCT((W$49:W$56)*($E$49:$E$56))+SUM(W58:W59)+W46 -> 0 | X61: =SUMPRODUCT((X$49:X$56)*($E$49:$E$56))+SUM(X58:X59)+X46 -> 0 | Y61: =SUMPRODUCT((Y$49:Y$56)*($E$49:$E$56))+SUM(Y58:Y59)+Y46 -> 0 | Z61: =SUMPRODUCT((Z$49:Z$56)*($E$49:$E$56))+SUM(Z58:Z59)+Z46 -> 0 | AA61: =SUMPRODUCT((AA$49:AA$56)*($E$49:$E$56))+SUM(AA58:AA59)+AA46 -> 0 | AB61: =SUMPRODUCT((AB$49:AB$56)*($E$49:$E$56))+SUM(AB58:AB59)+AB46 -> 0 | AC61: =SUMPRODUCT((AC$49:AC$56)*($E$49:$E$56))+SUM(AC58:AC59)+AC46 -> 0 | AD61: =SUMPRODUCT((AD$49:AD$56)*($E$49:$E$56))+SUM(AD58:AD59)+AD46 -> 0 | AE61: =SUMPRODUCT((AE$49:AE$56)*($E$49:$E$56))+SUM(AE58:AE59)+AE46 -> 0 | AF61: =SUMPRODUCT((AF$49:AF$56)*($E$49:$E$56))+SUM(AF58:AF59)+AF46 -> 0 | AG61: =SUMPRODUCT((AG$49:AG$56)*($E$49:$E$56))+SUM(AG58:AG59)+AG46 -> 0
A64: SUMMARY
C68: ='Option1 (base case)'!C68 -> Risks mitigated vs base case | G68: =input_dollars -> 2023-12-31 | I68: =(1-INDEX(Data!$C$9:$C$13, MATCH($A$3, options,0)))*('Option1 (base case)'!I40-I40) -> 0 | J68: =(1-INDEX(Data!$C$9:$C$13, MATCH($A$3, options,0)))*('Option1 (base case)'!J40-J40) -> 0 | K68: =(1-INDEX(Data!$C$9:$C$13, MATCH($A$3, options,0)))*('Option1 (base case)'!K40-K40) -> 0 | L68: =(1-INDEX(Data!$C$9:$C$13, MATCH($A$3, options,0)))*('Option1 (base case)'!L40-L40) -> 0 | M68: =(1-INDEX(Data!$C$9:$C$13, MATCH($A$3, options,0)))*('Option1 (base case)'!M40-M40) -> 0 | N68: =(1-INDEX(Data!$C$9:$C$13, MATCH($A$3, options,0)))*('Option1 (base case)'!N40-N40) -> 0 | O68: =(1-INDEX(Data!$C$9:$C$13, MATCH($A$3, options,0)))*('Option1 (base case)'!O40-O40) -> 0 | P68: =(1-INDEX(Data!$C$9:$C$13, MATCH($A$3, options,0)))*('Option1 (base case)'!P40-P40) -> 0 | Q68: =(1-INDEX(Data!$C$9:$C$13, MATCH($A$3, options,0)))*('Option1 (base case)'!Q40-Q40) -> 0 | R68: =(1-INDEX(Data!$C$9:$C$13, MATCH($A$3, options,0)))*('Option1 (base case)'!R40-R40) -> 0 | S68: =(1-INDEX(Data!$C$9:$C$13, MATCH($A$3, options,0)))*('Option1 (base case)'!S40-S40) -> 0 | T68: =(1-INDEX(Data!$C$9:$C$13, MATCH($A$3, options,0)))*('Option1 (base case)'!T40-T40) -> 0 | U68: =(1-INDEX(Data!$C$9:$C$13, MATCH($A$3, options,0)))*('Option1 (base case)'!U40-U40) -> 0 | V68: =(1-INDEX(Data!$C$9:$C$13, MATCH($A$3, options,0)))*('Option1 (base case)'!V40-V40) -> 0 | W68: =(1-INDEX(Data!$C$9:$C$13, MATCH($A$3, options,0)))*('Option1 (base case)'!W40-W40) -> 0 | X68: =(1-INDEX(Data!$C$9:$C$13, MATCH($A$3, options,0)))*('Option1 (base case)'!X40-X40) -> 0 | Y68: =(1-INDEX(Data!$C$9:$C$13, MATCH($A$3, options,0)))*('Option1 (base case)'!Y40-Y40) -> 0 | Z68: =(1-INDEX(Data!$C$9:$C$13, MATCH($A$3, options,0)))*('Option1 (base case)'!Z40-Z40) -> 0 | AA68: =(1-INDEX(Data!$C$9:$C$13, MATCH($A$3, options,0)))*('Option1 (base case)'!AA40-AA40) -> 0 | AB68: =(1-INDEX(Data!$C$9:$C$13, MATCH($A$3, options,0)))*('Option1 (base case)'!AB40-AB40) -> 0 | AC68: =(1-INDEX(Data!$C$9:$C$13, MATCH($A$3, options,0)))*('Option1 (base case)'!AC40-AC40) -> 0 | AD68: =(1-INDEX(Data!$C$9:$C$13, MATCH($A$3, options,0)))*('Option1 (base case)'!AD40-AD40) -> 0 | AE68: =(1-INDEX(Data!$C$9:$C$13, MATCH($A$3, options,0)))*('Option1 (base case)'!AE40-AE40) -> 0 | AF68: =(1-INDEX(Data!$C$9:$C$13, MATCH($A$3, options,0)))*('Option1 (base case)'!AF40-AF40) -> 0 | AG68: =(1-INDEX(Data!$C$9:$C$13, MATCH($A$3, options,0)))*('Option1 (base case)'!AG40-AG40) -> 0
C70: Capital expenditure
C71: =C14 -> < Enter description > | G71: =input_dollars -> 2023-12-31 | I71: =-I14 -> 0 | J71: 0 | K71: 0 | L71: 0 | M71: 0 | N71: 0 | O71: 0 | P71: 0 | Q71: 0 | R71: 0 | S71: 0 | T71: 0 | U71: 0 | V71: 0 | W71: 0 | X71: 0 | Y71: 0 | Z71: 0 | AA71: 0 | AB71: 0 | AC71: 0 | AD71: 0 | AE71: 0 | AF71: 0 | AG71: 0
C72: =C15 -> < Enter description > | G72: =input_dollars -> 2023-12-31 | I72: =-I15 -> 0 | J72: 0 | K72: 0 | L72: 0 | M72: 0 | N72: 0 | O72: 0 | P72: 0 | Q72: 0 | R72: 0 | S72: 0 | T72: 0 | U72: 0 | V72: 0 | W72: 0 | X72: 0 | Y72: 0 | Z72: 0 | AA72: 0 | AB72: 0 | AC72: 0 | AD72: 0 | AE72: 0 | AF72: 0 | AG72: 0
C73: =C16 -> < Enter description > | G73: =input_dollars -> 2023-12-31 | I73: =-I16 -> 0 | J73: 0 | K73: 0 | L73: 0 | M73: 0 | N73: 0 | O73: 0 | P73: 0 | Q73: 0 | R73: 0 | S73: 0 | T73: 0 | U73: 0 | V73: 0 | W73: 0 | X73: 0 | Y73: 0 | Z73: 0 | AA73: 0 | AB73: 0 | AC73: 0 | AD73: 0 | AE73: 0 | AF73: 0 | AG73: 0
C75: Cumulative capex
C76: =C14 -> < Enter description > | G76: =input_dollars -> 2023-12-31 | I76: =SUMPRODUCT(($I71:I71))-SUMPRODUCT(($I71:I71)*($I$6:I$6<=(I$6-$E14))) -> 0 | J76: =SUMPRODUCT(($I71:J71))-SUMPRODUCT(($I71:J71)*($I$6:J$6<=(J$6-$E14))) -> 0 | K76: =SUMPRODUCT(($I71:K71))-SUMPRODUCT(($I71:K71)*($I$6:K$6<=(K$6-$E14))) -> 0 | L76: =SUMPRODUCT(($I71:L71))-SUMPRODUCT(($I71:L71)*($I$6:L$6<=(L$6-$E14))) -> 0 | M76: =SUMPRODUCT(($I71:M71))-SUMPRODUCT(($I71:M71)*($I$6:M$6<=(M$6-$E14))) -> 0 | N76: =SUMPRODUCT(($I71:N71))-SUMPRODUCT(($I71:N71)*($I$6:N$6<=(N$6-$E14))) -> 0 | O76: =SUMPRODUCT(($I71:O71))-SUMPRODUCT(($I71:O71)*($I$6:O$6<=(O$6-$E14))) -> 0 | P76: =SUMPRODUCT(($I71:P71))-SUMPRODUCT(($I71:P71)*($I$6:P$6<=(P$6-$E14))) -> 0 | Q76: =SUMPRODUCT(($I71:Q71))-SUMPRODUCT(($I71:Q71)*($I$6:Q$6<=(Q$6-$E14))) -> 0 | R76: =SUMPRODUCT(($I71:R71))-SUMPRODUCT(($I71:R71)*($I$6:R$6<=(R$6-$E14))) -> 0 | S76: =SUMPRODUCT(($I71:S71))-SUMPRODUCT(($I71:S71)*($I$6:S$6<=(S$6-$E14))) -> 0 | T76: =SUMPRODUCT(($I71:T71))-SUMPRODUCT(($I71:T71)*($I$6:T$6<=(T$6-$E14))) -> 0 | U76: =SUMPRODUCT(($I71:U71))-SUMPRODUCT(($I71:U71)*($I$6:U$6<=(U$6-$E14))) -> 0 | V76: =SUMPRODUCT(($I71:V71))-SUMPRODUCT(($I71:V71)*($I$6:V$6<=(V$6-$E14))) -> 0 | W76: =SUMPRODUCT(($I71:W71))-SUMPRODUCT(($I71:W71)*($I$6:W$6<=(W$6-$E14))) -> 0 | X76: =SUMPRODUCT(($I71:X71))-SUMPRODUCT(($I71:X71)*($I$6:X$6<=(X$6-$E14))) -> 0 | Y76: =SUMPRODUCT(($I71:Y71))-SUMPRODUCT(($I71:Y71)*($I$6:Y$6<=(Y$6-$E14))) -> 0 | Z76: =SUMPRODUCT(($I71:Z71))-SUMPRODUCT(($I71:Z71)*($I$6:Z$6<=(Z$6-$E14))) -> 0 | AA76: =SUMPRODUCT(($I71:AA71))-SUMPRODUCT(($I71:AA71)*($I$6:AA$6<=(AA$6-$E14))) -> 0 | AB76: =SUMPRODUCT(($I71:AB71))-SUMPRODUCT(($I71:AB71)*($I$6:AB$6<=(AB$6-$E14))) -> 0 | AC76: =SUMPRODUCT(($I71:AC71))-SUMPRODUCT(($I71:AC71)*($I$6:AC$6<=(AC$6-$E14))) -> 0 | AD76: =SUMPRODUCT(($I71:AD71))-SUMPRODUCT(($I71:AD71)*($I$6:AD$6<=(AD$6-$E14))) -> 0 | AE76: =SUMPRODUCT(($I71:AE71))-SUMPRODUCT(($I71:AE71)*($I$6:AE$6<=(AE$6-$E14))) -> 0 | AF76: =SUMPRODUCT(($I71:AF71))-SUMPRODUCT(($I71:AF71)*($I$6:AF$6<=(AF$6-$E14))) -> 0 | AG76: =SUMPRODUCT(($I71:AG71))-SUMPRODUCT(($I71:AG71)*($I$6:AG$6<=(AG$6-$E14))) -> 0
C77: =C15 -> < Enter description > | G77: =input_dollars -> 2023-12-31 | I77: =SUMPRODUCT(($I72:I72))-SUMPRODUCT(($I72:I72)*($I$6:I$6<=(I$6-$E15))) -> 0 | J77: =SUMPRODUCT(($I72:J72))-SUMPRODUCT(($I72:J72)*($I$6:J$6<=(J$6-$E15))) -> 0 | K77: =SUMPRODUCT(($I72:K72))-SUMPRODUCT(($I72:K72)*($I$6:K$6<=(K$6-$E15))) -> 0 | L77: =SUMPRODUCT(($I72:L72))-SUMPRODUCT(($I72:L72)*($I$6:L$6<=(L$6-$E15))) -> 0 | M77: =SUMPRODUCT(($I72:M72))-SUMPRODUCT(($I72:M72)*($I$6:M$6<=(M$6-$E15))) -> 0 | N77: =SUMPRODUCT(($I72:N72))-SUMPRODUCT(($I72:N72)*($I$6:N$6<=(N$6-$E15))) -> 0 | O77: =SUMPRODUCT(($I72:O72))-SUMPRODUCT(($I72:O72)*($I$6:O$6<=(O$6-$E15))) -> 0 | P77: =SUMPRODUCT(($I72:P72))-SUMPRODUCT(($I72:P72)*($I$6:P$6<=(P$6-$E15))) -> 0 | Q77: =SUMPRODUCT(($I72:Q72))-SUMPRODUCT(($I72:Q72)*($I$6:Q$6<=(Q$6-$E15))) -> 0 | R77: =SUMPRODUCT(($I72:R72))-SUMPRODUCT(($I72:R72)*($I$6:R$6<=(R$6-$E15))) -> 0 | S77: =SUMPRODUCT(($I72:S72))-SUMPRODUCT(($I72:S72)*($I$6:S$6<=(S$6-$E15))) -> 0 | T77: =SUMPRODUCT(($I72:T72))-SUMPRODUCT(($I72:T72)*($I$6:T$6<=(T$6-$E15))) -> 0 | U77: =SUMPRODUCT(($I72:U72))-SUMPRODUCT(($I72:U72)*($I$6:U$6<=(U$6-$E15))) -> 0 | V77: =SUMPRODUCT(($I72:V72))-SUMPRODUCT(($I72:V72)*($I$6:V$6<=(V$6-$E15))) -> 0 | W77: =SUMPRODUCT(($I72:W72))-SUMPRODUCT(($I72:W72)*($I$6:W$6<=(W$6-$E15))) -> 0 | X77: =SUMPRODUCT(($I72:X72))-SUMPRODUCT(($I72:X72)*($I$6:X$6<=(X$6-$E15))) -> 0 | Y77: =SUMPRODUCT(($I72:Y72))-SUMPRODUCT(($I72:Y72)*($I$6:Y$6<=(Y$6-$E15))) -> 0 | Z77: =SUMPRODUCT(($I72:Z72))-SUMPRODUCT(($I72:Z72)*($I$6:Z$6<=(Z$6-$E15))) -> 0 | AA77: =SUMPRODUCT(($I72:AA72))-SUMPRODUCT(($I72:AA72)*($I$6:AA$6<=(AA$6-$E15))) -> 0 | AB77: =SUMPRODUCT(($I72:AB72))-SUMPRODUCT(($I72:AB72)*($I$6:AB$6<=(AB$6-$E15))) -> 0 | AC77: =SUMPRODUCT(($I72:AC72))-SUMPRODUCT(($I72:AC72)*($I$6:AC$6<=(AC$6-$E15))) -> 0 | AD77: =SUMPRODUCT(($I72:AD72))-SUMPRODUCT(($I72:AD72)*($I$6:AD$6<=(AD$6-$E15))) -> 0 | AE77: =SUMPRODUCT(($I72:AE72))-SUMPRODUCT(($I72:AE72)*($I$6:AE$6<=(AE$6-$E15))) -> 0 | AF77: =SUMPRODUCT(($I72:AF72))-SUMPRODUCT(($I72:AF72)*($I$6:AF$6<=(AF$6-$E15))) -> 0 | AG77: =SUMPRODUCT(($I72:AG72))-SUMPRODUCT(($I72:AG72)*($I$6:AG$6<=(AG$6-$E15))) -> 0
C78: =C16 -> < Enter description > | G78: =input_dollars -> 2023-12-31 | I78: =SUMPRODUCT(($I73:I73))-SUMPRODUCT(($I73:I73)*($I$6:I$6<=(I$6-$E16))) -> 0 | J78: =SUMPRODUCT(($I73:J73))-SUMPRODUCT(($I73:J73)*($I$6:J$6<=(J$6-$E16))) -> 0 | K78: =SUMPRODUCT(($I73:K73))-SUMPRODUCT(($I73:K73)*($I$6:K$6<=(K$6-$E16))) -> 0 | L78: =SUMPRODUCT(($I73:L73))-SUMPRODUCT(($I73:L73)*($I$6:L$6<=(L$6-$E16))) -> 0 | M78: =SUMPRODUCT(($I73:M73))-SUMPRODUCT(($I73:M73)*($I$6:M$6<=(M$6-$E16))) -> 0 | N78: =SUMPRODUCT(($I73:N73))-SUMPRODUCT(($I73:N73)*($I$6:N$6<=(N$6-$E16))) -> 0 | O78: =SUMPRODUCT(($I73:O73))-SUMPRODUCT(($I73:O73)*($I$6:O$6<=(O$6-$E16))) -> 0 | P78: =SUMPRODUCT(($I73:P73))-SUMPRODUCT(($I73:P73)*($I$6:P$6<=(P$6-$E16))) -> 0 | Q78: =SUMPRODUCT(($I73:Q73))-SUMPRODUCT(($I73:Q73)*($I$6:Q$6<=(Q$6-$E16))) -> 0 | R78: =SUMPRODUCT(($I73:R73))-SUMPRODUCT(($I73:R73)*($I$6:R$6<=(R$6-$E16))) -> 0 | S78: =SUMPRODUCT(($I73:S73))-SUMPRODUCT(($I73:S73)*($I$6:S$6<=(S$6-$E16))) -> 0 | T78: =SUMPRODUCT(($I73:T73))-SUMPRODUCT(($I73:T73)*($I$6:T$6<=(T$6-$E16))) -> 0 | U78: =SUMPRODUCT(($I73:U73))-SUMPRODUCT(($I73:U73)*($I$6:U$6<=(U$6-$E16))) -> 0 | V78: =SUMPRODUCT(($I73:V73))-SUMPRODUCT(($I73:V73)*($I$6:V$6<=(V$6-$E16))) -> 0 | W78: =SUMPRODUCT(($I73:W73))-SUMPRODUCT(($I73:W73)*($I$6:W$6<=(W$6-$E16))) -> 0 | X78: =SUMPRODUCT(($I73:X73))-SUMPRODUCT(($I73:X73)*($I$6:X$6<=(X$6-$E16))) -> 0 | Y78: =SUMPRODUCT(($I73:Y73))-SUMPRODUCT(($I73:Y73)*($I$6:Y$6<=(Y$6-$E16))) -> 0 | Z78: =SUMPRODUCT(($I73:Z73))-SUMPRODUCT(($I73:Z73)*($I$6:Z$6<=(Z$6-$E16))) -> 0 | AA78: =SUMPRODUCT(($I73:AA73))-SUMPRODUCT(($I73:AA73)*($I$6:AA$6<=(AA$6-$E16))) -> 0 | AB78: =SUMPRODUCT(($I73:AB73))-SUMPRODUCT(($I73:AB73)*($I$6:AB$6<=(AB$6-$E16))) -> 0 | AC78: =SUMPRODUCT(($I73:AC73))-SUMPRODUCT(($I73:AC73)*($I$6:AC$6<=(AC$6-$E16))) -> 0 | AD78: =SUMPRODUCT(($I73:AD73))-SUMPRODUCT(($I73:AD73)*($I$6:AD$6<=(AD$6-$E16))) -> 0 | AE78: =SUMPRODUCT(($I73:AE73))-SUMPRODUCT(($I73:AE73)*($I$6:AE$6<=(AE$6-$E16))) -> 0 | AF78: =SUMPRODUCT(($I73:AF73))-SUMPRODUCT(($I73:AF73)*($I$6:AF$6<=(AF$6-$E16))) -> 0 | AG78: =SUMPRODUCT(($I73:AG73))-SUMPRODUCT(($I73:AG73)*($I$6:AG$6<=(AG$6-$E16))) -> 0
C80: Annualised capex
C81: =$C$80&" - "&C14 -> Annualised capex - < Enter description > | G81: =input_dollars -> 2023-12-31 | I81: =IF($E14=0,0,-PMT(real_disc, $E14,H76,)) -> 0 | J81: 0 | K81: 0 | L81: 0 | M81: 0 | N81: 0 | O81: 0 | P81: 0 | Q81: 0 | R81: 0 | S81: 0 | T81: 0 | U81: 0 | V81: 0 | W81: 0 | X81: 0 | Y81: 0 | Z81: 0 | AA81: 0 | AB81: 0 | AC81: 0 | AD81: 0 | AE81: 0 | AF81: 0 | AG81: 0
C82: =$C$80&" - "&C15 -> Annualised capex - < Enter description > | G82: =input_dollars -> 2023-12-31 | I82: =IF($E15=0,0,-PMT(real_disc, $E15,H77,)) -> 0 | J82: 0 | K82: 0 | L82: 0 | M82: 0 | N82: 0 | O82: 0 | P82: 0 | Q82: 0 | R82: 0 | S82: 0 | T82: 0 | U82: 0 | V82: 0 | W82: 0 | X82: 0 | Y82: 0 | Z82: 0 | AA82: 0 | AB82: 0 | AC82: 0 | AD82: 0 | AE82: 0 | AF82: 0 | AG82: 0
C83: =$C$80&" - "&C16 -> Annualised capex - < Enter description > | G83: =input_dollars -> 2023-12-31 | I83: =IF($E16=0,0,-PMT(real_disc, $E16,H78,)) -> 0 | J83: 0 | K83: 0 | L83: 0 | M83: 0 | N83: 0 | O83: 0 | P83: 0 | Q83: 0 | R83: 0 | S83: 0 | T83: 0 | U83: 0 | V83: 0 | W83: 0 | X83: 0 | Y83: 0 | Z83: 0 | AA83: 0 | AB83: 0 | AC83: 0 | AD83: 0 | AE83: 0 | AF83: 0 | AG83: 0
C84: Total annualised capex | G84: =input_dollars -> 2023-12-31 | I84: =SUM(I81:I83) -> 0 | J84: =SUM(J81:J83) -> 0 | K84: 0 | L84: 0 | M84: 0 | N84: 0 | O84: 0 | P84: 0 | Q84: 0 | R84: 0 | S84: 0 | T84: 0 | U84: 0 | V84: 0 | W84: 0 | X84: 0 | Y84: 0 | Z84: 0 | AA84: 0 | AB84: 0 | AC84: =SUM(AC81:AC83) -> 0 | AD84: =SUM(AD81:AD83) -> 0 | AE84: =SUM(AE81:AE83) -> 0 | AF84: =SUM(AF81:AF83) -> 0 | AG84: =SUM(AG81:AG83) -> 0
C86: Annualised capex | G86: =input_dollars -> 2023-12-31 | I86: =I84 -> 0 | J86: =J84 -> 0 | K86: 0 | L86: 0 | M86: 0 | N86: 0 | O86: 0 | P86: 0 | Q86: 0 | R86: 0 | S86: 0 | T86: 0 | U86: 0 | V86: 0 | W86: 0 | X86: 0 | Y86: 0 | Z86: 0 | AA86: 0 | AB86: 0 | AC86: =AC84 -> 0 | AD86: =AD84 -> 0 | AE86: =AE84 -> 0 | AF86: =AF84 -> 0 | AG86: =AG84 -> 0
C87: Operating expenditure | G87: 2023-12-31 | I87: =-I19 -> 0 | J87: 0 | K87: 0 | L87: 0 | M87: 0 | N87: 0 | O87: 0 | P87: 0 | Q87: 0 | R87: 0 | S87: 0 | T87: 0 | U87: 0 | V87: 0 | W87: 0 | X87: 0 | Y87: 0 | Z87: 0 | AA87: 0 | AB87: 0 | AC87: 0 | AD87: 0 | AE87: 0 | AF87: 0 | AG87: 0
C88: Risk mitigated | G88: 2023-12-31 | I88: =I68 -> 0 | J88: 0 | K88: 0 | L88: 0 | M88: 0 | N88: 0 | O88: 0 | P88: 0 | Q88: 0 | R88: 0 | S88: 0 | T88: 0 | U88: 0 | V88: 0 | W88: 0 | X88: 0 | Y88: 0 | Z88: 0 | AA88: 0 | AB88: 0 | AC88: 0 | AD88: 0 | AE88: 0 | AF88: 0 | AG88: 0
C89: Other benefits value | G89: 2023-12-31 | I89: =I61 -> 0 | J89: 0 | K89: 0 | L89: 0 | M89: 0 | N89: 0 | O89: 0 | P89: 0 | Q89: 0 | R89: 0 | S89: 0 | T89: 0 | U89: 0 | V89: 0 | W89: 0 | X89: 0 | Y89: 0 | Z89: 0 | AA89: 0 | AB89: 0 | AC89: 0 | AD89: 0 | AE89: 0 | AF89: 0 | AG89: 0
C91: Net benefits | G91: 2023-12-31 | I91: =SUM(I86:I90) -> 0 | J91: 0 | K91: 0 | L91: 0 | M91: 0 | N91: 0 | O91: 0 | P91: 0 | Q91: 0 | R91: 0 | S91: 0 | T91: 0 | U91: 0 | V91: 0 | W91: 0 | X91: 0 | Y91: 0 | Z91: 0 | AA91: 0 | AB91: 0 | AC91: =SUM(AC86:AC90) -> 0 | AD91: =SUM(AD86:AD90) -> 0 | AE91: =SUM(AE86:AE90) -> 0 | AF91: =SUM(AF86:AF90) -> 0 | AG91: =SUM(AG86:AG90) -> 0
C94: First capex year | G94: =IF(SUM($I17:$AG17)=0,0,(INDEX(I$6:AG$6,MATCH(TRUE,INDEX($I17:$AG17<>0,),0)))) -> 0
C96: First year | G96: =IF(_xlfn.MINIFS($G$94:$G$95, $G$94:$G$95, ">"&0)=0, $A$4, _xlfn.MINIFS($G$94:$G$95, $G$94:$G$95, ">"&0)) -> Not used
A106: SENSITIVITIES
A110: NPV | C110: Net benefits | G110: =PROPER($A$3)&A110 -> Option 3NPV | I110: =I91 -> 0 | J110: =J91 -> 0 | K110: 0 | L110: 0 | M110: 0 | N110: 0 | O110: 0 | P110: 0 | Q110: 0 | R110: 0 | S110: 0 | T110: 0 | U110: 0 | V110: 0 | W110: 0 | X110: 0 | Y110: 0 | Z110: 0 | AA110: 0 | AB110: 0 | AC110: 0 | AD110: 0 | AE110: 0 | AF110: 0 | AG110: 0
C111: Total annualised capex | I111: =I86 -> 0 | J111: =J86 -> 0 | K111: 0 | L111: 0 | M111: 0 | N111: 0 | O111: 0 | P111: 0 | Q111: 0 | R111: 0 | S111: 0 | T111: 0 | U111: 0 | V111: 0 | W111: 0 | X111: 0 | Y111: 0 | Z111: 0 | AA111: 0 | AB111: 0 | AC111: 0 | AD111: 0 | AE111: 0 | AF111: 0 | AG111: 0
C112: Total benefits | I112: =SUM(I88:I89) -> 0 | J112: =SUM(J88:J89) -> 0 | K112: 0 | L112: 0 | M112: 0 | N112: 0 | O112: 0 | P112: 0 | Q112: 0 | R112: 0 | S112: 0 | T112: 0 | U112: 0 | V112: 0 | W112: 0 | X112: 0 | Y112: 0 | Z112: 0 | AA112: 0 | AB112: 0 | AC112: 0 | AD112: 0 | AE112: 0 | AF112: 0 | AG112: 0
D113: =Assumptions!G110 -> Capex | E113: =Assumptions!H110 -> Total benefits
A114: ="sens"&Assumptions!B111 -> sens1 | C114: =Assumptions!C111 -> Capex 10% higher | D114: =Assumptions!G111 -> 0.1 | E114: =Assumptions!H111 -> 0 | G114: =PROPER($A$3)&A114 -> Option 3sens1 | I114: =I$110+IF($C114<>0,SUMPRODUCT((I$111:I$112)*TRANSPOSE(($D114:$E114))),0) -> 0 | J114: =J$110+IF($C114<>0,SUMPRODUCT((J$111:J$112)*TRANSPOSE(($D114:$E114))),0) -> 0 | K114: =K$110+IF($C114<>0,SUMPRODUCT((K$111:K$112)*TRANSPOSE(($D114:$E114))),0) -> 0 | L114: =L$110+IF($C114<>0,SUMPRODUCT((L$111:L$112)*TRANSPOSE(($D114:$E114))),0) -> 0 | M114: =M$110+IF($C114<>0,SUMPRODUCT((M$111:M$112)*TRANSPOSE(($D114:$E114))),0) -> 0 | N114: =N$110+IF($C114<>0,SUMPRODUCT((N$111:N$112)*TRANSPOSE(($D114:$E114))),0) -> 0 | O114: =O$110+IF($C114<>0,SUMPRODUCT((O$111:O$112)*TRANSPOSE(($D114:$E114))),0) -> 0 | P114: =P$110+IF($C114<>0,SUMPRODUCT((P$111:P$112)*TRANSPOSE(($D114:$E114))),0) -> 0 | Q114: =Q$110+IF($C114<>0,SUMPRODUCT((Q$111:Q$112)*TRANSPOSE(($D114:$E114))),0) -> 0 | R114: =R$110+IF($C114<>0,SUMPRODUCT((R$111:R$112)*TRANSPOSE(($D114:$E114))),0) -> 0 | S114: =S$110+IF($C114<>0,SUMPRODUCT((S$111:S$112)*TRANSPOSE(($D114:$E114))),0) -> 0 | T114: =T$110+IF($C114<>0,SUMPRODUCT((T$111:T$112)*TRANSPOSE(($D114:$E114))),0) -> 0 | U114: =U$110+IF($C114<>0,SUMPRODUCT((U$111:U$112)*TRANSPOSE(($D114:$E114))),0) -> 0 | V114: =V$110+IF($C114<>0,SUMPRODUCT((V$111:V$112)*TRANSPOSE(($D114:$E114))),0) -> 0 | W114: =W$110+IF($C114<>0,SUMPRODUCT((W$111:W$112)*TRANSPOSE(($D114:$E114))),0) -> 0 | X114: =X$110+IF($C114<>0,SUMPRODUCT((X$111:X$112)*TRANSPOSE(($D114:$E114))),0) -> 0 | Y114: =Y$110+IF($C114<>0,SUMPRODUCT((Y$111:Y$112)*TRANSPOSE(($D114:$E114))),0) -> 0 | Z114: =Z$110+IF($C114<>0,SUMPRODUCT((Z$111:Z$112)*TRANSPOSE(($D114:$E114))),0) -> 0 | AA114: =AA$110+IF($C114<>0,SUMPRODUCT((AA$111:AA$112)*TRANSPOSE(($D114:$E114))),0) -> 0 | AB114: =AB$110+IF($C114<>0,SUMPRODUCT((AB$111:AB$112)*TRANSPOSE(($D114:$E114))),0) -> 0 | AC114: =AC$110+IF($C114<>0,SUMPRODUCT((AC$111:AC$112)*TRANSPOSE(($D114:$E114))),0) -> 0 | AD114: =AD$110+IF($C114<>0,SUMPRODUCT((AD$111:AD$112)*TRANSPOSE(($D114:$E114))),0) -> 0 | AE114: =AE$110+IF($C114<>0,SUMPRODUCT((AE$111:AE$112)*TRANSPOSE(($D114:$E114))),0) -> 0 | AF114: =AF$110+IF($C114<>0,SUMPRODUCT((AF$111:AF$112)*TRANSPOSE(($D114:$E114))),0) -> 0 | AG114: =AG$110+IF($C114<>0,SUMPRODUCT((AG$111:AG$112)*TRANSPOSE(($D114:$E114))),0) -> 0
A115: ="sens"&Assumptions!B112 -> sens2 | C115: =Assumptions!C112 -> Capex 10% lower | D115: =Assumptions!G112 -> -0.1 | E115: =Assumptions!H112 -> 0 | G115: =PROPER($A$3)&A115 -> Option 3sens2 | I115: =I$110+IF($C115<>0,SUMPRODUCT((I$111:I$112)*TRANSPOSE(($D115:$E115))),0) -> 0 | J115: =J$110+IF($C115<>0,SUMPRODUCT((J$111:J$112)*TRANSPOSE(($D115:$E115))),0) -> 0 | K115: =K$110+IF($C115<>0,SUMPRODUCT((K$111:K$112)*TRANSPOSE(($D115:$E115))),0) -> 0 | L115: =L$110+IF($C115<>0,SUMPRODUCT((L$111:L$112)*TRANSPOSE(($D115:$E115))),0) -> 0 | M115: =M$110+IF($C115<>0,SUMPRODUCT((M$111:M$112)*TRANSPOSE(($D115:$E115))),0) -> 0 | N115: =N$110+IF($C115<>0,SUMPRODUCT((N$111:N$112)*TRANSPOSE(($D115:$E115))),0) -> 0 | O115: =O$110+IF($C115<>0,SUMPRODUCT((O$111:O$112)*TRANSPOSE(($D115:$E115))),0) -> 0 | P115: =P$110+IF($C115<>0,SUMPRODUCT((P$111:P$112)*TRANSPOSE(($D115:$E115))),0) -> 0 | Q115: =Q$110+IF($C115<>0,SUMPRODUCT((Q$111:Q$112)*TRANSPOSE(($D115:$E115))),0) -> 0 | R115: =R$110+IF($C115<>0,SUMPRODUCT((R$111:R$112)*TRANSPOSE(($D115:$E115))),0) -> 0 | S115: =S$110+IF($C115<>0,SUMPRODUCT((S$111:S$112)*TRANSPOSE(($D115:$E115))),0) -> 0 | T115: =T$110+IF($C115<>0,SUMPRODUCT((T$111:T$112)*TRANSPOSE(($D115:$E115))),0) -> 0 | U115: =U$110+IF($C115<>0,SUMPRODUCT((U$111:U$112)*TRANSPOSE(($D115:$E115))),0) -> 0 | V115: =V$110+IF($C115<>0,SUMPRODUCT((V$111:V$112)*TRANSPOSE(($D115:$E115))),0) -> 0 | W115: =W$110+IF($C115<>0,SUMPRODUCT((W$111:W$112)*TRANSPOSE(($D115:$E115))),0) -> 0 | X115: =X$110+IF($C115<>0,SUMPRODUCT((X$111:X$112)*TRANSPOSE(($D115:$E115))),0) -> 0 | Y115: =Y$110+IF($C115<>0,SUMPRODUCT((Y$111:Y$112)*TRANSPOSE(($D115:$E115))),0) -> 0 | Z115: =Z$110+IF($C115<>0,SUMPRODUCT((Z$111:Z$112)*TRANSPOSE(($D115:$E115))),0) -> 0 | AA115: =AA$110+IF($C115<>0,SUMPRODUCT((AA$111:AA$112)*TRANSPOSE(($D115:$E115))),0) -> 0 | AB115: =AB$110+IF($C115<>0,SUMPRODUCT((AB$111:AB$112)*TRANSPOSE(($D115:$E115))),0) -> 0 | AC115: =AC$110+IF($C115<>0,SUMPRODUCT((AC$111:AC$112)*TRANSPOSE(($D115:$E115))),0) -> 0 | AD115: =AD$110+IF($C115<>0,SUMPRODUCT((AD$111:AD$112)*TRANSPOSE(($D115:$E115))),0) -> 0 | AE115: =AE$110+IF($C115<>0,SUMPRODUCT((AE$111:AE$112)*TRANSPOSE(($D115:$E115))),0) -> 0 | AF115: =AF$110+IF($C115<>0,SUMPRODUCT((AF$111:AF$112)*TRANSPOSE(($D115:$E115))),0) -> 0 | AG115: =AG$110+IF($C115<>0,SUMPRODUCT((AG$111:AG$112)*TRANSPOSE(($D115:$E115))),0) -> 0
A116: ="sens"&Assumptions!B113 -> sens3 | C116: =Assumptions!C113 -> Total benefits 10% higher | D116: =Assumptions!G113 -> 0 | E116: =Assumptions!H113 -> 0.1 | G116: Option 3sens3 | I116: =I$110+IF($C116<>0,SUMPRODUCT((I$111:I$112)*TRANSPOSE(($D116:$E116))),0) -> 0 | J116: =J$110+IF($C116<>0,SUMPRODUCT((J$111:J$112)*TRANSPOSE(($D116:$E116))),0) -> 0 | K116: =K$110+IF($C116<>0,SUMPRODUCT((K$111:K$112)*TRANSPOSE(($D116:$E116))),0) -> 0 | L116: =L$110+IF($C116<>0,SUMPRODUCT((L$111:L$112)*TRANSPOSE(($D116:$E116))),0) -> 0 | M116: =M$110+IF($C116<>0,SUMPRODUCT((M$111:M$112)*TRANSPOSE(($D116:$E116))),0) -> 0 | N116: =N$110+IF($C116<>0,SUMPRODUCT((N$111:N$112)*TRANSPOSE(($D116:$E116))),0) -> 0 | O116: =O$110+IF($C116<>0,SUMPRODUCT((O$111:O$112)*TRANSPOSE(($D116:$E116))),0) -> 0 | P116: =P$110+IF($C116<>0,SUMPRODUCT((P$111:P$112)*TRANSPOSE(($D116:$E116))),0) -> 0 | Q116: =Q$110+IF($C116<>0,SUMPRODUCT((Q$111:Q$112)*TRANSPOSE(($D116:$E116))),0) -> 0 | R116: =R$110+IF($C116<>0,SUMPRODUCT((R$111:R$112)*TRANSPOSE(($D116:$E116))),0) -> 0 | S116: =S$110+IF($C116<>0,SUMPRODUCT((S$111:S$112)*TRANSPOSE(($D116:$E116))),0) -> 0 | T116: =T$110+IF($C116<>0,SUMPRODUCT((T$111:T$112)*TRANSPOSE(($D116:$E116))),0) -> 0 | U116: =U$110+IF($C116<>0,SUMPRODUCT((U$111:U$112)*TRANSPOSE(($D116:$E116))),0) -> 0 | V116: =V$110+IF($C116<>0,SUMPRODUCT((V$111:V$112)*TRANSPOSE(($D116:$E116))),0) -> 0 | W116: =W$110+IF($C116<>0,SUMPRODUCT((W$111:W$112)*TRANSPOSE(($D116:$E116))),0) -> 0 | X116: =X$110+IF($C116<>0,SUMPRODUCT((X$111:X$112)*TRANSPOSE(($D116:$E116))),0) -> 0 | Y116: =Y$110+IF($C116<>0,SUMPRODUCT((Y$111:Y$112)*TRANSPOSE(($D116:$E116))),0) -> 0 | Z116: =Z$110+IF($C116<>0,SUMPRODUCT((Z$111:Z$112)*TRANSPOSE(($D116:$E116))),0) -> 0 | AA116: =AA$110+IF($C116<>0,SUMPRODUCT((AA$111:AA$112)*TRANSPOSE(($D116:$E116))),0) -> 0 | AB116: =AB$110+IF($C116<>0,SUMPRODUCT((AB$111:AB$112)*TRANSPOSE(($D116:$E116))),0) -> 0 | AC116: =AC$110+IF($C116<>0,SUMPRODUCT((AC$111:AC$112)*TRANSPOSE(($D116:$E116))),0) -> 0 | AD116: =AD$110+IF($C116<>0,SUMPRODUCT((AD$111:AD$112)*TRANSPOSE(($D116:$E116))),0) -> 0 | AE116: =AE$110+IF($C116<>0,SUMPRODUCT((AE$111:AE$112)*TRANSPOSE(($D116:$E116))),0) -> 0 | AF116: =AF$110+IF($C116<>0,SUMPRODUCT((AF$111:AF$112)*TRANSPOSE(($D116:$E116))),0) -> 0 | AG116: =AG$110+IF($C116<>0,SUMPRODUCT((AG$111:AG$112)*TRANSPOSE(($D116:$E116))),0) -> 0
A117: ="sens"&Assumptions!B114 -> sens4 | C117: =Assumptions!C114 -> Total benefits 10% lower | D117: =Assumptions!G114 -> 0 | E117: =Assumptions!H114 -> -0.1 | G117: Option 3sens4 | I117: =I$110+IF($C117<>0,SUMPRODUCT((I$111:I$112)*TRANSPOSE(($D117:$E117))),0) -> 0 | J117: =J$110+IF($C117<>0,SUMPRODUCT((J$111:J$112)*TRANSPOSE(($D117:$E117))),0) -> 0 | K117: =K$110+IF($C117<>0,SUMPRODUCT((K$111:K$112)*TRANSPOSE(($D117:$E117))),0) -> 0 | L117: =L$110+IF($C117<>0,SUMPRODUCT((L$111:L$112)*TRANSPOSE(($D117:$E117))),0) -> 0 | M117: =M$110+IF($C117<>0,SUMPRODUCT((M$111:M$112)*TRANSPOSE(($D117:$E117))),0) -> 0 | N117: =N$110+IF($C117<>0,SUMPRODUCT((N$111:N$112)*TRANSPOSE(($D117:$E117))),0) -> 0 | O117: =O$110+IF($C117<>0,SUMPRODUCT((O$111:O$112)*TRANSPOSE(($D117:$E117))),0) -> 0 | P117: =P$110+IF($C117<>0,SUMPRODUCT((P$111:P$112)*TRANSPOSE(($D117:$E117))),0) -> 0 | Q117: =Q$110+IF($C117<>0,SUMPRODUCT((Q$111:Q$112)*TRANSPOSE(($D117:$E117))),0) -> 0 | R117: =R$110+IF($C117<>0,SUMPRODUCT((R$111:R$112)*TRANSPOSE(($D117:$E117))),0) -> 0 | S117: =S$110+IF($C117<>0,SUMPRODUCT((S$111:S$112)*TRANSPOSE(($D117:$E117))),0) -> 0 | T117: =T$110+IF($C117<>0,SUMPRODUCT((T$111:T$112)*TRANSPOSE(($D117:$E117))),0) -> 0 | U117: =U$110+IF($C117<>0,SUMPRODUCT((U$111:U$112)*TRANSPOSE(($D117:$E117))),0) -> 0 | V117: =V$110+IF($C117<>0,SUMPRODUCT((V$111:V$112)*TRANSPOSE(($D117:$E117))),0) -> 0 | W117: =W$110+IF($C117<>0,SUMPRODUCT((W$111:W$112)*TRANSPOSE(($D117:$E117))),0) -> 0 | X117: =X$110+IF($C117<>0,SUMPRODUCT((X$111:X$112)*TRANSPOSE(($D117:$E117))),0) -> 0 | Y117: =Y$110+IF($C117<>0,SUMPRODUCT((Y$111:Y$112)*TRANSPOSE(($D117:$E117))),0) -> 0 | Z117: =Z$110+IF($C117<>0,SUMPRODUCT((Z$111:Z$112)*TRANSPOSE(($D117:$E117))),0) -> 0 | AA117: =AA$110+IF($C117<>0,SUMPRODUCT((AA$111:AA$112)*TRANSPOSE(($D117:$E117))),0) -> 0 | AB117: =AB$110+IF($C117<>0,SUMPRODUCT((AB$111:AB$112)*TRANSPOSE(($D117:$E117))),0) -> 0 | AC117: =AC$110+IF($C117<>0,SUMPRODUCT((AC$111:AC$112)*TRANSPOSE(($D117:$E117))),0) -> 0 | AD117: =AD$110+IF($C117<>0,SUMPRODUCT((AD$111:AD$112)*TRANSPOSE(($D117:$E117))),0) -> 0 | AE117: =AE$110+IF($C117<>0,SUMPRODUCT((AE$111:AE$112)*TRANSPOSE(($D117:$E117))),0) -> 0 | AF117: =AF$110+IF($C117<>0,SUMPRODUCT((AF$111:AF$112)*TRANSPOSE(($D117:$E117))),0) -> 0 | AG117: =AG$110+IF($C117<>0,SUMPRODUCT((AG$111:AG$112)*TRANSPOSE(($D117:$E117))),0) -> 0
A118: ="sens"&Assumptions!B115 -> sens5 | C118: =Assumptions!C115 -> Capex 10% higher & Total benefits 10% lower | D118: =Assumptions!G115 -> 0.1 | E118: =Assumptions!H115 -> -0.1 | G118: Option 3sens5 | I118: =I$110+IF($C118<>0,SUMPRODUCT((I$111:I$112)*TRANSPOSE(($D118:$E118))),0) -> 0 | J118: =J$110+IF($C118<>0,SUMPRODUCT((J$111:J$112)*TRANSPOSE(($D118:$E118))),0) -> 0 | K118: =K$110+IF($C118<>0,SUMPRODUCT((K$111:K$112)*TRANSPOSE(($D118:$E118))),0) -> 0 | L118: =L$110+IF($C118<>0,SUMPRODUCT((L$111:L$112)*TRANSPOSE(($D118:$E118))),0) -> 0 | M118: =M$110+IF($C118<>0,SUMPRODUCT((M$111:M$112)*TRANSPOSE(($D118:$E118))),0) -> 0 | N118: =N$110+IF($C118<>0,SUMPRODUCT((N$111:N$112)*TRANSPOSE(($D118:$E118))),0) -> 0 | O118: =O$110+IF($C118<>0,SUMPRODUCT((O$111:O$112)*TRANSPOSE(($D118:$E118))),0) -> 0 | P118: =P$110+IF($C118<>0,SUMPRODUCT((P$111:P$112)*TRANSPOSE(($D118:$E118))),0) -> 0 | Q118: =Q$110+IF($C118<>0,SUMPRODUCT((Q$111:Q$112)*TRANSPOSE(($D118:$E118))),0) -> 0 | R118: =R$110+IF($C118<>0,SUMPRODUCT((R$111:R$112)*TRANSPOSE(($D118:$E118))),0) -> 0 | S118: =S$110+IF($C118<>0,SUMPRODUCT((S$111:S$112)*TRANSPOSE(($D118:$E118))),0) -> 0 | T118: =T$110+IF($C118<>0,SUMPRODUCT((T$111:T$112)*TRANSPOSE(($D118:$E118))),0) -> 0 | U118: =U$110+IF($C118<>0,SUMPRODUCT((U$111:U$112)*TRANSPOSE(($D118:$E118))),0) -> 0 | V118: =V$110+IF($C118<>0,SUMPRODUCT((V$111:V$112)*TRANSPOSE(($D118:$E118))),0) -> 0 | W118: =W$110+IF($C118<>0,SUMPRODUCT((W$111:W$112)*TRANSPOSE(($D118:$E118))),0) -> 0 | X118: =X$110+IF($C118<>0,SUMPRODUCT((X$111:X$112)*TRANSPOSE(($D118:$E118))),0) -> 0 | Y118: =Y$110+IF($C118<>0,SUMPRODUCT((Y$111:Y$112)*TRANSPOSE(($D118:$E118))),0) -> 0 | Z118: =Z$110+IF($C118<>0,SUMPRODUCT((Z$111:Z$112)*TRANSPOSE(($D118:$E118))),0) -> 0 | AA118: =AA$110+IF($C118<>0,SUMPRODUCT((AA$111:AA$112)*TRANSPOSE(($D118:$E118))),0) -> 0 | AB118: =AB$110+IF($C118<>0,SUMPRODUCT((AB$111:AB$112)*TRANSPOSE(($D118:$E118))),0) -> 0 | AC118: =AC$110+IF($C118<>0,SUMPRODUCT((AC$111:AC$112)*TRANSPOSE(($D118:$E118))),0) -> 0 | AD118: =AD$110+IF($C118<>0,SUMPRODUCT((AD$111:AD$112)*TRANSPOSE(($D118:$E118))),0) -> 0 | AE118: =AE$110+IF($C118<>0,SUMPRODUCT((AE$111:AE$112)*TRANSPOSE(($D118:$E118))),0) -> 0 | AF118: =AF$110+IF($C118<>0,SUMPRODUCT((AF$111:AF$112)*TRANSPOSE(($D118:$E118))),0) -> 0 | AG118: =AG$110+IF($C118<>0,SUMPRODUCT((AG$111:AG$112)*TRANSPOSE(($D118:$E118))),0) -> 0
A119: ="sens"&Assumptions!B116 -> sens | C119: =Assumptions!C116 -> 0 | D119: =Assumptions!G116 -> 0 | E119: =Assumptions!H116 -> 0 | G119: Option 3sens | I119: =I$110+IF($C119<>0,SUMPRODUCT((I$111:I$112)*TRANSPOSE(($D119:$E119))),0) -> 0 | J119: =J$110+IF($C119<>0,SUMPRODUCT((J$111:J$112)*TRANSPOSE(($D119:$E119))),0) -> 0 | K119: =K$110+IF($C119<>0,SUMPRODUCT((K$111:K$112)*TRANSPOSE(($D119:$E119))),0) -> 0 | L119: =L$110+IF($C119<>0,SUMPRODUCT((L$111:L$112)*TRANSPOSE(($D119:$E119))),0) -> 0 | M119: =M$110+IF($C119<>0,SUMPRODUCT((M$111:M$112)*TRANSPOSE(($D119:$E119))),0) -> 0 | N119: =N$110+IF($C119<>0,SUMPRODUCT((N$111:N$112)*TRANSPOSE(($D119:$E119))),0) -> 0 | O119: =O$110+IF($C119<>0,SUMPRODUCT((O$111:O$112)*TRANSPOSE(($D119:$E119))),0) -> 0 | P119: =P$110+IF($C119<>0,SUMPRODUCT((P$111:P$112)*TRANSPOSE(($D119:$E119))),0) -> 0 | Q119: =Q$110+IF($C119<>0,SUMPRODUCT((Q$111:Q$112)*TRANSPOSE(($D119:$E119))),0) -> 0 | R119: =R$110+IF($C119<>0,SUMPRODUCT((R$111:R$112)*TRANSPOSE(($D119:$E119))),0) -> 0 | S119: =S$110+IF($C119<>0,SUMPRODUCT((S$111:S$112)*TRANSPOSE(($D119:$E119))),0) -> 0 | T119: =T$110+IF($C119<>0,SUMPRODUCT((T$111:T$112)*TRANSPOSE(($D119:$E119))),0) -> 0 | U119: =U$110+IF($C119<>0,SUMPRODUCT((U$111:U$112)*TRANSPOSE(($D119:$E119))),0) -> 0 | V119: =V$110+IF($C119<>0,SUMPRODUCT((V$111:V$112)*TRANSPOSE(($D119:$E119))),0) -> 0 | W119: =W$110+IF($C119<>0,SUMPRODUCT((W$111:W$112)*TRANSPOSE(($D119:$E119))),0) -> 0 | X119: =X$110+IF($C119<>0,SUMPRODUCT((X$111:X$112)*TRANSPOSE(($D119:$E119))),0) -> 0 | Y119: =Y$110+IF($C119<>0,SUMPRODUCT((Y$111:Y$112)*TRANSPOSE(($D119:$E119))),0) -> 0 | Z119: =Z$110+IF($C119<>0,SUMPRODUCT((Z$111:Z$112)*TRANSPOSE(($D119:$E119))),0) -> 0 | AA119: =AA$110+IF($C119<>0,SUMPRODUCT((AA$111:AA$112)*TRANSPOSE(($D119:$E119))),0) -> 0 | AB119: =AB$110+IF($C119<>0,SUMPRODUCT((AB$111:AB$112)*TRANSPOSE(($D119:$E119))),0) -> 0 | AC119: =AC$110+IF($C119<>0,SUMPRODUCT((AC$111:AC$112)*TRANSPOSE(($D119:$E119))),0) -> 0 | AD119: =AD$110+IF($C119<>0,SUMPRODUCT((AD$111:AD$112)*TRANSPOSE(($D119:$E119))),0) -> 0 | AE119: =AE$110+IF($C119<>0,SUMPRODUCT((AE$111:AE$112)*TRANSPOSE(($D119:$E119))),0) -> 0 | AF119: =AF$110+IF($C119<>0,SUMPRODUCT((AF$111:AF$112)*TRANSPOSE(($D119:$E119))),0) -> 0 | AG119: =AG$110+IF($C119<>0,SUMPRODUCT((AG$111:AG$112)*TRANSPOSE(($D119:$E119))),0) -> 0
A120: ="sens"&Assumptions!B117 -> sens | C120: =Assumptions!C117 -> 0 | D120: =Assumptions!G117 -> 0 | E120: =Assumptions!H117 -> 0 | G120: Option 3sens | I120: =I$110+IF($C120<>0,SUMPRODUCT((I$111:I$112)*TRANSPOSE(($D120:$E120))),0) -> 0 | J120: =J$110+IF($C120<>0,SUMPRODUCT((J$111:J$112)*TRANSPOSE(($D120:$E120))),0) -> 0 | K120: =K$110+IF($C120<>0,SUMPRODUCT((K$111:K$112)*TRANSPOSE(($D120:$E120))),0) -> 0 | L120: =L$110+IF($C120<>0,SUMPRODUCT((L$111:L$112)*TRANSPOSE(($D120:$E120))),0) -> 0 | M120: =M$110+IF($C120<>0,SUMPRODUCT((M$111:M$112)*TRANSPOSE(($D120:$E120))),0) -> 0 | N120: =N$110+IF($C120<>0,SUMPRODUCT((N$111:N$112)*TRANSPOSE(($D120:$E120))),0) -> 0 | O120: =O$110+IF($C120<>0,SUMPRODUCT((O$111:O$112)*TRANSPOSE(($D120:$E120))),0) -> 0 | P120: =P$110+IF($C120<>0,SUMPRODUCT((P$111:P$112)*TRANSPOSE(($D120:$E120))),0) -> 0 | Q120: =Q$110+IF($C120<>0,SUMPRODUCT((Q$111:Q$112)*TRANSPOSE(($D120:$E120))),0) -> 0 | R120: =R$110+IF($C120<>0,SUMPRODUCT((R$111:R$112)*TRANSPOSE(($D120:$E120))),0) -> 0 | S120: =S$110+IF($C120<>0,SUMPRODUCT((S$111:S$112)*TRANSPOSE(($D120:$E120))),0) -> 0 | T120: =T$110+IF($C120<>0,SUMPRODUCT((T$111:T$112)*TRANSPOSE(($D120:$E120))),0) -> 0 | U120: =U$110+IF($C120<>0,SUMPRODUCT((U$111:U$112)*TRANSPOSE(($D120:$E120))),0) -> 0 | V120: =V$110+IF($C120<>0,SUMPRODUCT((V$111:V$112)*TRANSPOSE(($D120:$E120))),0) -> 0 | W120: =W$110+IF($C120<>0,SUMPRODUCT((W$111:W$112)*TRANSPOSE(($D120:$E120))),0) -> 0 | X120: =X$110+IF($C120<>0,SUMPRODUCT((X$111:X$112)*TRANSPOSE(($D120:$E120))),0) -> 0 | Y120: =Y$110+IF($C120<>0,SUMPRODUCT((Y$111:Y$112)*TRANSPOSE(($D120:$E120))),0) -> 0 | Z120: =Z$110+IF($C120<>0,SUMPRODUCT((Z$111:Z$112)*TRANSPOSE(($D120:$E120))),0) -> 0 | AA120: =AA$110+IF($C120<>0,SUMPRODUCT((AA$111:AA$112)*TRANSPOSE(($D120:$E120))),0) -> 0 | AB120: =AB$110+IF($C120<>0,SUMPRODUCT((AB$111:AB$112)*TRANSPOSE(($D120:$E120))),0) -> 0 | AC120: =AC$110+IF($C120<>0,SUMPRODUCT((AC$111:AC$112)*TRANSPOSE(($D120:$E120))),0) -> 0 | AD120: =AD$110+IF($C120<>0,SUMPRODUCT((AD$111:AD$112)*TRANSPOSE(($D120:$E120))),0) -> 0 | AE120: =AE$110+IF($C120<>0,SUMPRODUCT((AE$111:AE$112)*TRANSPOSE(($D120:$E120))),0) -> 0 | AF120: =AF$110+IF($C120<>0,SUMPRODUCT((AF$111:AF$112)*TRANSPOSE(($D120:$E120))),0) -> 0 | AG120: =AG$110+IF($C120<>0,SUMPRODUCT((AG$111:AG$112)*TRANSPOSE(($D120:$E120))),0) -> 0
A121: ="sens"&Assumptions!B118 -> sens | C121: =Assumptions!C118 -> 0 | D121: =Assumptions!G118 -> 0 | E121: =Assumptions!H118 -> 0 | G121: Option 3sens | I121: =I$110+IF($C121<>0,SUMPRODUCT((I$111:I$112)*TRANSPOSE(($D121:$E121))),0) -> 0 | J121: =J$110+IF($C121<>0,SUMPRODUCT((J$111:J$112)*TRANSPOSE(($D121:$E121))),0) -> 0 | K121: =K$110+IF($C121<>0,SUMPRODUCT((K$111:K$112)*TRANSPOSE(($D121:$E121))),0) -> 0 | L121: =L$110+IF($C121<>0,SUMPRODUCT((L$111:L$112)*TRANSPOSE(($D121:$E121))),0) -> 0 | M121: =M$110+IF($C121<>0,SUMPRODUCT((M$111:M$112)*TRANSPOSE(($D121:$E121))),0) -> 0 | N121: =N$110+IF($C121<>0,SUMPRODUCT((N$111:N$112)*TRANSPOSE(($D121:$E121))),0) -> 0 | O121: =O$110+IF($C121<>0,SUMPRODUCT((O$111:O$112)*TRANSPOSE(($D121:$E121))),0) -> 0 | P121: =P$110+IF($C121<>0,SUMPRODUCT((P$111:P$112)*TRANSPOSE(($D121:$E121))),0) -> 0 | Q121: =Q$110+IF($C121<>0,SUMPRODUCT((Q$111:Q$112)*TRANSPOSE(($D121:$E121))),0) -> 0 | R121: =R$110+IF($C121<>0,SUMPRODUCT((R$111:R$112)*TRANSPOSE(($D121:$E121))),0) -> 0 | S121: =S$110+IF($C121<>0,SUMPRODUCT((S$111:S$112)*TRANSPOSE(($D121:$E121))),0) -> 0 | T121: =T$110+IF($C121<>0,SUMPRODUCT((T$111:T$112)*TRANSPOSE(($D121:$E121))),0) -> 0 | U121: =U$110+IF($C121<>0,SUMPRODUCT((U$111:U$112)*TRANSPOSE(($D121:$E121))),0) -> 0 | V121: =V$110+IF($C121<>0,SUMPRODUCT((V$111:V$112)*TRANSPOSE(($D121:$E121))),0) -> 0 | W121: =W$110+IF($C121<>0,SUMPRODUCT((W$111:W$112)*TRANSPOSE(($D121:$E121))),0) -> 0 | X121: =X$110+IF($C121<>0,SUMPRODUCT((X$111:X$112)*TRANSPOSE(($D121:$E121))),0) -> 0 | Y121: =Y$110+IF($C121<>0,SUMPRODUCT((Y$111:Y$112)*TRANSPOSE(($D121:$E121))),0) -> 0 | Z121: =Z$110+IF($C121<>0,SUMPRODUCT((Z$111:Z$112)*TRANSPOSE(($D121:$E121))),0) -> 0 | AA121: =AA$110+IF($C121<>0,SUMPRODUCT((AA$111:AA$112)*TRANSPOSE(($D121:$E121))),0) -> 0 | AB121: =AB$110+IF($C121<>0,SUMPRODUCT((AB$111:AB$112)*TRANSPOSE(($D121:$E121))),0) -> 0 | AC121: =AC$110+IF($C121<>0,SUMPRODUCT((AC$111:AC$112)*TRANSPOSE(($D121:$E121))),0) -> 0 | AD121: =AD$110+IF($C121<>0,SUMPRODUCT((AD$111:AD$112)*TRANSPOSE(($D121:$E121))),0) -> 0 | AE121: =AE$110+IF($C121<>0,SUMPRODUCT((AE$111:AE$112)*TRANSPOSE(($D121:$E121))),0) -> 0 | AF121: =AF$110+IF($C121<>0,SUMPRODUCT((AF$111:AF$112)*TRANSPOSE(($D121:$E121))),0) -> 0 | AG121: =AG$110+IF($C121<>0,SUMPRODUCT((AG$111:AG$112)*TRANSPOSE(($D121:$E121))),0) -> 0

Sheet Option4
A1: =bus -> Powercor
A2: =proj -> Mount Cottrell feeder 9
A3: OPTION 4 | C3: =INDEX(Assumptions!$E$14:$E$18, MATCH(A3,_xlfn.ANCHORARRAY( Assumptions!$C$14),0)) -> 0
A4: =(INDEX(Data!$D$9:$D$13, MATCH(A3, options,0))) -> Not used
A6: ='Option1 (base case)'!A6 -> Count | I6: ='Option1 (base case)'!I6 -> 1 | J6: ='Option1 (base case)'!J6 -> 2 | K6: ='Option1 (base case)'!K6 -> 3 | L6: ='Option1 (base case)'!L6 -> 4 | M6: ='Option1 (base case)'!M6 -> 5 | N6: ='Option1 (base case)'!N6 -> 6 | O6: ='Option1 (base case)'!O6 -> 7 | P6: ='Option1 (base case)'!P6 -> 8 | Q6: ='Option1 (base case)'!Q6 -> 9 | R6: ='Option1 (base case)'!R6 -> 10 | S6: ='Option1 (base case)'!S6 -> 11 | T6: ='Option1 (base case)'!T6 -> 12 | U6: ='Option1 (base case)'!U6 -> 13 | V6: ='Option1 (base case)'!V6 -> 14 | W6: ='Option1 (base case)'!W6 -> 15 | X6: ='Option1 (base case)'!X6 -> 16 | Y6: ='Option1 (base case)'!Y6 -> 17 | Z6: ='Option1 (base case)'!Z6 -> 18 | AA6: ='Option1 (base case)'!AA6 -> 19 | AB6: ='Option1 (base case)'!AB6 -> 20 | AC6: ='Option1 (base case)'!AC6 -> 21 | AD6: ='Option1 (base case)'!AD6 -> 22 | AE6: ='Option1 (base case)'!AE6 -> 23 | AF6: ='Option1 (base case)'!AF6 -> 24 | AG6: ='Option1 (base case)'!AG6 -> 25
A7: ='Option1 (base case)'!A7 -> Value of CO2 reductions | G7: $/MWh | I7: ='Option1 (base case)'!I7 -> 24.7304868 | J7: ='Option1 (base case)'!J7 -> 22.34074009 | K7: ='Option1 (base case)'!K7 -> 20.19632912 | L7: ='Option1 (base case)'!L7 -> 18.06294208 | M7: ='Option1 (base case)'!M7 -> 15.91339762 | N7: ='Option1 (base case)'!N7 -> 13.71506943 | O7: ='Option1 (base case)'!O7 -> 13.71506943 | P7: ='Option1 (base case)'!P7 -> 13.71506943 | Q7: ='Option1 (base case)'!Q7 -> 13.71506943 | R7: ='Option1 (base case)'!R7 -> 13.71506943 | S7: ='Option1 (base case)'!S7 -> 13.71506943 | T7: ='Option1 (base case)'!T7 -> 13.71506943 | U7: ='Option1 (base case)'!U7 -> 13.71506943 | V7: ='Option1 (base case)'!V7 -> 13.71506943 | W7: ='Option1 (base case)'!W7 -> 13.71506943 | X7: ='Option1 (base case)'!X7 -> 13.71506943 | Y7: ='Option1 (base case)'!Y7 -> 13.71506943 | Z7: ='Option1 (base case)'!Z7 -> 13.71506943 | AA7: ='Option1 (base case)'!AA7 -> 13.71506943 | AB7: ='Option1 (base case)'!AB7 -> 13.71506943 | AC7: ='Option1 (base case)'!AC7 -> 13.71506943 | AD7: ='Option1 (base case)'!AD7 -> 13.71506943 | AE7: ='Option1 (base case)'!AE7 -> 13.71506943 | AF7: ='Option1 (base case)'!AF7 -> 13.71506943 | AG7: ='Option1 (base case)'!AG7 -> 13.71506943
I8: =_xlfn.NUMBERVALUE(LEFT(I$9,4))+1 -> 2027 | J8: =_xlfn.NUMBERVALUE(LEFT(J$9,4))+1 -> 2028 | K8: 2029 | L8: 2030 | M8: 2031 | N8: 2032 | O8: 2033 | P8: 2034 | Q8: 2035 | R8: 2036 | S8: 2037 | T8: 2038 | U8: 2039 | V8: 2040 | W8: 2041 | X8: 2042 | Y8: 2043 | Z8: 2044 | AA8: 2045 | AB8: 2046 | AC8: 2047 | AD8: 2048 | AE8: 2049 | AF8: 2050 | AG8: 2051
G9: Units | I9: ='Option1 (base case)'!I9 -> 2026-27 | J9: ='Option1 (base case)'!J9 -> 2027-28 | K9: ='Option1 (base case)'!K9 -> 2028-29 | L9: ='Option1 (base case)'!L9 -> 2029-30 | M9: ='Option1 (base case)'!M9 -> 2030-31 | N9: ='Option1 (base case)'!N9 -> 2031-32 | O9: ='Option1 (base case)'!O9 -> 2032-33 | P9: ='Option1 (base case)'!P9 -> 2033-34 | Q9: ='Option1 (base case)'!Q9 -> 2034-35 | R9: ='Option1 (base case)'!R9 -> 2035-36 | S9: ='Option1 (base case)'!S9 -> 2036-37 | T9: ='Option1 (base case)'!T9 -> 2037-38 | U9: ='Option1 (base case)'!U9 -> 2038-39 | V9: ='Option1 (base case)'!V9 -> 2039-40 | W9: ='Option1 (base case)'!W9 -> 2040-41 | X9: ='Option1 (base case)'!X9 -> 2041-42 | Y9: ='Option1 (base case)'!Y9 -> 2042-43 | Z9: ='Option1 (base case)'!Z9 -> 2043-44 | AA9: ='Option1 (base case)'!AA9 -> 2044-45 | AB9: ='Option1 (base case)'!AB9 -> 2045-46 | AC9: ='Option1 (base case)'!AC9 -> 2046-47 | AD9: ='Option1 (base case)'!AD9 -> 2047-48 | AE9: ='Option1 (base case)'!AE9 -> 2048-49 | AF9: ='Option1 (base case)'!AF9 -> 2049-50 | AG9: ='Option1 (base case)'!AG9 -> 2050-51
A11: INVESTMENT & OPERATING COST
C13: Capex | E13: Asset life (yrs)
C14: < Enter description > | E14: 0 | G14: =input_dollars -> 2023-12-31 | I14: 0 | J14: 0 | K14: 0 | L14: 0 | M14: 0 | N14: 0 | O14: 0 | P14: 0 | Q14: 0 | R14: 0 | S14: 0 | T14: 0 | U14: 0 | V14: 0 | W14: 0 | X14: 0 | Y14: 0 | Z14: 0 | AA14: 0 | AB14: 0 | AC14: 0 | AD14: 0 | AE14: 0 | AF14: 0 | AG14: 0
C15: < Enter description > | E15: 0 | G15: =input_dollars -> 2023-12-31 | I15: 0 | J15: 0 | K15: 0 | L15: 0 | M15: 0 | N15: 0 | O15: 0 | P15: 0 | Q15: 0 | R15: 0 | S15: 0 | T15: 0 | U15: 0 | V15: 0 | W15: 0 | X15: 0 | Y15: 0 | Z15: 0 | AA15: 0 | AB15: 0 | AC15: 0 | AD15: 0 | AE15: 0 | AF15: 0 | AG15: 0
C16: < Enter description > | E16: 0 | G16: =input_dollars -> 2023-12-31 | I16: 0 | J16: 0 | K16: 0 | L16: 0 | M16: 0 | N16: 0 | O16: 0 | P16: 0 | Q16: 0 | R16: 0 | S16: 0 | T16: 0 | U16: 0 | V16: 0 | W16: 0 | X16: 0 | Y16: 0 | Z16: 0 | AA16: 0 | AB16: 0 | AC16: 0 | AD16: 0 | AE16: 0 | AF16: 0 | AG16: 0
C17: Capital expenditure | G17: =input_dollars -> 2023-12-31 | I17: =SUM(I14:I16) -> 0 | J17: 0 | K17: 0 | L17: 0 | M17: 0 | N17: 0 | O17: 0 | P17: 0 | Q17: 0 | R17: =SUM(R14:R16) -> 0 | S17: 0 | T17: 0 | U17: 0 | V17: 0 | W17: 0 | X17: 0 | Y17: 0 | Z17: 0 | AA17: 0 | AB17: 0 | AC17: 0 | AD17: 0 | AE17: 0 | AF17: 0 | AG17: 0
C19: Operating expenditure | G19: =input_dollars -> 2023-12-31 | I19: 0 | J19: 0 | K19: 0 | L19: 0 | M19: 0 | N19: 0 | O19: 0 | P19: 0 | Q19: 0 | R19: 0 | S19: 0 | T19: 0 | U19: 0 | V19: 0 | W19: 0 | X19: 0 | Y19: 0 | Z19: 0 | AA19: 0 | AB19: 0 | AC19: 0 | AD19: 0 | AE19: 0 | AF19: 0 | AG19: 0
A22: RISK ASSUMPTIONS
C24: PoF (major) | I24: 0 | J24: 0 | K24: 0 | L24: 0 | M24: 0 | N24: 0 | O24: 0 | P24: 0 | Q24: 0 | R24: 0 | S24: 0 | T24: 0 | U24: 0 | V24: 0 | W24: 0 | X24: 0 | Y24: 0 | Z24: 0 | AA24: 0 | AB24: 0 | AC24: 0 | AD24: 0 | AE24: 0 | AF24: 0 | AG24: 0
C25: PoF (reparable) | I25: 0 | J25: 0 | K25: 0 | L25: 0 | M25: 0 | N25: 0 | O25: 0 | P25: 0 | Q25: 0 | R25: 0 | S25: 0 | T25: 0 | U25: 0 | V25: 0 | W25: 0 | X25: 0 | Y25: 0 | Z25: 0 | AA25: 0 | AB25: 0 | AC25: 0 | AD25: 0 | AE25: 0 | AF25: 0 | AG25: 0
C27: Const end date
C28: Energy at risk 10% PoE | E28: 0.3 | G28: MWh | I28: 0 | J28: 0 | K28: 0 | L28: 0 | M28: 0 | N28: 0 | O28: 0 | P28: 0 | Q28: 0 | R28: 0 | S28: 0 | T28: 0 | U28: 0 | V28: 0 | W28: 0 | X28: 0 | Y28: 0 | Z28: 0 | AA28: 0 | AB28: 0 | AC28: 0 | AD28: 0 | AE28: 0 | AF28: 0 | AG28: 0
C29: Energy at risk 50% PoE | E29: 0.7 | G29: MWh | I29: 0 | J29: 0 | K29: 0 | L29: 0 | M29: 0 | N29: 0 | O29: 0 | P29: 0 | Q29: 0 | R29: 0 | S29: 0 | T29: 0 | U29: 0 | V29: 0 | W29: 0 | X29: 0 | Y29: 0 | Z29: 0 | AA29: 0 | AB29: 0 | AC29: 0 | AD29: 0 | AE29: 0 | AF29: 0 | AG29: 0
C31: Energy at risk (weighted) | G31: MWh | I31: =SUMPRODUCT(I$28:I$29, $E$28:$E$29) -> 0 | J31: =SUMPRODUCT(J$28:J$29, $E$28:$E$29) -> 0 | K31: 0 | L31: 0 | M31: 0 | N31: 0 | O31: 0 | P31: 0 | Q31: 0 | R31: 0 | S31: 0 | T31: 0 | U31: 0 | V31: 0 | W31: 0 | X31: 0 | Y31: 0 | Z31: 0 | AA31: 0 | AB31: 0 | AC31: 0 | AD31: 0 | AE31: 0 | AF31: 0 | AG31: 0
C32: Energy at risk value | D32: $/MWh | E32: =Assumptions!H41*vcr_esc -> 43995.26048 | F32: =IF(AND(SUM(I31:AG31)<>0, E32=0), "!", "") ->  | G32: =input_dollars -> 2023-12-31 | I32: =I31*$E$32 -> 0 | J32: =J31*$E$32 -> 0 | K32: 0 | L32: 0 | M32: 0 | N32: 0 | O32: 0 | P32: 0 | Q32: 0 | R32: 0 | S32: 0 | T32: 0 | U32: 0 | V32: 0 | W32: 0 | X32: 0 | Y32: 0 | Z32: 0 | AA32: 0 | AB32: 0 | AC32: 0 | AD32: 0 | AE32: 0 | AF32: 0 | AG32: 0
C34: Safety consequence | D34: (after DF) | G34: =input_dollars -> 2023-12-31 | I34: =SUMPRODUCT((Assumptions!$H$70:$H$71)*(Assumptions!$G$70:$G$71)*(Assumptions!$I$70:$I$71)*(I$24:I$25)) -> 0 | J34: =SUMPRODUCT((Assumptions!$H$70:$H$71)*(Assumptions!$G$70:$G$71)*(Assumptions!$I$70:$I$71)*(J$24:J$25)) -> 0 | K34: =SUMPRODUCT((Assumptions!$H$70:$H$71)*(Assumptions!$G$70:$G$71)*(Assumptions!$I$70:$I$71)*(K$24:K$25)) -> 0 | L34: =SUMPRODUCT((Assumptions!$H$70:$H$71)*(Assumptions!$G$70:$G$71)*(Assumptions!$I$70:$I$71)*(L$24:L$25)) -> 0 | M34: =SUMPRODUCT((Assumptions!$H$70:$H$71)*(Assumptions!$G$70:$G$71)*(Assumptions!$I$70:$I$71)*(M$24:M$25)) -> 0 | N34: =SUMPRODUCT((Assumptions!$H$70:$H$71)*(Assumptions!$G$70:$G$71)*(Assumptions!$I$70:$I$71)*(N$24:N$25)) -> 0 | O34: =SUMPRODUCT((Assumptions!$H$70:$H$71)*(Assumptions!$G$70:$G$71)*(Assumptions!$I$70:$I$71)*(O$24:O$25)) -> 0 | P34: =SUMPRODUCT((Assumptions!$H$70:$H$71)*(Assumptions!$G$70:$G$71)*(Assumptions!$I$70:$I$71)*(P$24:P$25)) -> 0 | Q34: =SUMPRODUCT((Assumptions!$H$70:$H$71)*(Assumptions!$G$70:$G$71)*(Assumptions!$I$70:$I$71)*(Q$24:Q$25)) -> 0 | R34: =SUMPRODUCT((Assumptions!$H$70:$H$71)*(Assumptions!$G$70:$G$71)*(Assumptions!$I$70:$I$71)*(R$24:R$25)) -> 0 | S34: =SUMPRODUCT((Assumptions!$H$70:$H$71)*(Assumptions!$G$70:$G$71)*(Assumptions!$I$70:$I$71)*(S$24:S$25)) -> 0 | T34: =SUMPRODUCT((Assumptions!$H$70:$H$71)*(Assumptions!$G$70:$G$71)*(Assumptions!$I$70:$I$71)*(T$24:T$25)) -> 0 | U34: =SUMPRODUCT((Assumptions!$H$70:$H$71)*(Assumptions!$G$70:$G$71)*(Assumptions!$I$70:$I$71)*(U$24:U$25)) -> 0 | V34: =SUMPRODUCT((Assumptions!$H$70:$H$71)*(Assumptions!$G$70:$G$71)*(Assumptions!$I$70:$I$71)*(V$24:V$25)) -> 0 | W34: =SUMPRODUCT((Assumptions!$H$70:$H$71)*(Assumptions!$G$70:$G$71)*(Assumptions!$I$70:$I$71)*(W$24:W$25)) -> 0 | X34: =SUMPRODUCT((Assumptions!$H$70:$H$71)*(Assumptions!$G$70:$G$71)*(Assumptions!$I$70:$I$71)*(X$24:X$25)) -> 0 | Y34: =SUMPRODUCT((Assumptions!$H$70:$H$71)*(Assumptions!$G$70:$G$71)*(Assumptions!$I$70:$I$71)*(Y$24:Y$25)) -> 0 | Z34: =SUMPRODUCT((Assumptions!$H$70:$H$71)*(Assumptions!$G$70:$G$71)*(Assumptions!$I$70:$I$71)*(Z$24:Z$25)) -> 0 | AA34: =SUMPRODUCT((Assumptions!$H$70:$H$71)*(Assumptions!$G$70:$G$71)*(Assumptions!$I$70:$I$71)*(AA$24:AA$25)) -> 0 | AB34: =SUMPRODUCT((Assumptions!$H$70:$H$71)*(Assumptions!$G$70:$G$71)*(Assumptions!$I$70:$I$71)*(AB$24:AB$25)) -> 0 | AC34: =SUMPRODUCT((Assumptions!$H$70:$H$71)*(Assumptions!$G$70:$G$71)*(Assumptions!$I$70:$I$71)*(AC$24:AC$25)) -> 0 | AD34: =SUMPRODUCT((Assumptions!$H$70:$H$71)*(Assumptions!$G$70:$G$71)*(Assumptions!$I$70:$I$71)*(AD$24:AD$25)) -> 0 | AE34: =SUMPRODUCT((Assumptions!$H$70:$H$71)*(Assumptions!$G$70:$G$71)*(Assumptions!$I$70:$I$71)*(AE$24:AE$25)) -> 0 | AF34: =SUMPRODUCT((Assumptions!$H$70:$H$71)*(Assumptions!$G$70:$G$71)*(Assumptions!$I$70:$I$71)*(AF$24:AF$25)) -> 0 | AG34: =SUMPRODUCT((Assumptions!$H$70:$H$71)*(Assumptions!$G$70:$G$71)*(Assumptions!$I$70:$I$71)*(AG$24:AG$25)) -> 0
C35: Unplanned replacements | G35: =input_dollars -> 2023-12-31 | I35: =(1+Assumptions!$G$81)*SUMPRODUCT((Assumptions!$G$78:$G$79)*(I$24:I$25)) -> 0 | J35: =(1+Assumptions!$G$81)*SUMPRODUCT((Assumptions!$G$78:$G$79)*(J$24:J$25)) -> 0 | K35: =(1+Assumptions!$G$81)*SUMPRODUCT((Assumptions!$G$78:$G$79)*(K$24:K$25)) -> 0 | L35: =(1+Assumptions!$G$81)*SUMPRODUCT((Assumptions!$G$78:$G$79)*(L$24:L$25)) -> 0 | M35: =(1+Assumptions!$G$81)*SUMPRODUCT((Assumptions!$G$78:$G$79)*(M$24:M$25)) -> 0 | N35: =(1+Assumptions!$G$81)*SUMPRODUCT((Assumptions!$G$78:$G$79)*(N$24:N$25)) -> 0 | O35: =(1+Assumptions!$G$81)*SUMPRODUCT((Assumptions!$G$78:$G$79)*(O$24:O$25)) -> 0 | P35: =(1+Assumptions!$G$81)*SUMPRODUCT((Assumptions!$G$78:$G$79)*(P$24:P$25)) -> 0 | Q35: =(1+Assumptions!$G$81)*SUMPRODUCT((Assumptions!$G$78:$G$79)*(Q$24:Q$25)) -> 0 | R35: =(1+Assumptions!$G$81)*SUMPRODUCT((Assumptions!$G$78:$G$79)*(R$24:R$25)) -> 0 | S35: =(1+Assumptions!$G$81)*SUMPRODUCT((Assumptions!$G$78:$G$79)*(S$24:S$25)) -> 0 | T35: =(1+Assumptions!$G$81)*SUMPRODUCT((Assumptions!$G$78:$G$79)*(T$24:T$25)) -> 0 | U35: =(1+Assumptions!$G$81)*SUMPRODUCT((Assumptions!$G$78:$G$79)*(U$24:U$25)) -> 0 | V35: =(1+Assumptions!$G$81)*SUMPRODUCT((Assumptions!$G$78:$G$79)*(V$24:V$25)) -> 0 | W35: =(1+Assumptions!$G$81)*SUMPRODUCT((Assumptions!$G$78:$G$79)*(W$24:W$25)) -> 0 | X35: =(1+Assumptions!$G$81)*SUMPRODUCT((Assumptions!$G$78:$G$79)*(X$24:X$25)) -> 0 | Y35: =(1+Assumptions!$G$81)*SUMPRODUCT((Assumptions!$G$78:$G$79)*(Y$24:Y$25)) -> 0 | Z35: =(1+Assumptions!$G$81)*SUMPRODUCT((Assumptions!$G$78:$G$79)*(Z$24:Z$25)) -> 0 | AA35: =(1+Assumptions!$G$81)*SUMPRODUCT((Assumptions!$G$78:$G$79)*(AA$24:AA$25)) -> 0 | AB35: =(1+Assumptions!$G$81)*SUMPRODUCT((Assumptions!$G$78:$G$79)*(AB$24:AB$25)) -> 0 | AC35: =(1+Assumptions!$G$81)*SUMPRODUCT((Assumptions!$G$78:$G$79)*(AC$24:AC$25)) -> 0 | AD35: =(1+Assumptions!$G$81)*SUMPRODUCT((Assumptions!$G$78:$G$79)*(AD$24:AD$25)) -> 0 | AE35: =(1+Assumptions!$G$81)*SUMPRODUCT((Assumptions!$G$78:$G$79)*(AE$24:AE$25)) -> 0 | AF35: =(1+Assumptions!$G$81)*SUMPRODUCT((Assumptions!$G$78:$G$79)*(AF$24:AF$25)) -> 0 | AG35: =(1+Assumptions!$G$81)*SUMPRODUCT((Assumptions!$G$78:$G$79)*(AG$24:AG$25)) -> 0
C36: Environmental consequence | D36: (after DF) | G36: =input_dollars -> 2023-12-31 | I36: 0 | J36: 0 | K36: 0 | L36: 0 | M36: 0 | N36: 0 | O36: 0 | P36: 0 | Q36: 0 | R36: 0 | S36: 0 | T36: 0 | U36: 0 | V36: 0 | W36: 0 | X36: 0 | Y36: 0 | Z36: 0 | AA36: 0 | AB36: 0 | AC36: 0 | AD36: 0 | AE36: 0 | AF36: 0 | AG36: 0
C37: < Other risk - enter description > | G37: =input_dollars -> 2023-12-31 | I37: 0 | J37: 0 | K37: 0 | L37: 0 | M37: 0 | N37: 0 | O37: 0 | P37: 0 | Q37: 0 | R37: 0 | S37: 0 | T37: 0 | U37: 0 | V37: 0 | W37: 0 | X37: 0 | Y37: 0 | Z37: 0 | AA37: 0 | AB37: 0 | AC37: 0 | AD37: 0 | AE37: 0 | AF37: 0 | AG37: 0
C38: < Other risk - enter description > | G38: =input_dollars -> 2023-12-31 | I38: 0 | J38: 0 | K38: 0 | L38: 0 | M38: 0 | N38: 0 | O38: 0 | P38: 0 | Q38: 0 | R38: 0 | S38: 0 | T38: 0 | U38: 0 | V38: 0 | W38: 0 | X38: 0 | Y38: 0 | Z38: 0 | AA38: 0 | AB38: 0 | AC38: 0 | AD38: 0 | AE38: 0 | AF38: 0 | AG38: 0
C40: Total risk cost | I40: =SUM(I32:I38) -> 0 | J40: =SUM(J32:J38) -> 0 | K40: 0 | L40: 0 | M40: 0 | N40: 0 | O40: 0 | P40: 0 | Q40: 0 | R40: 0 | S40: 0 | T40: 0 | U40: 0 | V40: 0 | W40: 0 | X40: 0 | Y40: 0 | Z40: 0 | AA40: 0 | AB40: 0 | AC40: 0 | AD40: 0 | AE40: 0 | AF40: 0 | AG40: 0
A42: OTHER BENEFITS
C45: Reduction in CO2 emissions | G45: MWh | I45: 0 | J45: 0 | K45: 0 | L45: 0 | M45: 0 | N45: 0 | O45: 0 | P45: 0 | Q45: 0 | R45: 0 | S45: 0 | T45: 0 | U45: 0 | V45: 0 | W45: 0 | X45: 0 | Y45: 0 | Z45: 0 | AA45: 0 | AB45: 0 | AC45: 0 | AD45: 0 | AE45: 0 | AF45: 0 | AG45: 0
C46: Value of reduction in CO2 emissions | G46: $ | I46: =I45*I7 -> 0 | J46: 0 | K46: 0 | L46: 0 | M46: 0 | N46: 0 | O46: 0 | P46: 0 | Q46: 0 | R46: 0 | S46: 0 | T46: 0 | U46: 0 | V46: 0 | W46: 0 | X46: 0 | Y46: 0 | Z46: 0 | AA46: 0 | AB46: 0 | AC46: 0 | AD46: 0 | AE46: 0 | AF46: 0 | AG46: 0
C49: Reliability in worst-served areas | D49: $/MWh | E49: =Assumptions!G94 -> 151432.8174 | G49: MWh | I49: 0 | J49: 0 | K49: 0 | L49: 0 | M49: 0 | N49: 0 | O49: 0 | P49: 0 | Q49: 0 | R49: 0 | S49: 0 | T49: 0 | U49: 0 | V49: 0 | W49: 0 | X49: 0 | Y49: 0 | Z49: 0 | AA49: 0 | AB49: 0 | AC49: 0 | AD49: 0 | AE49: 0 | AF49: 0 | AG49: 0
C50: Network resilience | D50: $/MWh | E50: =Assumptions!G95 -> 24590 | G50: MWh | I50: 0 | J50: 0 | K50: 0 | L50: 0 | M50: 0 | N50: 0 | O50: 0 | P50: 0 | Q50: 0 | R50: 0 | S50: 0 | T50: 0 | U50: 0 | V50: 0 | W50: 0 | X50: 0 | Y50: 0 | Z50: 0 | AA50: 0 | AB50: 0 | AC50: 0 | AD50: 0 | AE50: 0 | AF50: 0 | AG50: 0
C51: Enabling solar exports | D51: $/MWh | E51: =Assumptions!G96 -> 88.35771951 | G51: MWh | I51: 0 | J51: 0 | K51: 0 | L51: 0 | M51: 0 | N51: 0 | O51: 0 | P51: 0 | Q51: 0 | R51: 0 | S51: 0 | T51: 0 | U51: 0 | V51: 0 | W51: 0 | X51: 0 | Y51: 0 | Z51: 0 | AA51: 0 | AB51: 0 | AC51: 0 | AD51: 0 | AE51: 0 | AF51: 0 | AG51: 0
C52: Aesthetics | D52: $/customer | E52: =Assumptions!G97 -> 0 | G52: customers | I52: 0 | J52: 0 | K52: 0 | L52: 0 | M52: 0 | N52: 0 | O52: 0 | P52: 0 | Q52: 0 | R52: 0 | S52: 0 | T52: 0 | U52: 0 | V52: 0 | W52: 0 | X52: 0 | Y52: 0 | Z52: 0 | AA52: 0 | AB52: 0 | AC52: 0 | AD52: 0 | AE52: 0 | AF52: 0 | AG52: 0
C53: Customer value of time (res) | D53: $/customer min | E53: =Assumptions!G98 -> 0.3518133654 | G53: mins | I53: 0 | J53: 0 | K53: 0 | L53: 0 | M53: 0 | N53: 0 | O53: 0 | P53: 0 | Q53: 0 | R53: 0 | S53: 0 | T53: 0 | U53: 0 | V53: 0 | W53: 0 | X53: 0 | Y53: 0 | Z53: 0 | AA53: 0 | AB53: 0 | AC53: 0 | AD53: 0 | AE53: 0 | AF53: 0 | AG53: 0
C54: Customer value of time (bus) | D54: $/customer min | E54: =Assumptions!G99 -> 0.3518133654 | G54: mins | I54: 0 | J54: 0 | K54: 0 | L54: 0 | M54: 0 | N54: 0 | O54: 0 | P54: 0 | Q54: 0 | R54: 0 | S54: 0 | T54: 0 | U54: 0 | V54: 0 | W54: 0 | X54: 0 | Y54: 0 | Z54: 0 | AA54: 0 | AB54: 0 | AC54: 0 | AD54: 0 | AE54: 0 | AF54: 0 | AG54: 0
C55: Communication | D55: $/customer | E55: =Assumptions!G100 -> 0 | G55: customers | I55: 0 | J55: 0 | K55: 0 | L55: 0 | M55: 0 | N55: 0 | O55: 0 | P55: 0 | Q55: 0 | R55: 0 | S55: 0 | T55: 0 | U55: 0 | V55: 0 | W55: 0 | X55: 0 | Y55: 0 | Z55: 0 | AA55: 0 | AB55: 0 | AC55: 0 | AD55: 0 | AE55: 0 | AF55: 0 | AG55: 0
C56: Information accessibility | D56: $/customer | E56: =Assumptions!G101 -> 0 | G56: customers | I56: 0 | J56: 0 | K56: 0 | L56: 0 | M56: 0 | N56: 0 | O56: 0 | P56: 0 | Q56: 0 | R56: 0 | S56: 0 | T56: 0 | U56: 0 | V56: 0 | W56: 0 | X56: 0 | Y56: 0 | Z56: 0 | AA56: 0 | AB56: 0 | AC56: 0 | AD56: 0 | AE56: 0 | AF56: 0 | AG56: 0
C58: Other benefits 1 | G58: =input_dollars -> 2023-12-31 | I58: 0 | J58: 0 | K58: 0 | L58: 0 | M58: 0 | N58: 0 | O58: 0 | P58: 0 | Q58: 0 | R58: 0 | S58: 0 | T58: 0 | U58: 0 | V58: 0 | W58: 0 | X58: 0 | Y58: 0 | Z58: 0 | AA58: 0 | AB58: 0 | AC58: 0 | AD58: 0 | AE58: 0 | AF58: 0 | AG58: 0
C59: Other benefits 2 | G59: =input_dollars -> 2023-12-31 | I59: 0 | J59: 0 | K59: 0 | L59: 0 | M59: 0 | N59: 0 | O59: 0 | P59: 0 | Q59: 0 | R59: 0 | S59: 0 | T59: 0 | U59: 0 | V59: 0 | W59: 0 | X59: 0 | Y59: 0 | Z59: 0 | AA59: 0 | AB59: 0 | AC59: 0 | AD59: 0 | AE59: 0 | AF59: 0 | AG59: 0
C61: Total other benefits | G61: =input_dollars -> 2023-12-31 | I61: =SUMPRODUCT((I$49:I$56)*($E$49:$E$56))+SUM(I58:I59)+I46 -> 0 | J61: =SUMPRODUCT((J$49:J$56)*($E$49:$E$56))+SUM(J58:J59)+J46 -> 0 | K61: =SUMPRODUCT((K$49:K$56)*($E$49:$E$56))+SUM(K58:K59)+K46 -> 0 | L61: =SUMPRODUCT((L$49:L$56)*($E$49:$E$56))+SUM(L58:L59)+L46 -> 0 | M61: =SUMPRODUCT((M$49:M$56)*($E$49:$E$56))+SUM(M58:M59)+M46 -> 0 | N61: =SUMPRODUCT((N$49:N$56)*($E$49:$E$56))+SUM(N58:N59)+N46 -> 0 | O61: =SUMPRODUCT((O$49:O$56)*($E$49:$E$56))+SUM(O58:O59)+O46 -> 0 | P61: =SUMPRODUCT((P$49:P$56)*($E$49:$E$56))+SUM(P58:P59)+P46 -> 0 | Q61: =SUMPRODUCT((Q$49:Q$56)*($E$49:$E$56))+SUM(Q58:Q59)+Q46 -> 0 | R61: =SUMPRODUCT((R$49:R$56)*($E$49:$E$56))+SUM(R58:R59)+R46 -> 0 | S61: =SUMPRODUCT((S$49:S$56)*($E$49:$E$56))+SUM(S58:S59)+S46 -> 0 | T61: =SUMPRODUCT((T$49:T$56)*($E$49:$E$56))+SUM(T58:T59)+T46 -> 0 | U61: =SUMPRODUCT((U$49:U$56)*($E$49:$E$56))+SUM(U58:U59)+U46 -> 0 | V61: =SUMPRODUCT((V$49:V$56)*($E$49:$E$56))+SUM(V58:V59)+V46 -> 0 | W61: =SUMPRODUCT((W$49:W$56)*($E$49:$E$56))+SUM(W58:W59)+W46 -> 0 | X61: =SUMPRODUCT((X$49:X$56)*($E$49:$E$56))+SUM(X58:X59)+X46 -> 0 | Y61: =SUMPRODUCT((Y$49:Y$56)*($E$49:$E$56))+SUM(Y58:Y59)+Y46 -> 0 | Z61: =SUMPRODUCT((Z$49:Z$56)*($E$49:$E$56))+SUM(Z58:Z59)+Z46 -> 0 | AA61: =SUMPRODUCT((AA$49:AA$56)*($E$49:$E$56))+SUM(AA58:AA59)+AA46 -> 0 | AB61: =SUMPRODUCT((AB$49:AB$56)*($E$49:$E$56))+SUM(AB58:AB59)+AB46 -> 0 | AC61: =SUMPRODUCT((AC$49:AC$56)*($E$49:$E$56))+SUM(AC58:AC59)+AC46 -> 0 | AD61: =SUMPRODUCT((AD$49:AD$56)*($E$49:$E$56))+SUM(AD58:AD59)+AD46 -> 0 | AE61: =SUMPRODUCT((AE$49:AE$56)*($E$49:$E$56))+SUM(AE58:AE59)+AE46 -> 0 | AF61: =SUMPRODUCT((AF$49:AF$56)*($E$49:$E$56))+SUM(AF58:AF59)+AF46 -> 0 | AG61: =SUMPRODUCT((AG$49:AG$56)*($E$49:$E$56))+SUM(AG58:AG59)+AG46 -> 0
A64: SUMMARY
C68: ='Option1 (base case)'!C68 -> Risks mitigated vs base case | G68: =input_dollars -> 2023-12-31 | I68: =(1-INDEX(Data!$C$9:$C$13, MATCH($A$3, options,0)))*('Option1 (base case)'!I40-I40) -> 0 | J68: =(1-INDEX(Data!$C$9:$C$13, MATCH($A$3, options,0)))*('Option1 (base case)'!J40-J40) -> 0 | K68: =(1-INDEX(Data!$C$9:$C$13, MATCH($A$3, options,0)))*('Option1 (base case)'!K40-K40) -> 0 | L68: =(1-INDEX(Data!$C$9:$C$13, MATCH($A$3, options,0)))*('Option1 (base case)'!L40-L40) -> 0 | M68: =(1-INDEX(Data!$C$9:$C$13, MATCH($A$3, options,0)))*('Option1 (base case)'!M40-M40) -> 0 | N68: =(1-INDEX(Data!$C$9:$C$13, MATCH($A$3, options,0)))*('Option1 (base case)'!N40-N40) -> 0 | O68: =(1-INDEX(Data!$C$9:$C$13, MATCH($A$3, options,0)))*('Option1 (base case)'!O40-O40) -> 0 | P68: =(1-INDEX(Data!$C$9:$C$13, MATCH($A$3, options,0)))*('Option1 (base case)'!P40-P40) -> 0 | Q68: =(1-INDEX(Data!$C$9:$C$13, MATCH($A$3, options,0)))*('Option1 (base case)'!Q40-Q40) -> 0 | R68: =(1-INDEX(Data!$C$9:$C$13, MATCH($A$3, options,0)))*('Option1 (base case)'!R40-R40) -> 0 | S68: =(1-INDEX(Data!$C$9:$C$13, MATCH($A$3, options,0)))*('Option1 (base case)'!S40-S40) -> 0 | T68: =(1-INDEX(Data!$C$9:$C$13, MATCH($A$3, options,0)))*('Option1 (base case)'!T40-T40) -> 0 | U68: =(1-INDEX(Data!$C$9:$C$13, MATCH($A$3, options,0)))*('Option1 (base case)'!U40-U40) -> 0 | V68: =(1-INDEX(Data!$C$9:$C$13, MATCH($A$3, options,0)))*('Option1 (base case)'!V40-V40) -> 0 | W68: =(1-INDEX(Data!$C$9:$C$13, MATCH($A$3, options,0)))*('Option1 (base case)'!W40-W40) -> 0 | X68: =(1-INDEX(Data!$C$9:$C$13, MATCH($A$3, options,0)))*('Option1 (base case)'!X40-X40) -> 0 | Y68: =(1-INDEX(Data!$C$9:$C$13, MATCH($A$3, options,0)))*('Option1 (base case)'!Y40-Y40) -> 0 | Z68: =(1-INDEX(Data!$C$9:$C$13, MATCH($A$3, options,0)))*('Option1 (base case)'!Z40-Z40) -> 0 | AA68: =(1-INDEX(Data!$C$9:$C$13, MATCH($A$3, options,0)))*('Option1 (base case)'!AA40-AA40) -> 0 | AB68: =(1-INDEX(Data!$C$9:$C$13, MATCH($A$3, options,0)))*('Option1 (base case)'!AB40-AB40) -> 0 | AC68: =(1-INDEX(Data!$C$9:$C$13, MATCH($A$3, options,0)))*('Option1 (base case)'!AC40-AC40) -> 0 | AD68: =(1-INDEX(Data!$C$9:$C$13, MATCH($A$3, options,0)))*('Option1 (base case)'!AD40-AD40) -> 0 | AE68: =(1-INDEX(Data!$C$9:$C$13, MATCH($A$3, options,0)))*('Option1 (base case)'!AE40-AE40) -> 0 | AF68: =(1-INDEX(Data!$C$9:$C$13, MATCH($A$3, options,0)))*('Option1 (base case)'!AF40-AF40) -> 0 | AG68: =(1-INDEX(Data!$C$9:$C$13, MATCH($A$3, options,0)))*('Option1 (base case)'!AG40-AG40) -> 0
C70: Capital expenditure
C71: =C14 -> < Enter description > | G71: =input_dollars -> 2023-12-31 | I71: =-I14 -> 0 | J71: 0 | K71: 0 | L71: 0 | M71: 0 | N71: 0 | O71: 0 | P71: 0 | Q71: 0 | R71: 0 | S71: 0 | T71: 0 | U71: 0 | V71: 0 | W71: 0 | X71: 0 | Y71: 0 | Z71: 0 | AA71: 0 | AB71: 0 | AC71: 0 | AD71: 0 | AE71: 0 | AF71: 0 | AG71: 0
C72: =C15 -> < Enter description > | G72: =input_dollars -> 2023-12-31 | I72: =-I15 -> 0 | J72: 0 | K72: 0 | L72: 0 | M72: 0 | N72: 0 | O72: 0 | P72: 0 | Q72: 0 | R72: 0 | S72: 0 | T72: 0 | U72: 0 | V72: 0 | W72: 0 | X72: 0 | Y72: 0 | Z72: 0 | AA72: 0 | AB72: 0 | AC72: 0 | AD72: 0 | AE72: 0 | AF72: 0 | AG72: 0
C73: =C16 -> < Enter description > | G73: =input_dollars -> 2023-12-31 | I73: =-I16 -> 0 | J73: 0 | K73: 0 | L73: 0 | M73: 0 | N73: 0 | O73: 0 | P73: 0 | Q73: 0 | R73: 0 | S73: 0 | T73: 0 | U73: 0 | V73: 0 | W73: 0 | X73: 0 | Y73: 0 | Z73: 0 | AA73: 0 | AB73: 0 | AC73: 0 | AD73: 0 | AE73: 0 | AF73: 0 | AG73: 0
C75: Cumulative capex
C76: =C14 -> < Enter description > | G76: =input_dollars -> 2023-12-31 | I76: =SUMPRODUCT(($I71:I71))-SUMPRODUCT(($I71:I71)*($I$6:I$6<=(I$6-$E14))) -> 0 | J76: =SUMPRODUCT(($I71:J71))-SUMPRODUCT(($I71:J71)*($I$6:J$6<=(J$6-$E14))) -> 0 | K76: =SUMPRODUCT(($I71:K71))-SUMPRODUCT(($I71:K71)*($I$6:K$6<=(K$6-$E14))) -> 0 | L76: =SUMPRODUCT(($I71:L71))-SUMPRODUCT(($I71:L71)*($I$6:L$6<=(L$6-$E14))) -> 0 | M76: =SUMPRODUCT(($I71:M71))-SUMPRODUCT(($I71:M71)*($I$6:M$6<=(M$6-$E14))) -> 0 | N76: =SUMPRODUCT(($I71:N71))-SUMPRODUCT(($I71:N71)*($I$6:N$6<=(N$6-$E14))) -> 0 | O76: =SUMPRODUCT(($I71:O71))-SUMPRODUCT(($I71:O71)*($I$6:O$6<=(O$6-$E14))) -> 0 | P76: =SUMPRODUCT(($I71:P71))-SUMPRODUCT(($I71:P71)*($I$6:P$6<=(P$6-$E14))) -> 0 | Q76: =SUMPRODUCT(($I71:Q71))-SUMPRODUCT(($I71:Q71)*($I$6:Q$6<=(Q$6-$E14))) -> 0 | R76: =SUMPRODUCT(($I71:R71))-SUMPRODUCT(($I71:R71)*($I$6:R$6<=(R$6-$E14))) -> 0 | S76: =SUMPRODUCT(($I71:S71))-SUMPRODUCT(($I71:S71)*($I$6:S$6<=(S$6-$E14))) -> 0 | T76: =SUMPRODUCT(($I71:T71))-SUMPRODUCT(($I71:T71)*($I$6:T$6<=(T$6-$E14))) -> 0 | U76: =SUMPRODUCT(($I71:U71))-SUMPRODUCT(($I71:U71)*($I$6:U$6<=(U$6-$E14))) -> 0 | V76: =SUMPRODUCT(($I71:V71))-SUMPRODUCT(($I71:V71)*($I$6:V$6<=(V$6-$E14))) -> 0 | W76: =SUMPRODUCT(($I71:W71))-SUMPRODUCT(($I71:W71)*($I$6:W$6<=(W$6-$E14))) -> 0 | X76: =SUMPRODUCT(($I71:X71))-SUMPRODUCT(($I71:X71)*($I$6:X$6<=(X$6-$E14))) -> 0 | Y76: =SUMPRODUCT(($I71:Y71))-SUMPRODUCT(($I71:Y71)*($I$6:Y$6<=(Y$6-$E14))) -> 0 | Z76: =SUMPRODUCT(($I71:Z71))-SUMPRODUCT(($I71:Z71)*($I$6:Z$6<=(Z$6-$E14))) -> 0 | AA76: =SUMPRODUCT(($I71:AA71))-SUMPRODUCT(($I71:AA71)*($I$6:AA$6<=(AA$6-$E14))) -> 0 | AB76: =SUMPRODUCT(($I71:AB71))-SUMPRODUCT(($I71:AB71)*($I$6:AB$6<=(AB$6-$E14))) -> 0 | AC76: =SUMPRODUCT(($I71:AC71))-SUMPRODUCT(($I71:AC71)*($I$6:AC$6<=(AC$6-$E14))) -> 0 | AD76: =SUMPRODUCT(($I71:AD71))-SUMPRODUCT(($I71:AD71)*($I$6:AD$6<=(AD$6-$E14))) -> 0 | AE76: =SUMPRODUCT(($I71:AE71))-SUMPRODUCT(($I71:AE71)*($I$6:AE$6<=(AE$6-$E14))) -> 0 | AF76: =SUMPRODUCT(($I71:AF71))-SUMPRODUCT(($I71:AF71)*($I$6:AF$6<=(AF$6-$E14))) -> 0 | AG76: =SUMPRODUCT(($I71:AG71))-SUMPRODUCT(($I71:AG71)*($I$6:AG$6<=(AG$6-$E14))) -> 0
C77: =C15 -> < Enter description > | G77: =input_dollars -> 2023-12-31 | I77: =SUMPRODUCT(($I72:I72))-SUMPRODUCT(($I72:I72)*($I$6:I$6<=(I$6-$E15))) -> 0 | J77: =SUMPRODUCT(($I72:J72))-SUMPRODUCT(($I72:J72)*($I$6:J$6<=(J$6-$E15))) -> 0 | K77: =SUMPRODUCT(($I72:K72))-SUMPRODUCT(($I72:K72)*($I$6:K$6<=(K$6-$E15))) -> 0 | L77: =SUMPRODUCT(($I72:L72))-SUMPRODUCT(($I72:L72)*($I$6:L$6<=(L$6-$E15))) -> 0 | M77: =SUMPRODUCT(($I72:M72))-SUMPRODUCT(($I72:M72)*($I$6:M$6<=(M$6-$E15))) -> 0 | N77: =SUMPRODUCT(($I72:N72))-SUMPRODUCT(($I72:N72)*($I$6:N$6<=(N$6-$E15))) -> 0 | O77: =SUMPRODUCT(($I72:O72))-SUMPRODUCT(($I72:O72)*($I$6:O$6<=(O$6-$E15))) -> 0 | P77: =SUMPRODUCT(($I72:P72))-SUMPRODUCT(($I72:P72)*($I$6:P$6<=(P$6-$E15))) -> 0 | Q77: =SUMPRODUCT(($I72:Q72))-SUMPRODUCT(($I72:Q72)*($I$6:Q$6<=(Q$6-$E15))) -> 0 | R77: =SUMPRODUCT(($I72:R72))-SUMPRODUCT(($I72:R72)*($I$6:R$6<=(R$6-$E15))) -> 0 | S77: =SUMPRODUCT(($I72:S72))-SUMPRODUCT(($I72:S72)*($I$6:S$6<=(S$6-$E15))) -> 0 | T77: =SUMPRODUCT(($I72:T72))-SUMPRODUCT(($I72:T72)*($I$6:T$6<=(T$6-$E15))) -> 0 | U77: =SUMPRODUCT(($I72:U72))-SUMPRODUCT(($I72:U72)*($I$6:U$6<=(U$6-$E15))) -> 0 | V77: =SUMPRODUCT(($I72:V72))-SUMPRODUCT(($I72:V72)*($I$6:V$6<=(V$6-$E15))) -> 0 | W77: =SUMPRODUCT(($I72:W72))-SUMPRODUCT(($I72:W72)*($I$6:W$6<=(W$6-$E15))) -> 0 | X77: =SUMPRODUCT(($I72:X72))-SUMPRODUCT(($I72:X72)*($I$6:X$6<=(X$6-$E15))) -> 0 | Y77: =SUMPRODUCT(($I72:Y72))-SUMPRODUCT(($I72:Y72)*($I$6:Y$6<=(Y$6-$E15))) -> 0 | Z77: =SUMPRODUCT(($I72:Z72))-SUMPRODUCT(($I72:Z72)*($I$6:Z$6<=(Z$6-$E15))) -> 0 | AA77: =SUMPRODUCT(($I72:AA72))-SUMPRODUCT(($I72:AA72)*($I$6:AA$6<=(AA$6-$E15))) -> 0 | AB77: =SUMPRODUCT(($I72:AB72))-SUMPRODUCT(($I72:AB72)*($I$6:AB$6<=(AB$6-$E15))) -> 0 | AC77: =SUMPRODUCT(($I72:AC72))-SUMPRODUCT(($I72:AC72)*($I$6:AC$6<=(AC$6-$E15))) -> 0 | AD77: =SUMPRODUCT(($I72:AD72))-SUMPRODUCT(($I72:AD72)*($I$6:AD$6<=(AD$6-$E15))) -> 0 | AE77: =SUMPRODUCT(($I72:AE72))-SUMPRODUCT(($I72:AE72)*($I$6:AE$6<=(AE$6-$E15))) -> 0 | AF77: =SUMPRODUCT(($I72:AF72))-SUMPRODUCT(($I72:AF72)*($I$6:AF$6<=(AF$6-$E15))) -> 0 | AG77: =SUMPRODUCT(($I72:AG72))-SUMPRODUCT(($I72:AG72)*($I$6:AG$6<=(AG$6-$E15))) -> 0
C78: =C16 -> < Enter description > | G78: =input_dollars -> 2023-12-31 | I78: =SUMPRODUCT(($I73:I73))-SUMPRODUCT(($I73:I73)*($I$6:I$6<=(I$6-$E16))) -> 0 | J78: =SUMPRODUCT(($I73:J73))-SUMPRODUCT(($I73:J73)*($I$6:J$6<=(J$6-$E16))) -> 0 | K78: =SUMPRODUCT(($I73:K73))-SUMPRODUCT(($I73:K73)*($I$6:K$6<=(K$6-$E16))) -> 0 | L78: =SUMPRODUCT(($I73:L73))-SUMPRODUCT(($I73:L73)*($I$6:L$6<=(L$6-$E16))) -> 0 | M78: =SUMPRODUCT(($I73:M73))-SUMPRODUCT(($I73:M73)*($I$6:M$6<=(M$6-$E16))) -> 0 | N78: =SUMPRODUCT(($I73:N73))-SUMPRODUCT(($I73:N73)*($I$6:N$6<=(N$6-$E16))) -> 0 | O78: =SUMPRODUCT(($I73:O73))-SUMPRODUCT(($I73:O73)*($I$6:O$6<=(O$6-$E16))) -> 0 | P78: =SUMPRODUCT(($I73:P73))-SUMPRODUCT(($I73:P73)*($I$6:P$6<=(P$6-$E16))) -> 0 | Q78: =SUMPRODUCT(($I73:Q73))-SUMPRODUCT(($I73:Q73)*($I$6:Q$6<=(Q$6-$E16))) -> 0 | R78: =SUMPRODUCT(($I73:R73))-SUMPRODUCT(($I73:R73)*($I$6:R$6<=(R$6-$E16))) -> 0 | S78: =SUMPRODUCT(($I73:S73))-SUMPRODUCT(($I73:S73)*($I$6:S$6<=(S$6-$E16))) -> 0 | T78: =SUMPRODUCT(($I73:T73))-SUMPRODUCT(($I73:T73)*($I$6:T$6<=(T$6-$E16))) -> 0 | U78: =SUMPRODUCT(($I73:U73))-SUMPRODUCT(($I73:U73)*($I$6:U$6<=(U$6-$E16))) -> 0 | V78: =SUMPRODUCT(($I73:V73))-SUMPRODUCT(($I73:V73)*($I$6:V$6<=(V$6-$E16))) -> 0 | W78: =SUMPRODUCT(($I73:W73))-SUMPRODUCT(($I73:W73)*($I$6:W$6<=(W$6-$E16))) -> 0 | X78: =SUMPRODUCT(($I73:X73))-SUMPRODUCT(($I73:X73)*($I$6:X$6<=(X$6-$E16))) -> 0 | Y78: =SUMPRODUCT(($I73:Y73))-SUMPRODUCT(($I73:Y73)*($I$6:Y$6<=(Y$6-$E16))) -> 0 | Z78: =SUMPRODUCT(($I73:Z73))-SUMPRODUCT(($I73:Z73)*($I$6:Z$6<=(Z$6-$E16))) -> 0 | AA78: =SUMPRODUCT(($I73:AA73))-SUMPRODUCT(($I73:AA73)*($I$6:AA$6<=(AA$6-$E16))) -> 0 | AB78: =SUMPRODUCT(($I73:AB73))-SUMPRODUCT(($I73:AB73)*($I$6:AB$6<=(AB$6-$E16))) -> 0 | AC78: =SUMPRODUCT(($I73:AC73))-SUMPRODUCT(($I73:AC73)*($I$6:AC$6<=(AC$6-$E16))) -> 0 | AD78: =SUMPRODUCT(($I73:AD73))-SUMPRODUCT(($I73:AD73)*($I$6:AD$6<=(AD$6-$E16))) -> 0 | AE78: =SUMPRODUCT(($I73:AE73))-SUMPRODUCT(($I73:AE73)*($I$6:AE$6<=(AE$6-$E16))) -> 0 | AF78: =SUMPRODUCT(($I73:AF73))-SUMPRODUCT(($I73:AF73)*($I$6:AF$6<=(AF$6-$E16))) -> 0 | AG78: =SUMPRODUCT(($I73:AG73))-SUMPRODUCT(($I73:AG73)*($I$6:AG$6<=(AG$6-$E16))) -> 0
C80: Annualised capex
C81: =$C$80&" - "&C14 -> Annualised capex - < Enter description > | G81: =input_dollars -> 2023-12-31 | I81: =IF($E14=0,0,-PMT(real_disc, $E14,H76,)) -> 0 | J81: 0 | K81: 0 | L81: 0 | M81: 0 | N81: 0 | O81: 0 | P81: 0 | Q81: 0 | R81: 0 | S81: 0 | T81: 0 | U81: 0 | V81: 0 | W81: 0 | X81: 0 | Y81: 0 | Z81: 0 | AA81: 0 | AB81: 0 | AC81: 0 | AD81: 0 | AE81: 0 | AF81: 0 | AG81: 0
C82: =$C$80&" - "&C15 -> Annualised capex - < Enter description > | G82: =input_dollars -> 2023-12-31 | I82: =IF($E15=0,0,-PMT(real_disc, $E15,H77,)) -> 0 | J82: 0 | K82: 0 | L82: 0 | M82: 0 | N82: 0 | O82: 0 | P82: 0 | Q82: 0 | R82: 0 | S82: 0 | T82: 0 | U82: 0 | V82: 0 | W82: 0 | X82: 0 | Y82: 0 | Z82: 0 | AA82: 0 | AB82: 0 | AC82: 0 | AD82: 0 | AE82: 0 | AF82: 0 | AG82: 0
C83: =$C$80&" - "&C16 -> Annualised capex - < Enter description > | G83: =input_dollars -> 2023-12-31 | I83: =IF($E16=0,0,-PMT(real_disc, $E16,H78,)) -> 0 | J83: 0 | K83: 0 | L83: 0 | M83: 0 | N83: 0 | O83: 0 | P83: 0 | Q83: 0 | R83: 0 | S83: 0 | T83: 0 | U83: 0 | V83: 0 | W83: 0 | X83: 0 | Y83: 0 | Z83: 0 | AA83: 0 | AB83: 0 | AC83: 0 | AD83: 0 | AE83: 0 | AF83: 0 | AG83: 0
C84: Total annualised capex | G84: =input_dollars -> 2023-12-31 | I84: =SUM(I81:I83) -> 0 | J84: =SUM(J81:J83) -> 0 | K84: 0 | L84: 0 | M84: 0 | N84: 0 | O84: 0 | P84: 0 | Q84: 0 | R84: 0 | S84: 0 | T84: 0 | U84: 0 | V84: 0 | W84: 0 | X84: 0 | Y84: 0 | Z84: 0 | AA84: 0 | AB84: 0 | AC84: =SUM(AC81:AC83) -> 0 | AD84: =SUM(AD81:AD83) -> 0 | AE84: =SUM(AE81:AE83) -> 0 | AF84: =SUM(AF81:AF83) -> 0 | AG84: =SUM(AG81:AG83) -> 0
C86: Annualised capex | G86: =input_dollars -> 2023-12-31 | I86: =I84 -> 0 | J86: =J84 -> 0 | K86: 0 | L86: 0 | M86: 0 | N86: 0 | O86: 0 | P86: 0 | Q86: 0 | R86: 0 | S86: 0 | T86: 0 | U86: 0 | V86: 0 | W86: 0 | X86: 0 | Y86: 0 | Z86: 0 | AA86: 0 | AB86: 0 | AC86: =AC84 -> 0 | AD86: =AD84 -> 0 | AE86: =AE84 -> 0 | AF86: =AF84 -> 0 | AG86: =AG84 -> 0
C87: Operating expenditure | G87: 2023-12-31 | I87: =-I19 -> 0 | J87: 0 | K87: 0 | L87: 0 | M87: 0 | N87: 0 | O87: 0 | P87: 0 | Q87: 0 | R87: 0 | S87: 0 | T87: 0 | U87: 0 | V87: 0 | W87: 0 | X87: 0 | Y87: 0 | Z87: 0 | AA87: 0 | AB87: 0 | AC87: 0 | AD87: 0 | AE87: 0 | AF87: 0 | AG87: 0
C88: Risk mitigated | G88: 2023-12-31 | I88: =I68 -> 0 | J88: =J68 -> 0 | K88: 0 | L88: 0 | M88: 0 | N88: 0 | O88: 0 | P88: 0 | Q88: 0 | R88: 0 | S88: 0 | T88: 0 | U88: 0 | V88: 0 | W88: 0 | X88: 0 | Y88: 0 | Z88: 0 | AA88: 0 | AB88: 0 | AC88: =AC68 -> 0 | AD88: =AD68 -> 0 | AE88: =AE68 -> 0 | AF88: =AF68 -> 0 | AG88: =AG68 -> 0
C89: Other benefits value | G89: 2023-12-31 | I89: =I61 -> 0 | J89: 0 | K89: 0 | L89: 0 | M89: 0 | N89: 0 | O89: 0 | P89: 0 | Q89: 0 | R89: 0 | S89: 0 | T89: 0 | U89: 0 | V89: 0 | W89: 0 | X89: 0 | Y89: 0 | Z89: 0 | AA89: 0 | AB89: 0 | AC89: 0 | AD89: 0 | AE89: 0 | AF89: 0 | AG89: 0
C91: Net benefits | G91: 2023-12-31 | I91: =SUM(I86:I90) -> 0 | J91: 0 | K91: 0 | L91: 0 | M91: 0 | N91: 0 | O91: 0 | P91: 0 | Q91: 0 | R91: 0 | S91: 0 | T91: 0 | U91: 0 | V91: 0 | W91: 0 | X91: 0 | Y91: 0 | Z91: 0 | AA91: 0 | AB91: 0 | AC91: =SUM(AC86:AC90) -> 0 | AD91: =SUM(AD86:AD90) -> 0 | AE91: =SUM(AE86:AE90) -> 0 | AF91: =SUM(AF86:AF90) -> 0 | AG91: =SUM(AG86:AG90) -> 0
C94: First capex year | G94: =IF(SUM($I17:$AG17)=0,0,(INDEX(I$6:AG$6,MATCH(TRUE,INDEX($I17:$AG17<>0,),0)))) -> 0
C96: First year | G96: =IF(_xlfn.MINIFS($G$94:$G$95, $G$94:$G$95, ">"&0)=0, $A$4, _xlfn.MINIFS($G$94:$G$95, $G$94:$G$95, ">"&0)) -> Not used
A106: SENSITIVITIES
A110: NPV | C110: Net benefits | G110: =PROPER($A$3)&A110 -> Option 4NPV | I110: =I91 -> 0 | J110: =J91 -> 0 | K110: 0 | L110: 0 | M110: 0 | N110: 0 | O110: 0 | P110: 0 | Q110: 0 | R110: 0 | S110: 0 | T110: 0 | U110: 0 | V110: 0 | W110: 0 | X110: 0 | Y110: 0 | Z110: 0 | AA110: 0 | AB110: 0 | AC110: 0 | AD110: 0 | AE110: 0 | AF110: 0 | AG110: 0
C111: Total annualised capex | I111: =I86 -> 0 | J111: =J86 -> 0 | K111: 0 | L111: 0 | M111: 0 | N111: 0 | O111: 0 | P111: 0 | Q111: 0 | R111: 0 | S111: 0 | T111: 0 | U111: 0 | V111: 0 | W111: 0 | X111: 0 | Y111: 0 | Z111: 0 | AA111: 0 | AB111: 0 | AC111: 0 | AD111: 0 | AE111: 0 | AF111: 0 | AG111: 0
C112: Total benefits | I112: =SUM(I88:I89) -> 0 | J112: =SUM(J88:J89) -> 0 | K112: 0 | L112: 0 | M112: 0 | N112: 0 | O112: 0 | P112: 0 | Q112: 0 | R112: 0 | S112: 0 | T112: 0 | U112: 0 | V112: 0 | W112: 0 | X112: 0 | Y112: 0 | Z112: 0 | AA112: 0 | AB112: 0 | AC112: 0 | AD112: 0 | AE112: 0 | AF112: 0 | AG112: 0
D113: =Assumptions!G110 -> Capex | E113: =Assumptions!H110 -> Total benefits
A114: ="sens"&Assumptions!B111 -> sens1 | C114: =Assumptions!C111 -> Capex 10% higher | D114: =Assumptions!G111 -> 0.1 | E114: =Assumptions!H111 -> 0 | G114: =PROPER($A$3)&A114 -> Option 4sens1 | I114: =I$110+IF($C114<>0,SUMPRODUCT((I$111:I$112)*TRANSPOSE(($D114:$E114))),0) -> 0 | J114: =J$110+IF($C114<>0,SUMPRODUCT((J$111:J$112)*TRANSPOSE(($D114:$E114))),0) -> 0 | K114: =K$110+IF($C114<>0,SUMPRODUCT((K$111:K$112)*TRANSPOSE(($D114:$E114))),0) -> 0 | L114: =L$110+IF($C114<>0,SUMPRODUCT((L$111:L$112)*TRANSPOSE(($D114:$E114))),0) -> 0 | M114: =M$110+IF($C114<>0,SUMPRODUCT((M$111:M$112)*TRANSPOSE(($D114:$E114))),0) -> 0 | N114: =N$110+IF($C114<>0,SUMPRODUCT((N$111:N$112)*TRANSPOSE(($D114:$E114))),0) -> 0 | O114: =O$110+IF($C114<>0,SUMPRODUCT((O$111:O$112)*TRANSPOSE(($D114:$E114))),0) -> 0 | P114: =P$110+IF($C114<>0,SUMPRODUCT((P$111:P$112)*TRANSPOSE(($D114:$E114))),0) -> 0 | Q114: =Q$110+IF($C114<>0,SUMPRODUCT((Q$111:Q$112)*TRANSPOSE(($D114:$E114))),0) -> 0 | R114: =R$110+IF($C114<>0,SUMPRODUCT((R$111:R$112)*TRANSPOSE(($D114:$E114))),0) -> 0 | S114: =S$110+IF($C114<>0,SUMPRODUCT((S$111:S$112)*TRANSPOSE(($D114:$E114))),0) -> 0 | T114: =T$110+IF($C114<>0,SUMPRODUCT((T$111:T$112)*TRANSPOSE(($D114:$E114))),0) -> 0 | U114: =U$110+IF($C114<>0,SUMPRODUCT((U$111:U$112)*TRANSPOSE(($D114:$E114))),0) -> 0 | V114: =V$110+IF($C114<>0,SUMPRODUCT((V$111:V$112)*TRANSPOSE(($D114:$E114))),0) -> 0 | W114: =W$110+IF($C114<>0,SUMPRODUCT((W$111:W$112)*TRANSPOSE(($D114:$E114))),0) -> 0 | X114: =X$110+IF($C114<>0,SUMPRODUCT((X$111:X$112)*TRANSPOSE(($D114:$E114))),0) -> 0 | Y114: =Y$110+IF($C114<>0,SUMPRODUCT((Y$111:Y$112)*TRANSPOSE(($D114:$E114))),0) -> 0 | Z114: =Z$110+IF($C114<>0,SUMPRODUCT((Z$111:Z$112)*TRANSPOSE(($D114:$E114))),0) -> 0 | AA114: =AA$110+IF($C114<>0,SUMPRODUCT((AA$111:AA$112)*TRANSPOSE(($D114:$E114))),0) -> 0 | AB114: =AB$110+IF($C114<>0,SUMPRODUCT((AB$111:AB$112)*TRANSPOSE(($D114:$E114))),0) -> 0 | AC114: =AC$110+IF($C114<>0,SUMPRODUCT((AC$111:AC$112)*TRANSPOSE(($D114:$E114))),0) -> 0 | AD114: =AD$110+IF($C114<>0,SUMPRODUCT((AD$111:AD$112)*TRANSPOSE(($D114:$E114))),0) -> 0 | AE114: =AE$110+IF($C114<>0,SUMPRODUCT((AE$111:AE$112)*TRANSPOSE(($D114:$E114))),0) -> 0 | AF114: =AF$110+IF($C114<>0,SUMPRODUCT((AF$111:AF$112)*TRANSPOSE(($D114:$E114))),0) -> 0 | AG114: =AG$110+IF($C114<>0,SUMPRODUCT((AG$111:AG$112)*TRANSPOSE(($D114:$E114))),0) -> 0
A115: ="sens"&Assumptions!B112 -> sens2 | C115: =Assumptions!C112 -> Capex 10% lower | D115: =Assumptions!G112 -> -0.1 | E115: =Assumptions!H112 -> 0 | G115: =PROPER($A$3)&A115 -> Option 4sens2 | I115: =I$110+IF($C115<>0,SUMPRODUCT((I$111:I$112)*TRANSPOSE(($D115:$E115))),0) -> 0 | J115: =J$110+IF($C115<>0,SUMPRODUCT((J$111:J$112)*TRANSPOSE(($D115:$E115))),0) -> 0 | K115: =K$110+IF($C115<>0,SUMPRODUCT((K$111:K$112)*TRANSPOSE(($D115:$E115))),0) -> 0 | L115: =L$110+IF($C115<>0,SUMPRODUCT((L$111:L$112)*TRANSPOSE(($D115:$E115))),0) -> 0 | M115: =M$110+IF($C115<>0,SUMPRODUCT((M$111:M$112)*TRANSPOSE(($D115:$E115))),0) -> 0 | N115: =N$110+IF($C115<>0,SUMPRODUCT((N$111:N$112)*TRANSPOSE(($D115:$E115))),0) -> 0 | O115: =O$110+IF($C115<>0,SUMPRODUCT((O$111:O$112)*TRANSPOSE(($D115:$E115))),0) -> 0 | P115: =P$110+IF($C115<>0,SUMPRODUCT((P$111:P$112)*TRANSPOSE(($D115:$E115))),0) -> 0 | Q115: =Q$110+IF($C115<>0,SUMPRODUCT((Q$111:Q$112)*TRANSPOSE(($D115:$E115))),0) -> 0 | R115: =R$110+IF($C115<>0,SUMPRODUCT((R$111:R$112)*TRANSPOSE(($D115:$E115))),0) -> 0 | S115: =S$110+IF($C115<>0,SUMPRODUCT((S$111:S$112)*TRANSPOSE(($D115:$E115))),0) -> 0 | T115: =T$110+IF($C115<>0,SUMPRODUCT((T$111:T$112)*TRANSPOSE(($D115:$E115))),0) -> 0 | U115: =U$110+IF($C115<>0,SUMPRODUCT((U$111:U$112)*TRANSPOSE(($D115:$E115))),0) -> 0 | V115: =V$110+IF($C115<>0,SUMPRODUCT((V$111:V$112)*TRANSPOSE(($D115:$E115))),0) -> 0 | W115: =W$110+IF($C115<>0,SUMPRODUCT((W$111:W$112)*TRANSPOSE(($D115:$E115))),0) -> 0 | X115: =X$110+IF($C115<>0,SUMPRODUCT((X$111:X$112)*TRANSPOSE(($D115:$E115))),0) -> 0 | Y115: =Y$110+IF($C115<>0,SUMPRODUCT((Y$111:Y$112)*TRANSPOSE(($D115:$E115))),0) -> 0 | Z115: =Z$110+IF($C115<>0,SUMPRODUCT((Z$111:Z$112)*TRANSPOSE(($D115:$E115))),0) -> 0 | AA115: =AA$110+IF($C115<>0,SUMPRODUCT((AA$111:AA$112)*TRANSPOSE(($D115:$E115))),0) -> 0 | AB115: =AB$110+IF($C115<>0,SUMPRODUCT((AB$111:AB$112)*TRANSPOSE(($D115:$E115))),0) -> 0 | AC115: =AC$110+IF($C115<>0,SUMPRODUCT((AC$111:AC$112)*TRANSPOSE(($D115:$E115))),0) -> 0 | AD115: =AD$110+IF($C115<>0,SUMPRODUCT((AD$111:AD$112)*TRANSPOSE(($D115:$E115))),0) -> 0 | AE115: =AE$110+IF($C115<>0,SUMPRODUCT((AE$111:AE$112)*TRANSPOSE(($D115:$E115))),0) -> 0 | AF115: =AF$110+IF($C115<>0,SUMPRODUCT((AF$111:AF$112)*TRANSPOSE(($D115:$E115))),0) -> 0 | AG115: =AG$110+IF($C115<>0,SUMPRODUCT((AG$111:AG$112)*TRANSPOSE(($D115:$E115))),0) -> 0
A116: ="sens"&Assumptions!B113 -> sens3 | C116: =Assumptions!C113 -> Total benefits 10% higher | D116: =Assumptions!G113 -> 0 | E116: =Assumptions!H113 -> 0.1 | G116: Option 4sens3 | I116: =I$110+IF($C116<>0,SUMPRODUCT((I$111:I$112)*TRANSPOSE(($D116:$E116))),0) -> 0 | J116: =J$110+IF($C116<>0,SUMPRODUCT((J$111:J$112)*TRANSPOSE(($D116:$E116))),0) -> 0 | K116: =K$110+IF($C116<>0,SUMPRODUCT((K$111:K$112)*TRANSPOSE(($D116:$E116))),0) -> 0 | L116: =L$110+IF($C116<>0,SUMPRODUCT((L$111:L$112)*TRANSPOSE(($D116:$E116))),0) -> 0 | M116: =M$110+IF($C116<>0,SUMPRODUCT((M$111:M$112)*TRANSPOSE(($D116:$E116))),0) -> 0 | N116: =N$110+IF($C116<>0,SUMPRODUCT((N$111:N$112)*TRANSPOSE(($D116:$E116))),0) -> 0 | O116: =O$110+IF($C116<>0,SUMPRODUCT((O$111:O$112)*TRANSPOSE(($D116:$E116))),0) -> 0 | P116: =P$110+IF($C116<>0,SUMPRODUCT((P$111:P$112)*TRANSPOSE(($D116:$E116))),0) -> 0 | Q116: =Q$110+IF($C116<>0,SUMPRODUCT((Q$111:Q$112)*TRANSPOSE(($D116:$E116))),0) -> 0 | R116: =R$110+IF($C116<>0,SUMPRODUCT((R$111:R$112)*TRANSPOSE(($D116:$E116))),0) -> 0 | S116: =S$110+IF($C116<>0,SUMPRODUCT((S$111:S$112)*TRANSPOSE(($D116:$E116))),0) -> 0 | T116: =T$110+IF($C116<>0,SUMPRODUCT((T$111:T$112)*TRANSPOSE(($D116:$E116))),0) -> 0 | U116: =U$110+IF($C116<>0,SUMPRODUCT((U$111:U$112)*TRANSPOSE(($D116:$E116))),0) -> 0 | V116: =V$110+IF($C116<>0,SUMPRODUCT((V$111:V$112)*TRANSPOSE(($D116:$E116))),0) -> 0 | W116: =W$110+IF($C116<>0,SUMPRODUCT((W$111:W$112)*TRANSPOSE(($D116:$E116))),0) -> 0 | X116: =X$110+IF($C116<>0,SUMPRODUCT((X$111:X$112)*TRANSPOSE(($D116:$E116))),0) -> 0 | Y116: =Y$110+IF($C116<>0,SUMPRODUCT((Y$111:Y$112)*TRANSPOSE(($D116:$E116))),0) -> 0 | Z116: =Z$110+IF($C116<>0,SUMPRODUCT((Z$111:Z$112)*TRANSPOSE(($D116:$E116))),0) -> 0 | AA116: =AA$110+IF($C116<>0,SUMPRODUCT((AA$111:AA$112)*TRANSPOSE(($D116:$E116))),0) -> 0 | AB116: =AB$110+IF($C116<>0,SUMPRODUCT((AB$111:AB$112)*TRANSPOSE(($D116:$E116))),0) -> 0 | AC116: =AC$110+IF($C116<>0,SUMPRODUCT((AC$111:AC$112)*TRANSPOSE(($D116:$E116))),0) -> 0 | AD116: =AD$110+IF($C116<>0,SUMPRODUCT((AD$111:AD$112)*TRANSPOSE(($D116:$E116))),0) -> 0 | AE116: =AE$110+IF($C116<>0,SUMPRODUCT((AE$111:AE$112)*TRANSPOSE(($D116:$E116))),0) -> 0 | AF116: =AF$110+IF($C116<>0,SUMPRODUCT((AF$111:AF$112)*TRANSPOSE(($D116:$E116))),0) -> 0 | AG116: =AG$110+IF($C116<>0,SUMPRODUCT((AG$111:AG$112)*TRANSPOSE(($D116:$E116))),0) -> 0
A117: ="sens"&Assumptions!B114 -> sens4 | C117: =Assumptions!C114 -> Total benefits 10% lower | D117: =Assumptions!G114 -> 0 | E117: =Assumptions!H114 -> -0.1 | G117: Option 4sens4 | I117: =I$110+IF($C117<>0,SUMPRODUCT((I$111:I$112)*TRANSPOSE(($D117:$E117))),0) -> 0 | J117: =J$110+IF($C117<>0,SUMPRODUCT((J$111:J$112)*TRANSPOSE(($D117:$E117))),0) -> 0 | K117: =K$110+IF($C117<>0,SUMPRODUCT((K$111:K$112)*TRANSPOSE(($D117:$E117))),0) -> 0 | L117: =L$110+IF($C117<>0,SUMPRODUCT((L$111:L$112)*TRANSPOSE(($D117:$E117))),0) -> 0 | M117: =M$110+IF($C117<>0,SUMPRODUCT((M$111:M$112)*TRANSPOSE(($D117:$E117))),0) -> 0 | N117: =N$110+IF($C117<>0,SUMPRODUCT((N$111:N$112)*TRANSPOSE(($D117:$E117))),0) -> 0 | O117: =O$110+IF($C117<>0,SUMPRODUCT((O$111:O$112)*TRANSPOSE(($D117:$E117))),0) -> 0 | P117: =P$110+IF($C117<>0,SUMPRODUCT((P$111:P$112)*TRANSPOSE(($D117:$E117))),0) -> 0 | Q117: =Q$110+IF($C117<>0,SUMPRODUCT((Q$111:Q$112)*TRANSPOSE(($D117:$E117))),0) -> 0 | R117: =R$110+IF($C117<>0,SUMPRODUCT((R$111:R$112)*TRANSPOSE(($D117:$E117))),0) -> 0 | S117: =S$110+IF($C117<>0,SUMPRODUCT((S$111:S$112)*TRANSPOSE(($D117:$E117))),0) -> 0 | T117: =T$110+IF($C117<>0,SUMPRODUCT((T$111:T$112)*TRANSPOSE(($D117:$E117))),0) -> 0 | U117: =U$110+IF($C117<>0,SUMPRODUCT((U$111:U$112)*TRANSPOSE(($D117:$E117))),0) -> 0 | V117: =V$110+IF($C117<>0,SUMPRODUCT((V$111:V$112)*TRANSPOSE(($D117:$E117))),0) -> 0 | W117: =W$110+IF($C117<>0,SUMPRODUCT((W$111:W$112)*TRANSPOSE(($D117:$E117))),0) -> 0 | X117: =X$110+IF($C117<>0,SUMPRODUCT((X$111:X$112)*TRANSPOSE(($D117:$E117))),0) -> 0 | Y117: =Y$110+IF($C117<>0,SUMPRODUCT((Y$111:Y$112)*TRANSPOSE(($D117:$E117))),0) -> 0 | Z117: =Z$110+IF($C117<>0,SUMPRODUCT((Z$111:Z$112)*TRANSPOSE(($D117:$E117))),0) -> 0 | AA117: =AA$110+IF($C117<>0,SUMPRODUCT((AA$111:AA$112)*TRANSPOSE(($D117:$E117))),0) -> 0 | AB117: =AB$110+IF($C117<>0,SUMPRODUCT((AB$111:AB$112)*TRANSPOSE(($D117:$E117))),0) -> 0 | AC117: =AC$110+IF($C117<>0,SUMPRODUCT((AC$111:AC$112)*TRANSPOSE(($D117:$E117))),0) -> 0 | AD117: =AD$110+IF($C117<>0,SUMPRODUCT((AD$111:AD$112)*TRANSPOSE(($D117:$E117))),0) -> 0 | AE117: =AE$110+IF($C117<>0,SUMPRODUCT((AE$111:AE$112)*TRANSPOSE(($D117:$E117))),0) -> 0 | AF117: =AF$110+IF($C117<>0,SUMPRODUCT((AF$111:AF$112)*TRANSPOSE(($D117:$E117))),0) -> 0 | AG117: =AG$110+IF($C117<>0,SUMPRODUCT((AG$111:AG$112)*TRANSPOSE(($D117:$E117))),0) -> 0
A118: ="sens"&Assumptions!B115 -> sens5 | C118: =Assumptions!C115 -> Capex 10% higher & Total benefits 10% lower | D118: =Assumptions!G115 -> 0.1 | E118: =Assumptions!H115 -> -0.1 | G118: Option 4sens5 | I118: =I$110+IF($C118<>0,SUMPRODUCT((I$111:I$112)*TRANSPOSE(($D118:$E118))),0) -> 0 | J118: =J$110+IF($C118<>0,SUMPRODUCT((J$111:J$112)*TRANSPOSE(($D118:$E118))),0) -> 0 | K118: =K$110+IF($C118<>0,SUMPRODUCT((K$111:K$112)*TRANSPOSE(($D118:$E118))),0) -> 0 | L118: =L$110+IF($C118<>0,SUMPRODUCT((L$111:L$112)*TRANSPOSE(($D118:$E118))),0) -> 0 | M118: =M$110+IF($C118<>0,SUMPRODUCT((M$111:M$112)*TRANSPOSE(($D118:$E118))),0) -> 0 | N118: =N$110+IF($C118<>0,SUMPRODUCT((N$111:N$112)*TRANSPOSE(($D118:$E118))),0) -> 0 | O118: =O$110+IF($C118<>0,SUMPRODUCT((O$111:O$112)*TRANSPOSE(($D118:$E118))),0) -> 0 | P118: =P$110+IF($C118<>0,SUMPRODUCT((P$111:P$112)*TRANSPOSE(($D118:$E118))),0) -> 0 | Q118: =Q$110+IF($C118<>0,SUMPRODUCT((Q$111:Q$112)*TRANSPOSE(($D118:$E118))),0) -> 0 | R118: =R$110+IF($C118<>0,SUMPRODUCT((R$111:R$112)*TRANSPOSE(($D118:$E118))),0) -> 0 | S118: =S$110+IF($C118<>0,SUMPRODUCT((S$111:S$112)*TRANSPOSE(($D118:$E118))),0) -> 0 | T118: =T$110+IF($C118<>0,SUMPRODUCT((T$111:T$112)*TRANSPOSE(($D118:$E118))),0) -> 0 | U118: =U$110+IF($C118<>0,SUMPRODUCT((U$111:U$112)*TRANSPOSE(($D118:$E118))),0) -> 0 | V118: =V$110+IF($C118<>0,SUMPRODUCT((V$111:V$112)*TRANSPOSE(($D118:$E118))),0) -> 0 | W118: =W$110+IF($C118<>0,SUMPRODUCT((W$111:W$112)*TRANSPOSE(($D118:$E118))),0) -> 0 | X118: =X$110+IF($C118<>0,SUMPRODUCT((X$111:X$112)*TRANSPOSE(($D118:$E118))),0) -> 0 | Y118: =Y$110+IF($C118<>0,SUMPRODUCT((Y$111:Y$112)*TRANSPOSE(($D118:$E118))),0) -> 0 | Z118: =Z$110+IF($C118<>0,SUMPRODUCT((Z$111:Z$112)*TRANSPOSE(($D118:$E118))),0) -> 0 | AA118: =AA$110+IF($C118<>0,SUMPRODUCT((AA$111:AA$112)*TRANSPOSE(($D118:$E118))),0) -> 0 | AB118: =AB$110+IF($C118<>0,SUMPRODUCT((AB$111:AB$112)*TRANSPOSE(($D118:$E118))),0) -> 0 | AC118: =AC$110+IF($C118<>0,SUMPRODUCT((AC$111:AC$112)*TRANSPOSE(($D118:$E118))),0) -> 0 | AD118: =AD$110+IF($C118<>0,SUMPRODUCT((AD$111:AD$112)*TRANSPOSE(($D118:$E118))),0) -> 0 | AE118: =AE$110+IF($C118<>0,SUMPRODUCT((AE$111:AE$112)*TRANSPOSE(($D118:$E118))),0) -> 0 | AF118: =AF$110+IF($C118<>0,SUMPRODUCT((AF$111:AF$112)*TRANSPOSE(($D118:$E118))),0) -> 0 | AG118: =AG$110+IF($C118<>0,SUMPRODUCT((AG$111:AG$112)*TRANSPOSE(($D118:$E118))),0) -> 0
A119: ="sens"&Assumptions!B116 -> sens | C119: =Assumptions!C116 -> 0 | D119: =Assumptions!G116 -> 0 | E119: =Assumptions!H116 -> 0 | G119: Option 4sens | I119: =I$110+IF($C119<>0,SUMPRODUCT((I$111:I$112)*TRANSPOSE(($D119:$E119))),0) -> 0 | J119: =J$110+IF($C119<>0,SUMPRODUCT((J$111:J$112)*TRANSPOSE(($D119:$E119))),0) -> 0 | K119: =K$110+IF($C119<>0,SUMPRODUCT((K$111:K$112)*TRANSPOSE(($D119:$E119))),0) -> 0 | L119: =L$110+IF($C119<>0,SUMPRODUCT((L$111:L$112)*TRANSPOSE(($D119:$E119))),0) -> 0 | M119: =M$110+IF($C119<>0,SUMPRODUCT((M$111:M$112)*TRANSPOSE(($D119:$E119))),0) -> 0 | N119: =N$110+IF($C119<>0,SUMPRODUCT((N$111:N$112)*TRANSPOSE(($D119:$E119))),0) -> 0 | O119: =O$110+IF($C119<>0,SUMPRODUCT((O$111:O$112)*TRANSPOSE(($D119:$E119))),0) -> 0 | P119: =P$110+IF($C119<>0,SUMPRODUCT((P$111:P$112)*TRANSPOSE(($D119:$E119))),0) -> 0 | Q119: =Q$110+IF($C119<>0,SUMPRODUCT((Q$111:Q$112)*TRANSPOSE(($D119:$E119))),0) -> 0 | R119: =R$110+IF($C119<>0,SUMPRODUCT((R$111:R$112)*TRANSPOSE(($D119:$E119))),0) -> 0 | S119: =S$110+IF($C119<>0,SUMPRODUCT((S$111:S$112)*TRANSPOSE(($D119:$E119))),0) -> 0 | T119: =T$110+IF($C119<>0,SUMPRODUCT((T$111:T$112)*TRANSPOSE(($D119:$E119))),0) -> 0 | U119: =U$110+IF($C119<>0,SUMPRODUCT((U$111:U$112)*TRANSPOSE(($D119:$E119))),0) -> 0 | V119: =V$110+IF($C119<>0,SUMPRODUCT((V$111:V$112)*TRANSPOSE(($D119:$E119))),0) -> 0 | W119: =W$110+IF($C119<>0,SUMPRODUCT((W$111:W$112)*TRANSPOSE(($D119:$E119))),0) -> 0 | X119: =X$110+IF($C119<>0,SUMPRODUCT((X$111:X$112)*TRANSPOSE(($D119:$E119))),0) -> 0 | Y119: =Y$110+IF($C119<>0,SUMPRODUCT((Y$111:Y$112)*TRANSPOSE(($D119:$E119))),0) -> 0 | Z119: =Z$110+IF($C119<>0,SUMPRODUCT((Z$111:Z$112)*TRANSPOSE(($D119:$E119))),0) -> 0 | AA119: =AA$110+IF($C119<>0,SUMPRODUCT((AA$111:AA$112)*TRANSPOSE(($D119:$E119))),0) -> 0 | AB119: =AB$110+IF($C119<>0,SUMPRODUCT((AB$111:AB$112)*TRANSPOSE(($D119:$E119))),0) -> 0 | AC119: =AC$110+IF($C119<>0,SUMPRODUCT((AC$111:AC$112)*TRANSPOSE(($D119:$E119))),0) -> 0 | AD119: =AD$110+IF($C119<>0,SUMPRODUCT((AD$111:AD$112)*TRANSPOSE(($D119:$E119))),0) -> 0 | AE119: =AE$110+IF($C119<>0,SUMPRODUCT((AE$111:AE$112)*TRANSPOSE(($D119:$E119))),0) -> 0 | AF119: =AF$110+IF($C119<>0,SUMPRODUCT((AF$111:AF$112)*TRANSPOSE(($D119:$E119))),0) -> 0 | AG119: =AG$110+IF($C119<>0,SUMPRODUCT((AG$111:AG$112)*TRANSPOSE(($D119:$E119))),0) -> 0
A120: ="sens"&Assumptions!B117 -> sens | C120: =Assumptions!C117 -> 0 | D120: =Assumptions!G117 -> 0 | E120: =Assumptions!H117 -> 0 | G120: Option 4sens | I120: =I$110+IF($C120<>0,SUMPRODUCT((I$111:I$112)*TRANSPOSE(($D120:$E120))),0) -> 0 | J120: =J$110+IF($C120<>0,SUMPRODUCT((J$111:J$112)*TRANSPOSE(($D120:$E120))),0) -> 0 | K120: =K$110+IF($C120<>0,SUMPRODUCT((K$111:K$112)*TRANSPOSE(($D120:$E120))),0) -> 0 | L120: =L$110+IF($C120<>0,SUMPRODUCT((L$111:L$112)*TRANSPOSE(($D120:$E120))),0) -> 0 | M120: =M$110+IF($C120<>0,SUMPRODUCT((M$111:M$112)*TRANSPOSE(($D120:$E120))),0) -> 0 | N120: =N$110+IF($C120<>0,SUMPRODUCT((N$111:N$112)*TRANSPOSE(($D120:$E120))),0) -> 0 | O120: =O$110+IF($C120<>0,SUMPRODUCT((O$111:O$112)*TRANSPOSE(($D120:$E120))),0) -> 0 | P120: =P$110+IF($C120<>0,SUMPRODUCT((P$111:P$112)*TRANSPOSE(($D120:$E120))),0) -> 0 | Q120: =Q$110+IF($C120<>0,SUMPRODUCT((Q$111:Q$112)*TRANSPOSE(($D120:$E120))),0) -> 0 | R120: =R$110+IF($C120<>0,SUMPRODUCT((R$111:R$112)*TRANSPOSE(($D120:$E120))),0) -> 0 | S120: =S$110+IF($C120<>0,SUMPRODUCT((S$111:S$112)*TRANSPOSE(($D120:$E120))),0) -> 0 | T120: =T$110+IF($C120<>0,SUMPRODUCT((T$111:T$112)*TRANSPOSE(($D120:$E120))),0) -> 0 | U120: =U$110+IF($C120<>0,SUMPRODUCT((U$111:U$112)*TRANSPOSE(($D120:$E120))),0) -> 0 | V120: =V$110+IF($C120<>0,SUMPRODUCT((V$111:V$112)*TRANSPOSE(($D120:$E120))),0) -> 0 | W120: =W$110+IF($C120<>0,SUMPRODUCT((W$111:W$112)*TRANSPOSE(($D120:$E120))),0) -> 0 | X120: =X$110+IF($C120<>0,SUMPRODUCT((X$111:X$112)*TRANSPOSE(($D120:$E120))),0) -> 0 | Y120: =Y$110+IF($C120<>0,SUMPRODUCT((Y$111:Y$112)*TRANSPOSE(($D120:$E120))),0) -> 0 | Z120: =Z$110+IF($C120<>0,SUMPRODUCT((Z$111:Z$112)*TRANSPOSE(($D120:$E120))),0) -> 0 | AA120: =AA$110+IF($C120<>0,SUMPRODUCT((AA$111:AA$112)*TRANSPOSE(($D120:$E120))),0) -> 0 | AB120: =AB$110+IF($C120<>0,SUMPRODUCT((AB$111:AB$112)*TRANSPOSE(($D120:$E120))),0) -> 0 | AC120: =AC$110+IF($C120<>0,SUMPRODUCT((AC$111:AC$112)*TRANSPOSE(($D120:$E120))),0) -> 0 | AD120: =AD$110+IF($C120<>0,SUMPRODUCT((AD$111:AD$112)*TRANSPOSE(($D120:$E120))),0) -> 0 | AE120: =AE$110+IF($C120<>0,SUMPRODUCT((AE$111:AE$112)*TRANSPOSE(($D120:$E120))),0) -> 0 | AF120: =AF$110+IF($C120<>0,SUMPRODUCT((AF$111:AF$112)*TRANSPOSE(($D120:$E120))),0) -> 0 | AG120: =AG$110+IF($C120<>0,SUMPRODUCT((AG$111:AG$112)*TRANSPOSE(($D120:$E120))),0) -> 0
A121: ="sens"&Assumptions!B118 -> sens | C121: =Assumptions!C118 -> 0 | D121: =Assumptions!G118 -> 0 | E121: =Assumptions!H118 -> 0 | G121: Option 4sens | I121: =I$110+IF($C121<>0,SUMPRODUCT((I$111:I$112)*TRANSPOSE(($D121:$E121))),0) -> 0 | J121: =J$110+IF($C121<>0,SUMPRODUCT((J$111:J$112)*TRANSPOSE(($D121:$E121))),0) -> 0 | K121: =K$110+IF($C121<>0,SUMPRODUCT((K$111:K$112)*TRANSPOSE(($D121:$E121))),0) -> 0 | L121: =L$110+IF($C121<>0,SUMPRODUCT((L$111:L$112)*TRANSPOSE(($D121:$E121))),0) -> 0 | M121: =M$110+IF($C121<>0,SUMPRODUCT((M$111:M$112)*TRANSPOSE(($D121:$E121))),0) -> 0 | N121: =N$110+IF($C121<>0,SUMPRODUCT((N$111:N$112)*TRANSPOSE(($D121:$E121))),0) -> 0 | O121: =O$110+IF($C121<>0,SUMPRODUCT((O$111:O$112)*TRANSPOSE(($D121:$E121))),0) -> 0 | P121: =P$110+IF($C121<>0,SUMPRODUCT((P$111:P$112)*TRANSPOSE(($D121:$E121))),0) -> 0 | Q121: =Q$110+IF($C121<>0,SUMPRODUCT((Q$111:Q$112)*TRANSPOSE(($D121:$E121))),0) -> 0 | R121: =R$110+IF($C121<>0,SUMPRODUCT((R$111:R$112)*TRANSPOSE(($D121:$E121))),0) -> 0 | S121: =S$110+IF($C121<>0,SUMPRODUCT((S$111:S$112)*TRANSPOSE(($D121:$E121))),0) -> 0 | T121: =T$110+IF($C121<>0,SUMPRODUCT((T$111:T$112)*TRANSPOSE(($D121:$E121))),0) -> 0 | U121: =U$110+IF($C121<>0,SUMPRODUCT((U$111:U$112)*TRANSPOSE(($D121:$E121))),0) -> 0 | V121: =V$110+IF($C121<>0,SUMPRODUCT((V$111:V$112)*TRANSPOSE(($D121:$E121))),0) -> 0 | W121: =W$110+IF($C121<>0,SUMPRODUCT((W$111:W$112)*TRANSPOSE(($D121:$E121))),0) -> 0 | X121: =X$110+IF($C121<>0,SUMPRODUCT((X$111:X$112)*TRANSPOSE(($D121:$E121))),0) -> 0 | Y121: =Y$110+IF($C121<>0,SUMPRODUCT((Y$111:Y$112)*TRANSPOSE(($D121:$E121))),0) -> 0 | Z121: =Z$110+IF($C121<>0,SUMPRODUCT((Z$111:Z$112)*TRANSPOSE(($D121:$E121))),0) -> 0 | AA121: =AA$110+IF($C121<>0,SUMPRODUCT((AA$111:AA$112)*TRANSPOSE(($D121:$E121))),0) -> 0 | AB121: =AB$110+IF($C121<>0,SUMPRODUCT((AB$111:AB$112)*TRANSPOSE(($D121:$E121))),0) -> 0 | AC121: =AC$110+IF($C121<>0,SUMPRODUCT((AC$111:AC$112)*TRANSPOSE(($D121:$E121))),0) -> 0 | AD121: =AD$110+IF($C121<>0,SUMPRODUCT((AD$111:AD$112)*TRANSPOSE(($D121:$E121))),0) -> 0 | AE121: =AE$110+IF($C121<>0,SUMPRODUCT((AE$111:AE$112)*TRANSPOSE(($D121:$E121))),0) -> 0 | AF121: =AF$110+IF($C121<>0,SUMPRODUCT((AF$111:AF$112)*TRANSPOSE(($D121:$E121))),0) -> 0 | AG121: =AG$110+IF($C121<>0,SUMPRODUCT((AG$111:AG$112)*TRANSPOSE(($D121:$E121))),0) -> 0

Sheet Option5
A1: =bus -> Powercor
A2: =proj -> Mount Cottrell feeder 9
A3: OPTION 5 | C3: =INDEX(Assumptions!$E$14:$E$18, MATCH(A3,_xlfn.ANCHORARRAY( Assumptions!$C$14),0)) -> 0
A4: =(INDEX(Data!$D$9:$D$13, MATCH(A3, options,0))) -> Not used
A6: ='Option1 (base case)'!A6 -> Count | I6: ='Option1 (base case)'!I6 -> 1 | J6: ='Option1 (base case)'!J6 -> 2 | K6: ='Option1 (base case)'!K6 -> 3 | L6: ='Option1 (base case)'!L6 -> 4 | M6: ='Option1 (base case)'!M6 -> 5 | N6: ='Option1 (base case)'!N6 -> 6 | O6: ='Option1 (base case)'!O6 -> 7 | P6: ='Option1 (base case)'!P6 -> 8 | Q6: ='Option1 (base case)'!Q6 -> 9 | R6: ='Option1 (base case)'!R6 -> 10 | S6: ='Option1 (base case)'!S6 -> 11 | T6: ='Option1 (base case)'!T6 -> 12 | U6: ='Option1 (base case)'!U6 -> 13 | V6: ='Option1 (base case)'!V6 -> 14 | W6: ='Option1 (base case)'!W6 -> 15 | X6: ='Option1 (base case)'!X6 -> 16 | Y6: ='Option1 (base case)'!Y6 -> 17 | Z6: ='Option1 (base case)'!Z6 -> 18 | AA6: ='Option1 (base case)'!AA6 -> 19 | AB6: ='Option1 (base case)'!AB6 -> 20 | AC6: ='Option1 (base case)'!AC6 -> 21 | AD6: ='Option1 (base case)'!AD6 -> 22 | AE6: ='Option1 (base case)'!AE6 -> 23 | AF6: ='Option1 (base case)'!AF6 -> 24 | AG6: ='Option1 (base case)'!AG6 -> 25
A7: ='Option1 (base case)'!A7 -> Value of CO2 reductions | G7: $/MWh | I7: ='Option1 (base case)'!I7 -> 24.7304868 | J7: ='Option1 (base case)'!J7 -> 22.34074009 | K7: ='Option1 (base case)'!K7 -> 20.19632912 | L7: ='Option1 (base case)'!L7 -> 18.06294208 | M7: ='Option1 (base case)'!M7 -> 15.91339762 | N7: ='Option1 (base case)'!N7 -> 13.71506943 | O7: ='Option1 (base case)'!O7 -> 13.71506943 | P7: ='Option1 (base case)'!P7 -> 13.71506943 | Q7: ='Option1 (base case)'!Q7 -> 13.71506943 | R7: ='Option1 (base case)'!R7 -> 13.71506943 | S7: ='Option1 (base case)'!S7 -> 13.71506943 | T7: ='Option1 (base case)'!T7 -> 13.71506943 | U7: ='Option1 (base case)'!U7 -> 13.71506943 | V7: ='Option1 (base case)'!V7 -> 13.71506943 | W7: ='Option1 (base case)'!W7 -> 13.71506943 | X7: ='Option1 (base case)'!X7 -> 13.71506943 | Y7: ='Option1 (base case)'!Y7 -> 13.71506943 | Z7: ='Option1 (base case)'!Z7 -> 13.71506943 | AA7: ='Option1 (base case)'!AA7 -> 13.71506943 | AB7: ='Option1 (base case)'!AB7 -> 13.71506943 | AC7: ='Option1 (base case)'!AC7 -> 13.71506943 | AD7: ='Option1 (base case)'!AD7 -> 13.71506943 | AE7: ='Option1 (base case)'!AE7 -> 13.71506943 | AF7: ='Option1 (base case)'!AF7 -> 13.71506943 | AG7: ='Option1 (base case)'!AG7 -> 13.71506943
I8: =_xlfn.NUMBERVALUE(LEFT(I$9,4))+1 -> 2027 | J8: =_xlfn.NUMBERVALUE(LEFT(J$9,4))+1 -> 2028 | K8: 2029 | L8: 2030 | M8: 2031 | N8: 2032 | O8: 2033 | P8: 2034 | Q8: 2035 | R8: 2036 | S8: 2037 | T8: 2038 | U8: 2039 | V8: 2040 | W8: 2041 | X8: 2042 | Y8: 2043 | Z8: 2044 | AA8: 2045 | AB8: 2046 | AC8: 2047 | AD8: 2048 | AE8: 2049 | AF8: 2050 | AG8: 2051
G9: Units | I9: ='Option1 (base case)'!I9 -> 2026-27 | J9: ='Option1 (base case)'!J9 -> 2027-28 | K9: ='Option1 (base case)'!K9 -> 2028-29 | L9: ='Option1 (base case)'!L9 -> 2029-30 | M9: ='Option1 (base case)'!M9 -> 2030-31 | N9: ='Option1 (base case)'!N9 -> 2031-32 | O9: ='Option1 (base case)'!O9 -> 2032-33 | P9: ='Option1 (base case)'!P9 -> 2033-34 | Q9: ='Option1 (base case)'!Q9 -> 2034-35 | R9: ='Option1 (base case)'!R9 -> 2035-36 | S9: ='Option1 (base case)'!S9 -> 2036-37 | T9: ='Option1 (base case)'!T9 -> 2037-38 | U9: ='Option1 (base case)'!U9 -> 2038-39 | V9: ='Option1 (base case)'!V9 -> 2039-40 | W9: ='Option1 (base case)'!W9 -> 2040-41 | X9: ='Option1 (base case)'!X9 -> 2041-42 | Y9: ='Option1 (base case)'!Y9 -> 2042-43 | Z9: ='Option1 (base case)'!Z9 -> 2043-44 | AA9: ='Option1 (base case)'!AA9 -> 2044-45 | AB9: ='Option1 (base case)'!AB9 -> 2045-46 | AC9: ='Option1 (base case)'!AC9 -> 2046-47 | AD9: ='Option1 (base case)'!AD9 -> 2047-48 | AE9: ='Option1 (base case)'!AE9 -> 2048-49 | AF9: ='Option1 (base case)'!AF9 -> 2049-50 | AG9: ='Option1 (base case)'!AG9 -> 2050-51
A11: INVESTMENT & OPERATING COST
C13: Capex | E13: Asset life (yrs)
C14: < Enter description > | E14: 0 | G14: =input_dollars -> 2023-12-31 | I14: 0 | J14: 0 | K14: 0 | L14: 0 | M14: 0 | N14: 0 | O14: 0 | P14: 0 | Q14: 0 | R14: 0 | S14: 0 | T14: 0 | U14: 0 | V14: 0 | W14: 0 | X14: 0 | Y14: 0 | Z14: 0 | AA14: 0 | AB14: 0 | AC14: 0 | AD14: 0 | AE14: 0 | AF14: 0 | AG14: 0
C15: < Enter description > | E15: 0 | G15: =input_dollars -> 2023-12-31 | I15: 0 | J15: 0 | K15: 0 | L15: 0 | M15: 0 | N15: 0 | O15: 0 | P15: 0 | Q15: 0 | R15: 0 | S15: 0 | T15: 0 | U15: 0 | V15: 0 | W15: 0 | X15: 0 | Y15: 0 | Z15: 0 | AA15: 0 | AB15: 0 | AC15: 0 | AD15: 0 | AE15: 0 | AF15: 0 | AG15: 0
C16: < Enter description > | E16: 0 | G16: =input_dollars -> 2023-12-31 | I16: 0 | J16: 0 | K16: 0 | L16: 0 | M16: 0 | N16: 0 | O16: 0 | P16: 0 | Q16: 0 | R16: 0 | S16: 0 | T16: 0 | U16: 0 | V16: 0 | W16: 0 | X16: 0 | Y16: 0 | Z16: 0 | AA16: 0 | AB16: 0 | AC16: 0 | AD16: 0 | AE16: 0 | AF16: 0 | AG16: 0
C17: Capital expenditure | G17: =input_dollars -> 2023-12-31 | I17: =SUM(I14:I16) -> 0 | J17: 0 | K17: =SUM(K14:K16) -> 0 | L17: 0 | M17: 0 | N17: 0 | O17: 0 | P17: 0 | Q17: 0 | R17: =SUM(R14:R16) -> 0 | S17: 0 | T17: 0 | U17: 0 | V17: 0 | W17: 0 | X17: 0 | Y17: 0 | Z17: 0 | AA17: 0 | AB17: 0 | AC17: 0 | AD17: 0 | AE17: 0 | AF17: 0 | AG17: 0
C19: Operating expenditure | G19: =input_dollars -> 2023-12-31 | I19: 0 | J19: 0 | K19: 0 | L19: 0 | M19: 0 | N19: 0 | O19: 0 | P19: 0 | Q19: 0 | R19: 0 | S19: 0 | T19: 0 | U19: 0 | V19: 0 | W19: 0 | X19: 0 | Y19: 0 | Z19: 0 | AA19: 0 | AB19: 0 | AC19: 0 | AD19: 0 | AE19: 0 | AF19: 0 | AG19: 0
A22: RISK ASSUMPTIONS
C24: PoF (major) | I24: 0 | J24: 0 | K24: 0 | L24: 0 | M24: 0 | N24: 0 | O24: 0 | P24: 0 | Q24: 0 | R24: 0 | S24: 0 | T24: 0 | U24: 0 | V24: 0 | W24: 0 | X24: 0 | Y24: 0 | Z24: 0 | AA24: 0 | AB24: 0 | AC24: 0 | AD24: 0 | AE24: 0 | AF24: 0 | AG24: 0
C25: PoF (reparable) | I25: 0 | J25: 0 | K25: 0 | L25: 0 | M25: 0 | N25: 0 | O25: 0 | P25: 0 | Q25: 0 | R25: 0 | S25: 0 | T25: 0 | U25: 0 | V25: 0 | W25: 0 | X25: 0 | Y25: 0 | Z25: 0 | AA25: 0 | AB25: 0 | AC25: 0 | AD25: 0 | AE25: 0 | AF25: 0 | AG25: 0
C27: Const end date
C28: Energy at risk 10% PoE | E28: 0.3 | G28: MWh | I28: 0 | J28: 0 | K28: 0 | L28: 0 | M28: 0 | N28: 0 | O28: 0 | P28: 0 | Q28: 0 | R28: 0 | S28: 0 | T28: 0 | U28: 0 | V28: 0 | W28: 0 | X28: 0 | Y28: 0 | Z28: 0 | AA28: 0 | AB28: 0 | AC28: 0 | AD28: 0 | AE28: 0 | AF28: 0 | AG28: 0
C29: Energy at risk 50% PoE | E29: 0.7 | G29: MWh | I29: 0 | J29: 0 | K29: 0 | L29: 0 | M29: 0 | N29: 0 | O29: 0 | P29: 0 | Q29: 0 | R29: 0 | S29: 0 | T29: 0 | U29: 0 | V29: 0 | W29: 0 | X29: 0 | Y29: 0 | Z29: 0 | AA29: 0 | AB29: 0 | AC29: 0 | AD29: 0 | AE29: 0 | AF29: 0 | AG29: 0
C31: Energy at risk (weighted) | G31: MWh | I31: =SUMPRODUCT(I$28:I$29, $E$28:$E$29) -> 0 | J31: =SUMPRODUCT(J$28:J$29, $E$28:$E$29) -> 0 | K31: 0 | L31: 0 | M31: 0 | N31: 0 | O31: 0 | P31: 0 | Q31: 0 | R31: 0 | S31: 0 | T31: 0 | U31: 0 | V31: 0 | W31: 0 | X31: 0 | Y31: 0 | Z31: 0 | AA31: 0 | AB31: 0 | AC31: 0 | AD31: 0 | AE31: 0 | AF31: 0 | AG31: 0
C32: Energy at risk value | D32: $/MWh | E32: =Assumptions!H41*vcr_esc -> 43995.26048 | F32: =IF(AND(SUM(I31:AG31)<>0, E32=0), "!", "") ->  | G32: =input_dollars -> 2023-12-31 | I32: =I31*$E$32 -> 0 | J32: =J31*$E$32 -> 0 | K32: 0 | L32: 0 | M32: 0 | N32: 0 | O32: 0 | P32: 0 | Q32: 0 | R32: 0 | S32: 0 | T32: 0 | U32: 0 | V32: 0 | W32: 0 | X32: 0 | Y32: 0 | Z32: 0 | AA32: 0 | AB32: 0 | AC32: 0 | AD32: 0 | AE32: 0 | AF32: 0 | AG32: 0
C34: Safety consequence | D34: (after DF) | G34: =input_dollars -> 2023-12-31 | I34: =SUMPRODUCT((Assumptions!$H$70:$H$71)*(Assumptions!$G$70:$G$71)*(Assumptions!$I$70:$I$71)*(I$24:I$25)) -> 0 | J34: =SUMPRODUCT((Assumptions!$H$70:$H$71)*(Assumptions!$G$70:$G$71)*(Assumptions!$I$70:$I$71)*(J$24:J$25)) -> 0 | K34: =SUMPRODUCT((Assumptions!$H$70:$H$71)*(Assumptions!$G$70:$G$71)*(Assumptions!$I$70:$I$71)*(K$24:K$25)) -> 0 | L34: =SUMPRODUCT((Assumptions!$H$70:$H$71)*(Assumptions!$G$70:$G$71)*(Assumptions!$I$70:$I$71)*(L$24:L$25)) -> 0 | M34: =SUMPRODUCT((Assumptions!$H$70:$H$71)*(Assumptions!$G$70:$G$71)*(Assumptions!$I$70:$I$71)*(M$24:M$25)) -> 0 | N34: =SUMPRODUCT((Assumptions!$H$70:$H$71)*(Assumptions!$G$70:$G$71)*(Assumptions!$I$70:$I$71)*(N$24:N$25)) -> 0 | O34: =SUMPRODUCT((Assumptions!$H$70:$H$71)*(Assumptions!$G$70:$G$71)*(Assumptions!$I$70:$I$71)*(O$24:O$25)) -> 0 | P34: =SUMPRODUCT((Assumptions!$H$70:$H$71)*(Assumptions!$G$70:$G$71)*(Assumptions!$I$70:$I$71)*(P$24:P$25)) -> 0 | Q34: =SUMPRODUCT((Assumptions!$H$70:$H$71)*(Assumptions!$G$70:$G$71)*(Assumptions!$I$70:$I$71)*(Q$24:Q$25)) -> 0 | R34: =SUMPRODUCT((Assumptions!$H$70:$H$71)*(Assumptions!$G$70:$G$71)*(Assumptions!$I$70:$I$71)*(R$24:R$25)) -> 0 | S34: =SUMPRODUCT((Assumptions!$H$70:$H$71)*(Assumptions!$G$70:$G$71)*(Assumptions!$I$70:$I$71)*(S$24:S$25)) -> 0 | T34: =SUMPRODUCT((Assumptions!$H$70:$H$71)*(Assumptions!$G$70:$G$71)*(Assumptions!$I$70:$I$71)*(T$24:T$25)) -> 0 | U34: =SUMPRODUCT((Assumptions!$H$70:$H$71)*(Assumptions!$G$70:$G$71)*(Assumptions!$I$70:$I$71)*(U$24:U$25)) -> 0 | V34: =SUMPRODUCT((Assumptions!$H$70:$H$71)*(Assumptions!$G$70:$G$71)*(Assumptions!$I$70:$I$71)*(V$24:V$25)) -> 0 | W34: =SUMPRODUCT((Assumptions!$H$70:$H$71)*(Assumptions!$G$70:$G$71)*(Assumptions!$I$70:$I$71)*(W$24:W$25)) -> 0 | X34: =SUMPRODUCT((Assumptions!$H$70:$H$71)*(Assumptions!$G$70:$G$71)*(Assumptions!$I$70:$I$71)*(X$24:X$25)) -> 0 | Y34: =SUMPRODUCT((Assumptions!$H$70:$H$71)*(Assumptions!$G$70:$G$71)*(Assumptions!$I$70:$I$71)*(Y$24:Y$25)) -> 0 | Z34: =SUMPRODUCT((Assumptions!$H$70:$H$71)*(Assumptions!$G$70:$G$71)*(Assumptions!$I$70:$I$71)*(Z$24:Z$25)) -> 0 | AA34: =SUMPRODUCT((Assumptions!$H$70:$H$71)*(Assumptions!$G$70:$G$71)*(Assumptions!$I$70:$I$71)*(AA$24:AA$25)) -> 0 | AB34: =SUMPRODUCT((Assumptions!$H$70:$H$71)*(Assumptions!$G$70:$G$71)*(Assumptions!$I$70:$I$71)*(AB$24:AB$25)) -> 0 | AC34: =SUMPRODUCT((Assumptions!$H$70:$H$71)*(Assumptions!$G$70:$G$71)*(Assumptions!$I$70:$I$71)*(AC$24:AC$25)) -> 0 | AD34: =SUMPRODUCT((Assumptions!$H$70:$H$71)*(Assumptions!$G$70:$G$71)*(Assumptions!$I$70:$I$71)*(AD$24:AD$25)) -> 0 | AE34: =SUMPRODUCT((Assumptions!$H$70:$H$71)*(Assumptions!$G$70:$G$71)*(Assumptions!$I$70:$I$71)*(AE$24:AE$25)) -> 0 | AF34: =SUMPRODUCT((Assumptions!$H$70:$H$71)*(Assumptions!$G$70:$G$71)*(Assumptions!$I$70:$I$71)*(AF$24:AF$25)) -> 0 | AG34: =SUMPRODUCT((Assumptions!$H$70:$H$71)*(Assumptions!$G$70:$G$71)*(Assumptions!$I$70:$I$71)*(AG$24:AG$25)) -> 0
C35: Unplanned replacements | G35: =input_dollars -> 2023-12-31 | I35: =(1+Assumptions!$G$81)*SUMPRODUCT((Assumptions!$G$78:$G$79)*(I$24:I$25)) -> 0 | J35: =(1+Assumptions!$G$81)*SUMPRODUCT((Assumptions!$G$78:$G$79)*(J$24:J$25)) -> 0 | K35: =(1+Assumptions!$G$81)*SUMPRODUCT((Assumptions!$G$78:$G$79)*(K$24:K$25)) -> 0 | L35: =(1+Assumptions!$G$81)*SUMPRODUCT((Assumptions!$G$78:$G$79)*(L$24:L$25)) -> 0 | M35: =(1+Assumptions!$G$81)*SUMPRODUCT((Assumptions!$G$78:$G$79)*(M$24:M$25)) -> 0 | N35: =(1+Assumptions!$G$81)*SUMPRODUCT((Assumptions!$G$78:$G$79)*(N$24:N$25)) -> 0 | O35: =(1+Assumptions!$G$81)*SUMPRODUCT((Assumptions!$G$78:$G$79)*(O$24:O$25)) -> 0 | P35: =(1+Assumptions!$G$81)*SUMPRODUCT((Assumptions!$G$78:$G$79)*(P$24:P$25)) -> 0 | Q35: =(1+Assumptions!$G$81)*SUMPRODUCT((Assumptions!$G$78:$G$79)*(Q$24:Q$25)) -> 0 | R35: =(1+Assumptions!$G$81)*SUMPRODUCT((Assumptions!$G$78:$G$79)*(R$24:R$25)) -> 0 | S35: =(1+Assumptions!$G$81)*SUMPRODUCT((Assumptions!$G$78:$G$79)*(S$24:S$25)) -> 0 | T35: =(1+Assumptions!$G$81)*SUMPRODUCT((Assumptions!$G$78:$G$79)*(T$24:T$25)) -> 0 | U35: =(1+Assumptions!$G$81)*SUMPRODUCT((Assumptions!$G$78:$G$79)*(U$24:U$25)) -> 0 | V35: =(1+Assumptions!$G$81)*SUMPRODUCT((Assumptions!$G$78:$G$79)*(V$24:V$25)) -> 0 | W35: =(1+Assumptions!$G$81)*SUMPRODUCT((Assumptions!$G$78:$G$79)*(W$24:W$25)) -> 0 | X35: =(1+Assumptions!$G$81)*SUMPRODUCT((Assumptions!$G$78:$G$79)*(X$24:X$25)) -> 0 | Y35: =(1+Assumptions!$G$81)*SUMPRODUCT((Assumptions!$G$78:$G$79)*(Y$24:Y$25)) -> 0 | Z35: =(1+Assumptions!$G$81)*SUMPRODUCT((Assumptions!$G$78:$G$79)*(Z$24:Z$25)) -> 0 | AA35: =(1+Assumptions!$G$81)*SUMPRODUCT((Assumptions!$G$78:$G$79)*(AA$24:AA$25)) -> 0 | AB35: =(1+Assumptions!$G$81)*SUMPRODUCT((Assumptions!$G$78:$G$79)*(AB$24:AB$25)) -> 0 | AC35: =(1+Assumptions!$G$81)*SUMPRODUCT((Assumptions!$G$78:$G$79)*(AC$24:AC$25)) -> 0 | AD35: =(1+Assumptions!$G$81)*SUMPRODUCT((Assumptions!$G$78:$G$79)*(AD$24:AD$25)) -> 0 | AE35: =(1+Assumptions!$G$81)*SUMPRODUCT((Assumptions!$G$78:$G$79)*(AE$24:AE$25)) -> 0 | AF35: =(1+Assumptions!$G$81)*SUMPRODUCT((Assumptions!$G$78:$G$79)*(AF$24:AF$25)) -> 0 | AG35: =(1+Assumptions!$G$81)*SUMPRODUCT((Assumptions!$G$78:$G$79)*(AG$24:AG$25)) -> 0
C36: Environmental consequence | D36: (after DF) | G36: =input_dollars -> 2023-12-31 | I36: 0 | J36: 0 | K36: 0 | L36: 0 | M36: 0 | N36: 0 | O36: 0 | P36: 0 | Q36: 0 | R36: 0 | S36: 0 | T36: 0 | U36: 0 | V36: 0 | W36: 0 | X36: 0 | Y36: 0 | Z36: 0 | AA36: 0 | AB36: 0 | AC36: 0 | AD36: 0 | AE36: 0 | AF36: 0 | AG36: 0
C37: < Other risk - enter description > | G37: =input_dollars -> 2023-12-31 | I37: 0 | J37: 0 | K37: 0 | L37: 0 | M37: 0 | N37: 0 | O37: 0 | P37: 0 | Q37: 0 | R37: 0 | S37: 0 | T37: 0 | U37: 0 | V37: 0 | W37: 0 | X37: 0 | Y37: 0 | Z37: 0 | AA37: 0 | AB37: 0 | AC37: 0 | AD37: 0 | AE37: 0 | AF37: 0 | AG37: 0
C38: < Other risk - enter description > | G38: =input_dollars -> 2023-12-31 | I38: 0 | J38: 0 | K38: 0 | L38: 0 | M38: 0 | N38: 0 | O38: 0 | P38: 0 | Q38: 0 | R38: 0 | S38: 0 | T38: 0 | U38: 0 | V38: 0 | W38: 0 | X38: 0 | Y38: 0 | Z38: 0 | AA38: 0 | AB38: 0 | AC38: 0 | AD38: 0 | AE38: 0 | AF38: 0 | AG38: 0
C40: Total risk cost | I40: =SUM(I32:I38) -> 0 | J40: =SUM(J32:J38) -> 0 | K40: 0 | L40: 0 | M40: 0 | N40: 0 | O40: 0 | P40: 0 | Q40: 0 | R40: 0 | S40: 0 | T40: 0 | U40: 0 | V40: 0 | W40: 0 | X40: 0 | Y40: 0 | Z40: 0 | AA40: 0 | AB40: 0 | AC40: 0 | AD40: 0 | AE40: 0 | AF40: 0 | AG40: 0
A42: OTHER BENEFITS
C45: Reduction in CO2 emissions | G45: MWh | I45: 0 | J45: 0 | K45: 0 | L45: 0 | M45: 0 | N45: 0 | O45: 0 | P45: 0 | Q45: 0 | R45: 0 | S45: 0 | T45: 0 | U45: 0 | V45: 0 | W45: 0 | X45: 0 | Y45: 0 | Z45: 0 | AA45: 0 | AB45: 0 | AC45: 0 | AD45: 0 | AE45: 0 | AF45: 0 | AG45: 0
C46: Value of reduction in CO2 emissions | G46: $ | I46: =I45*I7 -> 0 | J46: 0 | K46: 0 | L46: 0 | M46: 0 | N46: 0 | O46: 0 | P46: 0 | Q46: 0 | R46: 0 | S46: 0 | T46: 0 | U46: 0 | V46: 0 | W46: 0 | X46: 0 | Y46: 0 | Z46: 0 | AA46: 0 | AB46: 0 | AC46: 0 | AD46: 0 | AE46: 0 | AF46: 0 | AG46: 0
C49: Reliability in worst-served areas | D49: $/MWh | E49: =Assumptions!G94 -> 151432.8174 | G49: MWh | I49: 0 | J49: 0 | K49: 0 | L49: 0 | M49: 0 | N49: 0 | O49: 0 | P49: 0 | Q49: 0 | R49: 0 | S49: 0 | T49: 0 | U49: 0 | V49: 0 | W49: 0 | X49: 0 | Y49: 0 | Z49: 0 | AA49: 0 | AB49: 0 | AC49: 0 | AD49: 0 | AE49: 0 | AF49: 0 | AG49: 0
C50: Network resilience | D50: $/MWh | E50: =Assumptions!G95 -> 24590 | G50: MWh | I50: 0 | J50: 0 | K50: 0 | L50: 0 | M50: 0 | N50: 0 | O50: 0 | P50: 0 | Q50: 0 | R50: 0 | S50: 0 | T50: 0 | U50: 0 | V50: 0 | W50: 0 | X50: 0 | Y50: 0 | Z50: 0 | AA50: 0 | AB50: 0 | AC50: 0 | AD50: 0 | AE50: 0 | AF50: 0 | AG50: 0
C51: Enabling solar exports | D51: $/MWh | E51: =Assumptions!G96 -> 88.35771951 | G51: MWh | I51: 0 | J51: 0 | K51: 0 | L51: 0 | M51: 0 | N51: 0 | O51: 0 | P51: 0 | Q51: 0 | R51: 0 | S51: 0 | T51: 0 | U51: 0 | V51: 0 | W51: 0 | X51: 0 | Y51: 0 | Z51: 0 | AA51: 0 | AB51: 0 | AC51: 0 | AD51: 0 | AE51: 0 | AF51: 0 | AG51: 0
C52: Aesthetics | D52: $/customer | E52: =Assumptions!G97 -> 0 | G52: customers | I52: 0 | J52: 0 | K52: 0 | L52: 0 | M52: 0 | N52: 0 | O52: 0 | P52: 0 | Q52: 0 | R52: 0 | S52: 0 | T52: 0 | U52: 0 | V52: 0 | W52: 0 | X52: 0 | Y52: 0 | Z52: 0 | AA52: 0 | AB52: 0 | AC52: 0 | AD52: 0 | AE52: 0 | AF52: 0 | AG52: 0
C53: Customer value of time (res) | D53: $/customer min | E53: =Assumptions!G98 -> 0.3518133654 | G53: mins | I53: 0 | J53: 0 | K53: 0 | L53: 0 | M53: 0 | N53: 0 | O53: 0 | P53: 0 | Q53: 0 | R53: 0 | S53: 0 | T53: 0 | U53: 0 | V53: 0 | W53: 0 | X53: 0 | Y53: 0 | Z53: 0 | AA53: 0 | AB53: 0 | AC53: 0 | AD53: 0 | AE53: 0 | AF53: 0 | AG53: 0
C54: Customer value of time (bus) | D54: $/customer min | E54: =Assumptions!G99 -> 0.3518133654 | G54: mins | I54: 0 | J54: 0 | K54: 0 | L54: 0 | M54: 0 | N54: 0 | O54: 0 | P54: 0 | Q54: 0 | R54: 0 | S54: 0 | T54: 0 | U54: 0 | V54: 0 | W54: 0 | X54: 0 | Y54: 0 | Z54: 0 | AA54: 0 | AB54: 0 | AC54: 0 | AD54: 0 | AE54: 0 | AF54: 0 | AG54: 0
C55: Communication | D55: $/customer | E55: =Assumptions!G100 -> 0 | G55: customers | I55: 0 | J55: 0 | K55: 0 | L55: 0 | M55: 0 | N55: 0 | O55: 0 | P55: 0 | Q55: 0 | R55: 0 | S55: 0 | T55: 0 | U55: 0 | V55: 0 | W55: 0 | X55: 0 | Y55: 0 | Z55: 0 | AA55: 0 | AB55: 0 | AC55: 0 | AD55: 0 | AE55: 0 | AF55: 0 | AG55: 0
C56: Information accessibility | D56: $/customer | E56: =Assumptions!G101 -> 0 | G56: customers | I56: 0 | J56: 0 | K56: 0 | L56: 0 | M56: 0 | N56: 0 | O56: 0 | P56: 0 | Q56: 0 | R56: 0 | S56: 0 | T56: 0 | U56: 0 | V56: 0 | W56: 0 | X56: 0 | Y56: 0 | Z56: 0 | AA56: 0 | AB56: 0 | AC56: 0 | AD56: 0 | AE56: 0 | AF56: 0 | AG56: 0
C58: Other benefits 1 | G58: =input_dollars -> 2023-12-31 | I58: 0 | J58: 0 | K58: 0 | L58: 0 | M58: 0 | N58: 0 | O58: 0 | P58: 0 | Q58: 0 | R58: 0 | S58: 0 | T58: 0 | U58: 0 | V58: 0 | W58: 0 | X58: 0 | Y58: 0 | Z58: 0 | AA58: 0 | AB58: 0 | AC58: 0 | AD58: 0 | AE58: 0 | AF58: 0 | AG58: 0
C59: Other benefits 2 | G59: =input_dollars -> 2023-12-31 | I59: 0 | J59: 0 | K59: 0 | L59: 0 | M59: 0 | N59: 0 | O59: 0 | P59: 0 | Q59: 0 | R59: 0 | S59: 0 | T59: 0 | U59: 0 | V59: 0 | W59: 0 | X59: 0 | Y59: 0 | Z59: 0 | AA59: 0 | AB59: 0 | AC59: 0 | AD59: 0 | AE59: 0 | AF59: 0 | AG59: 0
C61: Total other benefits | G61: =input_dollars -> 2023-12-31 | I61: =SUMPRODUCT((I$49:I$56)*($E$49:$E$56))+SUM(I58:I59)+I46 -> 0 | J61: =SUMPRODUCT((J$49:J$56)*($E$49:$E$56))+SUM(J58:J59)+J46 -> 0 | K61: =SUMPRODUCT((K$49:K$56)*($E$49:$E$56))+SUM(K58:K59)+K46 -> 0 | L61: =SUMPRODUCT((L$49:L$56)*($E$49:$E$56))+SUM(L58:L59)+L46 -> 0 | M61: =SUMPRODUCT((M$49:M$56)*($E$49:$E$56))+SUM(M58:M59)+M46 -> 0 | N61: =SUMPRODUCT((N$49:N$56)*($E$49:$E$56))+SUM(N58:N59)+N46 -> 0 | O61: =SUMPRODUCT((O$49:O$56)*($E$49:$E$56))+SUM(O58:O59)+O46 -> 0 | P61: =SUMPRODUCT((P$49:P$56)*($E$49:$E$56))+SUM(P58:P59)+P46 -> 0 | Q61: =SUMPRODUCT((Q$49:Q$56)*($E$49:$E$56))+SUM(Q58:Q59)+Q46 -> 0 | R61: =SUMPRODUCT((R$49:R$56)*($E$49:$E$56))+SUM(R58:R59)+R46 -> 0 | S61: =SUMPRODUCT((S$49:S$56)*($E$49:$E$56))+SUM(S58:S59)+S46 -> 0 | T61: =SUMPRODUCT((T$49:T$56)*($E$49:$E$56))+SUM(T58:T59)+T46 -> 0 | U61: =SUMPRODUCT((U$49:U$56)*($E$49:$E$56))+SUM(U58:U59)+U46 -> 0 | V61: =SUMPRODUCT((V$49:V$56)*($E$49:$E$56))+SUM(V58:V59)+V46 -> 0 | W61: =SUMPRODUCT((W$49:W$56)*($E$49:$E$56))+SUM(W58:W59)+W46 -> 0 | X61: =SUMPRODUCT((X$49:X$56)*($E$49:$E$56))+SUM(X58:X59)+X46 -> 0 | Y61: =SUMPRODUCT((Y$49:Y$56)*($E$49:$E$56))+SUM(Y58:Y59)+Y46 -> 0 | Z61: =SUMPRODUCT((Z$49:Z$56)*($E$49:$E$56))+SUM(Z58:Z59)+Z46 -> 0 | AA61: =SUMPRODUCT((AA$49:AA$56)*($E$49:$E$56))+SUM(AA58:AA59)+AA46 -> 0 | AB61: =SUMPRODUCT((AB$49:AB$56)*($E$49:$E$56))+SUM(AB58:AB59)+AB46 -> 0 | AC61: =SUMPRODUCT((AC$49:AC$56)*($E$49:$E$56))+SUM(AC58:AC59)+AC46 -> 0 | AD61: =SUMPRODUCT((AD$49:AD$56)*($E$49:$E$56))+SUM(AD58:AD59)+AD46 -> 0 | AE61: =SUMPRODUCT((AE$49:AE$56)*($E$49:$E$56))+SUM(AE58:AE59)+AE46 -> 0 | AF61: =SUMPRODUCT((AF$49:AF$56)*($E$49:$E$56))+SUM(AF58:AF59)+AF46 -> 0 | AG61: =SUMPRODUCT((AG$49:AG$56)*($E$49:$E$56))+SUM(AG58:AG59)+AG46 -> 0
A64: SUMMARY
C68: ='Option1 (base case)'!C68 -> Risks mitigated vs base case | G68: =input_dollars -> 2023-12-31 | I68: =(1-INDEX(Data!$C$9:$C$13, MATCH($A$3, options,0)))*('Option1 (base case)'!I40-I40) -> 0 | J68: =(1-INDEX(Data!$C$9:$C$13, MATCH($A$3, options,0)))*('Option1 (base case)'!J40-J40) -> 0 | K68: =(1-INDEX(Data!$C$9:$C$13, MATCH($A$3, options,0)))*('Option1 (base case)'!K40-K40) -> 0 | L68: =(1-INDEX(Data!$C$9:$C$13, MATCH($A$3, options,0)))*('Option1 (base case)'!L40-L40) -> 0 | M68: =(1-INDEX(Data!$C$9:$C$13, MATCH($A$3, options,0)))*('Option1 (base case)'!M40-M40) -> 0 | N68: =(1-INDEX(Data!$C$9:$C$13, MATCH($A$3, options,0)))*('Option1 (base case)'!N40-N40) -> 0 | O68: =(1-INDEX(Data!$C$9:$C$13, MATCH($A$3, options,0)))*('Option1 (base case)'!O40-O40) -> 0 | P68: =(1-INDEX(Data!$C$9:$C$13, MATCH($A$3, options,0)))*('Option1 (base case)'!P40-P40) -> 0 | Q68: =(1-INDEX(Data!$C$9:$C$13, MATCH($A$3, options,0)))*('Option1 (base case)'!Q40-Q40) -> 0 | R68: =(1-INDEX(Data!$C$9:$C$13, MATCH($A$3, options,0)))*('Option1 (base case)'!R40-R40) -> 0 | S68: =(1-INDEX(Data!$C$9:$C$13, MATCH($A$3, options,0)))*('Option1 (base case)'!S40-S40) -> 0 | T68: =(1-INDEX(Data!$C$9:$C$13, MATCH($A$3, options,0)))*('Option1 (base case)'!T40-T40) -> 0 | U68: =(1-INDEX(Data!$C$9:$C$13, MATCH($A$3, options,0)))*('Option1 (base case)'!U40-U40) -> 0 | V68: =(1-INDEX(Data!$C$9:$C$13, MATCH($A$3, options,0)))*('Option1 (base case)'!V40-V40) -> 0 | W68: =(1-INDEX(Data!$C$9:$C$13, MATCH($A$3, options,0)))*('Option1 (base case)'!W40-W40) -> 0 | X68: =(1-INDEX(Data!$C$9:$C$13, MATCH($A$3, options,0)))*('Option1 (base case)'!X40-X40) -> 0 | Y68: =(1-INDEX(Data!$C$9:$C$13, MATCH($A$3, options,0)))*('Option1 (base case)'!Y40-Y40) -> 0 | Z68: =(1-INDEX(Data!$C$9:$C$13, MATCH($A$3, options,0)))*('Option1 (base case)'!Z40-Z40) -> 0 | AA68: =(1-INDEX(Data!$C$9:$C$13, MATCH($A$3, options,0)))*('Option1 (base case)'!AA40-AA40) -> 0 | AB68: =(1-INDEX(Data!$C$9:$C$13, MATCH($A$3, options,0)))*('Option1 (base case)'!AB40-AB40) -> 0 | AC68: =(1-INDEX(Data!$C$9:$C$13, MATCH($A$3, options,0)))*('Option1 (base case)'!AC40-AC40) -> 0 | AD68: =(1-INDEX(Data!$C$9:$C$13, MATCH($A$3, options,0)))*('Option1 (base case)'!AD40-AD40) -> 0 | AE68: =(1-INDEX(Data!$C$9:$C$13, MATCH($A$3, options,0)))*('Option1 (base case)'!AE40-AE40) -> 0 | AF68: =(1-INDEX(Data!$C$9:$C$13, MATCH($A$3, options,0)))*('Option1 (base case)'!AF40-AF40) -> 0 | AG68: =(1-INDEX(Data!$C$9:$C$13, MATCH($A$3, options,0)))*('Option1 (base case)'!AG40-AG40) -> 0
C70: Capital expenditure
C71: =C14 -> < Enter description > | G71: =input_dollars -> 2023-12-31 | I71: =-I14 -> 0 | J71: 0 | K71: 0 | L71: 0 | M71: 0 | N71: 0 | O71: 0 | P71: 0 | Q71: 0 | R71: 0 | S71: 0 | T71: 0 | U71: 0 | V71: 0 | W71: 0 | X71: 0 | Y71: 0 | Z71: 0 | AA71: 0 | AB71: 0 | AC71: 0 | AD71: 0 | AE71: 0 | AF71: 0 | AG71: 0
C72: =C15 -> < Enter description > | G72: =input_dollars -> 2023-12-31 | I72: =-I15 -> 0 | J72: 0 | K72: 0 | L72: 0 | M72: 0 | N72: 0 | O72: 0 | P72: 0 | Q72: 0 | R72: 0 | S72: 0 | T72: 0 | U72: 0 | V72: 0 | W72: 0 | X72: 0 | Y72: 0 | Z72: 0 | AA72: 0 | AB72: 0 | AC72: 0 | AD72: 0 | AE72: 0 | AF72: 0 | AG72: 0
C73: =C16 -> < Enter description > | G73: =input_dollars -> 2023-12-31 | I73: =-I16 -> 0 | J73: 0 | K73: 0 | L73: 0 | M73: 0 | N73: 0 | O73: 0 | P73: 0 | Q73: 0 | R73: 0 | S73: 0 | T73: 0 | U73: 0 | V73: 0 | W73: 0 | X73: 0 | Y73: 0 | Z73: 0 | AA73: 0 | AB73: 0 | AC73: 0 | AD73: 0 | AE73: 0 | AF73: 0 | AG73: 0
C75: Cumulative capex
C76: =C14 -> < Enter description > | G76: =input_dollars -> 2023-12-31 | I76: =SUMPRODUCT(($I71:I71))-SUMPRODUCT(($I71:I71)*($I$6:I$6<=(I$6-$E14))) -> 0 | J76: =SUMPRODUCT(($I71:J71))-SUMPRODUCT(($I71:J71)*($I$6:J$6<=(J$6-$E14))) -> 0 | K76: =SUMPRODUCT(($I71:K71))-SUMPRODUCT(($I71:K71)*($I$6:K$6<=(K$6-$E14))) -> 0 | L76: =SUMPRODUCT(($I71:L71))-SUMPRODUCT(($I71:L71)*($I$6:L$6<=(L$6-$E14))) -> 0 | M76: =SUMPRODUCT(($I71:M71))-SUMPRODUCT(($I71:M71)*($I$6:M$6<=(M$6-$E14))) -> 0 | N76: =SUMPRODUCT(($I71:N71))-SUMPRODUCT(($I71:N71)*($I$6:N$6<=(N$6-$E14))) -> 0 | O76: =SUMPRODUCT(($I71:O71))-SUMPRODUCT(($I71:O71)*($I$6:O$6<=(O$6-$E14))) -> 0 | P76: =SUMPRODUCT(($I71:P71))-SUMPRODUCT(($I71:P71)*($I$6:P$6<=(P$6-$E14))) -> 0 | Q76: =SUMPRODUCT(($I71:Q71))-SUMPRODUCT(($I71:Q71)*($I$6:Q$6<=(Q$6-$E14))) -> 0 | R76: =SUMPRODUCT(($I71:R71))-SUMPRODUCT(($I71:R71)*($I$6:R$6<=(R$6-$E14))) -> 0 | S76: =SUMPRODUCT(($I71:S71))-SUMPRODUCT(($I71:S71)*($I$6:S$6<=(S$6-$E14))) -> 0 | T76: =SUMPRODUCT(($I71:T71))-SUMPRODUCT(($I71:T71)*($I$6:T$6<=(T$6-$E14))) -> 0 | U76: =SUMPRODUCT(($I71:U71))-SUMPRODUCT(($I71:U71)*($I$6:U$6<=(U$6-$E14))) -> 0 | V76: =SUMPRODUCT(($I71:V71))-SUMPRODUCT(($I71:V71)*($I$6:V$6<=(V$6-$E14))) -> 0 | W76: =SUMPRODUCT(($I71:W71))-SUMPRODUCT(($I71:W71)*($I$6:W$6<=(W$6-$E14))) -> 0 | X76: =SUMPRODUCT(($I71:X71))-SUMPRODUCT(($I71:X71)*($I$6:X$6<=(X$6-$E14))) -> 0 | Y76: =SUMPRODUCT(($I71:Y71))-SUMPRODUCT(($I71:Y71)*($I$6:Y$6<=(Y$6-$E14))) -> 0 | Z76: =SUMPRODUCT(($I71:Z71))-SUMPRODUCT(($I71:Z71)*($I$6:Z$6<=(Z$6-$E14))) -> 0 | AA76: =SUMPRODUCT(($I71:AA71))-SUMPRODUCT(($I71:AA71)*($I$6:AA$6<=(AA$6-$E14))) -> 0 | AB76: =SUMPRODUCT(($I71:AB71))-SUMPRODUCT(($I71:AB71)*($I$6:AB$6<=(AB$6-$E14))) -> 0 | AC76: =SUMPRODUCT(($I71:AC71))-SUMPRODUCT(($I71:AC71)*($I$6:AC$6<=(AC$6-$E14))) -> 0 | AD76: =SUMPRODUCT(($I71:AD71))-SUMPRODUCT(($I71:AD71)*($I$6:AD$6<=(AD$6-$E14))) -> 0 | AE76: =SUMPRODUCT(($I71:AE71))-SUMPRODUCT(($I71:AE71)*($I$6:AE$6<=(AE$6-$E14))) -> 0 | AF76: =SUMPRODUCT(($I71:AF71))-SUMPRODUCT(($I71:AF71)*($I$6:AF$6<=(AF$6-$E14))) -> 0 | AG76: =SUMPRODUCT(($I71:AG71))-SUMPRODUCT(($I71:AG71)*($I$6:AG$6<=(AG$6-$E14))) -> 0
C77: =C15 -> < Enter description > | G77: =input_dollars -> 2023-12-31 | I77: =SUMPRODUCT(($I72:I72))-SUMPRODUCT(($I72:I72)*($I$6:I$6<=(I$6-$E15))) -> 0 | J77: =SUMPRODUCT(($I72:J72))-SUMPRODUCT(($I72:J72)*($I$6:J$6<=(J$6-$E15))) -> 0 | K77: =SUMPRODUCT(($I72:K72))-SUMPRODUCT(($I72:K72)*($I$6:K$6<=(K$6-$E15))) -> 0 | L77: =SUMPRODUCT(($I72:L72))-SUMPRODUCT(($I72:L72)*($I$6:L$6<=(L$6-$E15))) -> 0 | M77: =SUMPRODUCT(($I72:M72))-SUMPRODUCT(($I72:M72)*($I$6:M$6<=(M$6-$E15))) -> 0 | N77: =SUMPRODUCT(($I72:N72))-SUMPRODUCT(($I72:N72)*($I$6:N$6<=(N$6-$E15))) -> 0 | O77: =SUMPRODUCT(($I72:O72))-SUMPRODUCT(($I72:O72)*($I$6:O$6<=(O$6-$E15))) -> 0 | P77: =SUMPRODUCT(($I72:P72))-SUMPRODUCT(($I72:P72)*($I$6:P$6<=(P$6-$E15))) -> 0 | Q77: =SUMPRODUCT(($I72:Q72))-SUMPRODUCT(($I72:Q72)*($I$6:Q$6<=(Q$6-$E15))) -> 0 | R77: =SUMPRODUCT(($I72:R72))-SUMPRODUCT(($I72:R72)*($I$6:R$6<=(R$6-$E15))) -> 0 | S77: =SUMPRODUCT(($I72:S72))-SUMPRODUCT(($I72:S72)*($I$6:S$6<=(S$6-$E15))) -> 0 | T77: =SUMPRODUCT(($I72:T72))-SUMPRODUCT(($I72:T72)*($I$6:T$6<=(T$6-$E15))) -> 0 | U77: =SUMPRODUCT(($I72:U72))-SUMPRODUCT(($I72:U72)*($I$6:U$6<=(U$6-$E15))) -> 0 | V77: =SUMPRODUCT(($I72:V72))-SUMPRODUCT(($I72:V72)*($I$6:V$6<=(V$6-$E15))) -> 0 | W77: =SUMPRODUCT(($I72:W72))-SUMPRODUCT(($I72:W72)*($I$6:W$6<=(W$6-$E15))) -> 0 | X77: =SUMPRODUCT(($I72:X72))-SUMPRODUCT(($I72:X72)*($I$6:X$6<=(X$6-$E15))) -> 0 | Y77: =SUMPRODUCT(($I72:Y72))-SUMPRODUCT(($I72:Y72)*($I$6:Y$6<=(Y$6-$E15))) -> 0 | Z77: =SUMPRODUCT(($I72:Z72))-SUMPRODUCT(($I72:Z72)*($I$6:Z$6<=(Z$6-$E15))) -> 0 | AA77: =SUMPRODUCT(($I72:AA72))-SUMPRODUCT(($I72:AA72)*($I$6:AA$6<=(AA$6-$E15))) -> 0 | AB77: =SUMPRODUCT(($I72:AB72))-SUMPRODUCT(($I72:AB72)*($I$6:AB$6<=(AB$6-$E15))) -> 0 | AC77: =SUMPRODUCT(($I72:AC72))-SUMPRODUCT(($I72:AC72)*($I$6:AC$6<=(AC$6-$E15))) -> 0 | AD77: =SUMPRODUCT(($I72:AD72))-SUMPRODUCT(($I72:AD72)*($I$6:AD$6<=(AD$6-$E15))) -> 0 | AE77: =SUMPRODUCT(($I72:AE72))-SUMPRODUCT(($I72:AE72)*($I$6:AE$6<=(AE$6-$E15))) -> 0 | AF77: =SUMPRODUCT(($I72:AF72))-SUMPRODUCT(($I72:AF72)*($I$6:AF$6<=(AF$6-$E15))) -> 0 | AG77: =SUMPRODUCT(($I72:AG72))-SUMPRODUCT(($I72:AG72)*($I$6:AG$6<=(AG$6-$E15))) -> 0
C78: =C16 -> < Enter description > | G78: =input_dollars -> 2023-12-31 | I78: =SUMPRODUCT(($I73:I73))-SUMPRODUCT(($I73:I73)*($I$6:I$6<=(I$6-$E16))) -> 0 | J78: =SUMPRODUCT(($I73:J73))-SUMPRODUCT(($I73:J73)*($I$6:J$6<=(J$6-$E16))) -> 0 | K78: =SUMPRODUCT(($I73:K73))-SUMPRODUCT(($I73:K73)*($I$6:K$6<=(K$6-$E16))) -> 0 | L78: =SUMPRODUCT(($I73:L73))-SUMPRODUCT(($I73:L73)*($I$6:L$6<=(L$6-$E16))) -> 0 | M78: =SUMPRODUCT(($I73:M73))-SUMPRODUCT(($I73:M73)*($I$6:M$6<=(M$6-$E16))) -> 0 | N78: =SUMPRODUCT(($I73:N73))-SUMPRODUCT(($I73:N73)*($I$6:N$6<=(N$6-$E16))) -> 0 | O78: =SUMPRODUCT(($I73:O73))-SUMPRODUCT(($I73:O73)*($I$6:O$6<=(O$6-$E16))) -> 0 | P78: =SUMPRODUCT(($I73:P73))-SUMPRODUCT(($I73:P73)*($I$6:P$6<=(P$6-$E16))) -> 0 | Q78: =SUMPRODUCT(($I73:Q73))-SUMPRODUCT(($I73:Q73)*($I$6:Q$6<=(Q$6-$E16))) -> 0 | R78: =SUMPRODUCT(($I73:R73))-SUMPRODUCT(($I73:R73)*($I$6:R$6<=(R$6-$E16))) -> 0 | S78: =SUMPRODUCT(($I73:S73))-SUMPRODUCT(($I73:S73)*($I$6:S$6<=(S$6-$E16))) -> 0 | T78: =SUMPRODUCT(($I73:T73))-SUMPRODUCT(($I73:T73)*($I$6:T$6<=(T$6-$E16))) -> 0 | U78: =SUMPRODUCT(($I73:U73))-SUMPRODUCT(($I73:U73)*($I$6:U$6<=(U$6-$E16))) -> 0 | V78: =SUMPRODUCT(($I73:V73))-SUMPRODUCT(($I73:V73)*($I$6:V$6<=(V$6-$E16))) -> 0 | W78: =SUMPRODUCT(($I73:W73))-SUMPRODUCT(($I73:W73)*($I$6:W$6<=(W$6-$E16))) -> 0 | X78: =SUMPRODUCT(($I73:X73))-SUMPRODUCT(($I73:X73)*($I$6:X$6<=(X$6-$E16))) -> 0 | Y78: =SUMPRODUCT(($I73:Y73))-SUMPRODUCT(($I73:Y73)*($I$6:Y$6<=(Y$6-$E16))) -> 0 | Z78: =SUMPRODUCT(($I73:Z73))-SUMPRODUCT(($I73:Z73)*($I$6:Z$6<=(Z$6-$E16))) -> 0 | AA78: =SUMPRODUCT(($I73:AA73))-SUMPRODUCT(($I73:AA73)*($I$6:AA$6<=(AA$6-$E16))) -> 0 | AB78: =SUMPRODUCT(($I73:AB73))-SUMPRODUCT(($I73:AB73)*($I$6:AB$6<=(AB$6-$E16))) -> 0 | AC78: =SUMPRODUCT(($I73:AC73))-SUMPRODUCT(($I73:AC73)*($I$6:AC$6<=(AC$6-$E16))) -> 0 | AD78: =SUMPRODUCT(($I73:AD73))-SUMPRODUCT(($I73:AD73)*($I$6:AD$6<=(AD$6-$E16))) -> 0 | AE78: =SUMPRODUCT(($I73:AE73))-SUMPRODUCT(($I73:AE73)*($I$6:AE$6<=(AE$6-$E16))) -> 0 | AF78: =SUMPRODUCT(($I73:AF73))-SUMPRODUCT(($I73:AF73)*($I$6:AF$6<=(AF$6-$E16))) -> 0 | AG78: =SUMPRODUCT(($I73:AG73))-SUMPRODUCT(($I73:AG73)*($I$6:AG$6<=(AG$6-$E16))) -> 0
C80: Annualised capex
C81: =$C$80&" - "&C14 -> Annualised capex - < Enter description > | G81: =input_dollars -> 2023-12-31 | I81: =IF($E14=0,0,-PMT(real_disc, $E14,H76,)) -> 0 | J81: 0 | K81: 0 | L81: 0 | M81: 0 | N81: 0 | O81: 0 | P81: 0 | Q81: 0 | R81: 0 | S81: 0 | T81: 0 | U81: 0 | V81: 0 | W81: 0 | X81: 0 | Y81: 0 | Z81: 0 | AA81: 0 | AB81: 0 | AC81: 0 | AD81: 0 | AE81: 0 | AF81: 0 | AG81: 0
C82: =$C$80&" - "&C15 -> Annualised capex - < Enter description > | G82: =input_dollars -> 2023-12-31 | I82: =IF($E15=0,0,-PMT(real_disc, $E15,H77,)) -> 0 | J82: 0 | K82: 0 | L82: 0 | M82: 0 | N82: 0 | O82: 0 | P82: 0 | Q82: 0 | R82: 0 | S82: 0 | T82: 0 | U82: 0 | V82: 0 | W82: 0 | X82: 0 | Y82: 0 | Z82: 0 | AA82: 0 | AB82: 0 | AC82: 0 | AD82: 0 | AE82: 0 | AF82: 0 | AG82: 0
C83: =$C$80&" - "&C16 -> Annualised capex - < Enter description > | G83: =input_dollars -> 2023-12-31 | I83: =IF($E16=0,0,-PMT(real_disc, $E16,H78,)) -> 0 | J83: 0 | K83: 0 | L83: 0 | M83: 0 | N83: 0 | O83: 0 | P83: 0 | Q83: 0 | R83: 0 | S83: 0 | T83: 0 | U83: 0 | V83: 0 | W83: 0 | X83: 0 | Y83: 0 | Z83: 0 | AA83: 0 | AB83: 0 | AC83: 0 | AD83: 0 | AE83: 0 | AF83: 0 | AG83: 0
C84: Total annualised capex | G84: =input_dollars -> 2023-12-31 | I84: =SUM(I81:I83) -> 0 | J84: =SUM(J81:J83) -> 0 | K84: 0 | L84: 0 | M84: 0 | N84: 0 | O84: 0 | P84: 0 | Q84: 0 | R84: 0 | S84: 0 | T84: 0 | U84: 0 | V84: 0 | W84: 0 | X84: 0 | Y84: 0 | Z84: 0 | AA84: 0 | AB84: 0 | AC84: =SUM(AC81:AC83) -> 0 | AD84: =SUM(AD81:AD83) -> 0 | AE84: =SUM(AE81:AE83) -> 0 | AF84: =SUM(AF81:AF83) -> 0 | AG84: =SUM(AG81:AG83) -> 0
C86: Annualised capex | G86: =input_dollars -> 2023-12-31 | I86: =I84 -> 0 | J86: =J84 -> 0 | K86: 0 | L86: 0 | M86: 0 | N86: 0 | O86: 0 | P86: 0 | Q86: 0 | R86: 0 | S86: 0 | T86: 0 | U86: 0 | V86: 0 | W86: 0 | X86: 0 | Y86: 0 | Z86: 0 | AA86: 0 | AB86: 0 | AC86: =AC84 -> 0 | AD86: =AD84 -> 0 | AE86: =AE84 -> 0 | AF86: =AF84 -> 0 | AG86: =AG84 -> 0
C87: Operating expenditure | G87: 2023-12-31 | I87: =-I19 -> 0 | J87: 0 | K87: 0 | L87: 0 | M87: 0 | N87: 0 | O87: 0 | P87: 0 | Q87: 0 | R87: 0 | S87: 0 | T87: 0 | U87: 0 | V87: 0 | W87: 0 | X87: 0 | Y87: 0 | Z87: 0 | AA87: 0 | AB87: 0 | AC87: 0 | AD87: 0 | AE87: 0 | AF87: 0 | AG87: 0
C88: Risk mitigated | G88: 2023-12-31 | I88: =I68 -> 0 | J88: =J68 -> 0 | K88: 0 | L88: 0 | M88: 0 | N88: 0 | O88: 0 | P88: 0 | Q88: 0 | R88: 0 | S88: 0 | T88: 0 | U88: 0 | V88: 0 | W88: 0 | X88: 0 | Y88: 0 | Z88: 0 | AA88: 0 | AB88: 0 | AC88: =AC68 -> 0 | AD88: =AD68 -> 0 | AE88: =AE68 -> 0 | AF88: =AF68 -> 0 | AG88: =AG68 -> 0
C89: Other benefits value | G89: 2023-12-31 | I89: =I61 -> 0 | J89: 0 | K89: 0 | L89: 0 | M89: 0 | N89: 0 | O89: 0 | P89: 0 | Q89: 0 | R89: 0 | S89: 0 | T89: 0 | U89: 0 | V89: 0 | W89: 0 | X89: 0 | Y89: 0 | Z89: 0 | AA89: 0 | AB89: 0 | AC89: 0 | AD89: 0 | AE89: 0 | AF89: 0 | AG89: 0
C91: Net benefits | G91: 2023-12-31 | I91: =SUM(I86:I90) -> 0 | J91: 0 | K91: 0 | L91: 0 | M91: 0 | N91: 0 | O91: 0 | P91: 0 | Q91: 0 | R91: 0 | S91: 0 | T91: 0 | U91: 0 | V91: 0 | W91: 0 | X91: 0 | Y91: 0 | Z91: 0 | AA91: 0 | AB91: 0 | AC91: =SUM(AC86:AC90) -> 0 | AD91: =SUM(AD86:AD90) -> 0 | AE91: =SUM(AE86:AE90) -> 0 | AF91: =SUM(AF86:AF90) -> 0 | AG91: =SUM(AG86:AG90) -> 0
C94: First capex year | G94: =IF(SUM($I17:$AG17)=0,0,(INDEX(I$6:AG$6,MATCH(TRUE,INDEX($I17:$AG17<>0,),0)))) -> 0
C96: First year | G96: =IF(_xlfn.MINIFS($G$94:$G$95, $G$94:$G$95, ">"&0)=0, $A$4, _xlfn.MINIFS($G$94:$G$95, $G$94:$G$95, ">"&0)) -> Not used
A106: SENSITIVITIES
A110: NPV | C110: Net benefits | G110: =PROPER($A$3)&A110 -> Option 5NPV | I110: =I91 -> 0 | J110: =J91 -> 0 | K110: 0 | L110: 0 | M110: 0 | N110: 0 | O110: 0 | P110: 0 | Q110: 0 | R110: 0 | S110: 0 | T110: 0 | U110: 0 | V110: 0 | W110: 0 | X110: 0 | Y110: 0 | Z110: 0 | AA110: 0 | AB110: 0 | AC110: 0 | AD110: 0 | AE110: 0 | AF110: 0 | AG110: 0
C111: Total annualised capex | I111: =I86 -> 0 | J111: =J86 -> 0 | K111: 0 | L111: 0 | M111: 0 | N111: 0 | O111: 0 | P111: 0 | Q111: 0 | R111: 0 | S111: 0 | T111: 0 | U111: 0 | V111: 0 | W111: 0 | X111: 0 | Y111: 0 | Z111: 0 | AA111: 0 | AB111: 0 | AC111: 0 | AD111: 0 | AE111: 0 | AF111: 0 | AG111: 0
C112: Total benefits | I112: =SUM(I88:I89) -> 0 | J112: =SUM(J88:J89) -> 0 | K112: 0 | L112: 0 | M112: 0 | N112: 0 | O112: 0 | P112: 0 | Q112: 0 | R112: 0 | S112: 0 | T112: 0 | U112: 0 | V112: 0 | W112: 0 | X112: 0 | Y112: 0 | Z112: 0 | AA112: 0 | AB112: 0 | AC112: 0 | AD112: 0 | AE112: 0 | AF112: 0 | AG112: 0
D113: =Assumptions!G110 -> Capex | E113: =Assumptions!H110 -> Total benefits
A114: ="sens"&Assumptions!B111 -> sens1 | C114: =Assumptions!C111 -> Capex 10% higher | D114: =Assumptions!G111 -> 0.1 | E114: =Assumptions!H111 -> 0 | G114: =PROPER($A$3)&A114 -> Option 5sens1 | I114: =I$110+IF($C114<>0,SUMPRODUCT((I$111:I$112)*TRANSPOSE(($D114:$E114))),0) -> 0 | J114: =J$110+IF($C114<>0,SUMPRODUCT((J$111:J$112)*TRANSPOSE(($D114:$E114))),0) -> 0 | K114: =K$110+IF($C114<>0,SUMPRODUCT((K$111:K$112)*TRANSPOSE(($D114:$E114))),0) -> 0 | L114: =L$110+IF($C114<>0,SUMPRODUCT((L$111:L$112)*TRANSPOSE(($D114:$E114))),0) -> 0 | M114: =M$110+IF($C114<>0,SUMPRODUCT((M$111:M$112)*TRANSPOSE(($D114:$E114))),0) -> 0 | N114: =N$110+IF($C114<>0,SUMPRODUCT((N$111:N$112)*TRANSPOSE(($D114:$E114))),0) -> 0 | O114: =O$110+IF($C114<>0,SUMPRODUCT((O$111:O$112)*TRANSPOSE(($D114:$E114))),0) -> 0 | P114: =P$110+IF($C114<>0,SUMPRODUCT((P$111:P$112)*TRANSPOSE(($D114:$E114))),0) -> 0 | Q114: =Q$110+IF($C114<>0,SUMPRODUCT((Q$111:Q$112)*TRANSPOSE(($D114:$E114))),0) -> 0 | R114: =R$110+IF($C114<>0,SUMPRODUCT((R$111:R$112)*TRANSPOSE(($D114:$E114))),0) -> 0 | S114: =S$110+IF($C114<>0,SUMPRODUCT((S$111:S$112)*TRANSPOSE(($D114:$E114))),0) -> 0 | T114: =T$110+IF($C114<>0,SUMPRODUCT((T$111:T$112)*TRANSPOSE(($D114:$E114))),0) -> 0 | U114: =U$110+IF($C114<>0,SUMPRODUCT((U$111:U$112)*TRANSPOSE(($D114:$E114))),0) -> 0 | V114: =V$110+IF($C114<>0,SUMPRODUCT((V$111:V$112)*TRANSPOSE(($D114:$E114))),0) -> 0 | W114: =W$110+IF($C114<>0,SUMPRODUCT((W$111:W$112)*TRANSPOSE(($D114:$E114))),0) -> 0 | X114: =X$110+IF($C114<>0,SUMPRODUCT((X$111:X$112)*TRANSPOSE(($D114:$E114))),0) -> 0 | Y114: =Y$110+IF($C114<>0,SUMPRODUCT((Y$111:Y$112)*TRANSPOSE(($D114:$E114))),0) -> 0 | Z114: =Z$110+IF($C114<>0,SUMPRODUCT((Z$111:Z$112)*TRANSPOSE(($D114:$E114))),0) -> 0 | AA114: =AA$110+IF($C114<>0,SUMPRODUCT((AA$111:AA$112)*TRANSPOSE(($D114:$E114))),0) -> 0 | AB114: =AB$110+IF($C114<>0,SUMPRODUCT((AB$111:AB$112)*TRANSPOSE(($D114:$E114))),0) -> 0 | AC114: =AC$110+IF($C114<>0,SUMPRODUCT((AC$111:AC$112)*TRANSPOSE(($D114:$E114))),0) -> 0 | AD114: =AD$110+IF($C114<>0,SUMPRODUCT((AD$111:AD$112)*TRANSPOSE(($D114:$E114))),0) -> 0 | AE114: =AE$110+IF($C114<>0,SUMPRODUCT((AE$111:AE$112)*TRANSPOSE(($D114:$E114))),0) -> 0 | AF114: =AF$110+IF($C114<>0,SUMPRODUCT((AF$111:AF$112)*TRANSPOSE(($D114:$E114))),0) -> 0 | AG114: =AG$110+IF($C114<>0,SUMPRODUCT((AG$111:AG$112)*TRANSPOSE(($D114:$E114))),0) -> 0
A115: ="sens"&Assumptions!B112 -> sens2 | C115: =Assumptions!C112 -> Capex 10% lower | D115: =Assumptions!G112 -> -0.1 | E115: =Assumptions!H112 -> 0 | G115: =PROPER($A$3)&A115 -> Option 5sens2 | I115: =I$110+IF($C115<>0,SUMPRODUCT((I$111:I$112)*TRANSPOSE(($D115:$E115))),0) -> 0 | J115: =J$110+IF($C115<>0,SUMPRODUCT((J$111:J$112)*TRANSPOSE(($D115:$E115))),0) -> 0 | K115: =K$110+IF($C115<>0,SUMPRODUCT((K$111:K$112)*TRANSPOSE(($D115:$E115))),0) -> 0 | L115: =L$110+IF($C115<>0,SUMPRODUCT((L$111:L$112)*TRANSPOSE(($D115:$E115))),0) -> 0 | M115: =M$110+IF($C115<>0,SUMPRODUCT((M$111:M$112)*TRANSPOSE(($D115:$E115))),0) -> 0 | N115: =N$110+IF($C115<>0,SUMPRODUCT((N$111:N$112)*TRANSPOSE(($D115:$E115))),0) -> 0 | O115: =O$110+IF($C115<>0,SUMPRODUCT((O$111:O$112)*TRANSPOSE(($D115:$E115))),0) -> 0 | P115: =P$110+IF($C115<>0,SUMPRODUCT((P$111:P$112)*TRANSPOSE(($D115:$E115))),0) -> 0 | Q115: =Q$110+IF($C115<>0,SUMPRODUCT((Q$111:Q$112)*TRANSPOSE(($D115:$E115))),0) -> 0 | R115: =R$110+IF($C115<>0,SUMPRODUCT((R$111:R$112)*TRANSPOSE(($D115:$E115))),0) -> 0 | S115: =S$110+IF($C115<>0,SUMPRODUCT((S$111:S$112)*TRANSPOSE(($D115:$E115))),0) -> 0 | T115: =T$110+IF($C115<>0,SUMPRODUCT((T$111:T$112)*TRANSPOSE(($D115:$E115))),0) -> 0 | U115: =U$110+IF($C115<>0,SUMPRODUCT((U$111:U$112)*TRANSPOSE(($D115:$E115))),0) -> 0 | V115: =V$110+IF($C115<>0,SUMPRODUCT((V$111:V$112)*TRANSPOSE(($D115:$E115))),0) -> 0 | W115: =W$110+IF($C115<>0,SUMPRODUCT((W$111:W$112)*TRANSPOSE(($D115:$E115))),0) -> 0 | X115: =X$110+IF($C115<>0,SUMPRODUCT((X$111:X$112)*TRANSPOSE(($D115:$E115))),0) -> 0 | Y115: =Y$110+IF($C115<>0,SUMPRODUCT((Y$111:Y$112)*TRANSPOSE(($D115:$E115))),0) -> 0 | Z115: =Z$110+IF($C115<>0,SUMPRODUCT((Z$111:Z$112)*TRANSPOSE(($D115:$E115))),0) -> 0 | AA115: =AA$110+IF($C115<>0,SUMPRODUCT((AA$111:AA$112)*TRANSPOSE(($D115:$E115))),0) -> 0 | AB115: =AB$110+IF($C115<>0,SUMPRODUCT((AB$111:AB$112)*TRANSPOSE(($D115:$E115))),0) -> 0 | AC115: =AC$110+IF($C115<>0,SUMPRODUCT((AC$111:AC$112)*TRANSPOSE(($D115:$E115))),0) -> 0 | AD115: =AD$110+IF($C115<>0,SUMPRODUCT((AD$111:AD$112)*TRANSPOSE(($D115:$E115))),0) -> 0 | AE115: =AE$110+IF($C115<>0,SUMPRODUCT((AE$111:AE$112)*TRANSPOSE(($D115:$E115))),0) -> 0 | AF115: =AF$110+IF($C115<>0,SUMPRODUCT((AF$111:AF$112)*TRANSPOSE(($D115:$E115))),0) -> 0 | AG115: =AG$110+IF($C115<>0,SUMPRODUCT((AG$111:AG$112)*TRANSPOSE(($D115:$E115))),0) -> 0
A116: ="sens"&Assumptions!B113 -> sens3 | C116: =Assumptions!C113 -> Total benefits 10% higher | D116: =Assumptions!G113 -> 0 | E116: =Assumptions!H113 -> 0.1 | G116: Option 5sens3 | I116: =I$110+IF($C116<>0,SUMPRODUCT((I$111:I$112)*TRANSPOSE(($D116:$E116))),0) -> 0 | J116: =J$110+IF($C116<>0,SUMPRODUCT((J$111:J$112)*TRANSPOSE(($D116:$E116))),0) -> 0 | K116: =K$110+IF($C116<>0,SUMPRODUCT((K$111:K$112)*TRANSPOSE(($D116:$E116))),0) -> 0 | L116: =L$110+IF($C116<>0,SUMPRODUCT((L$111:L$112)*TRANSPOSE(($D116:$E116))),0) -> 0 | M116: =M$110+IF($C116<>0,SUMPRODUCT((M$111:M$112)*TRANSPOSE(($D116:$E116))),0) -> 0 | N116: =N$110+IF($C116<>0,SUMPRODUCT((N$111:N$112)*TRANSPOSE(($D116:$E116))),0) -> 0 | O116: =O$110+IF($C116<>0,SUMPRODUCT((O$111:O$112)*TRANSPOSE(($D116:$E116))),0) -> 0 | P116: =P$110+IF($C116<>0,SUMPRODUCT((P$111:P$112)*TRANSPOSE(($D116:$E116))),0) -> 0 | Q116: =Q$110+IF($C116<>0,SUMPRODUCT((Q$111:Q$112)*TRANSPOSE(($D116:$E116))),0) -> 0 | R116: =R$110+IF($C116<>0,SUMPRODUCT((R$111:R$112)*TRANSPOSE(($D116:$E116))),0) -> 0 | S116: =S$110+IF($C116<>0,SUMPRODUCT((S$111:S$112)*TRANSPOSE(($D116:$E116))),0) -> 0 | T116: =T$110+IF($C116<>0,SUMPRODUCT((T$111:T$112)*TRANSPOSE(($D116:$E116))),0) -> 0 | U116: =U$110+IF($C116<>0,SUMPRODUCT((U$111:U$112)*TRANSPOSE(($D116:$E116))),0) -> 0 | V116: =V$110+IF($C116<>0,SUMPRODUCT((V$111:V$112)*TRANSPOSE(($D116:$E116))),0) -> 0 | W116: =W$110+IF($C116<>0,SUMPRODUCT((W$111:W$112)*TRANSPOSE(($D116:$E116))),0) -> 0 | X116: =X$110+IF($C116<>0,SUMPRODUCT((X$111:X$112)*TRANSPOSE(($D116:$E116))),0) -> 0 | Y116: =Y$110+IF($C116<>0,SUMPRODUCT((Y$111:Y$112)*TRANSPOSE(($D116:$E116))),0) -> 0 | Z116: =Z$110+IF($C116<>0,SUMPRODUCT((Z$111:Z$112)*TRANSPOSE(($D116:$E116))),0) -> 0 | AA116: =AA$110+IF($C116<>0,SUMPRODUCT((AA$111:AA$112)*TRANSPOSE(($D116:$E116))),0) -> 0 | AB116: =AB$110+IF($C116<>0,SUMPRODUCT((AB$111:AB$112)*TRANSPOSE(($D116:$E116))),0) -> 0 | AC116: =AC$110+IF($C116<>0,SUMPRODUCT((AC$111:AC$112)*TRANSPOSE(($D116:$E116))),0) -> 0 | AD116: =AD$110+IF($C116<>0,SUMPRODUCT((AD$111:AD$112)*TRANSPOSE(($D116:$E116))),0) -> 0 | AE116: =AE$110+IF($C116<>0,SUMPRODUCT((AE$111:AE$112)*TRANSPOSE(($D116:$E116))),0) -> 0 | AF116: =AF$110+IF($C116<>0,SUMPRODUCT((AF$111:AF$112)*TRANSPOSE(($D116:$E116))),0) -> 0 | AG116: =AG$110+IF($C116<>0,SUMPRODUCT((AG$111:AG$112)*TRANSPOSE(($D116:$E116))),0) -> 0
A117: ="sens"&Assumptions!B114 -> sens4 | C117: =Assumptions!C114 -> Total benefits 10% lower | D117: =Assumptions!G114 -> 0 | E117: =Assumptions!H114 -> -0.1 | G117: Option 5sens4 | I117: =I$110+IF($C117<>0,SUMPRODUCT((I$111:I$112)*TRANSPOSE(($D117:$E117))),0) -> 0 | J117: =J$110+IF($C117<>0,SUMPRODUCT((J$111:J$112)*TRANSPOSE(($D117:$E117))),0) -> 0 | K117: =K$110+IF($C117<>0,SUMPRODUCT((K$111:K$112)*TRANSPOSE(($D117:$E117))),0) -> 0 | L117: =L$110+IF($C117<>0,SUMPRODUCT((L$111:L$112)*TRANSPOSE(($D117:$E117))),0) -> 0 | M117: =M$110+IF($C117<>0,SUMPRODUCT((M$111:M$112)*TRANSPOSE(($D117:$E117))),0) -> 0 | N117: =N$110+IF($C117<>0,SUMPRODUCT((N$111:N$112)*TRANSPOSE(($D117:$E117))),0) -> 0 | O117: =O$110+IF($C117<>0,SUMPRODUCT((O$111:O$112)*TRANSPOSE(($D117:$E117))),0) -> 0 | P117: =P$110+IF($C117<>0,SUMPRODUCT((P$111:P$112)*TRANSPOSE(($D117:$E117))),0) -> 0 | Q117: =Q$110+IF($C117<>0,SUMPRODUCT((Q$111:Q$112)*TRANSPOSE(($D117:$E117))),0) -> 0 | R117: =R$110+IF($C117<>0,SUMPRODUCT((R$111:R$112)*TRANSPOSE(($D117:$E117))),0) -> 0 | S117: =S$110+IF($C117<>0,SUMPRODUCT((S$111:S$112)*TRANSPOSE(($D117:$E117))),0) -> 0 | T117: =T$110+IF($C117<>0,SUMPRODUCT((T$111:T$112)*TRANSPOSE(($D117:$E117))),0) -> 0 | U117: =U$110+IF($C117<>0,SUMPRODUCT((U$111:U$112)*TRANSPOSE(($D117:$E117))),0) -> 0 | V117: =V$110+IF($C117<>0,SUMPRODUCT((V$111:V$112)*TRANSPOSE(($D117:$E117))),0) -> 0 | W117: =W$110+IF($C117<>0,SUMPRODUCT((W$111:W$112)*TRANSPOSE(($D117:$E117))),0) -> 0 | X117: =X$110+IF($C117<>0,SUMPRODUCT((X$111:X$112)*TRANSPOSE(($D117:$E117))),0) -> 0 | Y117: =Y$110+IF($C117<>0,SUMPRODUCT((Y$111:Y$112)*TRANSPOSE(($D117:$E117))),0) -> 0 | Z117: =Z$110+IF($C117<>0,SUMPRODUCT((Z$111:Z$112)*TRANSPOSE(($D117:$E117))),0) -> 0 | AA117: =AA$110+IF($C117<>0,SUMPRODUCT((AA$111:AA$112)*TRANSPOSE(($D117:$E117))),0) -> 0 | AB117: =AB$110+IF($C117<>0,SUMPRODUCT((AB$111:AB$112)*TRANSPOSE(($D117:$E117))),0) -> 0 | AC117: =AC$110+IF($C117<>0,SUMPRODUCT((AC$111:AC$112)*TRANSPOSE(($D117:$E117))),0) -> 0 | AD117: =AD$110+IF($C117<>0,SUMPRODUCT((AD$111:AD$112)*TRANSPOSE(($D117:$E117))),0) -> 0 | AE117: =AE$110+IF($C117<>0,SUMPRODUCT((AE$111:AE$112)*TRANSPOSE(($D117:$E117))),0) -> 0 | AF117: =AF$110+IF($C117<>0,SUMPRODUCT((AF$111:AF$112)*TRANSPOSE(($D117:$E117))),0) -> 0 | AG117: =AG$110+IF($C117<>0,SUMPRODUCT((AG$111:AG$112)*TRANSPOSE(($D117:$E117))),0) -> 0
A118: ="sens"&Assumptions!B115 -> sens5 | C118: =Assumptions!C115 -> Capex 10% higher & Total benefits 10% lower | D118: =Assumptions!G115 -> 0.1 | E118: =Assumptions!H115 -> -0.1 | G118: Option 5sens5 | I118: =I$110+IF($C118<>0,SUMPRODUCT((I$111:I$112)*TRANSPOSE(($D118:$E118))),0) -> 0 | J118: =J$110+IF($C118<>0,SUMPRODUCT((J$111:J$112)*TRANSPOSE(($D118:$E118))),0) -> 0 | K118: =K$110+IF($C118<>0,SUMPRODUCT((K$111:K$112)*TRANSPOSE(($D118:$E118))),0) -> 0 | L118: =L$110+IF($C118<>0,SUMPRODUCT((L$111:L$112)*TRANSPOSE(($D118:$E118))),0) -> 0 | M118: =M$110+IF($C118<>0,SUMPRODUCT((M$111:M$112)*TRANSPOSE(($D118:$E118))),0) -> 0 | N118: =N$110+IF($C118<>0,SUMPRODUCT((N$111:N$112)*TRANSPOSE(($D118:$E118))),0) -> 0 | O118: =O$110+IF($C118<>0,SUMPRODUCT((O$111:O$112)*TRANSPOSE(($D118:$E118))),0) -> 0 | P118: =P$110+IF($C118<>0,SUMPRODUCT((P$111:P$112)*TRANSPOSE(($D118:$E118))),0) -> 0 | Q118: =Q$110+IF($C118<>0,SUMPRODUCT((Q$111:Q$112)*TRANSPOSE(($D118:$E118))),0) -> 0 | R118: =R$110+IF($C118<>0,SUMPRODUCT((R$111:R$112)*TRANSPOSE(($D118:$E118))),0) -> 0 | S118: =S$110+IF($C118<>0,SUMPRODUCT((S$111:S$112)*TRANSPOSE(($D118:$E118))),0) -> 0 | T118: =T$110+IF($C118<>0,SUMPRODUCT((T$111:T$112)*TRANSPOSE(($D118:$E118))),0) -> 0 | U118: =U$110+IF($C118<>0,SUMPRODUCT((U$111:U$112)*TRANSPOSE(($D118:$E118))),0) -> 0 | V118: =V$110+IF($C118<>0,SUMPRODUCT((V$111:V$112)*TRANSPOSE(($D118:$E118))),0) -> 0 | W118: =W$110+IF($C118<>0,SUMPRODUCT((W$111:W$112)*TRANSPOSE(($D118:$E118))),0) -> 0 | X118: =X$110+IF($C118<>0,SUMPRODUCT((X$111:X$112)*TRANSPOSE(($D118:$E118))),0) -> 0 | Y118: =Y$110+IF($C118<>0,SUMPRODUCT((Y$111:Y$112)*TRANSPOSE(($D118:$E118))),0) -> 0 | Z118: =Z$110+IF($C118<>0,SUMPRODUCT((Z$111:Z$112)*TRANSPOSE(($D118:$E118))),0) -> 0 | AA118: =AA$110+IF($C118<>0,SUMPRODUCT((AA$111:AA$112)*TRANSPOSE(($D118:$E118))),0) -> 0 | AB118: =AB$110+IF($C118<>0,SUMPRODUCT((AB$111:AB$112)*TRANSPOSE(($D118:$E118))),0) -> 0 | AC118: =AC$110+IF($C118<>0,SUMPRODUCT((AC$111:AC$112)*TRANSPOSE(($D118:$E118))),0) -> 0 | AD118: =AD$110+IF($C118<>0,SUMPRODUCT((AD$111:AD$112)*TRANSPOSE(($D118:$E118))),0) -> 0 | AE118: =AE$110+IF($C118<>0,SUMPRODUCT((AE$111:AE$112)*TRANSPOSE(($D118:$E118))),0) -> 0 | AF118: =AF$110+IF($C118<>0,SUMPRODUCT((AF$111:AF$112)*TRANSPOSE(($D118:$E118))),0) -> 0 | AG118: =AG$110+IF($C118<>0,SUMPRODUCT((AG$111:AG$112)*TRANSPOSE(($D118:$E118))),0) -> 0
A119: ="sens"&Assumptions!B116 -> sens | C119: =Assumptions!C116 -> 0 | D119: =Assumptions!G116 -> 0 | E119: =Assumptions!H116 -> 0 | G119: Option 5sens | I119: =I$110+IF($C119<>0,SUMPRODUCT((I$111:I$112)*TRANSPOSE(($D119:$E119))),0) -> 0 | J119: =J$110+IF($C119<>0,SUMPRODUCT((J$111:J$112)*TRANSPOSE(($D119:$E119))),0) -> 0 | K119: =K$110+IF($C119<>0,SUMPRODUCT((K$111:K$112)*TRANSPOSE(($D119:$E119))),0) -> 0 | L119: =L$110+IF($C119<>0,SUMPRODUCT((L$111:L$112)*TRANSPOSE(($D119:$E119))),0) -> 0 | M119: =M$110+IF($C119<>0,SUMPRODUCT((M$111:M$112)*TRANSPOSE(($D119:$E119))),0) -> 0 | N119: =N$110+IF($C119<>0,SUMPRODUCT((N$111:N$112)*TRANSPOSE(($D119:$E119))),0) -> 0 | O119: =O$110+IF($C119<>0,SUMPRODUCT((O$111:O$112)*TRANSPOSE(($D119:$E119))),0) -> 0 | P119: =P$110+IF($C119<>0,SUMPRODUCT((P$111:P$112)*TRANSPOSE(($D119:$E119))),0) -> 0 | Q119: =Q$110+IF($C119<>0,SUMPRODUCT((Q$111:Q$112)*TRANSPOSE(($D119:$E119))),0) -> 0 | R119: =R$110+IF($C119<>0,SUMPRODUCT((R$111:R$112)*TRANSPOSE(($D119:$E119))),0) -> 0 | S119: =S$110+IF($C119<>0,SUMPRODUCT((S$111:S$112)*TRANSPOSE(($D119:$E119))),0) -> 0 | T119: =T$110+IF($C119<>0,SUMPRODUCT((T$111:T$112)*TRANSPOSE(($D119:$E119))),0) -> 0 | U119: =U$110+IF($C119<>0,SUMPRODUCT((U$111:U$112)*TRANSPOSE(($D119:$E119))),0) -> 0 | V119: =V$110+IF($C119<>0,SUMPRODUCT((V$111:V$112)*TRANSPOSE(($D119:$E119))),0) -> 0 | W119: =W$110+IF($C119<>0,SUMPRODUCT((W$111:W$112)*TRANSPOSE(($D119:$E119))),0) -> 0 | X119: =X$110+IF($C119<>0,SUMPRODUCT((X$111:X$112)*TRANSPOSE(($D119:$E119))),0) -> 0 | Y119: =Y$110+IF($C119<>0,SUMPRODUCT((Y$111:Y$112)*TRANSPOSE(($D119:$E119))),0) -> 0 | Z119: =Z$110+IF($C119<>0,SUMPRODUCT((Z$111:Z$112)*TRANSPOSE(($D119:$E119))),0) -> 0 | AA119: =AA$110+IF($C119<>0,SUMPRODUCT((AA$111:AA$112)*TRANSPOSE(($D119:$E119))),0) -> 0 | AB119: =AB$110+IF($C119<>0,SUMPRODUCT((AB$111:AB$112)*TRANSPOSE(($D119:$E119))),0) -> 0 | AC119: =AC$110+IF($C119<>0,SUMPRODUCT((AC$111:AC$112)*TRANSPOSE(($D119:$E119))),0) -> 0 | AD119: =AD$110+IF($C119<>0,SUMPRODUCT((AD$111:AD$112)*TRANSPOSE(($D119:$E119))),0) -> 0 | AE119: =AE$110+IF($C119<>0,SUMPRODUCT((AE$111:AE$112)*TRANSPOSE(($D119:$E119))),0) -> 0 | AF119: =AF$110+IF($C119<>0,SUMPRODUCT((AF$111:AF$112)*TRANSPOSE(($D119:$E119))),0) -> 0 | AG119: =AG$110+IF($C119<>0,SUMPRODUCT((AG$111:AG$112)*TRANSPOSE(($D119:$E119))),0) -> 0
A120: ="sens"&Assumptions!B117 -> sens | C120: =Assumptions!C117 -> 0 | D120: =Assumptions!G117 -> 0 | E120: =Assumptions!H117 -> 0 | G120: Option 5sens | I120: =I$110+IF($C120<>0,SUMPRODUCT((I$111:I$112)*TRANSPOSE(($D120:$E120))),0) -> 0 | J120: =J$110+IF($C120<>0,SUMPRODUCT((J$111:J$112)*TRANSPOSE(($D120:$E120))),0) -> 0 | K120: =K$110+IF($C120<>0,SUMPRODUCT((K$111:K$112)*TRANSPOSE(($D120:$E120))),0) -> 0 | L120: =L$110+IF($C120<>0,SUMPRODUCT((L$111:L$112)*TRANSPOSE(($D120:$E120))),0) -> 0 | M120: =M$110+IF($C120<>0,SUMPRODUCT((M$111:M$112)*TRANSPOSE(($D120:$E120))),0) -> 0 | N120: =N$110+IF($C120<>0,SUMPRODUCT((N$111:N$112)*TRANSPOSE(($D120:$E120))),0) -> 0 | O120: =O$110+IF($C120<>0,SUMPRODUCT((O$111:O$112)*TRANSPOSE(($D120:$E120))),0) -> 0 | P120: =P$110+IF($C120<>0,SUMPRODUCT((P$111:P$112)*TRANSPOSE(($D120:$E120))),0) -> 0 | Q120: =Q$110+IF($C120<>0,SUMPRODUCT((Q$111:Q$112)*TRANSPOSE(($D120:$E120))),0) -> 0 | R120: =R$110+IF($C120<>0,SUMPRODUCT((R$111:R$112)*TRANSPOSE(($D120:$E120))),0) -> 0 | S120: =S$110+IF($C120<>0,SUMPRODUCT((S$111:S$112)*TRANSPOSE(($D120:$E120))),0) -> 0 | T120: =T$110+IF($C120<>0,SUMPRODUCT((T$111:T$112)*TRANSPOSE(($D120:$E120))),0) -> 0 | U120: =U$110+IF($C120<>0,SUMPRODUCT((U$111:U$112)*TRANSPOSE(($D120:$E120))),0) -> 0 | V120: =V$110+IF($C120<>0,SUMPRODUCT((V$111:V$112)*TRANSPOSE(($D120:$E120))),0) -> 0 | W120: =W$110+IF($C120<>0,SUMPRODUCT((W$111:W$112)*TRANSPOSE(($D120:$E120))),0) -> 0 | X120: =X$110+IF($C120<>0,SUMPRODUCT((X$111:X$112)*TRANSPOSE(($D120:$E120))),0) -> 0 | Y120: =Y$110+IF($C120<>0,SUMPRODUCT((Y$111:Y$112)*TRANSPOSE(($D120:$E120))),0) -> 0 | Z120: =Z$110+IF($C120<>0,SUMPRODUCT((Z$111:Z$112)*TRANSPOSE(($D120:$E120))),0) -> 0 | AA120: =AA$110+IF($C120<>0,SUMPRODUCT((AA$111:AA$112)*TRANSPOSE(($D120:$E120))),0) -> 0 | AB120: =AB$110+IF($C120<>0,SUMPRODUCT((AB$111:AB$112)*TRANSPOSE(($D120:$E120))),0) -> 0 | AC120: =AC$110+IF($C120<>0,SUMPRODUCT((AC$111:AC$112)*TRANSPOSE(($D120:$E120))),0) -> 0 | AD120: =AD$110+IF($C120<>0,SUMPRODUCT((AD$111:AD$112)*TRANSPOSE(($D120:$E120))),0) -> 0 | AE120: =AE$110+IF($C120<>0,SUMPRODUCT((AE$111:AE$112)*TRANSPOSE(($D120:$E120))),0) -> 0 | AF120: =AF$110+IF($C120<>0,SUMPRODUCT((AF$111:AF$112)*TRANSPOSE(($D120:$E120))),0) -> 0 | AG120: =AG$110+IF($C120<>0,SUMPRODUCT((AG$111:AG$112)*TRANSPOSE(($D120:$E120))),0) -> 0
A121: ="sens"&Assumptions!B118 -> sens | C121: =Assumptions!C118 -> 0 | D121: =Assumptions!G118 -> 0 | E121: =Assumptions!H118 -> 0 | G121: Option 5sens | I121: =I$110+IF($C121<>0,SUMPRODUCT((I$111:I$112)*TRANSPOSE(($D121:$E121))),0) -> 0 | J121: =J$110+IF($C121<>0,SUMPRODUCT((J$111:J$112)*TRANSPOSE(($D121:$E121))),0) -> 0 | K121: =K$110+IF($C121<>0,SUMPRODUCT((K$111:K$112)*TRANSPOSE(($D121:$E121))),0) -> 0 | L121: =L$110+IF($C121<>0,SUMPRODUCT((L$111:L$112)*TRANSPOSE(($D121:$E121))),0) -> 0 | M121: =M$110+IF($C121<>0,SUMPRODUCT((M$111:M$112)*TRANSPOSE(($D121:$E121))),0) -> 0 | N121: =N$110+IF($C121<>0,SUMPRODUCT((N$111:N$112)*TRANSPOSE(($D121:$E121))),0) -> 0 | O121: =O$110+IF($C121<>0,SUMPRODUCT((O$111:O$112)*TRANSPOSE(($D121:$E121))),0) -> 0 | P121: =P$110+IF($C121<>0,SUMPRODUCT((P$111:P$112)*TRANSPOSE(($D121:$E121))),0) -> 0 | Q121: =Q$110+IF($C121<>0,SUMPRODUCT((Q$111:Q$112)*TRANSPOSE(($D121:$E121))),0) -> 0 | R121: =R$110+IF($C121<>0,SUMPRODUCT((R$111:R$112)*TRANSPOSE(($D121:$E121))),0) -> 0 | S121: =S$110+IF($C121<>0,SUMPRODUCT((S$111:S$112)*TRANSPOSE(($D121:$E121))),0) -> 0 | T121: =T$110+IF($C121<>0,SUMPRODUCT((T$111:T$112)*TRANSPOSE(($D121:$E121))),0) -> 0 | U121: =U$110+IF($C121<>0,SUMPRODUCT((U$111:U$112)*TRANSPOSE(($D121:$E121))),0) -> 0 | V121: =V$110+IF($C121<>0,SUMPRODUCT((V$111:V$112)*TRANSPOSE(($D121:$E121))),0) -> 0 | W121: =W$110+IF($C121<>0,SUMPRODUCT((W$111:W$112)*TRANSPOSE(($D121:$E121))),0) -> 0 | X121: =X$110+IF($C121<>0,SUMPRODUCT((X$111:X$112)*TRANSPOSE(($D121:$E121))),0) -> 0 | Y121: =Y$110+IF($C121<>0,SUMPRODUCT((Y$111:Y$112)*TRANSPOSE(($D121:$E121))),0) -> 0 | Z121: =Z$110+IF($C121<>0,SUMPRODUCT((Z$111:Z$112)*TRANSPOSE(($D121:$E121))),0) -> 0 | AA121: =AA$110+IF($C121<>0,SUMPRODUCT((AA$111:AA$112)*TRANSPOSE(($D121:$E121))),0) -> 0 | AB121: =AB$110+IF($C121<>0,SUMPRODUCT((AB$111:AB$112)*TRANSPOSE(($D121:$E121))),0) -> 0 | AC121: =AC$110+IF($C121<>0,SUMPRODUCT((AC$111:AC$112)*TRANSPOSE(($D121:$E121))),0) -> 0 | AD121: =AD$110+IF($C121<>0,SUMPRODUCT((AD$111:AD$112)*TRANSPOSE(($D121:$E121))),0) -> 0 | AE121: =AE$110+IF($C121<>0,SUMPRODUCT((AE$111:AE$112)*TRANSPOSE(($D121:$E121))),0) -> 0 | AF121: =AF$110+IF($C121<>0,SUMPRODUCT((AF$111:AF$112)*TRANSPOSE(($D121:$E121))),0) -> 0 | AG121: =AG$110+IF($C121<>0,SUMPRODUCT((AG$111:AG$112)*TRANSPOSE(($D121:$E121))),0) -> 0

Sheet Consol
A1: =bus -> Powercor
A2: =proj -> Mount Cottrell feeder 9
A3: CONSOLIDATED
A5: Discount factor | H5: =IF(H9=start,1/((1+real_disc)^(1/2)),G5/(1+real_disc)) -> 0 | I5: 0.9829463744 | J5: 0.9497066419 | K5: 0.9175909584 | L5: 0.8865613124 | M5: 0.8565809782 | N5: 0.8276144717 | O5: 0.7996275089 | P5: 0.7725869651 | Q5: 0.7464608358 | R5: 0.7212181989 | S5: 0.6968291777 | T5: 0.6732649059 | U5: 0.6504974937 | V5: 0.6284999939 | W5: 0.6072463709 | X5: 0.5867114695 | Y5: 0.566870985 | Z5: 0.5477014348 | AA5: 0.5291801302 | AB5: 0.51128515 | AC5: 0.493995314 | AD5: 0.4772901584 | AE5: 0.4611499115 | AF5: 0.4455554701 | AG5: 0.4304883769
A6: ='Option1 (base case)'!A6 -> Count | H6: ='Option1 (base case)'!H6 -> 0 | I6: ='Option1 (base case)'!I6 -> 1 | J6: ='Option1 (base case)'!J6 -> 2 | K6: ='Option1 (base case)'!K6 -> 3 | L6: ='Option1 (base case)'!L6 -> 4 | M6: ='Option1 (base case)'!M6 -> 5 | N6: ='Option1 (base case)'!N6 -> 6 | O6: ='Option1 (base case)'!O6 -> 7 | P6: ='Option1 (base case)'!P6 -> 8 | Q6: ='Option1 (base case)'!Q6 -> 9 | R6: ='Option1 (base case)'!R6 -> 10 | S6: ='Option1 (base case)'!S6 -> 11 | T6: ='Option1 (base case)'!T6 -> 12 | U6: ='Option1 (base case)'!U6 -> 13 | V6: ='Option1 (base case)'!V6 -> 14 | W6: ='Option1 (base case)'!W6 -> 15 | X6: ='Option1 (base case)'!X6 -> 16 | Y6: ='Option1 (base case)'!Y6 -> 17 | Z6: ='Option1 (base case)'!Z6 -> 18 | AA6: ='Option1 (base case)'!AA6 -> 19 | AB6: ='Option1 (base case)'!AB6 -> 20 | AC6: ='Option1 (base case)'!AC6 -> 21 | AD6: ='Option1 (base case)'!AD6 -> 22 | AE6: ='Option1 (base case)'!AE6 -> 23 | AF6: ='Option1 (base case)'!AF6 -> 24 | AG6: ='Option1 (base case)'!AG6 -> 25
A7: Analysis period | H7: =H$6<(first_year+years) -> TRUE | I7: TRUE | J7: TRUE | K7: TRUE | L7: TRUE | M7: TRUE | N7: TRUE | O7: TRUE | P7: TRUE | Q7: TRUE | R7: TRUE | S7: TRUE | T7: TRUE | U7: TRUE | V7: TRUE | W7: TRUE | X7: TRUE | Y7: TRUE | Z7: TRUE | AA7: TRUE | AB7: TRUE | AC7: FALSE | AD7: FALSE | AE7: FALSE | AF7: FALSE | AG7: FALSE
H9: ='Option1 (base case)'!H9 -> 2026-06-30 | I9: ='Option1 (base case)'!I9 -> 2026-27 | J9: ='Option1 (base case)'!J9 -> 2027-28 | K9: ='Option1 (base case)'!K9 -> 2028-29 | L9: ='Option1 (base case)'!L9 -> 2029-30 | M9: ='Option1 (base case)'!M9 -> 2030-31 | N9: ='Option1 (base case)'!N9 -> 2031-32 | O9: ='Option1 (base case)'!O9 -> 2032-33 | P9: ='Option1 (base case)'!P9 -> 2033-34 | Q9: ='Option1 (base case)'!Q9 -> 2034-35 | R9: ='Option1 (base case)'!R9 -> 2035-36 | S9: ='Option1 (base case)'!S9 -> 2036-37 | T9: ='Option1 (base case)'!T9 -> 2037-38 | U9: ='Option1 (base case)'!U9 -> 2038-39 | V9: ='Option1 (base case)'!V9 -> 2039-40 | W9: ='Option1 (base case)'!W9 -> 2040-41 | X9: ='Option1 (base case)'!X9 -> 2041-42 | Y9: ='Option1 (base case)'!Y9 -> 2042-43 | Z9: ='Option1 (base case)'!Z9 -> 2043-44 | AA9: ='Option1 (base case)'!AA9 -> 2044-45 | AB9: ='Option1 (base case)'!AB9 -> 2045-46 | AC9: ='Option1 (base case)'!AC9 -> 2046-47 | AD9: ='Option1 (base case)'!AD9 -> 2047-48 | AE9: ='Option1 (base case)'!AE9 -> 2048-49 | AF9: ='Option1 (base case)'!AF9 -> 2049-50 | AG9: ='Option1 (base case)'!AG9 -> 2050-51
A11: COSTS | F11: PV | H11: =IF(H6=$C$4,UPPER($A$4),IF(H6=end, "END", "")) -> 
A14: =A15 -> Option 1 (base case) | C14: Energy at risk value | D14: =A14&C14 -> Option 1 (base case)Energy at risk value | F14: =SUMPRODUCT($H14:$AG14, $H$5:$AG$5) -> 3709074008 | G14: =output_dollars -> 2026-06-30 | I14: ='Option1 (base case)'!I$32*conv_2026 -> 6880558.161 | J14: ='Option1 (base case)'!J$32*conv_2026 -> 13849118.55 | K14: ='Option1 (base case)'!K$32*conv_2026 -> 27190027.06 | L14: ='Option1 (base case)'!L$32*conv_2026 -> 46415233.24 | M14: ='Option1 (base case)'!M$32*conv_2026 -> 75851555.45 | N14: ='Option1 (base case)'!N$32*conv_2026 -> 122203473.3 | O14: ='Option1 (base case)'!O$32*conv_2026 -> 185294571.6 | P14: ='Option1 (base case)'!P$32*conv_2026 -> 252308682.4 | Q14: ='Option1 (base case)'!Q$32*conv_2026 -> 318577178.8 | R14: ='Option1 (base case)'!R$32*conv_2026 -> 318577178.8 | S14: ='Option1 (base case)'!S$32*conv_2026 -> 318577178.8 | T14: ='Option1 (base case)'!T$32*conv_2026 -> 318577178.8 | U14: ='Option1 (base case)'!U$32*conv_2026 -> 318577178.8 | V14: ='Option1 (base case)'!V$32*conv_2026 -> 318577178.8 | W14: ='Option1 (base case)'!W$32*conv_2026 -> 318577178.8 | X14: ='Option1 (base case)'!X$32*conv_2026 -> 318577178.8 | Y14: ='Option1 (base case)'!Y$32*conv_2026 -> 318577178.8 | Z14: ='Option1 (base case)'!Z$32*conv_2026 -> 318577178.8 | AA14: ='Option1 (base case)'!AA$32*conv_2026 -> 318577178.8 | AB14: ='Option1 (base case)'!AB$32*conv_2026 -> 318577178.8 | AC14: ='Option1 (base case)'!AC$32*conv_2026 -> 318577178.8 | AD14: ='Option1 (base case)'!AD$32*conv_2026 -> 318577178.8 | AE14: ='Option1 (base case)'!AE$32*conv_2026 -> 318577178.8 | AF14: ='Option1 (base case)'!AF$32*conv_2026 -> 318577178.8 | AG14: ='Option1 (base case)'!AG$32*conv_2026 -> 318577178.8
A15: =Data!B9 -> Option 1 (base case) | C15: ='Option1 (base case)'!C$70 -> Capital expenditure | D15: Option 1 (base case)Capital expenditure | F15: =SUMPRODUCT($H15:$AG15, $H$5:$AG$5) -> 0 | G15: =output_dollars -> 2026-06-30 | I15: =SUM('Option1 (base case)'!I$71:I$73)*conv_2026 -> 0 | J15: =SUM('Option1 (base case)'!J$71:J$73) -> 0 | K15: =SUM('Option1 (base case)'!K$71:K$73) -> 0 | L15: =SUM('Option1 (base case)'!L$71:L$73) -> 0 | M15: =SUM('Option1 (base case)'!M$71:M$73) -> 0 | N15: =SUM('Option1 (base case)'!N$71:N$73) -> 0 | O15: =SUM('Option1 (base case)'!O$71:O$73) -> 0 | P15: =SUM('Option1 (base case)'!P$71:P$73) -> 0 | Q15: =SUM('Option1 (base case)'!Q$71:Q$73) -> 0 | R15: =SUM('Option1 (base case)'!R$71:R$73) -> 0 | S15: =SUM('Option1 (base case)'!S$71:S$73) -> 0 | T15: =SUM('Option1 (base case)'!T$71:T$73) -> 0 | U15: =SUM('Option1 (base case)'!U$71:U$73) -> 0 | V15: =SUM('Option1 (base case)'!V$71:V$73) -> 0 | W15: =SUM('Option1 (base case)'!W$71:W$73) -> 0 | X15: =SUM('Option1 (base case)'!X$71:X$73) -> 0 | Y15: =SUM('Option1 (base case)'!Y$71:Y$73) -> 0 | Z15: =SUM('Option1 (base case)'!Z$71:Z$73) -> 0 | AA15: =SUM('Option1 (base case)'!AA$71:AA$73) -> 0 | AB15: =SUM('Option1 (base case)'!AB$71:AB$73) -> 0 | AC15: =SUM('Option1 (base case)'!AC$71:AC$73) -> 0 | AD15: =SUM('Option1 (base case)'!AD$71:AD$73) -> 0 | AE15: =SUM('Option1 (base case)'!AE$71:AE$73) -> 0 | AF15: =SUM('Option1 (base case)'!AF$71:AF$73) -> 0 | AG15: =SUM('Option1 (base case)'!AG$71:AG$73) -> 0
A16: =A15 -> Option 1 (base case) | C16: ='Option1 (base case)'!C$40 -> Total risk cost | D16: Option 1 (base case)Total risk cost | F16: =SUMPRODUCT(($H16:$AG16)*($H$5:$AG$5)*($H$7:$AG$7)) -> 2973645208 | G16: =output_dollars -> 2026-06-30 | I16: ='Option1 (base case)'!I$40*conv_2026 -> 6880558.161 | J16: ='Option1 (base case)'!J$40*conv_2026 -> 13849118.55 | K16: ='Option1 (base case)'!K$40*conv_2026 -> 27190027.06 | L16: ='Option1 (base case)'!L$40*conv_2026 -> 46415233.24 | M16: ='Option1 (base case)'!M$40*conv_2026 -> 75851555.45 | N16: ='Option1 (base case)'!N$40*conv_2026 -> 122203473.3 | O16: ='Option1 (base case)'!O$40*conv_2026 -> 185294571.6 | P16: ='Option1 (base case)'!P$40*conv_2026 -> 252308682.4 | Q16: ='Option1 (base case)'!Q$40*conv_2026 -> 318577178.8 | R16: ='Option1 (base case)'!R$40*conv_2026 -> 318577178.8 | S16: ='Option1 (base case)'!S$40*conv_2026 -> 318577178.8 | T16: ='Option1 (base case)'!T$40*conv_2026 -> 318577178.8 | U16: ='Option1 (base case)'!U$40*conv_2026 -> 318577178.8 | V16: ='Option1 (base case)'!V$40*conv_2026 -> 318577178.8 | W16: ='Option1 (base case)'!W$40*conv_2026 -> 318577178.8 | X16: ='Option1 (base case)'!X$40*conv_2026 -> 318577178.8 | Y16: ='Option1 (base case)'!Y$40*conv_2026 -> 318577178.8 | Z16: ='Option1 (base case)'!Z$40*conv_2026 -> 318577178.8 | AA16: ='Option1 (base case)'!AA$40*conv_2026 -> 318577178.8 | AB16: ='Option1 (base case)'!AB$40*conv_2026 -> 318577178.8 | AC16: ='Option1 (base case)'!AC$40*conv_2026 -> 318577178.8 | AD16: ='Option1 (base case)'!AD$40*conv_2026 -> 318577178.8 | AE16: ='Option1 (base case)'!AE$40*conv_2026 -> 318577178.8 | AF16: ='Option1 (base case)'!AF$40*conv_2026 -> 318577178.8 | AG16: ='Option1 (base case)'!AG$40*conv_2026 -> 318577178.8
A17: Option 1 (base case) | D17: Option 1 (base case)
A18: Option 1 (base case) | C18: ='Option1 (base case)'!C$86 -> Annualised capex | D18: Option 1 (base case)Annualised capex | F18: =SUMPRODUCT($H18:$AG18, $H$5:$AG$5) -> 0 | G18: =output_dollars -> 2026-06-30 | I18: ='Option1 (base case)'!I$86*conv_2026 -> 0 | J18: ='Option1 (base case)'!J$86*conv_2026 -> 0 | K18: ='Option1 (base case)'!K$86*conv_2026 -> 0 | L18: ='Option1 (base case)'!L$86*conv_2026 -> 0 | M18: ='Option1 (base case)'!M$86*conv_2026 -> 0 | N18: ='Option1 (base case)'!N$86*conv_2026 -> 0 | O18: ='Option1 (base case)'!O$86*conv_2026 -> 0 | P18: ='Option1 (base case)'!P$86*conv_2026 -> 0 | Q18: ='Option1 (base case)'!Q$86*conv_2026 -> 0 | R18: ='Option1 (base case)'!R$86*conv_2026 -> 0 | S18: ='Option1 (base case)'!S$86*conv_2026 -> 0 | T18: ='Option1 (base case)'!T$86*conv_2026 -> 0 | U18: ='Option1 (base case)'!U$86*conv_2026 -> 0 | V18: ='Option1 (base case)'!V$86*conv_2026 -> 0 | W18: ='Option1 (base case)'!W$86*conv_2026 -> 0 | X18: ='Option1 (base case)'!X$86*conv_2026 -> 0 | Y18: ='Option1 (base case)'!Y$86*conv_2026 -> 0 | Z18: ='Option1 (base case)'!Z$86*conv_2026 -> 0 | AA18: ='Option1 (base case)'!AA$86*conv_2026 -> 0 | AB18: ='Option1 (base case)'!AB$86*conv_2026 -> 0 | AC18: ='Option1 (base case)'!AC$86*conv_2026 -> 0 | AD18: ='Option1 (base case)'!AD$86*conv_2026 -> 0 | AE18: ='Option1 (base case)'!AE$86*conv_2026 -> 0 | AF18: ='Option1 (base case)'!AF$86*conv_2026 -> 0 | AG18: ='Option1 (base case)'!AG$86*conv_2026 -> 0
A19: Option 1 (base case) | C19: ='Option1 (base case)'!C$87 -> Operating expenditure | D19: Option 1 (base case)Operating expenditure | F19: =SUMPRODUCT($H19:$AG19, $H$5:$AG$5) -> 0 | G19: 2026-06-30 | I19: ='Option1 (base case)'!I$87*conv_2026 -> 0 | J19: ='Option1 (base case)'!J$87*conv_2026 -> 0 | K19: ='Option1 (base case)'!K$87*conv_2026 -> 0 | L19: ='Option1 (base case)'!L$87*conv_2026 -> 0 | M19: ='Option1 (base case)'!M$87*conv_2026 -> 0 | N19: ='Option1 (base case)'!N$87*conv_2026 -> 0 | O19: ='Option1 (base case)'!O$87*conv_2026 -> 0 | P19: ='Option1 (base case)'!P$87*conv_2026 -> 0 | Q19: ='Option1 (base case)'!Q$87*conv_2026 -> 0 | R19: ='Option1 (base case)'!R$87*conv_2026 -> 0 | S19: ='Option1 (base case)'!S$87*conv_2026 -> 0 | T19: ='Option1 (base case)'!T$87*conv_2026 -> 0 | U19: ='Option1 (base case)'!U$87*conv_2026 -> 0 | V19: ='Option1 (base case)'!V$87*conv_2026 -> 0 | W19: ='Option1 (base case)'!W$87*conv_2026 -> 0 | X19: ='Option1 (base case)'!X$87*conv_2026 -> 0 | Y19: ='Option1 (base case)'!Y$87*conv_2026 -> 0 | Z19: ='Option1 (base case)'!Z$87*conv_2026 -> 0 | AA19: ='Option1 (base case)'!AA$87*conv_2026 -> 0 | AB19: ='Option1 (base case)'!AB$87*conv_2026 -> 0 | AC19: ='Option1 (base case)'!AC$87*conv_2026 -> 0 | AD19: ='Option1 (base case)'!AD$87*conv_2026 -> 0 | AE19: ='Option1 (base case)'!AE$87*conv_2026 -> 0 | AF19: ='Option1 (base case)'!AF$87*conv_2026 -> 0 | AG19: ='Option1 (base case)'!AG$87*conv_2026 -> 0
A20: Option 1 (base case) | C20: ='Option1 (base case)'!C$88 -> Risk mitigated | D20: Option 1 (base case)Risk mitigated | F20: =SUMPRODUCT($H20:$AG20, $H$5:$AG$5) -> 0 | G20: 2026-06-30 | I20: ='Option1 (base case)'!I$88*conv_2026 -> 0 | J20: ='Option1 (base case)'!J$88*conv_2026 -> 0 | K20: ='Option1 (base case)'!K$88*conv_2026 -> 0 | L20: ='Option1 (base case)'!L$88*conv_2026 -> 0 | M20: ='Option1 (base case)'!M$88*conv_2026 -> 0 | N20: ='Option1 (base case)'!N$88*conv_2026 -> 0 | O20: ='Option1 (base case)'!O$88*conv_2026 -> 0 | P20: ='Option1 (base case)'!P$88*conv_2026 -> 0 | Q20: ='Option1 (base case)'!Q$88*conv_2026 -> 0 | R20: ='Option1 (base case)'!R$88*conv_2026 -> 0 | S20: ='Option1 (base case)'!S$88*conv_2026 -> 0 | T20: ='Option1 (base case)'!T$88*conv_2026 -> 0 | U20: ='Option1 (base case)'!U$88*conv_2026 -> 0 | V20: ='Option1 (base case)'!V$88*conv_2026 -> 0 | W20: ='Option1 (base case)'!W$88*conv_2026 -> 0 | X20: ='Option1 (base case)'!X$88*conv_2026 -> 0 | Y20: ='Option1 (base case)'!Y$88*conv_2026 -> 0 | Z20: ='Option1 (base case)'!Z$88*conv_2026 -> 0 | AA20: ='Option1 (base case)'!AA$88*conv_2026 -> 0 | AB20: ='Option1 (base case)'!AB$88*conv_2026 -> 0 | AC20: ='Option1 (base case)'!AC$88*conv_2026 -> 0 | AD20: ='Option1 (base case)'!AD$88*conv_2026 -> 0 | AE20: ='Option1 (base case)'!AE$88*conv_2026 -> 0 | AF20: ='Option1 (base case)'!AF$88*conv_2026 -> 0 | AG20: ='Option1 (base case)'!AG$88*conv_2026 -> 0
A21: Option 1 (base case) | C21: ='Option1 (base case)'!C$89 -> Other benefits value | D21: Option 1 (base case)Other benefits value | F21: =SUMPRODUCT($H21:$AG21, $H$5:$AG$5) -> 0 | G21: 2026-06-30 | I21: ='Option1 (base case)'!I$89*conv_2026 -> 0 | J21: ='Option1 (base case)'!J$89*conv_2026 -> 0 | K21: ='Option1 (base case)'!K$89*conv_2026 -> 0 | L21: ='Option1 (base case)'!L$89*conv_2026 -> 0 | M21: ='Option1 (base case)'!M$89*conv_2026 -> 0 | N21: ='Option1 (base case)'!N$89*conv_2026 -> 0 | O21: ='Option1 (base case)'!O$89*conv_2026 -> 0 | P21: ='Option1 (base case)'!P$89*conv_2026 -> 0 | Q21: ='Option1 (base case)'!Q$89*conv_2026 -> 0 | R21: ='Option1 (base case)'!R$89*conv_2026 -> 0 | S21: ='Option1 (base case)'!S$89*conv_2026 -> 0 | T21: ='Option1 (base case)'!T$89*conv_2026 -> 0 | U21: ='Option1 (base case)'!U$89*conv_2026 -> 0 | V21: ='Option1 (base case)'!V$89*conv_2026 -> 0 | W21: ='Option1 (base case)'!W$89*conv_2026 -> 0 | X21: ='Option1 (base case)'!X$89*conv_2026 -> 0 | Y21: ='Option1 (base case)'!Y$89*conv_2026 -> 0 | Z21: ='Option1 (base case)'!Z$89*conv_2026 -> 0 | AA21: ='Option1 (base case)'!AA$89*conv_2026 -> 0 | AB21: ='Option1 (base case)'!AB$89*conv_2026 -> 0 | AC21: ='Option1 (base case)'!AC$89*conv_2026 -> 0 | AD21: ='Option1 (base case)'!AD$89*conv_2026 -> 0 | AE21: ='Option1 (base case)'!AE$89*conv_2026 -> 0 | AF21: ='Option1 (base case)'!AF$89*conv_2026 -> 0 | AG21: ='Option1 (base case)'!AG$89*conv_2026 -> 0
A22: Option 1 (base case) | C22: ='Option1 (base case)'!C$91 -> Net benefits | D22: Option 1 (base case)Net benefits | G22: 2026-06-30 | I22: =SUM(I18:I21) -> 0 | J22: 0 | K22: 0 | L22: 0 | M22: 0 | N22: 0 | O22: 0 | P22: 0 | Q22: 0 | R22: 0 | S22: 0 | T22: 0 | U22: 0 | V22: 0 | W22: 0 | X22: 0 | Y22: 0 | Z22: 0 | AA22: 0 | AB22: 0 | AC22: 0 | AD22: 0 | AE22: 0 | AF22: 0 | AG22: 0
A23: Option 1 (base case) | C23: NPV | D23: Option 1 (base case)NPV | F23: =SUMPRODUCT(($H22:$AG22)*($H$5:$AG$5)*($H$7:$AG$7)) -> 0 | G23: 2026-06-30
A24: Option 1 (base case) | C24: PV of costs | D24: Option 1 (base case)PV of costs | F24: =SUM(F18:F19) -> 0 | G24: 2026-06-30
A25: Option 1 (base case) | C25: PV of benefits | D25: Option 1 (base case)PV of benefits | F25: =SUM(F20:F21) -> 0 | G25: 2026-06-30
D26: =A26&C26 -> 
A28: =A29 -> Option 2 | C28: Energy at risk value | D28: Option 2Energy at risk value | F28: =SUMPRODUCT($H28:$AG28, $H$5:$AG$5) -> 329318063.5 | G28: =output_dollars -> 2026-06-30 | I28: =Option2!I$32*conv_2026 -> 6880558.161 | J28: =Option2!J$32*conv_2026 -> 5244.387862 | K28: =Option2!K$32*conv_2026 -> 61155.71122 | L28: =Option2!L$32*conv_2026 -> 282901.1492 | M28: =Option2!M$32*conv_2026 -> 933946.5905 | N28: =Option2!N$32*conv_2026 -> 2924626.429 | O28: =Option2!O$32*conv_2026 -> 8348620.073 | P28: =Option2!P$32*conv_2026 -> 17563141.77 | Q28: =Option2!Q$32*conv_2026 -> 30567846.6 | R28: =Option2!R$32*conv_2026 -> 30567846.6 | S28: =Option2!S$32*conv_2026 -> 30567846.6 | T28: =Option2!T$32*conv_2026 -> 30567846.6 | U28: =Option2!U$32*conv_2026 -> 30567846.6 | V28: =Option2!V$32*conv_2026 -> 30567846.6 | W28: =Option2!W$32*conv_2026 -> 30567846.6 | X28: =Option2!X$32*conv_2026 -> 30567846.6 | Y28: =Option2!Y$32*conv_2026 -> 30567846.6 | Z28: =Option2!Z$32*conv_2026 -> 30567846.6 | AA28: =Option2!AA$32*conv_2026 -> 30567846.6 | AB28: =Option2!AB$32*conv_2026 -> 30567846.6 | AC28: =Option2!AC$32*conv_2026 -> 30567846.6 | AD28: =Option2!AD$32*conv_2026 -> 30567846.6 | AE28: =Option2!AE$32*conv_2026 -> 30567846.6 | AF28: =Option2!AF$32*conv_2026 -> 30567846.6 | AG28: =Option2!AG$32*conv_2026 -> 30567846.6
A29: =Data!B10 -> Option 2 | C29: =Option2!C$70 -> Capital expenditure | D29: Option 2Capital expenditure | F29: =SUMPRODUCT(($H29:$AG29)*($H$5:$AG$5)*($H$7:$AG$7)) -> -1781392.073 | G29: =output_dollars -> 2026-06-30 | I29: =SUM(Option2!I$71:I$73)*conv_2026*I$7 -> -1812298.33 | J29: =SUM(Option2!J$71:J$73)*conv_2026*J$7 -> 0 | K29: =SUM(Option2!K$71:K$73)*conv_2026*K$7 -> 0 | L29: =SUM(Option2!L$71:L$73)*conv_2026*L$7 -> 0 | M29: =SUM(Option2!M$71:M$73)*conv_2026*M$7 -> 0 | N29: =SUM(Option2!N$71:N$73)*conv_2026*N$7 -> 0 | O29: =SUM(Option2!O$71:O$73)*conv_2026*O$7 -> 0 | P29: =SUM(Option2!P$71:P$73)*conv_2026*P$7 -> 0 | Q29: =SUM(Option2!Q$71:Q$73)*conv_2026*Q$7 -> 0 | R29: =SUM(Option2!R$71:R$73)*conv_2026*R$7 -> 0 | S29: =SUM(Option2!S$71:S$73)*conv_2026*S$7 -> 0 | T29: =SUM(Option2!T$71:T$73)*conv_2026*T$7 -> 0 | U29: =SUM(Option2!U$71:U$73)*conv_2026*U$7 -> 0 | V29: =SUM(Option2!V$71:V$73)*conv_2026*V$7 -> 0 | W29: =SUM(Option2!W$71:W$73)*conv_2026*W$7 -> 0 | X29: =SUM(Option2!X$71:X$73)*conv_2026*X$7 -> 0 | Y29: =SUM(Option2!Y$71:Y$73)*conv_2026*Y$7 -> 0 | Z29: =SUM(Option2!Z$71:Z$73)*conv_2026*Z$7 -> 0 | AA29: =SUM(Option2!AA$71:AA$73)*conv_2026*AA$7 -> 0 | AB29: =SUM(Option2!AB$71:AB$73)*conv_2026*AB$7 -> 0 | AC29: =SUM(Option2!AC$71:AC$73)*conv_2026*AC$7 -> 0 | AD29: =SUM(Option2!AD$71:AD$73)*conv_2026*AD$7 -> 0 | AE29: =SUM(Option2!AE$71:AE$73)*conv_2026*AE$7 -> 0 | AF29: =SUM(Option2!AF$71:AF$73)*conv_2026*AF$7 -> 0 | AG29: =SUM(Option2!AG$71:AG$73)*conv_2026*AG$7 -> 0
A30: =A29 -> Option 2 | C30: ='Option1 (base case)'!C$40 -> Total risk cost | D30: Option 2Total risk cost | F30: =SUMPRODUCT(($H30:$AG30)*($H$5:$AG$5)*($H$7:$AG$7)) -> 258752824.5 | G30: =output_dollars -> 2026-06-30 | I30: =Option2!I$40*conv_2026*I$7 -> 6880558.161 | J30: =Option2!J$40*conv_2026*J$7 -> 5244.387862 | K30: =Option2!K$40*conv_2026*K$7 -> 61155.71122 | L30: =Option2!L$40*conv_2026*L$7 -> 282901.1492 | M30: =Option2!M$40*conv_2026*M$7 -> 933946.5905 | N30: =Option2!N$40*conv_2026*N$7 -> 2924626.429 | O30: =Option2!O$40*conv_2026*O$7 -> 8348620.073 | P30: =Option2!P$40*conv_2026*P$7 -> 17563141.77 | Q30: =Option2!Q$40*conv_2026*Q$7 -> 30567846.6 | R30: =Option2!R$40*conv_2026*R$7 -> 30567846.6 | S30: =Option2!S$40*conv_2026*S$7 -> 30567846.6 | T30: =Option2!T$40*conv_2026*T$7 -> 30567846.6 | U30: =Option2!U$40*conv_2026*U$7 -> 30567846.6 | V30: =Option2!V$40*conv_2026*V$7 -> 30567846.6 | W30: =Option2!W$40*conv_2026*W$7 -> 30567846.6 | X30: =Option2!X$40*conv_2026*X$7 -> 30567846.6 | Y30: =Option2!Y$40*conv_2026*Y$7 -> 30567846.6 | Z30: =Option2!Z$40*conv_2026*Z$7 -> 30567846.6 | AA30: =Option2!AA$40*conv_2026*AA$7 -> 30567846.6 | AB30: =Option2!AB$40*conv_2026*AB$7 -> 30567846.6 | AC30: =Option2!AC$40*conv_2026*AC$7 -> 0 | AD30: =Option2!AD$40*conv_2026*AD$7 -> 0 | AE30: =Option2!AE$40*conv_2026*AE$7 -> 0 | AF30: =Option2!AF$40*conv_2026*AF$7 -> 0 | AG30: =Option2!AG$40*conv_2026*AG$7 -> 0
A31: Option 2 | D31: Option 2
A32: Option 2 | C32: =Option2!C$86 -> Annualised capex | D32: Option 2Annualised capex | F32: =SUMPRODUCT(($H32:$AG32)*($H$5:$AG$5)*($H$7:$AG$7)) -> -1041225.852 | G32: =output_dollars -> 2026-06-30 | I32: =Option2!I$86*conv_2026*I$7 -> 0 | J32: =Option2!J$86*conv_2026*J$7 -> -77265.00065 | K32: =Option2!K$86*conv_2026*K$7 -> -77265.00065 | L32: =Option2!L$86*conv_2026*L$7 -> -77265.00065 | M32: =Option2!M$86*conv_2026*M$7 -> -77265.00065 | N32: =Option2!N$86*conv_2026*N$7 -> -77265.00065 | O32: =Option2!O$86*conv_2026*O$7 -> -77265.00065 | P32: =Option2!P$86*conv_2026*P$7 -> -77265.00065 | Q32: =Option2!Q$86*conv_2026*Q$7 -> -77265.00065 | R32: =Option2!R$86*conv_2026*R$7 -> -77265.00065 | S32: =Option2!S$86*conv_2026*S$7 -> -77265.00065 | T32: =Option2!T$86*conv_2026*T$7 -> -77265.00065 | U32: =Option2!U$86*conv_2026*U$7 -> -77265.00065 | V32: =Option2!V$86*conv_2026*V$7 -> -77265.00065 | W32: =Option2!W$86*conv_2026*W$7 -> -77265.00065 | X32: =Option2!X$86*conv_2026*X$7 -> -77265.00065 | Y32: =Option2!Y$86*conv_2026*Y$7 -> -77265.00065 | Z32: =Option2!Z$86*conv_2026*Z$7 -> -77265.00065 | AA32: =Option2!AA$86*conv_2026*AA$7 -> -77265.00065 | AB32: =Option2!AB$86*conv_2026*AB$7 -> -77265.00065 | AC32: =Option2!AC$86*conv_2026*AC$7 -> 0 | AD32: =Option2!AD$86*conv_2026*AD$7 -> 0 | AE32: =Option2!AE$86*conv_2026*AE$7 -> 0 | AF32: =Option2!AF$86*conv_2026*AF$7 -> 0 | AG32: =Option2!AG$86*conv_2026*AG$7 -> 0
A33: Option 2 | C33: =Option2!C$87 -> Operating expenditure | D33: Option 2Operating expenditure | F33: =SUMPRODUCT(($H33:$AG33)*($H$5:$AG$5)*($H$7:$AG$7)) -> 0 | G33: 2026-06-30 | I33: =Option2!I$87*conv_2026*I$7 -> 0 | J33: =Option2!J$87*conv_2026*J$7 -> 0 | K33: =Option2!K$87*conv_2026*K$7 -> 0 | L33: =Option2!L$87*conv_2026*L$7 -> 0 | M33: =Option2!M$87*conv_2026*M$7 -> 0 | N33: =Option2!N$87*conv_2026*N$7 -> 0 | O33: =Option2!O$87*conv_2026*O$7 -> 0 | P33: =Option2!P$87*conv_2026*P$7 -> 0 | Q33: =Option2!Q$87*conv_2026*Q$7 -> 0 | R33: =Option2!R$87*conv_2026*R$7 -> 0 | S33: =Option2!S$87*conv_2026*S$7 -> 0 | T33: =Option2!T$87*conv_2026*T$7 -> 0 | U33: =Option2!U$87*conv_2026*U$7 -> 0 | V33: =Option2!V$87*conv_2026*V$7 -> 0 | W33: =Option2!W$87*conv_2026*W$7 -> 0 | X33: =Option2!X$87*conv_2026*X$7 -> 0 | Y33: =Option2!Y$87*conv_2026*Y$7 -> 0 | Z33: =Option2!Z$87*conv_2026*Z$7 -> 0 | AA33: =Option2!AA$87*conv_2026*AA$7 -> 0 | AB33: =Option2!AB$87*conv_2026*AB$7 -> 0 | AC33: =Option2!AC$87*conv_2026*AC$7 -> 0 | AD33: =Option2!AD$87*conv_2026*AD$7 -> 0 | AE33: =Option2!AE$87*conv_2026*AE$7 -> 0 | AF33: =Option2!AF$87*conv_2026*AF$7 -> 0 | AG33: =Option2!AG$87*conv_2026*AG$7 -> 0
A34: Option 2 | C34: =Option2!C$88 -> Risk mitigated | D34: Option 2Risk mitigated | F34: =SUMPRODUCT(($H34:$AG34)*($H$5:$AG$5)*($H$7:$AG$7)) -> 2714892383 | G34: 2026-06-30 | I34: =Option2!I$88*conv_2026*I$7 -> 0 | J34: =Option2!J$88*conv_2026*J$7 -> 13843874.17 | K34: =Option2!K$88*conv_2026*K$7 -> 27128871.35 | L34: =Option2!L$88*conv_2026*L$7 -> 46132332.1 | M34: =Option2!M$88*conv_2026*M$7 -> 74917608.86 | N34: =Option2!N$88*conv_2026*N$7 -> 119278846.8 | O34: =Option2!O$88*conv_2026*O$7 -> 176945951.5 | P34: =Option2!P$88*conv_2026*P$7 -> 234745540.6 | Q34: =Option2!Q$88*conv_2026*Q$7 -> 288009332.2 | R34: =Option2!R$88*conv_2026*R$7 -> 288009332.2 | S34: =Option2!S$88*conv_2026*S$7 -> 288009332.2 | T34: =Option2!T$88*conv_2026*T$7 -> 288009332.2 | U34: =Option2!U$88*conv_2026*U$7 -> 288009332.2 | V34: =Option2!V$88*conv_2026*V$7 -> 288009332.2 | W34: =Option2!W$88*conv_2026*W$7 -> 288009332.2 | X34: =Option2!X$88*conv_2026*X$7 -> 288009332.2 | Y34: =Option2!Y$88*conv_2026*Y$7 -> 288009332.2 | Z34: =Option2!Z$88*conv_2026*Z$7 -> 288009332.2 | AA34: =Option2!AA$88*conv_2026*AA$7 -> 288009332.2 | AB34: =Option2!AB$88*conv_2026*AB$7 -> 288009332.2 | AC34: =Option2!AC$88*conv_2026*AC$7 -> 0 | AD34: =Option2!AD$88*conv_2026*AD$7 -> 0 | AE34: =Option2!AE$88*conv_2026*AE$7 -> 0 | AF34: =Option2!AF$88*conv_2026*AF$7 -> 0 | AG34: =Option2!AG$88*conv_2026*AG$7 -> 0
A35: Option 2 | C35: =Option2!C$89 -> Other benefits value | D35: Option 2Other benefits value | F35: =SUMPRODUCT(($H35:$AG35)*($H$5:$AG$5)*($H$7:$AG$7)) -> 0 | G35: 2026-06-30 | I35: =Option2!I$89*conv_2026*I$7 -> 0 | J35: =Option2!J$89*conv_2026*J$7 -> 0 | K35: =Option2!K$89*conv_2026*K$7 -> 0 | L35: =Option2!L$89*conv_2026*L$7 -> 0 | M35: =Option2!M$89*conv_2026*M$7 -> 0 | N35: =Option2!N$89*conv_2026*N$7 -> 0 | O35: =Option2!O$89*conv_2026*O$7 -> 0 | P35: =Option2!P$89*conv_2026*P$7 -> 0 | Q35: =Option2!Q$89*conv_2026*Q$7 -> 0 | R35: =Option2!R$89*conv_2026*R$7 -> 0 | S35: =Option2!S$89*conv_2026*S$7 -> 0 | T35: =Option2!T$89*conv_2026*T$7 -> 0 | U35: =Option2!U$89*conv_2026*U$7 -> 0 | V35: =Option2!V$89*conv_2026*V$7 -> 0 | W35: =Option2!W$89*conv_2026*W$7 -> 0 | X35: =Option2!X$89*conv_2026*X$7 -> 0 | Y35: =Option2!Y$89*conv_2026*Y$7 -> 0 | Z35: =Option2!Z$89*conv_2026*Z$7 -> 0 | AA35: =Option2!AA$89*conv_2026*AA$7 -> 0 | AB35: =Option2!AB$89*conv_2026*AB$7 -> 0 | AC35: =Option2!AC$89*conv_2026*AC$7 -> 0 | AD35: =Option2!AD$89*conv_2026*AD$7 -> 0 | AE35: =Option2!AE$89*conv_2026*AE$7 -> 0 | AF35: =Option2!AF$89*conv_2026*AF$7 -> 0 | AG35: =Option2!AG$89*conv_2026*AG$7 -> 0
A36: Option 2 | C36: =Option2!C91 -> Net benefits | D36: Option 2Net benefits | G36: 2026-06-30 | I36: =SUM(I32:I35) -> 0 | J36: =SUM(J32:J35) -> 13766609.17 | K36: 27051606.35 | L36: 46055067.09 | M36: 74840343.86 | N36: 119201581.8 | O36: 176868686.5 | P36: 234668275.6 | Q36: 287932067.2 | R36: 287932067.2 | S36: 287932067.2 | T36: 287932067.2 | U36: 287932067.2 | V36: 287932067.2 | W36: 287932067.2 | X36: 287932067.2 | Y36: 287932067.2 | Z36: 287932067.2 | AA36: 287932067.2 | AB36: 287932067.2 | AC36: 0 | AD36: 0 | AE36: 0 | AF36: 0 | AG36: 0
A37: Option 2 | C37: NPV | D37: Option 2NPV | F37: =SUMPRODUCT(($H36:$AG36)*($H$5:$AG$5)*($H$7:$AG$7)) -> 2713851157 | G37: 2026-06-30
A38: Option 2 | C38: PV of costs | D38: Option 2PV of costs | F38: =SUM(F32:F33) -> -1041225.852 | G38: 2026-06-30
A39: Option 2 | C39: PV of benefits | D39: Option 2PV of benefits | F39: =SUM(F34:F35) -> 2714892383 | G39: 2026-06-30
D41: =A41&C41 -> 
